Workbook

Sheet Contest Rules (hidden)
B1: Excel Datavis Contest - Chandoo.org - 2014
B3: Contest Rules
C5: Make a dashboard or set of charts.
C6: Help us understand state to state migration trends and interesting facts
C7: Use any standard Excel feature (no add-ins, no Power Pivot etc.)
C8: You can use Macros & VBA to add interaction to charts. (Code must be commented clearly and sources should be credited)
C9: You can add additional demographic or economic data as long as,
C10: You use publicly available data sources
C11: You provide links to the data sources and credit them
C12: Examples: Percaptia income, weather or living conditions
C13: You may ignore the Margin of Error data (provided in extreme right in the data tables).
C14: You may submit more than one entry. For voting & selecting winners only 1 entry from each individual is considered.
B16: Important Dates
C18: Contest start date | E18: 9th of April, 2014
C19: Last date for submission | E19: 20th of April, 2014 | G19: =DATE(2014,4,20)-TODAY() -> 1
B21: How to submit your entry?
C23: Email
C24: Send to: chandoo.d@gmail.com
C25: Subject: Datavis contest 2014
C26: Include: Your workbook, Your name, Email Address & Version of Excel used to make it
C28: Facebook
C29: Join chandoo.org fan page (Click here)
C30: Send your entry as a message (with workbook as attachment)
C31: Include: Your workbook, Your name, Email Address & Version of Excel used to make it
B33: What do you get?
C34: First prize
C35: iPad (Latest version) 16 GB
C37: Second prize
C38: iPad Mini (latest version) 16 GB
C40: Third prize (2 nos)
C41: Samsung Galaxy Tab 3
B43: How winners are selected
C44: Winners will be selected by voting and a panel of judges (to be revealed). If there is a tie, Judges' decision will be given more weightage.
B46: Fine Print
C47: Prizes will be delivered thru Amazon.com. If you are located in a country where shipping Amazon goods is not possible (or prohibitively expensive) you will be offered a choice of either getting money payment or purchase from a local website. You also agree that Chandoo.org reserves the right to showcase your files, share them, use them in courses & training programs or any other publication as deemed fit. You agree to share the copy-right of your workbook with Chandoo.org indefinetly for no compensation. Chandoo.org may get in touch with you if we need any clarifications or we are unable to use your file. Chandoo.org reserves the right to disqualify a contest entry based on sole discretion.
C48: For updates on rules, dates & policies, please click below link:
C49: http://chandoo.org/wp/2014/04/09/visualize-state-migration-contest/

Sheet Dashboard
A24: =IF(selMiles=1,CONCATENATE("Travelled <",'Distances Chart Data'!E4," Miles"),CONCATENATE("Travelled <",'Distances Chart Data'!E5," KM")) -> Travelled <800 KM
A25: =IF(selMiles=1,CONCATENATE("Travelled ",'Distances Chart Data'!E4,"-",'Distances Chart Data'!G4," Miles"),CONCATENATE("Travelled ",'Distances Chart Data'!E5,"-",'Distances Chart Data'!G5," KM")) -> Travelled 800-3200 KM
A26: =IF(selMiles=1,CONCATENATE("Travelled >",'Distances Chart Data'!G4," Miles"),CONCATENATE("Travelled >",'Distances Chart Data'!G5," KM")) -> Travelled >3200 KM
A27: =IF(selYear=1,CONCATENATE("Emigration and Immigration by State, ","2010"),IF(selYear=2,CONCATENATE("Emigration and Immigration by State, ","2011"),CONCATENATE("Emigration and Immigration by State, ","2012"))) -> Emigration and Immigration by State, 2012

Sheet Selectors (hidden)
B2: Year: | C2: State: | D2: Demographic: | E2: Destination or Origin: | F2: Within or Across States: | G2: Miles or KM: | H2: Scroller | I2: Sort By:
B3: 3 | C3: 1 | D3: 25 | E3: 2 | F3: 2 | G3: 2 | H3: 0 | I3: 2
C4: In United States | D4: % Persons under 5 years, 2012
C5: =IF(selDest=1,CONCATENATE("To ",'Migration 2012'!B11),CONCATENATE("From ",'Migration 2012'!B11)) -> From Alabama | D5: % Persons under 18 years, 2012
C6: =IF(selDest=1,CONCATENATE("To ",'Migration 2012'!B12),CONCATENATE("From ",'Migration 2012'!B12)) -> From Alaska | D6: % Persons 65 years and over, 2012
C7: =IF(selDest=1,CONCATENATE("To ",'Migration 2012'!B13),CONCATENATE("From ",'Migration 2012'!B13)) -> From Arizona | D7: % Female persons, 2012
C8: =IF(selDest=1,CONCATENATE("To ",'Migration 2012'!B14),CONCATENATE("From ",'Migration 2012'!B14)) -> From Arkansas | D8: % White alone, 2012
C9: =IF(selDest=1,CONCATENATE("To ",'Migration 2012'!B15),CONCATENATE("From ",'Migration 2012'!B15)) -> From California | D9: % Black or African American alone, 2012
C10: =IF(selDest=1,CONCATENATE("To ",'Migration 2012'!B16),CONCATENATE("From ",'Migration 2012'!B16)) -> From Colorado | D10: % American Indian and Alaska Native alone, 2012
C11: =IF(selDest=1,CONCATENATE("To ",'Migration 2012'!B17),CONCATENATE("From ",'Migration 2012'!B17)) -> From Connecticut | D11: % Asian alone, 2012
C12: =IF(selDest=1,CONCATENATE("To ",'Migration 2012'!B18),CONCATENATE("From ",'Migration 2012'!B18)) -> From Delaware | D12: % Native Hawaiian and Other Pacific Islander alone, 2012
C13: =IF(selDest=1,CONCATENATE("To ",'Migration 2012'!B19),CONCATENATE("From ",'Migration 2012'!B19)) -> From District of Columbia | D13: % Two or More Races, 2012
C14: =IF(selDest=1,CONCATENATE("To ",'Migration 2012'!B20),CONCATENATE("From ",'Migration 2012'!B20)) -> From Florida | D14: % Hispanic or Latino, 2012
C15: =IF(selDest=1,CONCATENATE("To ",'Migration 2012'!B21),CONCATENATE("From ",'Migration 2012'!B21)) -> From Georgia | D15: % White alone, not Hispanic or Latino, 2012
C16: =IF(selDest=1,CONCATENATE("To ",'Migration 2012'!B22),CONCATENATE("From ",'Migration 2012'!B22)) -> From Hawaii | D16: % Living in same house 1 year & over, 2008-2012
C17: =IF(selDest=1,CONCATENATE("To ",'Migration 2012'!B23),CONCATENATE("From ",'Migration 2012'!B23)) -> From Idaho | D17: % Foreign born persons, 2008-2012
C18: =IF(selDest=1,CONCATENATE("To ",'Migration 2012'!B24),CONCATENATE("From ",'Migration 2012'!B24)) -> From Illinois | D18: % Language other than English spoken at home, for ages 5+, 2008-2012
C19: =IF(selDest=1,CONCATENATE("To ",'Migration 2012'!B25),CONCATENATE("From ",'Migration 2012'!B25)) -> From Indiana | D19: % High school graduate or higher, for ages 25+, 2008-2012
C20: =IF(selDest=1,CONCATENATE("To ",'Migration 2012'!B26),CONCATENATE("From ",'Migration 2012'!B26)) -> From Iowa | D20: % Bachelor's degree or higher, for ages 25+, 2008-2012
C21: =IF(selDest=1,CONCATENATE("To ",'Migration 2012'!B27),CONCATENATE("From ",'Migration 2012'!B27)) -> From Kansas | D21: Veterans, 2008-2012
C22: =IF(selDest=1,CONCATENATE("To ",'Migration 2012'!B28),CONCATENATE("From ",'Migration 2012'!B28)) -> From Kentucky | D22: Mean travel time to work (minutes), for workers ages 16+, 2008-2012
C23: =IF(selDest=1,CONCATENATE("To ",'Migration 2012'!B29),CONCATENATE("From ",'Migration 2012'!B29)) -> From Louisiana | D23: Housing units, 2012
C24: =IF(selDest=1,CONCATENATE("To ",'Migration 2012'!B30),CONCATENATE("From ",'Migration 2012'!B30)) -> From Maine | D24: Homeownership rate, 2008-2012
C25: =IF(selDest=1,CONCATENATE("To ",'Migration 2012'!B31),CONCATENATE("From ",'Migration 2012'!B31)) -> From Maryland | D25: % Housing units in multi-unit structures, 2008-2012
C26: =IF(selDest=1,CONCATENATE("To ",'Migration 2012'!B32),CONCATENATE("From ",'Migration 2012'!B32)) -> From Massachusetts | D26: Median value of owner-occupied housing units, 2008-2012
C27: =IF(selDest=1,CONCATENATE("To ",'Migration 2012'!B33),CONCATENATE("From ",'Migration 2012'!B33)) -> From Michigan | D27: Number of Households, 2008-2012
C28: =IF(selDest=1,CONCATENATE("To ",'Migration 2012'!B34),CONCATENATE("From ",'Migration 2012'!B34)) -> From Minnesota | D28: Persons per household, 2008-2012
C29: =IF(selDest=1,CONCATENATE("To ",'Migration 2012'!B35),CONCATENATE("From ",'Migration 2012'!B35)) -> From Mississippi | D29: Per capita money income in past 12 months (2012 dollars), 2008-2012
C30: =IF(selDest=1,CONCATENATE("To ",'Migration 2012'!B36),CONCATENATE("From ",'Migration 2012'!B36)) -> From Missouri | D30: Median household income, 2008-2012
C31: =IF(selDest=1,CONCATENATE("To ",'Migration 2012'!B37),CONCATENATE("From ",'Migration 2012'!B37)) -> From Montana | D31: Persons below poverty level, percent, 2008-2012
C32: =IF(selDest=1,CONCATENATE("To ",'Migration 2012'!B38),CONCATENATE("From ",'Migration 2012'!B38)) -> From Nebraska | D32: Private nonfarm establishments, 2011
C33: =IF(selDest=1,CONCATENATE("To ",'Migration 2012'!B39),CONCATENATE("From ",'Migration 2012'!B39)) -> From Nevada | D33: Private nonfarm employment, 2011
C34: =IF(selDest=1,CONCATENATE("To ",'Migration 2012'!B40),CONCATENATE("From ",'Migration 2012'!B40)) -> From New Hampshire | D34: % Change in private nonfarm employment, 2010-2011
C35: =IF(selDest=1,CONCATENATE("To ",'Migration 2012'!B41),CONCATENATE("From ",'Migration 2012'!B41)) -> From New Jersey | D35: Nonemployer establishments, 2011
C36: =IF(selDest=1,CONCATENATE("To ",'Migration 2012'!B42),CONCATENATE("From ",'Migration 2012'!B42)) -> From New Mexico | D36: Total number of firms, 2007
C37: =IF(selDest=1,CONCATENATE("To ",'Migration 2012'!B43),CONCATENATE("From ",'Migration 2012'!B43)) -> From New York | D37: % Black-owned firms, 2007
C38: =IF(selDest=1,CONCATENATE("To ",'Migration 2012'!B44),CONCATENATE("From ",'Migration 2012'!B44)) -> From North Carolina | D38: % American Indian- and Alaska Native-owned firms, 2007
C39: =IF(selDest=1,CONCATENATE("To ",'Migration 2012'!B45),CONCATENATE("From ",'Migration 2012'!B45)) -> From North Dakota | D39: % Asian-owned firms, 2007
C40: =IF(selDest=1,CONCATENATE("To ",'Migration 2012'!B46),CONCATENATE("From ",'Migration 2012'!B46)) -> From Ohio | D40: % Native Hawaiian- and Other Pacific Islander-owned firms, 2007
C41: =IF(selDest=1,CONCATENATE("To ",'Migration 2012'!B47),CONCATENATE("From ",'Migration 2012'!B47)) -> From Oklahoma | D41: % Hispanic-owned firms, 2007
C42: =IF(selDest=1,CONCATENATE("To ",'Migration 2012'!B48),CONCATENATE("From ",'Migration 2012'!B48)) -> From Oregon | D42: % Women-owned firms, 2007
C43: =IF(selDest=1,CONCATENATE("To ",'Migration 2012'!B49),CONCATENATE("From ",'Migration 2012'!B49)) -> From Pennsylvania | D43: Manufacturers shipments, 2007 ($1,000)
C44: =IF(selDest=1,CONCATENATE("To ",'Migration 2012'!B50),CONCATENATE("From ",'Migration 2012'!B50)) -> From Rhode Island | D44: Merchant wholesaler sales, 2007 ($1,000)
C45: =IF(selDest=1,CONCATENATE("To ",'Migration 2012'!B51),CONCATENATE("From ",'Migration 2012'!B51)) -> From South Carolina | D45: Retail sales, 2007 ($1,000)
C46: =IF(selDest=1,CONCATENATE("To ",'Migration 2012'!B52),CONCATENATE("From ",'Migration 2012'!B52)) -> From South Dakota | D46: Retail sales per capita, 2007
C47: =IF(selDest=1,CONCATENATE("To ",'Migration 2012'!B53),CONCATENATE("From ",'Migration 2012'!B53)) -> From Tennessee | D47: Accommodation and food services sales, 2007 ($1,000)
C48: =IF(selDest=1,CONCATENATE("To ",'Migration 2012'!B54),CONCATENATE("From ",'Migration 2012'!B54)) -> From Texas | D48: Building permits, 2012
C49: =IF(selDest=1,CONCATENATE("To ",'Migration 2012'!B55),CONCATENATE("From ",'Migration 2012'!B55)) -> From Utah | D49: Land area in square miles, 2010
C50: =IF(selDest=1,CONCATENATE("To ",'Migration 2012'!B56),CONCATENATE("From ",'Migration 2012'!B56)) -> From Vermont | D50: Population per square mile, 2010
C51: =IF(selDest=1,CONCATENATE("To ",'Migration 2012'!B57),CONCATENATE("From ",'Migration 2012'!B57)) -> From Virginia
C52: =IF(selDest=1,CONCATENATE("To ",'Migration 2012'!B58),CONCATENATE("From ",'Migration 2012'!B58)) -> From Washington
C53: =IF(selDest=1,CONCATENATE("To ",'Migration 2012'!B59),CONCATENATE("From ",'Migration 2012'!B59)) -> From West Virginia
C54: =IF(selDest=1,CONCATENATE("To ",'Migration 2012'!B60),CONCATENATE("From ",'Migration 2012'!B60)) -> From Wisconsin
C55: =IF(selDest=1,CONCATENATE("To ",'Migration 2012'!B61),CONCATENATE("From ",'Migration 2012'!B61)) -> From Wyoming
C56: =IF(selDest=1,CONCATENATE("To ",'Migration 2012'!B62),CONCATENATE("From ",'Migration 2012'!B62)) -> From Puerto Rico

Sheet Migration Chart Data (hidden)
B2: =Migration!A4 -> No: | C2: =Migration!B4 -> Origin: | D2: =Migration!C4 -> Total Migration Away From Origin, 2012 | F2: No: | G2: Origin: | H2: Total Migration Away From Origin, 2012
B3: =Migration!A5 -> 1 | C3: =Migration!B5 -> Alabama | D3: =IF(ISNUMBER(Migration!C5),Migration!C5,0) -> 109210 | F3: 5 | G3: California | H3: 566986
B4: =Migration!A6 -> 2 | C4: =Migration!B6 -> Alaska | D4: =IF(ISNUMBER(Migration!C6),Migration!C6,0) -> 84068 | F4: 10 | G4: Florida | H4: 428325
B5: =Migration!A7 -> 3 | C5: =Migration!B7 -> Arizona | D5: =IF(ISNUMBER(Migration!C7),Migration!C7,0) -> 206842 | F5: 33 | G5: New York | H5: 405864
B6: =Migration!A8 -> 4 | C6: =Migration!B8 -> Arkansas | D6: =IF(ISNUMBER(Migration!C8),Migration!C8,0) -> 64967 | F6: 44 | G6: Texas | H6: 402187
B7: =Migration!A9 -> 5 | C7: =Migration!B9 -> California | D7: =IF(ISNUMBER(Migration!C9),Migration!C9,0) -> 566986 | F7: 14 | G7: Illinois | H7: 277953
B8: =Migration!A10 -> 6 | C8: =Migration!B10 -> Colorado | D8: =IF(ISNUMBER(Migration!C10),Migration!C10,0) -> 161530 | F8: 11 | G8: Georgia | H8: 252262
B9: =Migration!A11 -> 7 | C9: =Migration!B11 -> Connecticut | D9: =IF(ISNUMBER(Migration!C11),Migration!C11,0) -> 87023 | F9: 34 | G9: North Carolina | H9: 238663
B10: =Migration!A12 -> 8 | C10: =Migration!B12 -> Delaware | D10: =IF(ISNUMBER(Migration!C12),Migration!C12,0) -> 25149 | F10: 47 | G10: Virginia | H10: 238540
B11: =Migration!A13 -> 9 | C11: =Migration!B13 -> District of Columbia | D11: =IF(ISNUMBER(Migration!C13),Migration!C13,0) -> 59513 | F11: 39 | G11: Pennsylvania | H11: 237156
B12: =Migration!A14 -> 10 | C12: =Migration!B14 -> Florida | D12: =IF(ISNUMBER(Migration!C14),Migration!C14,0) -> 428325 | F12: 31 | G12: New Jersey | H12: 219202
B13: =Migration!A15 -> 11 | C13: =Migration!B15 -> Georgia | D13: =IF(ISNUMBER(Migration!C15),Migration!C15,0) -> 252262 | F13: 3 | G13: Arizona | H13: 206842
B14: =Migration!A16 -> 12 | C14: =Migration!B16 -> Hawaii | D14: =IF(ISNUMBER(Migration!C16),Migration!C16,0) -> 61509 | F14: 36 | G14: Ohio | H14: 199202
B15: =Migration!A17 -> 13 | C15: =Migration!B17 -> Idaho | D15: =IF(ISNUMBER(Migration!C17),Migration!C17,0) -> 55191 | F15: 48 | G15: Washington | H15: 180462
B16: =Migration!A18 -> 14 | C16: =Migration!B18 -> Illinois | D16: =IF(ISNUMBER(Migration!C18),Migration!C18,0) -> 277953 | F16: 23 | G16: Michigan | H16: 175733
B17: =Migration!A19 -> 15 | C17: =Migration!B19 -> Indiana | D17: =IF(ISNUMBER(Migration!C19),Migration!C19,0) -> 144597 | F17: 43 | G17: Tennessee | H17: 163843
B18: =Migration!A20 -> 16 | C18: =Migration!B20 -> Iowa | D18: =IF(ISNUMBER(Migration!C20),Migration!C20,0) -> 73325 | F18: 6 | G18: Colorado | H18: 161530
B19: =Migration!A21 -> 17 | C19: =Migration!B21 -> Kansas | D19: =IF(ISNUMBER(Migration!C21),Migration!C21,0) -> 93134 | F19: 22 | G19: Massachusetts | H19: 158156
B20: =Migration!A22 -> 18 | C20: =Migration!B22 -> Kentucky | D20: =IF(ISNUMBER(Migration!C22),Migration!C22,0) -> 103004 | F20: 21 | G20: Maryland | H20: 157664
B21: =Migration!A23 -> 19 | C21: =Migration!B23 -> Louisiana | D21: =IF(ISNUMBER(Migration!C23),Migration!C23,0) -> 95956 | F21: 15 | G21: Indiana | H21: 144597
B22: =Migration!A24 -> 20 | C22: =Migration!B24 -> Maine | D22: =IF(ISNUMBER(Migration!C24),Migration!C24,0) -> 38574 | F22: 26 | G22: Missouri | H22: 142754
B23: =Migration!A25 -> 21 | C23: =Migration!B25 -> Maryland | D23: =IF(ISNUMBER(Migration!C25),Migration!C25,0) -> 157664 | F23: 41 | G23: South Carolina | H23: 127418
B24: =Migration!A26 -> 22 | C24: =Migration!B26 -> Massachusetts | D24: =IF(ISNUMBER(Migration!C26),Migration!C26,0) -> 158156 | F24: 24 | G24: Minnesota | H24: 115946
B25: =Migration!A27 -> 23 | C25: =Migration!B27 -> Michigan | D25: =IF(ISNUMBER(Migration!C27),Migration!C27,0) -> 175733 | F25: 1 | G25: Alabama | H25: 109210
B26: =Migration!A28 -> 24 | C26: =Migration!B28 -> Minnesota | D26: =IF(ISNUMBER(Migration!C28),Migration!C28,0) -> 115946 | F26: 38 | G26: Oregon | H26: 108182
B27: =Migration!A29 -> 25 | C27: =Migration!B29 -> Mississippi | D27: =IF(ISNUMBER(Migration!C29),Migration!C29,0) -> 66947 | F27: 18 | G27: Kentucky | H27: 103004
B28: =Migration!A30 -> 26 | C28: =Migration!B30 -> Missouri | D28: =IF(ISNUMBER(Migration!C30),Migration!C30,0) -> 142754 | F28: 37 | G28: Oklahoma | H28: 102572
B29: =Migration!A31 -> 27 | C29: =Migration!B31 -> Montana | D29: =IF(ISNUMBER(Migration!C31),Migration!C31,0) -> 33832 | F29: 29 | G29: Nevada | H29: 98882
B30: =Migration!A32 -> 28 | C30: =Migration!B32 -> Nebraska | D30: =IF(ISNUMBER(Migration!C32),Migration!C32,0) -> 48816 | F30: 50 | G30: Wisconsin | H30: 97724
B31: =Migration!A33 -> 29 | C31: =Migration!B33 -> Nevada | D31: =IF(ISNUMBER(Migration!C33),Migration!C33,0) -> 98882 | F31: 19 | G31: Louisiana | H31: 95956
B32: =Migration!A34 -> 30 | C32: =Migration!B34 -> New Hampshire | D32: =IF(ISNUMBER(Migration!C34),Migration!C34,0) -> 38696 | F32: 17 | G32: Kansas | H32: 93134
B33: =Migration!A35 -> 31 | C33: =Migration!B35 -> New Jersey | D33: =IF(ISNUMBER(Migration!C35),Migration!C35,0) -> 219202 | F33: 7 | G33: Connecticut | H33: 87023
B34: =Migration!A36 -> 32 | C34: =Migration!B36 -> New Mexico | D34: =IF(ISNUMBER(Migration!C36),Migration!C36,0) -> 63921 | F34: 2 | G34: Alaska | H34: 84068
B35: =Migration!A37 -> 33 | C35: =Migration!B37 -> New York | D35: =IF(ISNUMBER(Migration!C37),Migration!C37,0) -> 405864 | F35: 45 | G35: Utah | H35: 82165
B36: =Migration!A38 -> 34 | C36: =Migration!B38 -> North Carolina | D36: =IF(ISNUMBER(Migration!C38),Migration!C38,0) -> 238663 | F36: 52 | G36: Puerto Rico | H36: 74500
B37: =Migration!A39 -> 35 | C37: =Migration!B39 -> North Dakota | D37: =IF(ISNUMBER(Migration!C39),Migration!C39,0) -> 23959 | F37: 16 | G37: Iowa | H37: 73325
B38: =Migration!A40 -> 36 | C38: =Migration!B40 -> Ohio | D38: =IF(ISNUMBER(Migration!C40),Migration!C40,0) -> 199202 | F38: 25 | G38: Mississippi | H38: 66947
B39: =Migration!A41 -> 37 | C39: =Migration!B41 -> Oklahoma | D39: =IF(ISNUMBER(Migration!C41),Migration!C41,0) -> 102572 | F39: 4 | G39: Arkansas | H39: 64967
B40: =Migration!A42 -> 38 | C40: =Migration!B42 -> Oregon | D40: =IF(ISNUMBER(Migration!C42),Migration!C42,0) -> 108182 | F40: 32 | G40: New Mexico | H40: 63921
B41: =Migration!A43 -> 39 | C41: =Migration!B43 -> Pennsylvania | D41: =IF(ISNUMBER(Migration!C43),Migration!C43,0) -> 237156 | F41: 12 | G41: Hawaii | H41: 61509
B42: =Migration!A44 -> 40 | C42: =Migration!B44 -> Rhode Island | D42: =IF(ISNUMBER(Migration!C44),Migration!C44,0) -> 30498 | F42: 9 | G42: District of Columbia | H42: 59513
B43: =Migration!A45 -> 41 | C43: =Migration!B45 -> South Carolina | D43: =IF(ISNUMBER(Migration!C45),Migration!C45,0) -> 127418 | F43: 13 | G43: Idaho | H43: 55191
B44: =Migration!A46 -> 42 | C44: =Migration!B46 -> South Dakota | D44: =IF(ISNUMBER(Migration!C46),Migration!C46,0) -> 22534 | F44: 28 | G44: Nebraska | H44: 48816
B45: =Migration!A47 -> 43 | C45: =Migration!B47 -> Tennessee | D45: =IF(ISNUMBER(Migration!C47),Migration!C47,0) -> 163843 | F45: 49 | G45: West Virginia | H45: 47425
B46: =Migration!A48 -> 44 | C46: =Migration!B48 -> Texas | D46: =IF(ISNUMBER(Migration!C48),Migration!C48,0) -> 402187 | F46: 30 | G46: New Hampshire | H46: 38696
B47: =Migration!A49 -> 45 | C47: =Migration!B49 -> Utah | D47: =IF(ISNUMBER(Migration!C49),Migration!C49,0) -> 82165 | F47: 20 | G47: Maine | H47: 38574
B48: =Migration!A50 -> 46 | C48: =Migration!B50 -> Vermont | D48: =IF(ISNUMBER(Migration!C50),Migration!C50,0) -> 20056 | F48: 27 | G48: Montana | H48: 33832
B49: =Migration!A51 -> 47 | C49: =Migration!B51 -> Virginia | D49: =IF(ISNUMBER(Migration!C51),Migration!C51,0) -> 238540 | F49: 51 | G49: Wyoming | H49: 32228
B50: =Migration!A52 -> 48 | C50: =Migration!B52 -> Washington | D50: =IF(ISNUMBER(Migration!C52),Migration!C52,0) -> 180462 | F50: 40 | G50: Rhode Island | H50: 30498
B51: =Migration!A53 -> 49 | C51: =Migration!B53 -> West Virginia | D51: =IF(ISNUMBER(Migration!C53),Migration!C53,0) -> 47425 | F51: 8 | G51: Delaware | H51: 25149
B52: =Migration!A54 -> 50 | C52: =Migration!B54 -> Wisconsin | D52: =IF(ISNUMBER(Migration!C54),Migration!C54,0) -> 97724 | F52: 35 | G52: North Dakota | H52: 23959
B53: =Migration!A55 -> 51 | C53: =Migration!B55 -> Wyoming | D53: =IF(ISNUMBER(Migration!C55),Migration!C55,0) -> 32228 | F53: 42 | G53: South Dakota | H53: 22534
B54: =Migration!A56 -> 52 | C54: =Migration!B56 -> Puerto Rico | D54: =IF(ISNUMBER(Migration!C56),Migration!C56,0) -> 74500 | F54: 46 | G54: Vermont | H54: 20056

Sheet Notes
B2: Key Lessons: | E2: URL:
B3: Distance Calculation (Formula, and Radius of Earth in Miles or KM) | E3: http://www.mrexcel.com/forum/excel-questions/600040-calculating-distance-excel.html
B4: Butterfly Chart | E4: http://usefulgyaan.wordpress.com/2013/07/04/custom-charts-in-excel-butterfly-chart/
B6: Data: | E6: URL:
B7: Dataset: U.S. Census Bureau: State and County QuickFacts, 2007-2013 | E7: Source: http://quickfacts.census.gov/qfd/download_data.html
B8: Capitals of States (For Calculating ZIP Codes) | E8: http://en.wikipedia.org/wiki/List_of_capitals_in_the_United_States
B9: ZIP Codes (Used to Calculate Approx. Distance Between States) | E9: http://stevemorse.org/jcal/latlonbatch.html?direction=forward

Sheet Demographics (hidden)
B2: Table 4: Demographics of USA, 2007-2013
B3: Dataset: U.S. Census Bureau: State and County QuickFacts, 2007-2013, some data omitted
B4: Source: http://quickfacts.census.gov/qfd/download_data.html
B5: Data unavailable for: District of Columbia and Peurto Rico
B9: State and County code | C9: Population, 2012 estimate ABS 0 313873685 78 313873685 CENSUS | D9: Population, 2010 (April 1) estimates base ABS 0 308747716 82 308747716 CENSUS | E9: Population, percent change - April 1, 2010 to July 1, 2013 PCT 1 2.4 -18.6 46.4 CENSUS | F9: Population, percent change - April 1, 2010 to July 1, 2012 PCT 1 1.7 -18.1 25.7 CENSUS | G9: % Persons under 5 years, 2012 | H9: % Persons under 18 years, 2012 | I9: % Persons 65 years and over, 2012 | J9: % Female persons, 2012 | K9: % White alone, 2012 | L9: % Black or African American alone, 2012 | M9: % American Indian and Alaska Native alone, 2012 | N9: % Asian alone, 2012 | O9: % Native Hawaiian and Other Pacific Islander alone, 2012 | P9: % Two or More Races, 2012 | Q9: % Hispanic or Latino, 2012 | R9: % White alone, not Hispanic or Latino, 2012 | S9: % Living in same house 1 year & over, 2008-2012 | T9: % Foreign born persons, 2008-2012 | U9: % Language other than English spoken at home, for ages 5+, 2008-2012 | V9: % High school graduate or higher, for ages 25+, 2008-2012 | W9: % Bachelor's degree or higher, for ages 25+, 2008-2012 | X9: Veterans, 2008-2012 | Y9: Mean travel time to work (minutes), for workers ages 16+, 2008-2012 | Z9: Housing units, 2012 | AA9: Homeownership rate, 2008-2012 | AB9: % Housing units in multi-unit structures, 2008-2012 | AC9: Median value of owner-occupied housing units, 2008-2012 | AD9: Number of Households, 2008-2012 | AE9: Persons per household, 2008-2012 | AF9: Per capita money income in past 12 months (2012 dollars), 2008-2012 | AG9: Median household income, 2008-2012 | AH9: Persons below poverty level, percent, 2008-2012 | AI9: Private nonfarm establishments, 2011 | AJ9: Private nonfarm employment, 2011 | AK9: % Change in private nonfarm employment, 2010-2011 | AL9: Nonemployer establishments, 2011 | AM9: Total number of firms, 2007 | AN9: % Black-owned firms, 2007 | AO9: % American Indian- and Alaska Native-owned firms, 2007 | AP9: % Asian-owned firms, 2007 | AQ9: % Native Hawaiian- and Other Pacific Islander-owned firms, 2007 | AR9: % Hispanic-owned firms, 2007 | AS9: % Women-owned firms, 2007 | AT9: Manufacturers shipments, 2007 ($1,000) | AU9: Merchant wholesaler sales, 2007 ($1,000) | AV9: Retail sales, 2007 ($1,000) | AW9: Retail sales per capita, 2007 | AX9: Accommodation and food services sales, 2007 ($1,000) | AY9: Building permits, 2012 | AZ9: Land area in square miles, 2010 | BA9: Population per square mile, 2010 | BD9: =Migration!C4 -> Total Migration Away From Origin, 2012 | BE9: =INDEX(Table1[[#All],[% Persons under 5 years, 2012]:[Population per square mile, 2010]],ROW(A1)-1,selDem) -> Persons per household, 2008-2012
B10: United States | C10: 313873685 | D10: 308747716 | E10: 2.4 | F10: 1.7 | G10: 6.4 | H10: 23.5 | I10: 13.7 | J10: 50.8 | K10: 77.9 | L10: 13.1 | M10: 1.2 | N10: 5.1 | O10: 0.2 | P10: 2.4 | Q10: 16.9 | R10: 63 | S10: 84.8 | T10: 12.9 | U10: 20.5 | V10: 85.7 | W10: 28.5 | X10: 21853912 | Y10: 25.4 | Z10: 132452405 | AA10: 65.5 | AB10: 25.9 | AC10: 181400 | AD10: 115226802 | AE10: 2.61 | AF10: 28051 | AG10: 53046 | AH10: 14.9 | AI10: 7354043 | AJ10: 113425965 | AK10: 1.3 | AL10: 22491080 | AM10: 27092908 | AN10: 7.1 | AO10: 0.9 | AP10: 5.7 | AQ10: 0.1 | AR10: 8.3 | AS10: 28.8 | AT10: 5319456312 | AU10: 4174286516 | AV10: 3917663456 | AW10: 12990 | AX10: 613795732 | AY10: 829658 | AZ10: 3531905.43 | BA10: 87.4 | BC10: Alabama | BD10: =Migration!C5 -> 109210 | BE10: =INDEX(Table1[[#All],[% Persons under 5 years, 2012]:[Population per square mile, 2010]],ROW(A3),selDem) -> 2.54 | BF10: =CORREL(BD10:BD59,BE10:BE59) -> 0.410060504
B11: Alabama | C11: 4817528 | D11: 4779758 | E11: 1.1 | F11: 0.8 | G11: 6.3 | H11: 23.3 | I11: 14.5 | J11: 51.5 | K11: 70 | L11: 26.5 | M11: 0.7 | N11: 1.2 | O11: 0.1 | P11: 1.5 | Q11: 4.1 | R11: 66.6 | S11: 84.9 | T11: 3.5 | U11: 5.2 | V11: 82.6 | W11: 22.3 | X11: 398343 | Y11: 24.1 | Z11: 2189545 | AA11: 70.2 | AB11: 15.8 | AC11: 122300 | AD11: 1837576 | AE11: 2.54 | AF11: 23587 | AG11: 43160 | AH11: 18.1 | AI11: 97743 | AJ11: 1573138 | AK11: 0.3 | AL11: 321641 | AM11: 382350 | AN11: 14.8 | AO11: 0.8 | AP11: 1.8 | AQ11: 0.1 | AR11: 1.2 | AS11: 28.1 | AT11: 112858843 | AU11: 52252752 | AV11: 57344851 | AW11: 12364 | AX11: 6426342 | AY11: 13506 | AZ11: 50645.33 | BA11: 94.4 | BC11: Alaska | BD11: =Migration!C6 -> 84068 | BE11: =INDEX(Table1[[#All],[% Persons under 5 years, 2012]:[Population per square mile, 2010]],ROW(A4),selDem) -> 2.71 | BF11: =IF(selState>1,CONCATENATE("Correlation coefficient (r) value between ",IF(selYear=1,"2010",IF(selYear=2,"2011","2012"))," ",BD9,", and the ",IF(selDest=1,"Origin","Destination"),"'s ",BE9,":"),CONCATENATE("Correlation coefficient (r) value between ",BD9,", and the State's ",BE9,":")) -> Correlation coefficient (r) value between Total Migration Away From Origin, 2012, and the State's Persons per household, 2008-2012:
B12: Alaska | C12: 730307 | D12: 710231 | E12: 3.5 | F12: 2.8 | G12: 7.5 | H12: 25.6 | I12: 8.5 | J12: 47.9 | K12: 67.5 | L12: 3.7 | M12: 14.8 | N12: 5.7 | O12: 1.2 | P12: 7.1 | Q12: 6.1 | R12: 63.1 | S12: 79.7 | T12: 6.9 | U12: 16.3 | V12: 91.6 | W12: 27.5 | X12: 72090 | Y12: 18.6 | Z12: 307594 | AA12: 64.4 | AB12: 24.2 | AC12: 237900 | AD12: 252991 | AE12: 2.71 | AF12: 32537 | AG12: 69917 | AH12: 9.6 | AI12: 20119 | AJ12: 254996 | AK12: 0.1 | AL12: 53334 | AM12: 68728 | AN12: 1.5 | AO12: 10 | AP12: 3.1 | AQ12: 0.3 | AR12: 0 | AS12: 25.9 | AT12: 8204030 | AU12: 4563605 | AV12: 9303387 | AW12: 13635 | AX12: 1851293 | AY12: 994 | AZ12: 570640.95 | BA12: 1.2 | BC12: Arizona | BD12: =Migration!C7 -> 206842 | BE12: =INDEX(Table1[[#All],[% Persons under 5 years, 2012]:[Population per square mile, 2010]],ROW(A5),selDem) -> 2.66 | BF12: =CONCATENATE("X: [",BD9,"], Y: [",BE9,"]") -> X: [Total Migration Away From Origin, 2012], Y: [Persons per household, 2008-2012]
B13: Arizona | C13: 6551149 | D13: 6392015 | E13: 3.7 | F13: 2.5 | G13: 6.7 | H13: 24.7 | I13: 14.8 | J13: 50.3 | K13: 84.3 | L13: 4.5 | M13: 5.3 | N13: 3.1 | O13: 0.3 | P13: 2.5 | Q13: 30.2 | R13: 57.1 | S13: 80.4 | T13: 13.6 | U13: 26.9 | V13: 85.4 | W13: 26.6 | X13: 530693 | Y13: 24.6 | Z13: 2871423 | AA13: 65.5 | AB13: 20.6 | AC13: 175900 | AD13: 2357158 | AE13: 2.66 | AF13: 25571 | AG13: 50256 | AH13: 17.2 | AI13: 130305 | AJ13: 2108561 | AK13: 2.1 | AL13: 408650 | AM13: 491529 | AN13: 2 | AO13: 1.9 | AP13: 3.3 | AQ13: 0 | AR13: 10.7 | AS13: 28.1 | AT13: 57977827 | AU13: 57573459 | AV13: 86758801 | AW13: 13637 | AX13: 13268514 | AY13: 21726 | AZ13: 113594.08 | BA13: 56.3 | BC13: Arkansas | BD13: =Migration!C8 -> 64967 | BE13: =INDEX(Table1[[#All],[% Persons under 5 years, 2012]:[Population per square mile, 2010]],ROW(A6),selDem) -> 2.51 | BF13: =CONCATENATE("r = ",LEFT(BF10,5)) -> r = 0.410
B14: Arkansas | C14: 2949828 | D14: 2915916 | E14: 1.5 | F14: 1.2 | G14: 6.6 | H14: 24.1 | I14: 15 | J14: 50.9 | K14: 80 | L14: 15.6 | M14: 0.9 | N14: 1.4 | O14: 0.3 | P14: 1.8 | Q14: 6.8 | R14: 73.9 | S14: 83 | T14: 4.4 | U14: 7.1 | V14: 83.3 | W14: 19.8 | X14: 242151 | Y14: 21.3 | Z14: 1328170 | AA14: 67.2 | AB14: 15.4 | AC14: 106300 | AD14: 1128797 | AE14: 2.51 | AF14: 22007 | AG14: 40531 | AH14: 18.7 | AI14: 64471 | AJ14: 980644 | AK14: 1.6 | AL14: 193329 | AM14: 238994 | AN14: 5.5 | AO14: 1.1 | AP14: 1.4 | AQ14: 0.1 | AR14: 2.3 | AS14: 24.5 | AT14: 60735582 | AU14: 29659789 | AV14: 32974282 | AW14: 11602 | AX14: 3559795 | AY14: 8231 | AZ14: 52035.48 | BA14: 56 | BC14: California | BD14: =Migration!C9 -> 566986 | BE14: =INDEX(Table1[[#All],[% Persons under 5 years, 2012]:[Population per square mile, 2010]],ROW(A7),selDem) -> 2.93
B15: California | C15: 37999878 | D15: 37253959 | E15: 2.9 | F15: 2 | G15: 6.7 | H15: 24.3 | I15: 12.1 | J15: 50.3 | K15: 73.7 | L15: 6.6 | M15: 1.7 | N15: 13.9 | O15: 0.5 | P15: 3.6 | Q15: 38.2 | R15: 39.4 | S15: 84.2 | T15: 27.1 | U15: 43.5 | V15: 81 | W15: 30.5 | X15: 1952910 | Y15: 27.1 | Z15: 13707386 | AA15: 56 | AB15: 30.9 | AC15: 383900 | AD15: 12466331 | AE15: 2.93 | AF15: 29551 | AG15: 61400 | AH15: 15.3 | AI15: 849316 | AJ15: 12698427 | AK15: 1.3 | AL15: 2887014 | AM15: 3425510 | AN15: 4 | AO15: 1.3 | AP15: 14.9 | AQ15: 0.3 | AR15: 16.5 | AS15: 30.3 | AT15: 491372092 | AU15: 598456486 | AV15: 455032270 | AW15: 12561 | AX15: 80852787 | AY15: 58549 | AZ15: 155779.22 | BA15: 239.1 | BC15: Colorado | BD15: =Migration!C10 -> 161530 | BE15: =INDEX(Table1[[#All],[% Persons under 5 years, 2012]:[Population per square mile, 2010]],ROW(A8),selDem) -> 2.51
B16: Colorado | C16: 5189458 | D16: 5029196 | E16: 4.8 | F16: 3.2 | G16: 6.5 | H16: 23.7 | I16: 11.8 | J16: 49.8 | K16: 88.1 | L16: 4.3 | M16: 1.6 | N16: 3 | O16: 0.2 | P16: 2.8 | Q16: 21 | R16: 69.6 | S16: 80.8 | T16: 9.7 | U16: 16.8 | V16: 89.9 | W16: 36.7 | X16: 405895 | Y16: 24.4 | Z16: 2230459 | AA16: 65.9 | AB16: 25.8 | AC16: 236800 | AD16: 1962753 | AE16: 2.51 | AF16: 31039 | AG16: 58244 | AH16: 12.9 | AI16: 150889 | AJ16: 1972271 | AK16: 0.9 | AL16: 434910 | AM16: 547770 | AN16: 1.7 | AO16: 0.8 | AP16: 2.6 | AQ16: 0.1 | AR16: 6.2 | AS16: 29.2 | AT16: 46331953 | AU16: 53598986 | AV16: 65896788 | AW16: 13609 | AX16: 11440395 | AY16: 23301 | AZ16: 103641.89 | BA16: 48.5 | BC16: Connecticut | BD16: =Migration!C11 -> 87023 | BE16: =INDEX(Table1[[#All],[% Persons under 5 years, 2012]:[Population per square mile, 2010]],ROW(A9),selDem) -> 2.54
B17: Connecticut | C17: 3591765 | D17: 3574097 | E17: 0.6 | F17: 0.5 | G17: 5.4 | H17: 22.1 | I17: 14.8 | J17: 51.3 | K17: 82 | L17: 11.2 | M17: 0.5 | N17: 4.2 | O17: 0.1 | P17: 2.1 | Q17: 14.2 | R17: 70.3 | S17: 87.9 | T17: 13.5 | U17: 21.2 | V17: 89 | W17: 36.2 | X17: 228291 | Y17: 24.8 | Z17: 1487910 | AA17: 68.3 | AB17: 34.5 | AC17: 285900 | AD17: 1360184 | AE17: 2.54 | AF17: 37807 | AG17: 69519 | AH17: 10 | AI17: 88040 | AJ17: 1442620 | AK17: 0.4 | AL17: 259835 | AM17: 332150 | AN17: 4.4 | AO17: 0.5 | AP17: 3.3 | AQ17: 0 | AR17: 4.2 | AS17: 28.1 | AT17: 58404898 | AU17: 107917037 | AV17: 52165480 | AW17: 14953 | AX17: 9138437 | AY17: 4669 | AZ17: 4842.36 | BA17: 738.1 | BC17: Delaware | BD17: =Migration!C12 -> 25149 | BE17: =INDEX(Table1[[#All],[% Persons under 5 years, 2012]:[Population per square mile, 2010]],ROW(A10),selDem) -> 2.62
B18: Delaware | C18: 917053 | D18: 897936 | E18: 3.1 | F18: 2.1 | G18: 6.1 | H18: 22.4 | I18: 15.3 | J18: 51.5 | K18: 71.4 | L18: 22 | M18: 0.7 | N18: 3.5 | O18: 0.1 | P18: 2.4 | Q18: 8.6 | R18: 64.6 | S18: 85.8 | T18: 8.3 | U18: 12.3 | V18: 87.7 | W18: 28.5 | X18: 76752 | Y18: 24.8 | Z18: 410321 | AA18: 72.7 | AB18: 17.7 | AC18: 241100 | AD18: 334076 | AE18: 2.62 | AF18: 29733 | AG18: 60119 | AH18: 11.5 | AI18: 24132 | AJ18: 359602 | AK18: 0.2 | AL18: 55418 | AM18: 74573 | AN18: 8.7 | AO18: 0 | AP18: 4 | AQ18: 0 | AR18: 2.1 | AS18: 26.1 | AT18: 25679939 | AU18: 5727401 | AV18: 14202083 | AW18: 16421 | AX18: 1910770 | AY18: 4091 | AZ18: 1948.54 | BA18: 460.8 | BC18: Florida | BD18: =Migration!C13 -> 59513 | BE18: =INDEX(Table1[[#All],[% Persons under 5 years, 2012]:[Population per square mile, 2010]],ROW(A12),selDem) -> 2.58
B19: District of Columbia | BC19: Georgia | BD19: =Migration!C14 -> 428325 | BE19: =INDEX(Table1[[#All],[% Persons under 5 years, 2012]:[Population per square mile, 2010]],ROW(A13),selDem) -> 2.7
B20: Florida | C20: 19320749 | D20: 18802690 | E20: 4 | F20: 2.8 | G20: 5.5 | H20: 20.7 | I20: 18.2 | J20: 51.1 | K20: 78.3 | L20: 16.6 | M20: 0.5 | N20: 2.7 | O20: 0.1 | P20: 1.9 | Q20: 23.2 | R20: 57 | S20: 83.7 | T20: 19.3 | U20: 27.3 | V20: 85.8 | W20: 26.2 | X20: 1606758 | Y20: 25.8 | Z20: 9031051 | AA20: 68.1 | AB20: 30.1 | AC20: 170800 | AD20: 7147013 | AE20: 2.58 | AF20: 26451 | AG20: 47309 | AH20: 15.6 | AI20: 490851 | AJ20: 6732639 | AK20: 1.6 | AL20: 1717627 | AM20: 2009589 | AN20: 9 | AO20: 0.5 | AP20: 3.2 | AQ20: 0.1 | AR20: 22.4 | AS20: 28.9 | AT20: 104832907 | AU20: 221641518 | AV20: 262341127 | AW20: 14353 | AX20: 41922059 | AY20: 64810 | AZ20: 53624.76 | BA20: 350.6 | BC20: Hawaii | BD20: =Migration!C15 -> 252262 | BE20: =INDEX(Table1[[#All],[% Persons under 5 years, 2012]:[Population per square mile, 2010]],ROW(A14),selDem) -> 2.95
B21: Georgia | C21: 9915646 | D21: 9687663 | E21: 3.1 | F21: 2.4 | G21: 6.8 | H21: 25.1 | I21: 11.5 | J21: 51.1 | K21: 62.8 | L21: 31.2 | M21: 0.5 | N21: 3.5 | O21: 0.1 | P21: 1.8 | Q21: 9.2 | R21: 55.1 | S21: 83.3 | T21: 9.7 | U21: 13.1 | V21: 84.4 | W21: 27.8 | X21: 701808 | Y21: 27 | Z21: 4107482 | AA21: 66 | AB21: 20.5 | AC21: 156400 | AD21: 3508477 | AE21: 2.7 | AF21: 25309 | AG21: 49604 | AH21: 17.4 | AI21: 214635 | AJ21: 3328033 | AK21: 0.4 | AL21: 786848 | AM21: 901105 | AN21: 20.4 | AO21: 0.7 | AP21: 5.1 | AQ21: 0.1 | AR21: 3.6 | AS21: 30.9 | AT21: 144280774 | AU21: 141962359 | AV21: 117516907 | AW21: 12326 | AX21: 16976235 | AY21: 24350 | AZ21: 57513.49 | BA21: 168.4 | BC21: Idaho | BD21: =Migration!C16 -> 61509 | BE21: =INDEX(Table1[[#All],[% Persons under 5 years, 2012]:[Population per square mile, 2010]],ROW(A15),selDem) -> 2.66
B22: Hawaii | C22: 1390090 | D22: 1360301 | E22: 3.2 | F22: 2.2 | G22: 6.4 | H22: 21.8 | I22: 15.1 | J22: 49.6 | K22: 26.1 | L22: 2.1 | M22: 0.4 | N22: 38.3 | O22: 10.1 | P22: 23 | Q22: 9.5 | R22: 22.8 | S22: 84.9 | T22: 18.1 | U22: 25.7 | V22: 90.3 | W22: 29.6 | X22: 112589 | Y22: 25.8 | Z22: 524343 | AA22: 58.2 | AB22: 38.6 | AC22: 517000 | AD22: 447453 | AE22: 2.95 | AF22: 29227 | AG22: 67492 | AH22: 10.8 | AI22: 31472 | AJ22: 485548 | AK22: 1.4 | AL22: 94118 | AM22: 120374 | AN22: 0.9 | AO22: 1.3 | AP22: 47.2 | AQ22: 9.5 | AR22: 3.6 | AS22: 31 | AT22: 8799266 | AU22: 8894672 | AV22: 17611851 | AW22: 13793 | AX22: 8042210 | AY22: 2993 | AZ22: 6422.63 | BA22: 211.8 | BC22: Illinois | BD22: =Migration!C17 -> 55191 | BE22: =INDEX(Table1[[#All],[% Persons under 5 years, 2012]:[Population per square mile, 2010]],ROW(A16),selDem) -> 2.62
B23: Idaho | C23: 1595590 | D23: 1567652 | E23: 2.8 | F23: 1.8 | G23: 7.3 | H23: 26.7 | I23: 13.3 | J23: 50 | K23: 93.8 | L23: 0.8 | M23: 1.7 | N23: 1.4 | O23: 0.2 | P23: 2.2 | Q23: 11.6 | R23: 83.5 | S23: 82.3 | T23: 6 | U23: 10.4 | V23: 88.6 | W23: 24.7 | X23: 125905 | Y23: 20.1 | Z23: 673054 | AA23: 70.1 | AB23: 15.1 | AC23: 167100 | AD23: 577648 | AE23: 2.66 | AF23: 22581 | AG23: 47015 | AH23: 15.1 | AI23: 42399 | AJ23: 482722 | AK23: -1.1 | AL23: 113472 | AM23: 151671 | AN23: 0.2 | AO23: 0.9 | AP23: 0.8 | AQ23: 0 | AR23: 2.6 | AS23: 23.5 | AT23: 18010976 | AU23: 14286715 | AV23: 20526631 | AW23: 13691 | AX23: 2415951 | AY23: 6265 | AZ23: 82643.12 | BA23: 19 | BC23: Indiana | BD23: =Migration!C18 -> 277953 | BE23: =INDEX(Table1[[#All],[% Persons under 5 years, 2012]:[Population per square mile, 2010]],ROW(A17),selDem) -> 2.54
B24: Illinois | C24: 12868192 | D24: 12830632 | E24: 0.4 | F24: 0.3 | G24: 6.3 | H24: 23.8 | I24: 13.2 | J24: 50.9 | K24: 77.9 | L24: 14.8 | M24: 0.6 | N24: 5 | O24: 0.1 | P24: 1.7 | Q24: 16.3 | R24: 63 | S24: 86.8 | T24: 13.8 | U24: 22.2 | V24: 87 | W24: 31.1 | X24: 755256 | Y24: 28.1 | Z24: 5295329 | AA24: 68 | AB24: 32.9 | AC24: 190800 | AD24: 4774275 | AE24: 2.62 | AF24: 29519 | AG24: 56853 | AH24: 13.7 | AI24: 312437 | AJ24: 5038462 | AK24: 1.2 | AL24: 920076 | AM24: 1123817 | AN24: 9.5 | AO24: 0.5 | AP24: 5.3 | AQ24: 0.1 | AR24: 5 | AS24: 30.5 | AT24: 257760713 | AU24: 231082768 | AV24: 165450520 | AW24: 12947 | AX24: 25469026 | AY24: 13797 | AZ24: 55518.93 | BA24: 231.1 | BC24: Iowa | BD24: =Migration!C19 -> 144597 | BE24: =INDEX(Table1[[#All],[% Persons under 5 years, 2012]:[Population per square mile, 2010]],ROW(A18),selDem) -> 2.41
B25: Indiana | C25: 6537782 | D25: 6483797 | E25: 1.3 | F25: 0.8 | G25: 6.5 | H25: 24.3 | I25: 13.6 | J25: 50.8 | K25: 86.6 | L25: 9.4 | M25: 0.4 | N25: 1.8 | O25: 0.1 | P25: 1.8 | Q25: 6.3 | R25: 81 | S25: 84.7 | T25: 4.6 | U25: 8.1 | V25: 87 | W25: 23 | X25: 468648 | Y25: 23.2 | Z25: 2808256 | AA25: 70.6 | AB25: 18.5 | AC25: 123400 | AD25: 2478846 | AE25: 2.54 | AF25: 24558 | AG25: 48374 | AH25: 14.7 | AI25: 143479 | AJ25: 2440507 | AK25: 1.7 | AL25: 386889 | AM25: 482847 | AN25: 4.6 | AO25: 0.5 | AP25: 1.8 | AQ25: 0 | AR25: 1.8 | AS25: 26.8 | AT25: 221877814 | AU25: 67634947 | AV25: 78745589 | AW25: 12408 | AX25: 11669759 | AY25: 13781 | AZ25: 35826.11 | BA25: 181 | BC25: Kansas | BD25: =Migration!C20 -> 73325 | BE25: =INDEX(Table1[[#All],[% Persons under 5 years, 2012]:[Population per square mile, 2010]],ROW(A19),selDem) -> 2.5
B26: Iowa | C26: 3075039 | D26: 3046857 | E26: 1.4 | F26: 0.9 | G26: 6.4 | H26: 23.5 | I26: 15.3 | J26: 50.4 | K26: 92.8 | L26: 3.2 | M26: 0.5 | N26: 2 | O26: 0.1 | P26: 1.6 | Q26: 5.3 | R26: 88 | S26: 84.7 | T26: 4.3 | U26: 7.1 | V26: 90.7 | W26: 25.3 | X26: 233698 | Y26: 18.7 | Z26: 1345738 | AA26: 72.6 | AB26: 18.4 | AC26: 123000 | AD26: 1223509 | AE26: 2.41 | AF26: 26545 | AG26: 51129 | AH26: 12.2 | AI26: 80113 | AJ26: 1263665 | AK26: 0.8 | AL26: 202971 | AM26: 259931 | AN26: 0.8 | AO26: 0.2 | AP26: 1.1 | AQ26: 0.1 | AR26: 0.9 | AS26: 25.5 | AT26: 97592051 | AU26: 41068338 | AV26: 39234649 | AW26: 13172 | AX26: 4737719 | AY26: 9501 | AZ26: 55857.13 | BA26: 54.5 | BC26: Kentucky | BD26: =Migration!C21 -> 93134 | BE26: =INDEX(Table1[[#All],[% Persons under 5 years, 2012]:[Population per square mile, 2010]],ROW(A20),selDem) -> 2.49
B27: Kansas | C27: 2885398 | D27: 2853116 | E27: 1.4 | F27: 1.1 | G27: 7 | H27: 25.1 | I27: 13.7 | J27: 50.3 | K27: 87.2 | L27: 6.2 | M27: 1.2 | N27: 2.6 | O27: 0.1 | P27: 2.7 | Q27: 11 | R27: 77.5 | S27: 83 | T27: 6.5 | U27: 10.9 | V27: 89.7 | W27: 30 | X27: 218511 | Y27: 18.9 | Z27: 1238719 | AA27: 68.2 | AB27: 17.6 | AC27: 127400 | AD27: 1109391 | AE27: 2.5 | AF27: 26845 | AG27: 51273 | AH27: 13.2 | AI27: 73598 | AJ27: 1113423 | AK27: -1.2 | AL27: 186495 | AM27: 237040 | AN27: 2.4 | AO27: 0.9 | AP27: 2 | AQ27: 0 | AR27: 2.4 | AS27: 27.5 | AT27: 76751828 | AU27: 45863865 | AV27: 34538332 | AW27: 12444 | AX27: 4192347 | AY27: 6252 | AZ27: 81758.72 | BA27: 34.9 | BC27: Louisiana | BD27: =Migration!C22 -> 103004 | BE27: =INDEX(Table1[[#All],[% Persons under 5 years, 2012]:[Population per square mile, 2010]],ROW(A21),selDem) -> 2.59
B28: Kentucky | C28: 4379730 | D28: 4339357 | E28: 1.3 | F28: 0.9 | G28: 6.4 | H28: 23.2 | I28: 14 | J28: 50.7 | K28: 88.6 | L28: 8.1 | M28: 0.3 | N28: 1.3 | O28: 0.1 | P28: 1.6 | Q28: 3.2 | R28: 85.9 | S28: 84.9 | T28: 3.2 | U28: 4.8 | V28: 82.4 | W28: 21 | X28: 319678 | Y28: 22.7 | Z28: 1937312 | AA28: 68.7 | AB28: 18 | AC28: 120000 | AD28: 1691716 | AE28: 2.49 | AF28: 23210 | AG28: 42610 | AH28: 18.6 | AI28: 89770 | AJ28: 1463173 | AK28: 0.4 | AL28: 275059 | AM28: 337600 | AN28: 3.1 | AO28: 0.3 | AP28: 1.6 | AQ28: 0 | AR28: 1.1 | AS28: 25.6 | AT28: 119105421 | AU28: 74680759 | AV28: 50405925 | AW28: 11843 | AX28: 6300866 | AY28: 9725 | AZ28: 39486.34 | BA28: 109.9 | BC28: Maine | BD28: =Migration!C23 -> 95956 | BE28: =INDEX(Table1[[#All],[% Persons under 5 years, 2012]:[Population per square mile, 2010]],ROW(A22),selDem) -> 2.34
B29: Louisiana | C29: 4602134 | D29: 4533372 | E29: 2 | F29: 1.5 | G29: 6.8 | H29: 24.3 | I29: 12.9 | J29: 51.1 | K29: 63.7 | L29: 32.4 | M29: 0.7 | N29: 1.7 | O29: 0.1 | P29: 1.4 | Q29: 4.5 | R29: 59.9 | S29: 85.5 | T29: 3.7 | U29: 8.7 | V29: 82.2 | W29: 21.4 | X29: 313006 | Y29: 24.9 | Z29: 1986981 | AA29: 67.4 | AB29: 18.3 | AC29: 137700 | AD29: 1696499 | AE29: 2.59 | AF29: 24264 | AG29: 44673 | AH29: 18.7 | AI29: 103216 | AJ29: 1617229 | AK29: 1.1 | AL29: 336328 | AM29: 375808 | AN29: 15.9 | AO29: 0.7 | AP29: 2.8 | AQ29: 0 | AR29: 2.9 | AS29: 27.4 | AT29: 205054723 | AU29: 51415553 | AV29: 56543203 | AW29: 12921 | AX29: 9729869 | AY29: 13018 | AZ29: 43203.9 | BA29: 104.9 | BC29: Maryland | BD29: =Migration!C24 -> 38574 | BE29: =INDEX(Table1[[#All],[% Persons under 5 years, 2012]:[Population per square mile, 2010]],ROW(A23),selDem) -> 2.64
B30: Maine | C30: 1328501 | D30: 1328361 | E30: 0 | F30: 0 | G30: 5 | H30: 20 | I30: 17 | J30: 51.1 | K30: 95.3 | L30: 1.3 | M30: 0.7 | N30: 1.1 | O30: 0 | P30: 1.5 | Q30: 1.4 | R30: 94.1 | S30: 86.3 | T30: 3.3 | U30: 7 | V30: 90.6 | W30: 27.3 | X30: 130685 | Y30: 23.3 | Z30: 724224 | AA30: 72.1 | AB30: 19.4 | AC30: 175600 | AD30: 553208 | AE30: 2.34 | AF30: 26464 | AG30: 48219 | AH30: 13.3 | AI30: 40112 | AJ30: 479728 | AK30: -0.3 | AL30: 110500 | AM30: 150389 | AN30: 0.5 | AO30: 0.5 | AP30: 0.7 | AQ30: 0 | AR30: 0.7 | AS30: 25.6 | AT30: 16363192 | AU30: 8823719 | AV30: 20444031 | AW30: 15520 | AX30: 2515827 | AY30: 3001 | AZ30: 30842.92 | BA30: 43.1 | BC30: Massachusetts | BD30: =Migration!C25 -> 157664 | BE30: =INDEX(Table1[[#All],[% Persons under 5 years, 2012]:[Population per square mile, 2010]],ROW(A24),selDem) -> 2.5
B31: Maryland | C31: 5884868 | D31: 5773623 | E31: 2.7 | F31: 1.9 | G31: 6.2 | H31: 22.8 | I31: 13 | J31: 51.6 | K31: 60.8 | L31: 30 | M31: 0.5 | N31: 6 | O31: 0.1 | P31: 2.5 | Q31: 8.7 | R31: 53.9 | S31: 86.6 | T31: 13.8 | U31: 16.5 | V31: 88.5 | W31: 36.3 | X31: 438387 | Y31: 31.8 | Z31: 2395571 | AA31: 68.1 | AB31: 25.5 | AC31: 304900 | AD31: 2138806 | AE31: 2.64 | AF31: 36056 | AG31: 72999 | AH31: 9.4 | AI31: 133248 | AJ31: 2104022 | AK31: 1.4 | AL31: 432590 | AM31: 528112 | AN31: 19.3 | AO31: 0.6 | AP31: 6.8 | AQ31: 0.1 | AR31: 4.9 | AS31: 32.6 | AT31: 41456097 | AU31: 51276797 | AV31: 75664186 | AW31: 13429 | AX31: 10758428 | AY31: 15217 | AZ31: 9707.24 | BA31: 594.8 | BC31: Michigan | BD31: =Migration!C26 -> 158156 | BE31: =INDEX(Table1[[#All],[% Persons under 5 years, 2012]:[Population per square mile, 2010]],ROW(A25),selDem) -> 2.53
B32: Massachusetts | C32: 6645303 | D32: 6547629 | E32: 2.2 | F32: 1.5 | G32: 5.5 | H32: 21.1 | I32: 14.4 | J32: 51.5 | K32: 83.7 | L32: 7.9 | M32: 0.5 | N32: 5.8 | O32: 0.1 | P32: 2 | Q32: 10.1 | R32: 75.8 | S32: 86.7 | T32: 14.8 | U32: 21.7 | V32: 89.1 | W32: 39 | X32: 400874 | Y32: 27.7 | Z32: 2810245 | AA32: 63.2 | AB32: 41.6 | AC32: 335500 | AD32: 2525694 | AE32: 2.5 | AF32: 35485 | AG32: 66658 | AH32: 11 | AI32: 169146 | AJ32: 2960712 | AK32: 1.1 | AL32: 479776 | AM32: 596790 | AN32: 3.4 | AO32: 0.4 | AP32: 4.5 | AQ32: 0 | AR32: 3.3 | AS32: 29.8 | AT32: 86428959 | AU32: 95275672 | AV32: 88082966 | AW32: 13553 | AX32: 14917210 | AY32: 11111 | AZ32: 7800.06 | BA32: 839.4 | BC32: Minnesota | BD32: =Migration!C27 -> 175733 | BE32: =INDEX(Table1[[#All],[% Persons under 5 years, 2012]:[Population per square mile, 2010]],ROW(A26),selDem) -> 2.46
B33: Michigan | C33: 9882519 | D33: 9883701 | E33: 0.1 | F33: 0 | G33: 5.8 | H33: 22.9 | I33: 14.6 | J33: 50.9 | K33: 80.1 | L33: 14.3 | M33: 0.7 | N33: 2.6 | O33: 0 | P33: 2.2 | Q33: 4.6 | R33: 76.2 | S33: 85.4 | T33: 6 | U33: 9 | V33: 88.7 | W33: 25.5 | X33: 692582 | Y33: 23.9 | Z33: 4525004 | AA33: 72.8 | AB33: 18 | AC33: 128600 | AD33: 3818931 | AE33: 2.53 | AF33: 25547 | AG33: 48471 | AH33: 16.3 | AI33: 217344 | AJ33: 3379035 | AK33: 2.8 | AL33: 687228 | AM33: 816972 | AN33: 8.9 | AO33: 0.7 | AP33: 2.6 | AQ33: 0.1 | AR33: 1.3 | AS33: 30.4 | AT33: 234455768 | AU33: 107109349 | AV33: 109102594 | AW33: 10855 | AX33: 14536648 | AY33: 11692 | AZ33: 56538.9 | BA33: 174.8 | BC33: Mississippi | BD33: =Migration!C28 -> 115946 | BE33: =INDEX(Table1[[#All],[% Persons under 5 years, 2012]:[Population per square mile, 2010]],ROW(A27),selDem) -> 2.64
B34: Minnesota | C34: 5379646 | D34: 5303925 | E34: 2.2 | F34: 1.4 | G34: 6.5 | H34: 23.7 | I34: 13.6 | J34: 50.3 | K34: 86.5 | L34: 5.5 | M34: 1.3 | N34: 4.4 | O34: 0.1 | P34: 2.2 | Q34: 4.9 | R34: 82.4 | S34: 85.5 | T34: 7.2 | U34: 10.6 | V34: 91.9 | W34: 32.2 | X34: 377522 | Y34: 22.7 | Z34: 2361352 | AA34: 73 | AB34: 21.6 | AC34: 194300 | AD34: 2101875 | AE34: 2.46 | AF34: 30656 | AG34: 59126 | AH34: 11.2 | AI34: 144606 | AJ34: 2393746 | AK34: 1.5 | AL34: 387440 | AM34: 496657 | AN34: 2.5 | AO34: 0.6 | AP34: 2.3 | AQ34: 0 | AR34: 1 | AS34: 26.8 | AT34: 107563060 | AU34: 82878056 | AV34: 71384103 | AW34: 13751 | AX34: 10423660 | AY34: 16095 | AZ34: 79626.74 | BA34: 66.6 | BC34: Missouri | BD34: =Migration!C29 -> 66947 | BE34: =INDEX(Table1[[#All],[% Persons under 5 years, 2012]:[Population per square mile, 2010]],ROW(A28),selDem) -> 2.46
B35: Mississippi | C35: 2986450 | D35: 2967299 | E35: 0.8 | F35: 0.6 | G35: 6.8 | H35: 25 | I35: 13.5 | J35: 51.4 | K35: 59.9 | L35: 37.4 | M35: 0.6 | N35: 0.9 | O35: 0.1 | P35: 1.1 | Q35: 2.9 | R35: 57.6 | S35: 85.6 | T35: 2.2 | U35: 3.9 | V35: 81 | W35: 20 | X35: 207673 | Y35: 23.9 | Z35: 1283850 | AA35: 69.9 | AB35: 13.6 | AC35: 100200 | AD35: 1087791 | AE35: 2.64 | AF35: 20670 | AG35: 38882 | AH35: 22.3 | AI35: 58592 | AJ35: 887772 | AK35: 0.6 | AL35: 198171 | AM35: 225977 | AN35: 18 | AO35: 0.3 | AP35: 1.8 | AQ35: 0 | AR35: 0.8 | AS35: 26.9 | AT35: 59869456 | AU35: 23003585 | AV35: 33751407 | AW35: 11552 | AX35: 7045097 | AY35: 6039 | AZ35: 46923.27 | BA35: 63.2 | BC35: Montana | BD35: =Migration!C30 -> 142754 | BE35: =INDEX(Table1[[#All],[% Persons under 5 years, 2012]:[Population per square mile, 2010]],ROW(A29),selDem) -> 2.37
B36: Missouri | C36: 6024522 | D36: 5988923 | E36: 0.9 | F36: 0.6 | G36: 6.3 | H36: 23.3 | I36: 14.7 | J36: 51 | K36: 83.9 | L36: 11.7 | M36: 0.5 | N36: 1.8 | O36: 0.1 | P36: 2 | Q36: 3.7 | R36: 80.6 | S36: 83.6 | T36: 3.9 | U36: 6.1 | V36: 87.2 | W36: 25.8 | X36: 494876 | Y36: 23.2 | Z36: 2719951 | AA36: 69 | AB36: 19.7 | AC36: 138400 | AD36: 2358270 | AE36: 2.46 | AF36: 25546 | AG36: 47333 | AH36: 15 | AI36: 147274 | AJ36: 2298295 | AK36: 0.3 | AL36: 395523 | AM36: 501064 | AN36: 4.9 | AO36: 0.6 | AP36: 1.9 | AQ36: 0.1 | AR36: 1.2 | AS36: 26.1 | AT36: 110907604 | AU36: 81032913 | AV36: 76575216 | AW36: 12957 | AX36: 11070634 | AY36: 12297 | AZ36: 68741.52 | BA36: 87.1 | BC36: Nebraska | BD36: =Migration!C31 -> 33832 | BE36: =INDEX(Table1[[#All],[% Persons under 5 years, 2012]:[Population per square mile, 2010]],ROW(A30),selDem) -> 2.46
B37: Montana | C37: 1005494 | D37: 989417 | E37: 2.6 | F37: 1.6 | G37: 6.1 | H37: 22.1 | I37: 15.7 | J37: 49.8 | K37: 89.7 | L37: 0.6 | M37: 6.5 | N37: 0.7 | O37: 0.1 | P37: 2.5 | Q37: 3.1 | R37: 87.2 | S37: 83.6 | T37: 2 | U37: 4.6 | V37: 91.9 | W37: 28.5 | X37: 97991 | Y37: 18 | Z37: 486141 | AA37: 68.5 | AB37: 16.6 | AC37: 183000 | AD37: 405508 | AE37: 2.37 | AF37: 25002 | AG37: 45456 | AH37: 14.8 | AI37: 35687 | AJ37: 336110 | AK37: -0.7 | AL37: 84070 | AM37: 114398 | AN37: 0.2 | AO37: 2 | AP37: 0.6 | AQ37: 0 | AR37: 1 | AS37: 24.6 | AT37: 10638145 | AU37: 8202782 | AV37: 14686854 | AW37: 15343 | AX37: 2079426 | AY37: 2736 | AZ37: 145545.8 | BA37: 6.8 | BC37: Nevada | BD37: =Migration!C32 -> 48816 | BE37: =INDEX(Table1[[#All],[% Persons under 5 years, 2012]:[Population per square mile, 2010]],ROW(A31),selDem) -> 2.69
B38: Nebraska | C38: 1855350 | D38: 1826341 | E38: 2.3 | F38: 1.6 | G38: 7.1 | H38: 25 | I38: 13.9 | J38: 50.3 | K38: 89.9 | L38: 4.8 | M38: 1.3 | N38: 2 | O38: 0.1 | P38: 1.9 | Q38: 9.7 | R38: 81.4 | S38: 83.2 | T38: 6.2 | U38: 10.4 | V38: 90.4 | W38: 28.1 | X38: 146852 | Y38: 18.1 | Z38: 804266 | AA38: 67.6 | AB38: 19.7 | AC38: 126700 | AD38: 721026 | AE38: 2.46 | AF38: 26523 | AG38: 51381 | AH38: 12.4 | AI38: 51553 | AJ38: 797681 | AK38: 3.7 | AL38: 125943 | AM38: 159665 | AN38: 1.8 | AO38: 0.4 | AP38: 1.4 | AQ38: 0 | AR38: 1.9 | AS38: 25.7 | AT38: 40157999 | AU38: 24019868 | AV38: 26486612 | AW38: 14965 | AX38: 2685580 | AY38: 6116 | AZ38: 76824.17 | BA38: 23.8 | BC38: New Hampshire | BD38: =Migration!C33 -> 98882 | BE38: =INDEX(Table1[[#All],[% Persons under 5 years, 2012]:[Population per square mile, 2010]],ROW(A32),selDem) -> 2.47
B39: Nevada | C39: 2754354 | D39: 2700552 | E39: 3.3 | F39: 2 | G39: 6.6 | H39: 24.1 | I39: 13.1 | J39: 49.6 | K39: 77.1 | L39: 8.9 | M39: 1.6 | N39: 7.9 | O39: 0.7 | P39: 3.8 | Q39: 27.3 | R39: 52.9 | S39: 77.7 | T39: 19.2 | U39: 29 | V39: 84.4 | W39: 22.2 | X39: 229570 | Y39: 23.8 | Z39: 1182870 | AA39: 57.8 | AB39: 29.9 | AC39: 190900 | AD39: 992896 | AE39: 2.69 | AF39: 27003 | AG39: 54083 | AH39: 14.2 | AI39: 58777 | AJ39: 1000610 | AK39: -0.2 | AL39: 180711 | AM39: 221260 | AN39: 3.9 | AO39: 0.8 | AP39: 7.9 | AQ39: 0.3 | AR39: 8.1 | AS39: 28.6 | AT39: 15735787 | AU39: 19255893 | AV39: 37433983 | AW39: 14579 | AX39: 28815533 | AY39: 9071 | AZ39: 109781.18 | BA39: 24.6 | BC39: New Jersey | BD39: =Migration!C34 -> 38696 | BE39: =INDEX(Table1[[#All],[% Persons under 5 years, 2012]:[Population per square mile, 2010]],ROW(A33),selDem) -> 2.7
B40: New Hampshire | C40: 1321617 | D40: 1316469 | E40: 0.5 | F40: 0.4 | G40: 5 | H40: 20.8 | I40: 14.7 | J40: 50.6 | K40: 94.4 | L40: 1.4 | M40: 0.3 | N40: 2.4 | O40: 0 | P40: 1.5 | Q40: 3 | R40: 91.9 | S40: 86.7 | T40: 5.3 | U40: 7.9 | V40: 91.4 | W40: 33.4 | X40: 115415 | Y40: 26.2 | Z40: 617001 | AA40: 72 | AB40: 25.6 | AC40: 245600 | AD40: 516845 | AE40: 2.47 | AF40: 32758 | AG40: 64925 | AH40: 8.4 | AI40: 37031 | AJ40: 554001 | AK40: -1.5 | AL40: 102712 | AM40: 137815 | AN40: 0.5 | AO40: 0.4 | AP40: 1.6 | AQ40: 0 | AR40: 1 | AS40: 25.8 | AT40: 18592406 | AU40: 14564458 | AV40: 25353874 | AW40: 19246 | AX40: 2630968 | AY40: 2296 | AZ40: 8952.65 | BA40: 147 | BC40: New Mexico | BD40: =Migration!C35 -> 219202 | BE40: =INDEX(Table1[[#All],[% Persons under 5 years, 2012]:[Population per square mile, 2010]],ROW(A34),selDem) -> 2.63
B41: New Jersey | C41: 8867749 | D41: 8791909 | E41: 1.2 | F41: 0.9 | G41: 6 | H41: 22.9 | I41: 14.1 | J41: 51.2 | K41: 73.8 | L41: 14.7 | M41: 0.6 | N41: 9 | O41: 0.1 | P41: 1.9 | Q41: 18.5 | R41: 58.2 | S41: 90 | T41: 20.8 | U41: 29.6 | V41: 87.9 | W41: 35.4 | X41: 457724 | Y41: 30.3 | Z41: 3574558 | AA41: 66.2 | AB41: 35.9 | AC41: 337900 | AD41: 3186878 | AE41: 2.7 | AF41: 35928 | AG41: 71637 | AH41: 9.9 | AI41: 226878 | AJ41: 3377848 | AK41: 0.3 | AL41: 615142 | AM41: 781622 | AN41: 7.7 | AO41: 0.4 | AP41: 8.7 | AQ41: 0.1 | AR41: 8.7 | AS41: 27.3 | AT41: 116608094 | AU41: 233413004 | AV41: 124813580 | AW41: 14453 | AX41: 19993613 | AY41: 17939 | AZ41: 7354.22 | BA41: 1195.5 | BC41: New York | BD41: =Migration!C36 -> 63921 | BE41: =INDEX(Table1[[#All],[% Persons under 5 years, 2012]:[Population per square mile, 2010]],ROW(A35),selDem) -> 2.6
B42: New Mexico | C42: 2083540 | D42: 2059183 | E42: 1.3 | F42: 1.2 | G42: 6.9 | H42: 24.7 | I42: 14.1 | J42: 50.5 | K42: 83.2 | L42: 2.4 | M42: 10.2 | N42: 1.6 | O42: 0.2 | P42: 2.4 | Q42: 47 | R42: 39.8 | S42: 84.8 | T42: 9.8 | U42: 36 | V42: 83.4 | W42: 25.6 | X42: 175832 | Y42: 21.7 | Z42: 906802 | AA42: 68.9 | AB42: 15 | AC42: 161500 | AD42: 763844 | AE42: 2.63 | AF42: 23749 | AG42: 44886 | AH42: 19.5 | AI42: 43860 | AJ42: 597568 | AK42: -0.4 | AL42: 121017 | AM42: 157231 | AN42: 1.2 | AO42: 5.3 | AP42: 2.1 | AQ42: 0.1 | AR42: 23.6 | AS42: 31.7 | AT42: 17122725 | AU42: 10589286 | AV42: 24469997 | AW42: 12429 | AX42: 3734300 | AY42: 4672 | AZ42: 121298.15 | BA42: 17 | BC42: North Carolina | BD42: =Migration!C37 -> 405864 | BE42: =INDEX(Table1[[#All],[% Persons under 5 years, 2012]:[Population per square mile, 2010]],ROW(A36),selDem) -> 2.51
B43: New York | C43: 19576125 | D43: 19378105 | E43: 1.4 | F43: 1 | G43: 6 | H43: 21.8 | I43: 14.1 | J43: 51.5 | K43: 71.2 | L43: 17.5 | M43: 1 | N43: 8 | O43: 0.1 | P43: 2.2 | Q43: 18.2 | R43: 57.6 | S43: 88.7 | T43: 22 | U43: 29.8 | V43: 84.9 | W43: 32.8 | X43: 957004 | Y43: 31.5 | Z43: 8123051 | AA43: 54.5 | AB43: 50.5 | AC43: 295300 | AD43: 7230896 | AE43: 2.6 | AF43: 32104 | AG43: 57683 | AH43: 14.9 | AI43: 521537 | AJ43: 7369731 | AK43: 1.4 | AL43: 1596899 | AM43: 1956733 | AN43: 10.4 | AO43: 0.7 | AP43: 10.1 | AQ43: 0.1 | AR43: 9.9 | AS43: 30.4 | AT43: 162720173 | AU43: 313461904 | AV43: 230718065 | AW43: 11879 | AX43: 39813499 | AY43: 24872 | AZ43: 47126.4 | BA43: 411.2 | BC43: North Dakota | BD43: =Migration!C38 -> 238663 | BE43: =INDEX(Table1[[#All],[% Persons under 5 years, 2012]:[Population per square mile, 2010]],ROW(A37),selDem) -> 2.3
B44: North Carolina | C44: 9748364 | D44: 9535471 | E44: 3.3 | F44: 2.2 | G44: 6.4 | H44: 23.4 | I44: 13.8 | J44: 51.3 | K44: 71.9 | L44: 22 | M44: 1.5 | N44: 2.5 | O44: 0.1 | P44: 2 | Q44: 8.7 | R44: 64.7 | S44: 84.4 | T44: 7.5 | U44: 10.8 | V44: 84.5 | W44: 26.8 | X44: 738926 | Y44: 23.5 | Z44: 4375234 | AA44: 67.1 | AB44: 17.1 | AC44: 153600 | AD44: 3693221 | AE44: 2.51 | AF44: 25285 | AG44: 46450 | AH44: 16.8 | AI44: 215113 | AJ44: 3284592 | AK44: 1.5 | AL44: 656617 | AM44: 798791 | AN44: 10.5 | AO44: 1 | AP44: 2.5 | AQ44: 0.1 | AR44: 2.7 | AS44: 28.2 | AT44: 205867299 | AU44: 88795885 | AV44: 114578173 | AW44: 12641 | AX44: 16126939 | AY44: 48692 | AZ44: 48617.91 | BA44: 196.1 | BC44: Ohio | BD44: =Migration!C39 -> 23959 | BE44: =INDEX(Table1[[#All],[% Persons under 5 years, 2012]:[Population per square mile, 2010]],ROW(A38),selDem) -> 2.46
B45: North Dakota | C45: 701345 | D45: 672591 | E45: 7.6 | F45: 4.3 | G45: 6.6 | H45: 22.1 | I45: 14.4 | J45: 49.2 | K45: 90.1 | L45: 1.5 | M45: 5.5 | N45: 1.1 | O45: 0.1 | P45: 1.8 | Q45: 2.5 | R45: 88.1 | S45: 82.9 | T45: 2.5 | U45: 5.2 | V45: 90.5 | W45: 27.1 | X45: 54782 | Y45: 16.5 | Z45: 329258 | AA45: 66.4 | AB45: 25.6 | AC45: 123900 | AD45: 282667 | AE45: 2.3 | AF45: 28700 | AG45: 51641 | AH45: 12.1 | AI45: 22370 | AJ45: 306064 | AK45: 3.8 | AL45: 49831 | AM45: 61546 | AN45: 0.3 | AO45: 1.6 | AP45: 0.7 | AQ45: 0 | AR45: 0.5 | AS45: 24.8 | AT45: 11349799 | AU45: 13099348 | AV45: 10527300 | AW45: 16495 | AX45: 1214201 | AY45: 10340 | AZ45: 69000.8 | BA45: 9.7 | BC45: Oklahoma | BD45: =Migration!C40 -> 199202 | BE45: =INDEX(Table1[[#All],[% Persons under 5 years, 2012]:[Population per square mile, 2010]],ROW(A39),selDem) -> 2.53
B46: Ohio | C46: 11553031 | D46: 11536503 | E46: 0.3 | F46: 0.1 | G46: 6 | H46: 23.1 | I46: 14.8 | J46: 51.1 | K46: 83.4 | L46: 12.5 | M46: 0.3 | N46: 1.8 | O46: 0 | P46: 2 | Q46: 3.3 | R46: 80.7 | S46: 85.4 | T46: 3.9 | U46: 6.6 | V46: 88.2 | W46: 24.7 | X46: 893168 | Y46: 23 | Z46: 5128619 | AA46: 68 | AB46: 22.9 | AC46: 133700 | AD46: 4555709 | AE46: 2.46 | AF46: 25857 | AG46: 48246 | AH46: 15.4 | AI46: 250476 | AJ46: 4432849 | AK46: 1.8 | AL46: 742500 | AM46: 897939 | AN46: 5.8 | AO46: 0.3 | AP46: 2 | AQ46: 0 | AR46: 1.1 | AS46: 27.7 | AT46: 295890890 | AU46: 135575279 | AV46: 138816008 | AW46: 12049 | AX46: 17779905 | AY46: 16905 | AZ46: 40860.69 | BA46: 282.3 | BC46: Oregon | BD46: =Migration!C41 -> 102572 | BE46: =INDEX(Table1[[#All],[% Persons under 5 years, 2012]:[Population per square mile, 2010]],ROW(A40),selDem) -> 2.48
B47: Oklahoma | C47: 3815780 | D47: 3751357 | E47: 2.6 | F47: 1.7 | G47: 6.9 | H47: 24.6 | I47: 14 | J47: 50.5 | K47: 75.5 | L47: 7.6 | M47: 9 | N47: 1.9 | O47: 0.2 | P47: 5.8 | Q47: 9.3 | R47: 67.9 | S47: 82.1 | T47: 5.5 | U47: 9.2 | V47: 86.2 | W47: 23.2 | X47: 322008 | Y47: 21 | Z47: 1677617 | AA47: 67.5 | AB47: 15.1 | AC47: 110800 | AD47: 1439292 | AE47: 2.53 | AF47: 24046 | AG47: 44891 | AH47: 16.6 | AI47: 89749 | AJ47: 1261590 | AK47: 1.6 | AL47: 265596 | AM47: 333797 | AN47: 3.1 | AO47: 6.3 | AP47: 2 | AQ47: 0 | AR47: 2.3 | AS47: 25.3 | AT47: 60681358 | AU47: 48074682 | AV47: 43095353 | AW47: 11931 | AX47: 5106585 | AY47: 11930 | AZ47: 68594.92 | BA47: 54.7 | BC47: Pennsylvania | BD47: =Migration!C42 -> 108182 | BE47: =INDEX(Table1[[#All],[% Persons under 5 years, 2012]:[Population per square mile, 2010]],ROW(A41),selDem) -> 2.47
B48: Oregon | C48: 3899801 | D48: 3831073 | E48: 2.6 | F48: 1.8 | G48: 6 | H48: 22.1 | I48: 14.9 | J48: 50.5 | K48: 88.3 | L48: 2 | M48: 1.8 | N48: 4 | O48: 0.4 | P48: 3.5 | Q48: 12.2 | R48: 77.8 | S48: 82.1 | T48: 9.8 | U48: 14.7 | V48: 89.2 | W48: 29.2 | X48: 333395 | Y48: 22.4 | Z48: 1682502 | AA48: 62.5 | AB48: 23.2 | AC48: 246100 | AD48: 1512718 | AE48: 2.48 | AF48: 26702 | AG48: 50036 | AH48: 15.5 | AI48: 106340 | AJ48: 1341841 | AK48: -0.7 | AL48: 259810 | AM48: 348154 | AN48: 1.2 | AO48: 1.2 | AP48: 3.6 | AQ48: 0.2 | AR48: 3.3 | AS48: 29.8 | AT48: 66880653 | AU48: 51910777 | AV48: 50370919 | AW48: 13494 | AX48: 7555764 | AY48: 10608 | AZ48: 95988.01 | BA48: 39.9 | BC48: Rhode Island | BD48: =Migration!C43 -> 237156 | BE48: =INDEX(Table1[[#All],[% Persons under 5 years, 2012]:[Population per square mile, 2010]],ROW(A42),selDem) -> 2.46
B49: Pennsylvania | C49: 12764475 | D49: 12702379 | E49: 0.6 | F49: 0.5 | G49: 5.6 | H49: 21.5 | I49: 16 | J49: 51.2 | K49: 83.5 | L49: 11.4 | M49: 0.3 | N49: 3 | O49: 0.1 | P49: 1.7 | Q49: 6.1 | R49: 78.8 | S49: 87.8 | T49: 5.8 | U49: 10.2 | V49: 88.3 | W49: 27 | X49: 981865 | Y49: 25.8 | Z49: 5572466 | AA49: 70.1 | AB49: 20.6 | AC49: 164900 | AD49: 4959633 | AE49: 2.47 | AF49: 28190 | AG49: 52267 | AH49: 13.1 | AI49: 295720 | AJ49: 5078111 | AK49: 2 | AL49: 772193 | AM49: 981501 | AN49: 4.6 | AO49: 0.3 | AP49: 3.2 | AQ49: 0 | AR49: 2.3 | AS49: 27 | AT49: 234840418 | AU49: 142859202 | AV49: 166842778 | AW49: 13323 | AX49: 19625449 | AY49: 18796 | AZ49: 44742.7 | BA49: 283.9 | BC49: South Carolina | BD49: =Migration!C44 -> 30498 | BE49: =INDEX(Table1[[#All],[% Persons under 5 years, 2012]:[Population per square mile, 2010]],ROW(A43),selDem) -> 2.54
B50: Rhode Island | C50: 1050304 | D50: 1052567 | E50: -0.1 | F50: -0.2 | G50: 5.2 | H50: 20.6 | I50: 15.1 | J50: 51.6 | K50: 85.9 | L50: 7.3 | M50: 0.9 | N50: 3.2 | O50: 0.2 | P50: 2.5 | Q50: 13.2 | R50: 75.9 | S50: 86.3 | T50: 13 | U50: 21 | V50: 84.8 | W50: 30.8 | X50: 74982 | Y50: 23.4 | Z50: 462564 | AA50: 61.2 | AB50: 40.7 | AC50: 259400 | AD50: 410639 | AE50: 2.46 | AF50: 30005 | AG50: 56102 | AH50: 13.2 | AI50: 28181 | AJ50: 406222 | AK50: 1.8 | AL50: 73060 | AM50: 96822 | AN50: 3.3 | AO50: 0.4 | AP50: 2.1 | AQ50: 0 | AR50: 6 | AS50: 27.3 | AT50: 12061517 | AU50: 9182788 | AV50: 12286485 | AW50: 11646 | AX50: 2148674 | AY50: 731 | AZ50: 1033.81 | BA50: 1018.1 | BC50: South Dakota | BD50: =Migration!C45 -> 127418 | BE50: =INDEX(Table1[[#All],[% Persons under 5 years, 2012]:[Population per square mile, 2010]],ROW(A44),selDem) -> 2.44
B51: South Carolina | C51: 4723417 | D51: 4625360 | E51: 3.2 | F51: 2.1 | G51: 6.3 | H51: 22.9 | I51: 14.7 | J51: 51.4 | K51: 68.4 | L51: 28 | M51: 0.5 | N51: 1.4 | O51: 0.1 | P51: 1.6 | Q51: 5.3 | R51: 64 | S51: 84.7 | T51: 4.8 | U51: 6.8 | V51: 84 | W51: 24.6 | X51: 396873 | Y51: 23.4 | Z51: 2156705 | AA51: 69.5 | AB51: 17.7 | AC51: 137400 | AD51: 1768255 | AE51: 2.54 | AF51: 23906 | AG51: 44623 | AH51: 17.6 | AI51: 100481 | AJ51: 1521123 | AK51: 1.2 | AL51: 301675 | AM51: 360397 | AN51: 12.1 | AO51: 0.5 | AP51: 1.8 | AQ51: 0.1 | AR51: 1.7 | AS51: 27.6 | AT51: 93977455 | AU51: 40498047 | AV51: 54298410 | AW51: 12273 | AX51: 8383463 | AY51: 18708 | AZ51: 30060.7 | BA51: 153.9 | BC51: Tennessee | BD51: =Migration!C46 -> 22534 | BE51: =INDEX(Table1[[#All],[% Persons under 5 years, 2012]:[Population per square mile, 2010]],ROW(A45),selDem) -> 2.51
B52: South Dakota | C52: 834047 | D52: 814180 | E52: 3.8 | F52: 2.4 | G52: 7.1 | H52: 24.5 | I52: 14.7 | J52: 49.8 | K52: 86.2 | L52: 1.7 | M52: 8.9 | N52: 1.1 | O52: 0.1 | P52: 2.1 | Q52: 3.1 | R52: 83.8 | S52: 83.9 | T52: 2.6 | U52: 6.7 | V52: 90.1 | W52: 26 | X52: 69787 | Y52: 16.8 | Z52: 368175 | AA52: 68.6 | AB52: 18.6 | AC52: 129800 | AD52: 320467 | AE52: 2.44 | AF52: 25570 | AG52: 49091 | AH52: 13.8 | AI52: 25494 | AJ52: 326749 | AK52: -0.7 | AL52: 61356 | AM52: 76997 | AN52: 0.3 | AO52: 2.2 | AP52: 0.6 | AQ52: 0 | AR52: 0.8 | AS52: 22.2 | AT52: 13051128 | AU52: 11400476 | AV52: 12266218 | AW52: 15390 | AX52: 1622751 | AY52: 4178 | AZ52: 75811 | BA52: 10.7 | BC52: Texas | BD52: =Migration!C47 -> 163843 | BE52: =INDEX(Table1[[#All],[% Persons under 5 years, 2012]:[Population per square mile, 2010]],ROW(A46),selDem) -> 2.8
B53: Tennessee | C53: 6454914 | D53: 6346113 | E53: 2.4 | F53: 1.7 | G53: 6.3 | H53: 23.1 | I53: 14.2 | J53: 51.2 | K53: 79.3 | L53: 17 | M53: 0.4 | N53: 1.6 | O53: 0.1 | P53: 1.6 | Q53: 4.8 | R53: 75.1 | S53: 84.4 | T53: 4.5 | U53: 6.6 | V53: 83.9 | W53: 23.5 | X53: 493980 | Y53: 24.1 | Z53: 2834620 | AA53: 68.4 | AB53: 18.2 | AC53: 138700 | AD53: 2468841 | AE53: 2.51 | AF53: 24294 | AG53: 44140 | AH53: 17.3 | AI53: 129489 | AJ53: 2300542 | AK53: 1.6 | AL53: 473451 | AM53: 545348 | AN53: 8.4 | AO53: 0.5 | AP53: 2 | AQ53: 0.1 | AR53: 1.6 | AS53: 25.9 | AT53: 140447760 | AU53: 80116528 | AV53: 77547291 | AW53: 12563 | AX53: 10626759 | AY53: 20147 | AZ53: 41234.9 | BA53: 153.9 | BC53: Utah | BD53: =Migration!C48 -> 402187 | BE53: =INDEX(Table1[[#All],[% Persons under 5 years, 2012]:[Population per square mile, 2010]],ROW(A47),selDem) -> 3.09
B54: Texas | C54: 26060796 | D54: 25145561 | E54: 5.2 | F54: 3.6 | G54: 7.5 | H54: 26.8 | I54: 10.9 | J54: 50.3 | K54: 80.6 | L54: 12.3 | M54: 1 | N54: 4.2 | O54: 0.1 | P54: 1.7 | Q54: 38.2 | R54: 44.5 | S54: 82.6 | T54: 16.3 | U54: 34.6 | V54: 80.8 | W54: 26.3 | X54: 1611660 | Y54: 24.9 | Z54: 10154230 | AA54: 63.9 | AB54: 24.1 | AC54: 128000 | AD54: 8782598 | AE54: 2.8 | AF54: 25809 | AG54: 51563 | AH54: 17.4 | AI54: 525420 | AJ54: 8987663 | AK54: 2.3 | AL54: 1975620 | AM54: 2164852 | AN54: 7.1 | AO54: 0.9 | AP54: 5.3 | AQ54: 0.1 | AR54: 20.7 | AS54: 28.2 | AT54: 593541502 | AU54: 424238194 | AV54: 311334781 | AW54: 13061 | AX54: 42054592 | AY54: 135514 | AZ54: 261231.71 | BA54: 96.3 | BC54: Vermont | BD54: =Migration!C49 -> 82165 | BE54: =INDEX(Table1[[#All],[% Persons under 5 years, 2012]:[Population per square mile, 2010]],ROW(A48),selDem) -> 2.34
B55: Utah | C55: 2854871 | D55: 2763885 | E55: 5 | F55: 3.3 | G55: 9 | H55: 31.1 | I55: 9.5 | J55: 49.7 | K55: 91.8 | L55: 1.3 | M55: 1.5 | N55: 2.2 | O55: 1 | P55: 2.3 | Q55: 13.3 | R55: 79.9 | S55: 82.6 | T55: 8.3 | U55: 14.4 | V55: 90.6 | W55: 29.9 | X55: 146524 | Y55: 21.5 | Z55: 996693 | AA55: 70.4 | AB55: 21.3 | AC55: 217800 | AD55: 880873 | AE55: 3.09 | AF55: 23794 | AG55: 58164 | AH55: 12.1 | AI55: 68747 | AJ55: 1029103 | AK55: 0.8 | AL55: 196634 | AM55: 246393 | AN55: 0.5 | AO55: 0.6 | AP55: 1.9 | AQ55: 0.3 | AR55: 3.7 | AS55: 24.9 | AT55: 42431657 | AU55: 25417368 | AV55: 36574240 | AW55: 13730 | AX55: 3980570 | AY55: 13007 | AZ55: 82169.62 | BA55: 33.6 | BC55: Virginia | BD55: =Migration!C50 -> 20056 | BE55: =INDEX(Table1[[#All],[% Persons under 5 years, 2012]:[Population per square mile, 2010]],ROW(A49),selDem) -> 2.59
B56: Vermont | C56: 625953 | D56: 625745 | E56: 0.1 | F56: 0 | G56: 4.9 | H56: 19.8 | I56: 15.7 | J56: 50.7 | K56: 95.4 | L56: 1.1 | M56: 0.4 | N56: 1.4 | O56: 0 | P56: 1.7 | Q56: 1.6 | R56: 94 | S56: 86.3 | T56: 4 | U56: 5.3 | V56: 91.3 | W56: 34.2 | X56: 50705 | Y56: 22.1 | Z56: 324084 | AA56: 71.2 | AB56: 23.1 | AC56: 215800 | AD56: 256830 | AE56: 2.34 | AF56: 28846 | AG56: 54168 | AH56: 11.6 | AI56: 21190 | AJ56: 264208 | AK56: 0 | AL56: 60067 | AM56: 78729 | AN56: 0 | AO56: 0.5 | AP56: 0.8 | AQ56: 0 | AR56: 0.6 | AS56: 26 | AT56: 10751461 | AU56: 5121694 | AV56: 9310119 | AW56: 15005 | AX56: 1367630 | AY56: 1301 | AZ56: 9216.66 | BA56: 67.9 | BC56: Washington | BD56: =Migration!C51 -> 238540 | BE56: =INDEX(Table1[[#All],[% Persons under 5 years, 2012]:[Population per square mile, 2010]],ROW(A50),selDem) -> 2.52
B57: Virginia | C57: 8186628 | D57: 8001031 | E57: 3.2 | F57: 2.3 | G57: 6.2 | H57: 22.7 | I57: 13 | J57: 50.9 | K57: 71.1 | L57: 19.7 | M57: 0.5 | N57: 6 | O57: 0.1 | P57: 2.6 | Q57: 8.4 | R57: 64.1 | S57: 84.7 | T57: 11.1 | U57: 14.7 | V57: 86.9 | W57: 34.7 | X57: 734151 | Y57: 27.5 | Z57: 3398286 | AA57: 67.8 | AB57: 21.5 | AC57: 249700 | AD57: 3006219 | AE57: 2.59 | AF57: 33326 | AG57: 63636 | AH57: 11.1 | AI57: 191063 | AJ57: 3029030 | AK57: 1 | AL57: 521053 | AM57: 638643 | AN57: 9.9 | AO57: 0.5 | AP57: 7 | AQ57: 0.1 | AR57: 4.5 | AS57: 30.1 | AT57: 92417797 | AU57: 60513396 | AV57: 105663299 | AW57: 13687 | AX57: 15340483 | AY57: 27278 | AZ57: 39490.09 | BA57: 202.6 | BC57: West Virginia | BD57: =Migration!C52 -> 180462 | BE57: =INDEX(Table1[[#All],[% Persons under 5 years, 2012]:[Population per square mile, 2010]],ROW(A51),selDem) -> 2.43
B58: Washington | C58: 6895318 | D58: 6724543 | E58: 3.7 | F58: 2.5 | G58: 6.4 | H58: 23 | I58: 13.2 | J58: 50.1 | K58: 81.6 | L58: 3.9 | M58: 1.8 | N58: 7.7 | O58: 0.7 | P58: 4.3 | Q58: 11.7 | R58: 71.6 | S58: 82.6 | T58: 13 | U58: 18.2 | V58: 90 | W58: 31.6 | X58: 594914 | Y58: 25.5 | Z58: 2914607 | AA58: 63.8 | AB58: 25.7 | AC58: 272900 | AD58: 2619995 | AE58: 2.52 | AF58: 30661 | AG58: 59374 | AH58: 12.9 | AI58: 173511 | AJ58: 2355123 | AK58: 1.2 | AL58: 409989 | AM58: 551340 | AN58: 0 | AO58: 1.2 | AP58: 6.8 | AQ58: 0.2 | AR58: 3.2 | AS58: 28.7 | AT58: 112053283 | AU58: 76790966 | AV58: 92968519 | AW58: 14380 | AX58: 12389422 | AY58: 28118 | AZ58: 66455.52 | BA58: 101.2 | BC58: Wisconsin | BD58: =Migration!C53 -> 47425 | BE58: =INDEX(Table1[[#All],[% Persons under 5 years, 2012]:[Population per square mile, 2010]],ROW(A52),selDem) -> 2.42
B59: West Virginia | C59: 1856680 | D59: 1852999 | E59: 0.1 | F59: 0.2 | G59: 5.6 | H59: 20.7 | I59: 16.8 | J59: 50.7 | K59: 94 | L59: 3.5 | M59: 0.2 | N59: 0.7 | O59: 0 | P59: 1.5 | Q59: 1.3 | R59: 92.9 | S59: 87.9 | T59: 1.4 | U59: 2.4 | V59: 83.4 | W59: 17.9 | X59: 164979 | Y59: 25.4 | Z59: 882802 | AA59: 73.7 | AB59: 12 | AC59: 97300 | AD59: 742674 | AE59: 2.43 | AF59: 22482 | AG59: 40400 | AH59: 17.6 | AI59: 38150 | AJ59: 568344 | AK59: 1.4 | AL59: 90273 | AM59: 120381 | AN59: 0 | AO59: 0 | AP59: 1.3 | AQ59: 0 | AR59: 0.7 | AS59: 28.1 | AT59: 25080573 | AU59: 11036467 | AV59: 20538829 | AW59: 11340 | AX59: 2553258 | AY59: 2718 | AZ59: 24038.21 | BA59: 77.1 | BC59: Wyoming | BD59: =Migration!C54 -> 97724 | BE59: =INDEX(Table1[[#All],[% Persons under 5 years, 2012]:[Population per square mile, 2010]],ROW(A53),selDem) -> 2.48
B60: Wisconsin | C60: 5724554 | D60: 5686983 | E60: 1 | F60: 0.7 | G60: 6.1 | H60: 23 | I60: 14.4 | J60: 50.4 | K60: 88.2 | L60: 6.5 | M60: 1.1 | N60: 2.5 | O60: 0 | P60: 1.7 | Q60: 6.2 | R60: 82.8 | S60: 85.8 | T60: 4.6 | U60: 8.6 | V60: 90.2 | W60: 26.4 | X60: 423264 | Y60: 21.6 | Z60: 2632581 | AA60: 68.6 | AB60: 25.3 | AC60: 169000 | AD60: 2286339 | AE60: 2.42 | AF60: 27426 | AG60: 52627 | AH60: 12.5 | AI60: 138045 | AJ60: 2354284 | AK60: 1.4 | AL60: 334657 | AM60: 433797 | AN60: 2.6 | AO60: 0.6 | AP60: 1.6 | AQ60: 0 | AR60: 1.3 | AS60: 25.9 | AT60: 163563195 | AU60: 59996244 | AV60: 72283321 | AW60: 12904 | AX60: 9247311 | AY60: 12041 | AZ60: 54157.8 | BA60: 105
B61: Wyoming | C61: 576626 | D61: 563626 | E61: 3.4 | F61: 2.3 | G61: 6.7 | H61: 23.5 | I61: 13.1 | J61: 48.9 | K61: 93.1 | L61: 1.5 | M61: 2.6 | N61: 0.9 | O61: 0.1 | P61: 1.8 | Q61: 9.5 | R61: 84.6 | S61: 81.8 | T61: 3.2 | U61: 6.8 | V61: 92.1 | W61: 24.3 | X61: 51203 | Y61: 18.5 | Z61: 265162 | AA61: 70.3 | AB61: 16.1 | AC61: 184400 | AD61: 221479 | AE61: 2.48 | AF61: 28858 | AG61: 56573 | AH61: 11 | AI61: 20329 | AJ61: 208385 | AK61: 1.6 | AL61: 45633 | AM61: 61179 | AN61: 0.2 | AO61: 0.8 | AP61: 0.7 | AQ61: 0 | AR61: 2.8 | AS61: 25.5 | AT61: 8834810 | AU61: 6352890 | AV61: 8957553 | AW61: 17114 | AX61: 1469008 | AY61: 2110 | AZ61: 97093.14 | BA61: 5.8
B62: Puerto Rico

Sheet Migration (hidden)
D1: Population | G1: Total Migration Within State | J1: Total Migration Away from Origin | M1: Total Migration to Destination | P1: Destinations from State | S1: Origins to State | V1: Total Migration to Destination | W1: Total Migration Away From Origin | X1: Total Migration Within State | Y1: Total Migration Away From Origin | Z1: State Destinations | AA1: State Origins | AB1: State Migration
D2: 1 | E2: 2 | F2: 3 | G2: 1 | H2: 2 | I2: 3 | J2: 1 | K2: 2 | L2: 3 | M2: 1 | N2: 2 | O2: 3 | P2: 1 | Q2: 2 | R2: 3 | S2: 1 | T2: 2 | U2: 3 | V2: 1 | W2: 2 | X2: 1 | Y2: 2 | Z2: 1 | AA2: 2
A4: No: | B4: =IF(selDest=2,"Origin:","Destination:") -> Origin: | C4: =IF(selState=1,HLOOKUP(selWithin,$X$2:$Y$56,ROW(B4)-1,FALSE),AB4) -> Total Migration Away From Origin, 2012 | D4: Population 2010 | E4: Population 2011 | F4: Population 2012 | G4: Total Migration Within State, 2010 | H4: Total Migration Within State, 2011 | I4: Total Migration Within State, 2012 | J4: Total Migration Away From Origin, 2010 | K4: Total Migration Away From Origin, 2011 | L4: Total Migration Away From Origin, 2012 | M4: Total Migration to Destination, 2010 | N4: Total Migration to Destination, 2011 | O4: Total Migration to Destination, 2012 | P4: =CONCATENATE("Migration ",OFFSET(Selectors!C4,selState-1,)) -> Migration In United States | Q4: =CONCATENATE("Migration ",OFFSET(Selectors!C4,selState-1,)) -> Migration In United States | R4: =CONCATENATE("Migration ",OFFSET(Selectors!C4,selState-1,)) -> Migration In United States | S4: =CONCATENATE("Migration ",OFFSET(Selectors!C4,selState-1,)) -> Migration In United States | T4: =CONCATENATE("Migration ",OFFSET(Selectors!C4,selState-1,)) -> Migration In United States | U4: =CONCATENATE("Migration ",OFFSET(Selectors!C4,selState-1,)) -> Migration In United States | V4: =HLOOKUP(selYear,$M$2:$O$56,ROW(B4)-1,FALSE) -> Total Migration to Destination, 2012 | W4: =HLOOKUP(selYear,$J$2:$L$56,ROW(B4)-1,FALSE) -> Total Migration Away From Origin, 2012 | X4: =HLOOKUP(selYear,$G$2:$I$56,ROW(B4)-1,FALSE) -> Total Migration Within State, 2012 | Y4: =HLOOKUP(selDest,$V$2:$W$56,ROW(B4)-1,FALSE) -> Total Migration Away From Origin, 2012 | Z4: =HLOOKUP(selYear,$P$2:$R$56,ROW(A3),FALSE) -> Migration In United States | AA4: =HLOOKUP(selYear,$S$2:$U$56,ROW(B3),FALSE) -> Migration In United States | AB4: =HLOOKUP(selDest,$Z$2:$AA$56,ROW(A3),FALSE) -> Migration In United States
A5: 1 | B5: Alabama | C5: 109210 | D5: ='Migration 2010'!C11 -> 4729509 | E5: ='Migration 2011'!C11 -> 4745278 | F5: ='Migration 2012'!C11 -> 4764428 | G5: ='Migration 2010'!G11 -> 620465 | H5: ='Migration 2011'!G11 -> 588293 | I5: ='Migration 2012'!G11 -> 590326 | J5: =HLOOKUP($B5,'Migration 2010'!$I$9:$BI$62,2,FALSE) -> 99221 | K5: =HLOOKUP($B5,'Migration 2011'!$I$9:$BI$62,2,FALSE) -> 106806 | L5: =HLOOKUP($B5,'Migration 2012'!$I$9:$BI$62,2,FALSE) -> 109210 | M5: =('Migration 2010'!I11) -> 108723 | N5: =('Migration 2011'!I11) -> 117726 | O5: =('Migration 2012'!I11) -> 104600 | P5: =OFFSET('Migration 2010'!$J$11,(ROW(A1)-1),selState-2) -> 108723 | Q5: =OFFSET('Migration 2011'!$J$11,(ROW(A1)-1),selState-2) -> 117726 | R5: =OFFSET('Migration 2012'!$J$11,(ROW(A1)-1),selState-2) -> 104600 | S5: =OFFSET('Migration 2010'!$J$11,selState-2,ROW(A1)-1) -> 99221 | T5: =OFFSET('Migration 2011'!$J$11,selState-2,ROW(A1)-1) -> 106806 | U5: =OFFSET('Migration 2012'!$J$11,selState-2,ROW(A1)-1) -> 109210 | V5: =HLOOKUP(selYear,$M$2:$O$56,ROW(B5)-1,FALSE) -> 104600 | W5: =HLOOKUP(selYear,$J$2:$L$56,ROW(B5)-1,FALSE) -> 109210 | X5: 590326 | Y5: 109210 | Z5: 104600 | AA5: 109210 | AB5: 109210
A6: 2 | B6: Alaska | C6: 84068 | D6: ='Migration 2010'!C12 -> 702974 | E6: ='Migration 2011'!C12 -> 711962 | F6: ='Migration 2012'!C12 -> 721186 | G6: ='Migration 2010'!G12 -> 95878 | H6: ='Migration 2011'!G12 -> 100280 | I6: ='Migration 2012'!G12 -> 90613 | J6: =HLOOKUP($B6,'Migration 2010'!$I$9:$BI$62,2,FALSE) -> 94692 | K6: =HLOOKUP($B6,'Migration 2011'!$I$9:$BI$62,2,FALSE) -> 88850 | L6: =HLOOKUP($B6,'Migration 2012'!$I$9:$BI$62,2,FALSE) -> 84068 | M6: =('Migration 2010'!I12) -> 36326 | N6: =('Migration 2011'!I12) -> 35084 | O6: =('Migration 2012'!I12) -> 33415 | P6: =OFFSET('Migration 2010'!$J$11,(ROW(A2)-1),selState-2) -> 36326 | Q6: =OFFSET('Migration 2011'!$J$11,(ROW(A2)-1),selState-2) -> 35084 | R6: =OFFSET('Migration 2012'!$J$11,(ROW(A2)-1),selState-2) -> 33415 | S6: =OFFSET('Migration 2010'!$J$11,selState-2,ROW(A2)-1) -> 94692 | T6: =OFFSET('Migration 2011'!$J$11,selState-2,ROW(A2)-1) -> 88850 | U6: =OFFSET('Migration 2012'!$J$11,selState-2,ROW(A2)-1) -> 84068 | V6: 33415 | W6: 84068 | X6: 90613 | Y6: 84068 | Z6: 33415 | AA6: 84068 | AB6: 84068
A7: 3 | B7: Arizona | C7: 206842 | D7: ='Migration 2010'!C13 -> 6332786 | E7: ='Migration 2011'!C13 -> 6402301 | F7: ='Migration 2012'!C13 -> 6468907 | G7: ='Migration 2010'!G13 -> 1001991 | H7: ='Migration 2011'!G13 -> 1028366 | I7: ='Migration 2012'!G13 -> 953789 | J7: =HLOOKUP($B7,'Migration 2010'!$I$9:$BI$62,2,FALSE) -> 176768 | K7: =HLOOKUP($B7,'Migration 2011'!$I$9:$BI$62,2,FALSE) -> 211816 | L7: =HLOOKUP($B7,'Migration 2012'!$I$9:$BI$62,2,FALSE) -> 206842 | M7: =('Migration 2010'!I13) -> 222725 | N7: =('Migration 2011'!I13) -> 222877 | O7: =('Migration 2012'!I13) -> 232457 | P7: =OFFSET('Migration 2010'!$J$11,(ROW(A3)-1),selState-2) -> 222725 | Q7: =OFFSET('Migration 2011'!$J$11,(ROW(A3)-1),selState-2) -> 222877 | R7: =OFFSET('Migration 2012'!$J$11,(ROW(A3)-1),selState-2) -> 232457 | S7: =OFFSET('Migration 2010'!$J$11,selState-2,ROW(A3)-1) -> 176768 | T7: =OFFSET('Migration 2011'!$J$11,selState-2,ROW(A3)-1) -> 211816 | U7: =OFFSET('Migration 2012'!$J$11,selState-2,ROW(A3)-1) -> 206842 | V7: 232457 | W7: 206842 | X7: 953789 | Y7: 206842 | Z7: 232457 | AA7: 206842 | AB7: 206842
A8: 4 | B8: Arkansas | C8: 64967 | D8: ='Migration 2010'!C14 -> 2888304 | E8: ='Migration 2011'!C14 -> 2906632 | F8: ='Migration 2012'!C14 -> 2912680 | G8: ='Migration 2010'!G14 -> 412997 | H8: ='Migration 2011'!G14 -> 405831 | I8: ='Migration 2012'!G14 -> 373046 | J8: =HLOOKUP($B8,'Migration 2010'!$I$9:$BI$62,2,FALSE) -> 64264 | K8: =HLOOKUP($B8,'Migration 2011'!$I$9:$BI$62,2,FALSE) -> 77226 | L8: =HLOOKUP($B8,'Migration 2012'!$I$9:$BI$62,2,FALSE) -> 64967 | M8: =('Migration 2010'!I14) -> 79127 | N8: =('Migration 2011'!I14) -> 69845 | O8: =('Migration 2012'!I14) -> 76948 | P8: =OFFSET('Migration 2010'!$J$11,(ROW(A4)-1),selState-2) -> 79127 | Q8: =OFFSET('Migration 2011'!$J$11,(ROW(A4)-1),selState-2) -> 69845 | R8: =OFFSET('Migration 2012'!$J$11,(ROW(A4)-1),selState-2) -> 76948 | S8: =OFFSET('Migration 2010'!$J$11,selState-2,ROW(A4)-1) -> 64264 | T8: =OFFSET('Migration 2011'!$J$11,selState-2,ROW(A4)-1) -> 77226 | U8: =OFFSET('Migration 2012'!$J$11,selState-2,ROW(A4)-1) -> 64967 | V8: 76948 | W8: 64967 | X8: 373046 | Y8: 64967 | Z8: 76948 | AA8: 64967 | AB8: 64967
A9: 5 | B9: California | C9: 566986 | D9: ='Migration 2010'!C15 -> 36907897 | E9: ='Migration 2011'!C15 -> 37222678 | F9: ='Migration 2012'!C15 -> 37572738 | G9: ='Migration 2010'!G15 -> 5413287 | H9: ='Migration 2011'!G15 -> 5271168 | I9: ='Migration 2012'!G15 -> 5046618 | J9: =HLOOKUP($B9,'Migration 2010'!$I$9:$BI$62,2,FALSE) -> 573988 | K9: =HLOOKUP($B9,'Migration 2011'!$I$9:$BI$62,2,FALSE) -> 562343 | L9: =HLOOKUP($B9,'Migration 2012'!$I$9:$BI$62,2,FALSE) -> 566986 | M9: =('Migration 2010'!I15) -> 444749 | N9: =('Migration 2011'!I15) -> 468428 | O9: =('Migration 2012'!I15) -> 493641 | P9: =OFFSET('Migration 2010'!$J$11,(ROW(A5)-1),selState-2) -> 444749 | Q9: =OFFSET('Migration 2011'!$J$11,(ROW(A5)-1),selState-2) -> 468428 | R9: =OFFSET('Migration 2012'!$J$11,(ROW(A5)-1),selState-2) -> 493641 | S9: =OFFSET('Migration 2010'!$J$11,selState-2,ROW(A5)-1) -> 573988 | T9: =OFFSET('Migration 2011'!$J$11,selState-2,ROW(A5)-1) -> 562343 | U9: =OFFSET('Migration 2012'!$J$11,selState-2,ROW(A5)-1) -> 566986 | V9: 493641 | W9: 566986 | X9: 5046618 | Y9: 566986 | Z9: 493641 | AA9: 566986 | AB9: 566986 | BD9: =Migration!Y4:Y56 -> 566986
A10: 6 | B10: Colorado | C10: 161530 | D10: ='Migration 2010'!C16 -> 4988190 | E10: ='Migration 2011'!C16 -> 5048443 | F10: ='Migration 2012'!C16 -> 5123944 | G10: ='Migration 2010'!G16 -> 725413 | H10: ='Migration 2011'!G16 -> 763233 | I10: ='Migration 2012'!G16 -> 751921 | J10: =HLOOKUP($B10,'Migration 2010'!$I$9:$BI$62,2,FALSE) -> 140620 | K10: =HLOOKUP($B10,'Migration 2011'!$I$9:$BI$62,2,FALSE) -> 160623 | L10: =HLOOKUP($B10,'Migration 2012'!$I$9:$BI$62,2,FALSE) -> 161530 | M10: =('Migration 2010'!I16) -> 186366 | N10: =('Migration 2011'!I16) -> 202124 | O10: =('Migration 2012'!I16) -> 205060 | P10: =OFFSET('Migration 2010'!$J$11,(ROW(A6)-1),selState-2) -> 186366 | Q10: =OFFSET('Migration 2011'!$J$11,(ROW(A6)-1),selState-2) -> 202124 | R10: =OFFSET('Migration 2012'!$J$11,(ROW(A6)-1),selState-2) -> 205060 | S10: =OFFSET('Migration 2010'!$J$11,selState-2,ROW(A6)-1) -> 140620 | T10: =OFFSET('Migration 2011'!$J$11,selState-2,ROW(A6)-1) -> 160623 | U10: =OFFSET('Migration 2012'!$J$11,selState-2,ROW(A6)-1) -> 161530 | V10: 205060 | W10: 161530 | X10: 751921 | Y10: 161530 | Z10: 205060 | AA10: 161530 | AB10: 161530
A11: 7 | B11: Connecticut | C11: 87023 | D11: ='Migration 2010'!C17 -> 3541146 | E11: ='Migration 2011'!C17 -> 3548667 | F11: ='Migration 2012'!C17 -> 3555319 | G11: ='Migration 2010'!G17 -> 342904 | H11: ='Migration 2011'!G17 -> 316883 | I11: ='Migration 2012'!G17 -> 334918 | J11: =HLOOKUP($B11,'Migration 2010'!$I$9:$BI$62,2,FALSE) -> 89360 | K11: =HLOOKUP($B11,'Migration 2011'!$I$9:$BI$62,2,FALSE) -> 91295 | L11: =HLOOKUP($B11,'Migration 2012'!$I$9:$BI$62,2,FALSE) -> 87023 | M11: =('Migration 2010'!I17) -> 77333 | N11: =('Migration 2011'!I17) -> 71502 | O11: =('Migration 2012'!I17) -> 80311 | P11: =OFFSET('Migration 2010'!$J$11,(ROW(A7)-1),selState-2) -> 77333 | Q11: =OFFSET('Migration 2011'!$J$11,(ROW(A7)-1),selState-2) -> 71502 | R11: =OFFSET('Migration 2012'!$J$11,(ROW(A7)-1),selState-2) -> 80311 | S11: =OFFSET('Migration 2010'!$J$11,selState-2,ROW(A7)-1) -> 89360 | T11: =OFFSET('Migration 2011'!$J$11,selState-2,ROW(A7)-1) -> 91295 | U11: =OFFSET('Migration 2012'!$J$11,selState-2,ROW(A7)-1) -> 87023 | V11: 80311 | W11: 87023 | X11: 334918 | Y11: 87023 | Z11: 80311 | AA11: 87023 | AB11: 87023
A12: 8 | B12: Delaware | C12: 25149 | D12: ='Migration 2010'!C18 -> 889812 | E12: ='Migration 2011'!C18 -> 897187 | F12: ='Migration 2012'!C18 -> 906576 | G12: ='Migration 2010'!G18 -> 90001 | H12: ='Migration 2011'!G18 -> 83156 | I12: ='Migration 2012'!G18 -> 86003 | J12: =HLOOKUP($B12,'Migration 2010'!$I$9:$BI$62,2,FALSE) -> 30055 | K12: =HLOOKUP($B12,'Migration 2011'!$I$9:$BI$62,2,FALSE) -> 26631 | L12: =HLOOKUP($B12,'Migration 2012'!$I$9:$BI$62,2,FALSE) -> 25149 | M12: =('Migration 2010'!I18) -> 30759 | N12: =('Migration 2011'!I18) -> 33912 | O12: =('Migration 2012'!I18) -> 34757 | P12: =OFFSET('Migration 2010'!$J$11,(ROW(A8)-1),selState-2) -> 30759 | Q12: =OFFSET('Migration 2011'!$J$11,(ROW(A8)-1),selState-2) -> 33912 | R12: =OFFSET('Migration 2012'!$J$11,(ROW(A8)-1),selState-2) -> 34757 | S12: =OFFSET('Migration 2010'!$J$11,selState-2,ROW(A8)-1) -> 30055 | T12: =OFFSET('Migration 2011'!$J$11,selState-2,ROW(A8)-1) -> 26631 | U12: =OFFSET('Migration 2012'!$J$11,selState-2,ROW(A8)-1) -> 25149 | V12: 34757 | W12: 25149 | X12: 86003 | Y12: 25149 | Z12: 34757 | AA12: 25149 | AB12: 25149
A13: 9 | B13: District of Columbia | C13: 59513 | D13: ='Migration 2010'!C19 -> 596747 | E13: ='Migration 2011'!C19 -> 611608 | F13: ='Migration 2012'!C19 -> 624847 | G13: ='Migration 2010'!G19 -> 63766 | H13: ='Migration 2011'!G19 -> 66519 | I13: ='Migration 2012'!G19 -> 61992 | J13: =HLOOKUP($B13,'Migration 2010'!$I$9:$BI$62,2,FALSE) -> 56052 | K13: =HLOOKUP($B13,'Migration 2011'!$I$9:$BI$62,2,FALSE) -> 49732 | L13: =HLOOKUP($B13,'Migration 2012'!$I$9:$BI$62,2,FALSE) -> 59513 | M13: =('Migration 2010'!I19) -> 51244 | N13: =('Migration 2011'!I19) -> 48066 | O13: =('Migration 2012'!I19) -> 53830 | P13: =OFFSET('Migration 2010'!$J$11,(ROW(A9)-1),selState-2) -> 51244 | Q13: =OFFSET('Migration 2011'!$J$11,(ROW(A9)-1),selState-2) -> 48066 | R13: =OFFSET('Migration 2012'!$J$11,(ROW(A9)-1),selState-2) -> 53830 | S13: =OFFSET('Migration 2010'!$J$11,selState-2,ROW(A9)-1) -> 56052 | T13: =OFFSET('Migration 2011'!$J$11,selState-2,ROW(A9)-1) -> 49732 | U13: =OFFSET('Migration 2012'!$J$11,selState-2,ROW(A9)-1) -> 59513 | V13: 53830 | W13: 59513 | X13: 61992 | Y13: 59513 | Z13: 53830 | AA13: 59513 | AB13: 59513
A14: 10 | B14: Florida | C14: 428325 | D14: ='Migration 2010'!C20 -> 18647600 | E14: ='Migration 2011'!C20 -> 18863948 | F14: ='Migration 2012'!C20 -> 19114620 | G14: ='Migration 2010'!G20 -> 2459530 | H14: ='Migration 2011'!G20 -> 2454255 | I14: ='Migration 2012'!G20 -> 2380288 | J14: =HLOOKUP($B14,'Migration 2010'!$I$9:$BI$62,2,FALSE) -> 427853 | K14: =HLOOKUP($B14,'Migration 2011'!$I$9:$BI$62,2,FALSE) -> 437202 | L14: =HLOOKUP($B14,'Migration 2012'!$I$9:$BI$62,2,FALSE) -> 428325 | M14: =('Migration 2010'!I20) -> 482889 | N14: =('Migration 2011'!I20) -> 498597 | O14: =('Migration 2012'!I20) -> 537148 | P14: =OFFSET('Migration 2010'!$J$11,(ROW(A10)-1),selState-2) -> 482889 | Q14: =OFFSET('Migration 2011'!$J$11,(ROW(A10)-1),selState-2) -> 498597 | R14: =OFFSET('Migration 2012'!$J$11,(ROW(A10)-1),selState-2) -> 537148 | S14: =OFFSET('Migration 2010'!$J$11,selState-2,ROW(A10)-1) -> 427853 | T14: =OFFSET('Migration 2011'!$J$11,selState-2,ROW(A10)-1) -> 437202 | U14: =OFFSET('Migration 2012'!$J$11,selState-2,ROW(A10)-1) -> 428325 | V14: 537148 | W14: 428325 | X14: 2380288 | Y14: 428325 | Z14: 537148 | AA14: 428325 | AB14: 428325
A15: 11 | B15: Georgia | C15: 252262 | D15: ='Migration 2010'!C21 -> 9587237 | E15: ='Migration 2011'!C21 -> 9699859 | F15: ='Migration 2012'!C21 -> 9796547 | G15: ='Migration 2010'!G21 -> 1278548 | H15: ='Migration 2011'!G21 -> 1289450 | I15: ='Migration 2012'!G21 -> 1236302 | J15: =HLOOKUP($B15,'Migration 2010'!$I$9:$BI$62,2,FALSE) -> 244992 | K15: =HLOOKUP($B15,'Migration 2011'!$I$9:$BI$62,2,FALSE) -> 248892 | L15: =HLOOKUP($B15,'Migration 2012'!$I$9:$BI$62,2,FALSE) -> 252262 | M15: =('Migration 2010'!I21) -> 249459 | N15: =('Migration 2011'!I21) -> 271077 | O15: =('Migration 2012'!I21) -> 277466 | P15: =OFFSET('Migration 2010'!$J$11,(ROW(A11)-1),selState-2) -> 249459 | Q15: =OFFSET('Migration 2011'!$J$11,(ROW(A11)-1),selState-2) -> 271077 | R15: =OFFSET('Migration 2012'!$J$11,(ROW(A11)-1),selState-2) -> 277466 | S15: =OFFSET('Migration 2010'!$J$11,selState-2,ROW(A11)-1) -> 244992 | T15: =OFFSET('Migration 2011'!$J$11,selState-2,ROW(A11)-1) -> 248892 | U15: =OFFSET('Migration 2012'!$J$11,selState-2,ROW(A11)-1) -> 252262 | V15: 277466 | W15: 252262 | X15: 1236302 | Y15: 252262 | Z15: 277466 | AA15: 252262 | AB15: 252262
A16: 12 | B16: Hawaii | C16: 61509 | D16: ='Migration 2010'!C22 -> 1346274 | E16: ='Migration 2011'!C22 -> 1357806 | F16: ='Migration 2012'!C22 -> 1374852 | G16: ='Migration 2010'!G22 -> 134315 | H16: ='Migration 2011'!G22 -> 122727 | I16: ='Migration 2012'!G22 -> 134827 | J16: =HLOOKUP($B16,'Migration 2010'!$I$9:$BI$62,2,FALSE) -> 49218 | K16: =HLOOKUP($B16,'Migration 2011'!$I$9:$BI$62,2,FALSE) -> 61940 | L16: =HLOOKUP($B16,'Migration 2012'!$I$9:$BI$62,2,FALSE) -> 61509 | M16: =('Migration 2010'!I22) -> 53581 | N16: =('Migration 2011'!I22) -> 57542 | O16: =('Migration 2012'!I22) -> 55145 | P16: =OFFSET('Migration 2010'!$J$11,(ROW(A12)-1),selState-2) -> 53581 | Q16: =OFFSET('Migration 2011'!$J$11,(ROW(A12)-1),selState-2) -> 57542 | R16: =OFFSET('Migration 2012'!$J$11,(ROW(A12)-1),selState-2) -> 55145 | S16: =OFFSET('Migration 2010'!$J$11,selState-2,ROW(A12)-1) -> 49218 | T16: =OFFSET('Migration 2011'!$J$11,selState-2,ROW(A12)-1) -> 61940 | U16: =OFFSET('Migration 2012'!$J$11,selState-2,ROW(A12)-1) -> 61509 | V16: 55145 | W16: 61509 | X16: 134827 | Y16: 61509 | Z16: 55145 | AA16: 61509 | AB16: 61509
A17: 13 | B17: Idaho | C17: 55191 | D17: ='Migration 2010'!C23 -> 1550967 | E17: ='Migration 2011'!C23 -> 1559637 | F17: ='Migration 2012'!C23 -> 1573036 | G17: ='Migration 2010'!G23 -> 209272 | H17: ='Migration 2011'!G23 -> 208434 | I17: ='Migration 2012'!G23 -> 210151 | J17: =HLOOKUP($B17,'Migration 2010'!$I$9:$BI$62,2,FALSE) -> 53122 | K17: =HLOOKUP($B17,'Migration 2011'!$I$9:$BI$62,2,FALSE) -> 57831 | L17: =HLOOKUP($B17,'Migration 2012'!$I$9:$BI$62,2,FALSE) -> 55191 | M17: =('Migration 2010'!I23) -> 55638 | N17: =('Migration 2011'!I23) -> 60336 | O17: =('Migration 2012'!I23) -> 59283 | P17: =OFFSET('Migration 2010'!$J$11,(ROW(A13)-1),selState-2) -> 55638 | Q17: =OFFSET('Migration 2011'!$J$11,(ROW(A13)-1),selState-2) -> 60336 | R17: =OFFSET('Migration 2012'!$J$11,(ROW(A13)-1),selState-2) -> 59283 | S17: =OFFSET('Migration 2010'!$J$11,selState-2,ROW(A13)-1) -> 53122 | T17: =OFFSET('Migration 2011'!$J$11,selState-2,ROW(A13)-1) -> 57831 | U17: =OFFSET('Migration 2012'!$J$11,selState-2,ROW(A13)-1) -> 55191 | V17: 59283 | W17: 55191 | X17: 210151 | Y17: 55191 | Z17: 59283 | AA17: 55191 | AB17: 55191
A18: 14 | B18: Illinois | C18: 277953 | D18: ='Migration 2010'!C24 -> 12680126 | E18: ='Migration 2011'!C24 -> 12718402 | F18: ='Migration 2012'!C24 -> 12725119 | G18: ='Migration 2010'!G24 -> 1404525 | H18: ='Migration 2011'!G24 -> 1353853 | I18: ='Migration 2012'!G24 -> 1441191 | J18: =HLOOKUP($B18,'Migration 2010'!$I$9:$BI$62,2,FALSE) -> 277579 | K18: =HLOOKUP($B18,'Migration 2011'!$I$9:$BI$62,2,FALSE) -> 269008 | L18: =HLOOKUP($B18,'Migration 2012'!$I$9:$BI$62,2,FALSE) -> 277953 | M18: =('Migration 2010'!I24) -> 203959 | N18: =('Migration 2011'!I24) -> 216204 | O18: =('Migration 2012'!I24) -> 208755 | P18: =OFFSET('Migration 2010'!$J$11,(ROW(A14)-1),selState-2) -> 203959 | Q18: =OFFSET('Migration 2011'!$J$11,(ROW(A14)-1),selState-2) -> 216204 | R18: =OFFSET('Migration 2012'!$J$11,(ROW(A14)-1),selState-2) -> 208755 | S18: =OFFSET('Migration 2010'!$J$11,selState-2,ROW(A14)-1) -> 277579 | T18: =OFFSET('Migration 2011'!$J$11,selState-2,ROW(A14)-1) -> 269008 | U18: =OFFSET('Migration 2012'!$J$11,selState-2,ROW(A14)-1) -> 277953 | V18: 208755 | W18: 277953 | X18: 1441191 | Y18: 277953 | Z18: 208755 | AA18: 277953 | AB18: 277953
A19: 15 | B19: Indiana | C19: 144597 | D19: ='Migration 2010'!C25 -> 6414862 | E19: ='Migration 2011'!C25 -> 6437155 | F19: ='Migration 2012'!C25 -> 6457067 | G19: ='Migration 2010'!G25 -> 833086 | H19: ='Migration 2011'!G25 -> 809158 | I19: ='Migration 2012'!G25 -> 805228 | J19: =HLOOKUP($B19,'Migration 2010'!$I$9:$BI$62,2,FALSE) -> 130170 | K19: =HLOOKUP($B19,'Migration 2011'!$I$9:$BI$62,2,FALSE) -> 143228 | L19: =HLOOKUP($B19,'Migration 2012'!$I$9:$BI$62,2,FALSE) -> 144597 | M19: =('Migration 2010'!I25) -> 127353 | N19: =('Migration 2011'!I25) -> 127874 | O19: =('Migration 2012'!I25) -> 134137 | P19: =OFFSET('Migration 2010'!$J$11,(ROW(A15)-1),selState-2) -> 127353 | Q19: =OFFSET('Migration 2011'!$J$11,(ROW(A15)-1),selState-2) -> 127874 | R19: =OFFSET('Migration 2012'!$J$11,(ROW(A15)-1),selState-2) -> 134137 | S19: =OFFSET('Migration 2010'!$J$11,selState-2,ROW(A15)-1) -> 130170 | T19: =OFFSET('Migration 2011'!$J$11,selState-2,ROW(A15)-1) -> 143228 | U19: =OFFSET('Migration 2012'!$J$11,selState-2,ROW(A15)-1) -> 144597 | V19: 134137 | W19: 144597 | X19: 805228 | Y19: 144597 | Z19: 134137 | AA19: 144597 | AB19: 144597
A20: 16 | B20: Iowa | C20: 73325 | D20: ='Migration 2010'!C26 -> 3013053 | E20: ='Migration 2011'!C26 -> 3027718 | F20: ='Migration 2012'!C26 -> 3035469 | G20: ='Migration 2010'!G26 -> 375650 | H20: ='Migration 2011'!G26 -> 370554 | I20: ='Migration 2012'!G26 -> 362938 | J20: =HLOOKUP($B20,'Migration 2010'!$I$9:$BI$62,2,FALSE) -> 66922 | K20: =HLOOKUP($B20,'Migration 2011'!$I$9:$BI$62,2,FALSE) -> 74516 | L20: =HLOOKUP($B20,'Migration 2012'!$I$9:$BI$62,2,FALSE) -> 73325 | M20: =('Migration 2010'!I26) -> 72557 | N20: =('Migration 2011'!I26) -> 70405 | O20: =('Migration 2012'!I26) -> 75760 | P20: =OFFSET('Migration 2010'!$J$11,(ROW(A16)-1),selState-2) -> 72557 | Q20: =OFFSET('Migration 2011'!$J$11,(ROW(A16)-1),selState-2) -> 70405 | R20: =OFFSET('Migration 2012'!$J$11,(ROW(A16)-1),selState-2) -> 75760 | S20: =OFFSET('Migration 2010'!$J$11,selState-2,ROW(A16)-1) -> 66922 | T20: =OFFSET('Migration 2011'!$J$11,selState-2,ROW(A16)-1) -> 74516 | U20: =OFFSET('Migration 2012'!$J$11,selState-2,ROW(A16)-1) -> 73325 | V20: 75760 | W20: 73325 | X20: 362938 | Y20: 73325 | Z20: 75760 | AA20: 73325 | AB20: 73325
A21: 17 | B21: Kansas | C21: 93134 | D21: ='Migration 2010'!C27 -> 2820894 | E21: ='Migration 2011'!C27 -> 2833584 | F21: ='Migration 2012'!C27 -> 2848708 | G21: ='Migration 2010'!G27 -> 372161 | H21: ='Migration 2011'!G27 -> 362782 | I21: ='Migration 2012'!G27 -> 381695 | J21: =HLOOKUP($B21,'Migration 2010'!$I$9:$BI$62,2,FALSE) -> 90681 | K21: =HLOOKUP($B21,'Migration 2011'!$I$9:$BI$62,2,FALSE) -> 94180 | L21: =HLOOKUP($B21,'Migration 2012'!$I$9:$BI$62,2,FALSE) -> 93134 | M21: =('Migration 2010'!I27) -> 95059 | N21: =('Migration 2011'!I27) -> 83640 | O21: =('Migration 2012'!I27) -> 88284 | P21: =OFFSET('Migration 2010'!$J$11,(ROW(A17)-1),selState-2) -> 95059 | Q21: =OFFSET('Migration 2011'!$J$11,(ROW(A17)-1),selState-2) -> 83640 | R21: =OFFSET('Migration 2012'!$J$11,(ROW(A17)-1),selState-2) -> 88284 | S21: =OFFSET('Migration 2010'!$J$11,selState-2,ROW(A17)-1) -> 90681 | T21: =OFFSET('Migration 2011'!$J$11,selState-2,ROW(A17)-1) -> 94180 | U21: =OFFSET('Migration 2012'!$J$11,selState-2,ROW(A17)-1) -> 93134 | V21: 88284 | W21: 93134 | X21: 381695 | Y21: 93134 | Z21: 88284 | AA21: 93134 | AB21: 93134
A22: 18 | B22: Kentucky | C22: 103004 | D22: ='Migration 2010'!C28 -> 4296639 | E22: ='Migration 2011'!C28 -> 4316297 | F22: ='Migration 2012'!C28 -> 4328626 | G22: ='Migration 2010'!G28 -> 519887 | H22: ='Migration 2011'!G28 -> 505741 | I22: ='Migration 2012'!G28 -> 521511 | J22: =HLOOKUP($B22,'Migration 2010'!$I$9:$BI$62,2,FALSE) -> 92999 | K22: =HLOOKUP($B22,'Migration 2011'!$I$9:$BI$62,2,FALSE) -> 99256 | L22: =HLOOKUP($B22,'Migration 2012'!$I$9:$BI$62,2,FALSE) -> 103004 | M22: =('Migration 2010'!I28) -> 118443 | N22: =('Migration 2011'!I28) -> 110031 | O22: =('Migration 2012'!I28) -> 112787 | P22: =OFFSET('Migration 2010'!$J$11,(ROW(A18)-1),selState-2) -> 118443 | Q22: =OFFSET('Migration 2011'!$J$11,(ROW(A18)-1),selState-2) -> 110031 | R22: =OFFSET('Migration 2012'!$J$11,(ROW(A18)-1),selState-2) -> 112787 | S22: =OFFSET('Migration 2010'!$J$11,selState-2,ROW(A18)-1) -> 92999 | T22: =OFFSET('Migration 2011'!$J$11,selState-2,ROW(A18)-1) -> 99256 | U22: =OFFSET('Migration 2012'!$J$11,selState-2,ROW(A18)-1) -> 103004 | V22: 112787 | W22: 103004 | X22: 521511 | Y22: 103004 | Z22: 112787 | AA22: 103004 | AB22: 103004
A23: 19 | B23: Louisiana | C23: 95956 | D23: ='Migration 2010'!C29 -> 4483529 | E23: ='Migration 2011'!C29 -> 4518629 | F23: ='Migration 2012'!C29 -> 4545914 | G23: ='Migration 2010'!G29 -> 547291 | H23: ='Migration 2011'!G29 -> 538691 | I23: ='Migration 2012'!G29 -> 528406 | J23: =HLOOKUP($B23,'Migration 2010'!$I$9:$BI$62,2,FALSE) -> 88131 | K23: =HLOOKUP($B23,'Migration 2011'!$I$9:$BI$62,2,FALSE) -> 86593 | L23: =HLOOKUP($B23,'Migration 2012'!$I$9:$BI$62,2,FALSE) -> 95956 | M23: =('Migration 2010'!I29) -> 97889 | N23: =('Migration 2011'!I29) -> 99138 | O23: =('Migration 2012'!I29) -> 91215 | P23: =OFFSET('Migration 2010'!$J$11,(ROW(A19)-1),selState-2) -> 97889 | Q23: =OFFSET('Migration 2011'!$J$11,(ROW(A19)-1),selState-2) -> 99138 | R23: =OFFSET('Migration 2012'!$J$11,(ROW(A19)-1),selState-2) -> 91215 | S23: =OFFSET('Migration 2010'!$J$11,selState-2,ROW(A19)-1) -> 88131 | T23: =OFFSET('Migration 2011'!$J$11,selState-2,ROW(A19)-1) -> 86593 | U23: =OFFSET('Migration 2012'!$J$11,selState-2,ROW(A19)-1) -> 95956 | V23: 91215 | W23: 95956 | X23: 528406 | Y23: 95956 | Z23: 91215 | AA23: 95956 | AB23: 95956
A24: 20 | B24: Maine | C24: 38574 | D24: ='Migration 2010'!C30 -> 1313902 | E24: ='Migration 2011'!C30 -> 1315833 | F24: ='Migration 2012'!C30 -> 1315586 | G24: ='Migration 2010'!G30 -> 146735 | H24: ='Migration 2011'!G30 -> 157102 | I24: ='Migration 2012'!G30 -> 151438 | J24: =HLOOKUP($B24,'Migration 2010'!$I$9:$BI$62,2,FALSE) -> 32209 | K24: =HLOOKUP($B24,'Migration 2011'!$I$9:$BI$62,2,FALSE) -> 33729 | L24: =HLOOKUP($B24,'Migration 2012'!$I$9:$BI$62,2,FALSE) -> 38574 | M24: =('Migration 2010'!I30) -> 27758 | N24: =('Migration 2011'!I30) -> 33818 | O24: =('Migration 2012'!I30) -> 27523 | P24: =OFFSET('Migration 2010'!$J$11,(ROW(A20)-1),selState-2) -> 27758 | Q24: =OFFSET('Migration 2011'!$J$11,(ROW(A20)-1),selState-2) -> 33818 | R24: =OFFSET('Migration 2012'!$J$11,(ROW(A20)-1),selState-2) -> 27523 | S24: =OFFSET('Migration 2010'!$J$11,selState-2,ROW(A20)-1) -> 32209 | T24: =OFFSET('Migration 2011'!$J$11,selState-2,ROW(A20)-1) -> 33729 | U24: =OFFSET('Migration 2012'!$J$11,selState-2,ROW(A20)-1) -> 38574 | V24: 27523 | W24: 38574 | X24: 151438 | Y24: 38574 | Z24: 27523 | AA24: 38574 | AB24: 38574
A25: 21 | B25: Maryland | C25: 157664 | D25: ='Migration 2010'!C31 -> 5716785 | E25: ='Migration 2011'!C31 -> 5759087 | F25: ='Migration 2012'!C31 -> 5816472 | G25: ='Migration 2010'!G31 -> 588879 | H25: ='Migration 2011'!G31 -> 553895 | I25: ='Migration 2012'!G31 -> 549973 | J25: =HLOOKUP($B25,'Migration 2010'!$I$9:$BI$62,2,FALSE) -> 159866 | K25: =HLOOKUP($B25,'Migration 2011'!$I$9:$BI$62,2,FALSE) -> 165041 | L25: =HLOOKUP($B25,'Migration 2012'!$I$9:$BI$62,2,FALSE) -> 157664 | M25: =('Migration 2010'!I31) -> 164484 | N25: =('Migration 2011'!I31) -> 153979 | O25: =('Migration 2012'!I31) -> 154983 | P25: =OFFSET('Migration 2010'!$J$11,(ROW(A21)-1),selState-2) -> 164484 | Q25: =OFFSET('Migration 2011'!$J$11,(ROW(A21)-1),selState-2) -> 153979 | R25: =OFFSET('Migration 2012'!$J$11,(ROW(A21)-1),selState-2) -> 154983 | S25: =OFFSET('Migration 2010'!$J$11,selState-2,ROW(A21)-1) -> 159866 | T25: =OFFSET('Migration 2011'!$J$11,selState-2,ROW(A21)-1) -> 165041 | U25: =OFFSET('Migration 2012'!$J$11,selState-2,ROW(A21)-1) -> 157664 | V25: 154983 | W25: 157664 | X25: 549973 | Y25: 157664 | Z25: 154983 | AA25: 157664 | AB25: 157664
A26: 22 | B26: Massachusetts | C26: 158156 | D26: ='Migration 2010'!C32 -> 6489250 | E26: ='Migration 2011'!C32 -> 6515057 | F26: ='Migration 2012'!C32 -> 6580641 | G26: ='Migration 2010'!G32 -> 706624 | H26: ='Migration 2011'!G32 -> 656441 | I26: ='Migration 2012'!G32 -> 626380 | J26: =HLOOKUP($B26,'Migration 2010'!$I$9:$BI$62,2,FALSE) -> 144152 | K26: =HLOOKUP($B26,'Migration 2011'!$I$9:$BI$62,2,FALSE) -> 145869 | L26: =HLOOKUP($B26,'Migration 2012'!$I$9:$BI$62,2,FALSE) -> 158156 | M26: =('Migration 2010'!I32) -> 140162 | N26: =('Migration 2011'!I32) -> 139830 | O26: =('Migration 2012'!I32) -> 142577 | P26: =OFFSET('Migration 2010'!$J$11,(ROW(A22)-1),selState-2) -> 140162 | Q26: =OFFSET('Migration 2011'!$J$11,(ROW(A22)-1),selState-2) -> 139830 | R26: =OFFSET('Migration 2012'!$J$11,(ROW(A22)-1),selState-2) -> 142577 | S26: =OFFSET('Migration 2010'!$J$11,selState-2,ROW(A22)-1) -> 144152 | T26: =OFFSET('Migration 2011'!$J$11,selState-2,ROW(A22)-1) -> 145869 | U26: =OFFSET('Migration 2012'!$J$11,selState-2,ROW(A22)-1) -> 158156 | V26: 142577 | W26: 158156 | X26: 626380 | Y26: 158156 | Z26: 142577 | AA26: 158156 | AB26: 158156
A27: 23 | B27: Michigan | C27: 175733 | D27: ='Migration 2010'!C33 -> 9762127 | E27: ='Migration 2011'!C33 -> 9766574 | F27: ='Migration 2012'!C33 -> 9778980 | G27: ='Migration 2010'!G33 -> 1291901 | H27: ='Migration 2011'!G33 -> 1242917 | I27: ='Migration 2012'!G33 -> 1268105 | J27: =HLOOKUP($B27,'Migration 2010'!$I$9:$BI$62,2,FALSE) -> 178207 | K27: =HLOOKUP($B27,'Migration 2011'!$I$9:$BI$62,2,FALSE) -> 186505 | L27: =HLOOKUP($B27,'Migration 2012'!$I$9:$BI$62,2,FALSE) -> 175733 | M27: =('Migration 2010'!I33) -> 116149 | N27: =('Migration 2011'!I33) -> 139158 | O27: =('Migration 2012'!I33) -> 133981 | P27: =OFFSET('Migration 2010'!$J$11,(ROW(A23)-1),selState-2) -> 116149 | Q27: =OFFSET('Migration 2011'!$J$11,(ROW(A23)-1),selState-2) -> 139158 | R27: =OFFSET('Migration 2012'!$J$11,(ROW(A23)-1),selState-2) -> 133981 | S27: =OFFSET('Migration 2010'!$J$11,selState-2,ROW(A23)-1) -> 178207 | T27: =OFFSET('Migration 2011'!$J$11,selState-2,ROW(A23)-1) -> 186505 | U27: =OFFSET('Migration 2012'!$J$11,selState-2,ROW(A23)-1) -> 175733 | V27: 133981 | W27: 175733 | X27: 1268105 | Y27: 175733 | Z27: 133981 | AA27: 175733 | AB27: 175733
A28: 24 | B28: Minnesota | C28: 115946 | D28: ='Migration 2010'!C34 -> 5244256 | E28: ='Migration 2011'!C34 -> 5277329 | F28: ='Migration 2012'!C34 -> 5315228 | G28: ='Migration 2010'!G34 -> 647946 | H28: ='Migration 2011'!G34 -> 646176 | I28: ='Migration 2012'!G34 -> 653012 | J28: =HLOOKUP($B28,'Migration 2010'!$I$9:$BI$62,2,FALSE) -> 104765 | K28: =HLOOKUP($B28,'Migration 2011'!$I$9:$BI$62,2,FALSE) -> 103253 | L28: =HLOOKUP($B28,'Migration 2012'!$I$9:$BI$62,2,FALSE) -> 115946 | M28: =('Migration 2010'!I34) -> 89872 | N28: =('Migration 2011'!I34) -> 101029 | O28: =('Migration 2012'!I34) -> 101042 | P28: =OFFSET('Migration 2010'!$J$11,(ROW(A24)-1),selState-2) -> 89872 | Q28: =OFFSET('Migration 2011'!$J$11,(ROW(A24)-1),selState-2) -> 101029 | R28: =OFFSET('Migration 2012'!$J$11,(ROW(A24)-1),selState-2) -> 101042 | S28: =OFFSET('Migration 2010'!$J$11,selState-2,ROW(A24)-1) -> 104765 | T28: =OFFSET('Migration 2011'!$J$11,selState-2,ROW(A24)-1) -> 103253 | U28: =OFFSET('Migration 2012'!$J$11,selState-2,ROW(A24)-1) -> 115946 | V28: 101042 | W28: 115946 | X28: 653012 | Y28: 115946 | Z28: 101042 | AA28: 115946 | AB28: 115946
A29: 25 | B29: Mississippi | C29: 66947 | D29: ='Migration 2010'!C35 -> 2931228 | E29: ='Migration 2011'!C35 -> 2943021 | F29: ='Migration 2012'!C35 -> 2947696 | G29: ='Migration 2010'!G35 -> 340266 | H29: ='Migration 2011'!G35 -> 332934 | I29: ='Migration 2012'!G35 -> 339807 | J29: =HLOOKUP($B29,'Migration 2010'!$I$9:$BI$62,2,FALSE) -> 68363 | K29: =HLOOKUP($B29,'Migration 2011'!$I$9:$BI$62,2,FALSE) -> 68597 | L29: =HLOOKUP($B29,'Migration 2012'!$I$9:$BI$62,2,FALSE) -> 66947 | M29: =('Migration 2010'!I35) -> 72321 | N29: =('Migration 2011'!I35) -> 68511 | O29: =('Migration 2012'!I35) -> 73500 | P29: =OFFSET('Migration 2010'!$J$11,(ROW(A25)-1),selState-2) -> 72321 | Q29: =OFFSET('Migration 2011'!$J$11,(ROW(A25)-1),selState-2) -> 68511 | R29: =OFFSET('Migration 2012'!$J$11,(ROW(A25)-1),selState-2) -> 73500 | S29: =OFFSET('Migration 2010'!$J$11,selState-2,ROW(A25)-1) -> 68363 | T29: =OFFSET('Migration 2011'!$J$11,selState-2,ROW(A25)-1) -> 68597 | U29: =OFFSET('Migration 2012'!$J$11,selState-2,ROW(A25)-1) -> 66947 | V29: 73500 | W29: 66947 | X29: 339807 | Y29: 66947 | Z29: 73500 | AA29: 66947 | AB29: 66947
A30: 26 | B30: Missouri | C30: 142754 | D30: ='Migration 2010'!C36 -> 5920858 | E30: ='Migration 2011'!C36 -> 5937896 | F30: ='Migration 2012'!C36 -> 5951913 | G30: ='Migration 2010'!G36 -> 786726 | H30: ='Migration 2011'!G36 -> 801046 | I30: ='Migration 2012'!G36 -> 801093 | J30: =HLOOKUP($B30,'Migration 2010'!$I$9:$BI$62,2,FALSE) -> 148055 | K30: =HLOOKUP($B30,'Migration 2011'!$I$9:$BI$62,2,FALSE) -> 138404 | L30: =HLOOKUP($B30,'Migration 2012'!$I$9:$BI$62,2,FALSE) -> 142754 | M30: =('Migration 2010'!I36) -> 145226 | N30: =('Migration 2011'!I36) -> 149439 | O30: =('Migration 2012'!I36) -> 162930 | P30: =OFFSET('Migration 2010'!$J$11,(ROW(A26)-1),selState-2) -> 145226 | Q30: =OFFSET('Migration 2011'!$J$11,(ROW(A26)-1),selState-2) -> 149439 | R30: =OFFSET('Migration 2012'!$J$11,(ROW(A26)-1),selState-2) -> 162930 | S30: =OFFSET('Migration 2010'!$J$11,selState-2,ROW(A26)-1) -> 148055 | T30: =OFFSET('Migration 2011'!$J$11,selState-2,ROW(A26)-1) -> 138404 | U30: =OFFSET('Migration 2012'!$J$11,selState-2,ROW(A26)-1) -> 142754 | V30: 162930 | W30: 142754 | X30: 801093 | Y30: 142754 | Z30: 162930 | AA30: 142754 | AB30: 142754
A31: 27 | B31: Montana | C31: 33832 | D31: ='Migration 2010'!C37 -> 978507 | E31: ='Migration 2011'!C37 -> 987076 | F31: ='Migration 2012'!C37 -> 995544 | G31: ='Migration 2010'!G37 -> 117752 | H31: ='Migration 2011'!G37 -> 122210 | I31: ='Migration 2012'!G37 -> 126463 | J31: =HLOOKUP($B31,'Migration 2010'!$I$9:$BI$62,2,FALSE) -> 35870 | K31: =HLOOKUP($B31,'Migration 2011'!$I$9:$BI$62,2,FALSE) -> 31204 | L31: =HLOOKUP($B31,'Migration 2012'!$I$9:$BI$62,2,FALSE) -> 33832 | M31: =('Migration 2010'!I37) -> 35630 | N31: =('Migration 2011'!I37) -> 33553 | O31: =('Migration 2012'!I37) -> 37690 | P31: =OFFSET('Migration 2010'!$J$11,(ROW(A27)-1),selState-2) -> 35630 | Q31: =OFFSET('Migration 2011'!$J$11,(ROW(A27)-1),selState-2) -> 33553 | R31: =OFFSET('Migration 2012'!$J$11,(ROW(A27)-1),selState-2) -> 37690 | S31: =OFFSET('Migration 2010'!$J$11,selState-2,ROW(A27)-1) -> 35870 | T31: =OFFSET('Migration 2011'!$J$11,selState-2,ROW(A27)-1) -> 31204 | U31: =OFFSET('Migration 2012'!$J$11,selState-2,ROW(A27)-1) -> 33832 | V31: 37690 | W31: 33832 | X31: 126463 | Y31: 33832 | Z31: 37690 | AA31: 33832 | AB31: 33832
A32: 28 | B32: Nebraska | C32: 48816 | D32: ='Migration 2010'!C38 -> 1802697 | E32: ='Migration 2011'!C38 -> 1817126 | F32: ='Migration 2012'!C38 -> 1829420 | G32: ='Migration 2010'!G38 -> 247005 | H32: ='Migration 2011'!G38 -> 253269 | I32: ='Migration 2012'!G38 -> 237937 | J32: =HLOOKUP($B32,'Migration 2010'!$I$9:$BI$62,2,FALSE) -> 43531 | K32: =HLOOKUP($B32,'Migration 2011'!$I$9:$BI$62,2,FALSE) -> 52809 | L32: =HLOOKUP($B32,'Migration 2012'!$I$9:$BI$62,2,FALSE) -> 48816 | M32: =('Migration 2010'!I38) -> 51290 | N32: =('Migration 2011'!I38) -> 52070 | O32: =('Migration 2012'!I38) -> 43266 | P32: =OFFSET('Migration 2010'!$J$11,(ROW(A28)-1),selState-2) -> 51290 | Q32: =OFFSET('Migration 2011'!$J$11,(ROW(A28)-1),selState-2) -> 52070 | R32: =OFFSET('Migration 2012'!$J$11,(ROW(A28)-1),selState-2) -> 43266 | S32: =OFFSET('Migration 2010'!$J$11,selState-2,ROW(A28)-1) -> 43531 | T32: =OFFSET('Migration 2011'!$J$11,selState-2,ROW(A28)-1) -> 52809 | U32: =OFFSET('Migration 2012'!$J$11,selState-2,ROW(A28)-1) -> 48816 | V32: 43266 | W32: 48816 | X32: 237937 | Y32: 48816 | Z32: 43266 | AA32: 48816 | AB32: 48816
A33: 29 | B33: Nevada | C33: 98882 | D33: ='Migration 2010'!C39 -> 2667364 | E33: ='Migration 2011'!C39 -> 2688336 | F33: ='Migration 2012'!C39 -> 2725280 | G33: ='Migration 2010'!G39 -> 517261 | H33: ='Migration 2011'!G39 -> 480317 | I33: ='Migration 2012'!G39 -> 481496 | J33: =HLOOKUP($B33,'Migration 2010'!$I$9:$BI$62,2,FALSE) -> 109409 | K33: =HLOOKUP($B33,'Migration 2011'!$I$9:$BI$62,2,FALSE) -> 115943 | L33: =HLOOKUP($B33,'Migration 2012'!$I$9:$BI$62,2,FALSE) -> 98882 | M33: =('Migration 2010'!I39) -> 102677 | N33: =('Migration 2011'!I39) -> 110345 | O33: =('Migration 2012'!I39) -> 124285 | P33: =OFFSET('Migration 2010'!$J$11,(ROW(A29)-1),selState-2) -> 102677 | Q33: =OFFSET('Migration 2011'!$J$11,(ROW(A29)-1),selState-2) -> 110345 | R33: =OFFSET('Migration 2012'!$J$11,(ROW(A29)-1),selState-2) -> 124285 | S33: =OFFSET('Migration 2010'!$J$11,selState-2,ROW(A29)-1) -> 109409 | T33: =OFFSET('Migration 2011'!$J$11,selState-2,ROW(A29)-1) -> 115943 | U33: =OFFSET('Migration 2012'!$J$11,selState-2,ROW(A29)-1) -> 98882 | V33: 124285 | W33: 98882 | X33: 481496 | Y33: 98882 | Z33: 124285 | AA33: 98882 | AB33: 98882
A34: 30 | B34: New Hampshire | C34: 38696 | D34: ='Migration 2010'!C40 -> 1303865 | E34: ='Migration 2011'!C40 -> 1305678 | F34: ='Migration 2012'!C40 -> 1309203 | G34: ='Migration 2010'!G40 -> 141213 | H34: ='Migration 2011'!G40 -> 122129 | I34: ='Migration 2012'!G40 -> 125118 | J34: =HLOOKUP($B34,'Migration 2010'!$I$9:$BI$62,2,FALSE) -> 38399 | K34: =HLOOKUP($B34,'Migration 2011'!$I$9:$BI$62,2,FALSE) -> 43277 | L34: =HLOOKUP($B34,'Migration 2012'!$I$9:$BI$62,2,FALSE) -> 38696 | M34: =('Migration 2010'!I40) -> 39367 | N34: =('Migration 2011'!I40) -> 37000 | O34: =('Migration 2012'!I40) -> 50484 | P34: =OFFSET('Migration 2010'!$J$11,(ROW(A30)-1),selState-2) -> 39367 | Q34: =OFFSET('Migration 2011'!$J$11,(ROW(A30)-1),selState-2) -> 37000 | R34: =OFFSET('Migration 2012'!$J$11,(ROW(A30)-1),selState-2) -> 50484 | S34: =OFFSET('Migration 2010'!$J$11,selState-2,ROW(A30)-1) -> 38399 | T34: =OFFSET('Migration 2011'!$J$11,selState-2,ROW(A30)-1) -> 43277 | U34: =OFFSET('Migration 2012'!$J$11,selState-2,ROW(A30)-1) -> 38696 | V34: 50484 | W34: 38696 | X34: 125118 | Y34: 38696 | Z34: 50484 | AA34: 38696 | AB34: 38696
A35: 31 | B35: New Jersey | C35: 219202 | D35: ='Migration 2010'!C41 -> 8709933 | E35: ='Migration 2011'!C41 -> 8719952 | F35: ='Migration 2012'!C41 -> 8772744 | G35: ='Migration 2010'!G41 -> 684482 | H35: ='Migration 2011'!G41 -> 693380 | I35: ='Migration 2012'!G41 -> 655465 | J35: =HLOOKUP($B35,'Migration 2010'!$I$9:$BI$62,2,FALSE) -> 193972 | K35: =HLOOKUP($B35,'Migration 2011'!$I$9:$BI$62,2,FALSE) -> 216369 | L35: =HLOOKUP($B35,'Migration 2012'!$I$9:$BI$62,2,FALSE) -> 219202 | M35: =('Migration 2010'!I41) -> 127369 | N35: =('Migration 2011'!I41) -> 140194 | O35: =('Migration 2012'!I41) -> 130223 | P35: =OFFSET('Migration 2010'!$J$11,(ROW(A31)-1),selState-2) -> 127369 | Q35: =OFFSET('Migration 2011'!$J$11,(ROW(A31)-1),selState-2) -> 140194 | R35: =OFFSET('Migration 2012'!$J$11,(ROW(A31)-1),selState-2) -> 130223 | S35: =OFFSET('Migration 2010'!$J$11,selState-2,ROW(A31)-1) -> 193972 | T35: =OFFSET('Migration 2011'!$J$11,selState-2,ROW(A31)-1) -> 216369 | U35: =OFFSET('Migration 2012'!$J$11,selState-2,ROW(A31)-1) -> 219202 | V35: 130223 | W35: 219202 | X35: 655465 | Y35: 219202 | Z35: 130223 | AA35: 219202 | AB35: 219202
A36: 32 | B36: New Mexico | C36: =IF(selState=1,HLOOKUP(selWithin,$X$2:$Y$56,ROW(B36)-1,FALSE),AB36) -> 63921 | D36: ='Migration 2010'!C42 -> 2039549 | E36: ='Migration 2011'!C42 -> 2055293 | F36: ='Migration 2012'!C42 -> 2060595 | G36: ='Migration 2010'!G42 -> 220663 | H36: ='Migration 2011'!G42 -> 228218 | I36: ='Migration 2012'!G42 -> 226243 | J36: =HLOOKUP($B36,'Migration 2010'!$I$9:$BI$62,2,FALSE) -> 50438 | K36: =HLOOKUP($B36,'Migration 2011'!$I$9:$BI$62,2,FALSE) -> 61431 | L36: =HLOOKUP($B36,'Migration 2012'!$I$9:$BI$62,2,FALSE) -> 63921 | M36: =('Migration 2010'!I42) -> 73605 | N36: =('Migration 2011'!I42) -> 62130 | O36: =('Migration 2012'!I42) -> 54693 | P36: =OFFSET('Migration 2010'!$J$11,(ROW(A32)-1),selState-2) -> 73605 | Q36: =OFFSET('Migration 2011'!$J$11,(ROW(A32)-1),selState-2) -> 62130 | R36: =OFFSET('Migration 2012'!$J$11,(ROW(A32)-1),selState-2) -> 54693 | S36: =OFFSET('Migration 2010'!$J$11,selState-2,ROW(A32)-1) -> 50438 | T36: =OFFSET('Migration 2011'!$J$11,selState-2,ROW(A32)-1) -> 61431 | U36: =OFFSET('Migration 2012'!$J$11,selState-2,ROW(A32)-1) -> 63921 | V36: =HLOOKUP(selYear,$M$2:$O$56,ROW(B36)-1,FALSE) -> 54693 | W36: =HLOOKUP(selYear,$J$2:$L$56,ROW(B36)-1,FALSE) -> 63921 | X36: =HLOOKUP(selYear,$G$2:$I$56,ROW(B36)-1,FALSE) -> 226243 | Y36: =HLOOKUP(selDest,$V$2:$W$56,ROW(B36)-1,FALSE) -> 63921 | Z36: =HLOOKUP(selYear,$P$2:$R$56,ROW(A35),FALSE) -> 54693 | AA36: =HLOOKUP(selYear,$S$2:$U$56,ROW(B35),FALSE) -> 63921 | AB36: =HLOOKUP(selDest,$Z$2:$AA$56,ROW(A35),FALSE) -> 63921
A37: 33 | B37: New York | C37: 405864 | D37: ='Migration 2010'!C43 -> 19171916 | E37: ='Migration 2011'!C43 -> 19248685 | F37: ='Migration 2012'!C43 -> 19352153 | G37: ='Migration 2010'!G43 -> 1779540 | H37: ='Migration 2011'!G43 -> 1756105 | I37: ='Migration 2012'!G43 -> 1723117 | J37: =HLOOKUP($B37,'Migration 2010'!$I$9:$BI$62,2,FALSE) -> 363139 | K37: =HLOOKUP($B37,'Migration 2011'!$I$9:$BI$62,2,FALSE) -> 377800 | L37: =HLOOKUP($B37,'Migration 2012'!$I$9:$BI$62,2,FALSE) -> 405864 | M37: =('Migration 2010'!I43) -> 269427 | N37: =('Migration 2011'!I43) -> 282209 | O37: =('Migration 2012'!I43) -> 270053 | P37: =OFFSET('Migration 2010'!$J$11,(ROW(A33)-1),selState-2) -> 269427 | Q37: =OFFSET('Migration 2011'!$J$11,(ROW(A33)-1),selState-2) -> 282209 | R37: =OFFSET('Migration 2012'!$J$11,(ROW(A33)-1),selState-2) -> 270053 | S37: =OFFSET('Migration 2010'!$J$11,selState-2,ROW(A33)-1) -> 363139 | T37: =OFFSET('Migration 2011'!$J$11,selState-2,ROW(A33)-1) -> 377800 | U37: =OFFSET('Migration 2012'!$J$11,selState-2,ROW(A33)-1) -> 405864 | V37: 270053 | W37: 405864 | X37: 1723117 | Y37: 405864 | Z37: 270053 | AA37: 405864 | AB37: 405864
A38: 34 | B38: North Carolina | C38: 238663 | D38: ='Migration 2010'!C44 -> 9443000 | E38: ='Migration 2011'!C44 -> 9539412 | F38: ='Migration 2012'!C44 -> 9640490 | G38: ='Migration 2010'!G44 -> 1141001 | H38: ='Migration 2011'!G44 -> 1160510 | I38: ='Migration 2012'!G44 -> 1149080 | J38: =HLOOKUP($B38,'Migration 2010'!$I$9:$BI$62,2,FALSE) -> 207025 | K38: =HLOOKUP($B38,'Migration 2011'!$I$9:$BI$62,2,FALSE) -> 225147 | L38: =HLOOKUP($B38,'Migration 2012'!$I$9:$BI$62,2,FALSE) -> 238663 | M38: =('Migration 2010'!I44) -> 263256 | N38: =('Migration 2011'!I44) -> 265291 | O38: =('Migration 2012'!I44) -> 273149 | P38: =OFFSET('Migration 2010'!$J$11,(ROW(A34)-1),selState-2) -> 263256 | Q38: =OFFSET('Migration 2011'!$J$11,(ROW(A34)-1),selState-2) -> 265291 | R38: =OFFSET('Migration 2012'!$J$11,(ROW(A34)-1),selState-2) -> 273149 | S38: =OFFSET('Migration 2010'!$J$11,selState-2,ROW(A34)-1) -> 207025 | T38: =OFFSET('Migration 2011'!$J$11,selState-2,ROW(A34)-1) -> 225147 | U38: =OFFSET('Migration 2012'!$J$11,selState-2,ROW(A34)-1) -> 238663 | V38: 273149 | W38: 238663 | X38: 1149080 | Y38: 238663 | Z38: 273149 | AA38: 238663 | AB38: 238663
A39: 35 | B39: North Dakota | C39: 23959 | D39: ='Migration 2010'!C45 -> 665654 | E39: ='Migration 2011'!C45 -> 675161 | F39: ='Migration 2012'!C45 -> 689838 | G39: ='Migration 2010'!G45 -> 75720 | H39: ='Migration 2011'!G45 -> 79837 | I39: ='Migration 2012'!G45 -> 84294 | J39: =HLOOKUP($B39,'Migration 2010'!$I$9:$BI$62,2,FALSE) -> 24450 | K39: =HLOOKUP($B39,'Migration 2011'!$I$9:$BI$62,2,FALSE) -> 26563 | L39: =HLOOKUP($B39,'Migration 2012'!$I$9:$BI$62,2,FALSE) -> 23959 | M39: =('Migration 2010'!I45) -> 30100 | N39: =('Migration 2011'!I45) -> 32510 | O39: =('Migration 2012'!I45) -> 38213 | P39: =OFFSET('Migration 2010'!$J$11,(ROW(A35)-1),selState-2) -> 30100 | Q39: =OFFSET('Migration 2011'!$J$11,(ROW(A35)-1),selState-2) -> 32510 | R39: =OFFSET('Migration 2012'!$J$11,(ROW(A35)-1),selState-2) -> 38213 | S39: =OFFSET('Migration 2010'!$J$11,selState-2,ROW(A35)-1) -> 24450 | T39: =OFFSET('Migration 2011'!$J$11,selState-2,ROW(A35)-1) -> 26563 | U39: =OFFSET('Migration 2012'!$J$11,selState-2,ROW(A35)-1) -> 23959 | V39: 38213 | W39: 23959 | X39: 84294 | Y39: 23959 | Z39: 38213 | AA39: 23959 | AB39: 23959
A40: 36 | B40: Ohio | C40: 199202 | D40: ='Migration 2010'!C46 -> 11405101 | E40: ='Migration 2011'!C46 -> 11418944 | F40: ='Migration 2012'!C46 -> 11414635 | G40: ='Migration 2010'!G46 -> 1453401 | H40: ='Migration 2011'!G46 -> 1425709 | I40: ='Migration 2012'!G46 -> 1440815 | J40: =HLOOKUP($B40,'Migration 2010'!$I$9:$BI$62,2,FALSE) -> 188013 | K40: =HLOOKUP($B40,'Migration 2011'!$I$9:$BI$62,2,FALSE) -> 206049 | L40: =HLOOKUP($B40,'Migration 2012'!$I$9:$BI$62,2,FALSE) -> 199202 | M40: =('Migration 2010'!I46) -> 172633 | N40: =('Migration 2011'!I46) -> 191778 | O40: =('Migration 2012'!I46) -> 196391 | P40: =OFFSET('Migration 2010'!$J$11,(ROW(A36)-1),selState-2) -> 172633 | Q40: =OFFSET('Migration 2011'!$J$11,(ROW(A36)-1),selState-2) -> 191778 | R40: =OFFSET('Migration 2012'!$J$11,(ROW(A36)-1),selState-2) -> 196391 | S40: =OFFSET('Migration 2010'!$J$11,selState-2,ROW(A36)-1) -> 188013 | T40: =OFFSET('Migration 2011'!$J$11,selState-2,ROW(A36)-1) -> 206049 | U40: =OFFSET('Migration 2012'!$J$11,selState-2,ROW(A36)-1) -> 199202 | V40: 196391 | W40: 199202 | X40: 1440815 | Y40: 199202 | Z40: 196391 | AA40: 199202 | AB40: 199202
A41: 37 | B41: Oklahoma | C41: 102572 | D41: ='Migration 2010'!C47 -> 3716264 | E41: ='Migration 2011'!C47 -> 3742698 | F41: ='Migration 2012'!C47 -> 3762311 | G41: ='Migration 2010'!G47 -> 528824 | H41: ='Migration 2011'!G47 -> 528498 | I41: ='Migration 2012'!G47 -> 531347 | J41: =HLOOKUP($B41,'Migration 2010'!$I$9:$BI$62,2,FALSE) -> 90616 | K41: =HLOOKUP($B41,'Migration 2011'!$I$9:$BI$62,2,FALSE) -> 81009 | L41: =HLOOKUP($B41,'Migration 2012'!$I$9:$BI$62,2,FALSE) -> 102572 | M41: =('Migration 2010'!I47) -> 106511 | N41: =('Migration 2011'!I47) -> 108878 | O41: =('Migration 2012'!I47) -> 108972 | P41: =OFFSET('Migration 2010'!$J$11,(ROW(A37)-1),selState-2) -> 106511 | Q41: =OFFSET('Migration 2011'!$J$11,(ROW(A37)-1),selState-2) -> 108878 | R41: =OFFSET('Migration 2012'!$J$11,(ROW(A37)-1),selState-2) -> 108972 | S41: =OFFSET('Migration 2010'!$J$11,selState-2,ROW(A37)-1) -> 90616 | T41: =OFFSET('Migration 2011'!$J$11,selState-2,ROW(A37)-1) -> 81009 | U41: =OFFSET('Migration 2012'!$J$11,selState-2,ROW(A37)-1) -> 102572 | V41: 108972 | W41: 102572 | X41: 531347 | Y41: 102572 | Z41: 108972 | AA41: 102572 | AB41: 102572
A42: 38 | B42: Oregon | C42: 108182 | D42: ='Migration 2010'!C48 -> 3794008 | E42: ='Migration 2011'!C48 -> 3828714 | F42: ='Migration 2012'!C48 -> 3857465 | G42: ='Migration 2010'!G48 -> 545841 | H42: ='Migration 2011'!G48 -> 549332 | I42: ='Migration 2012'!G48 -> 560673 | J42: =HLOOKUP($B42,'Migration 2010'!$I$9:$BI$62,2,FALSE) -> 100185 | K42: =HLOOKUP($B42,'Migration 2011'!$I$9:$BI$62,2,FALSE) -> 109795 | L42: =HLOOKUP($B42,'Migration 2012'!$I$9:$BI$62,2,FALSE) -> 108182 | M42: =('Migration 2010'!I48) -> 116700 | N42: =('Migration 2011'!I48) -> 127906 | O42: =('Migration 2012'!I48) -> 118925 | P42: =OFFSET('Migration 2010'!$J$11,(ROW(A38)-1),selState-2) -> 116700 | Q42: =OFFSET('Migration 2011'!$J$11,(ROW(A38)-1),selState-2) -> 127906 | R42: =OFFSET('Migration 2012'!$J$11,(ROW(A38)-1),selState-2) -> 118925 | S42: =OFFSET('Migration 2010'!$J$11,selState-2,ROW(A38)-1) -> 100185 | T42: =OFFSET('Migration 2011'!$J$11,selState-2,ROW(A38)-1) -> 109795 | U42: =OFFSET('Migration 2012'!$J$11,selState-2,ROW(A38)-1) -> 108182 | V42: 118925 | W42: 108182 | X42: 560673 | Y42: 108182 | Z42: 118925 | AA42: 108182 | AB42: 108182
A43: 39 | B43: Pennsylvania | C43: 237156 | D43: ='Migration 2010'!C49 -> 12577555 | E43: ='Migration 2011'!C49 -> 12610486 | F43: ='Migration 2012'!C49 -> 12630082 | G43: ='Migration 2010'!G49 -> 1239199 | H43: ='Migration 2011'!G49 -> 1224564 | I43: ='Migration 2012'!G49 -> 1252378 | J43: =HLOOKUP($B43,'Migration 2010'!$I$9:$BI$62,2,FALSE) -> 209810 | K43: =HLOOKUP($B43,'Migration 2011'!$I$9:$BI$62,2,FALSE) -> 215127 | L43: =HLOOKUP($B43,'Migration 2012'!$I$9:$BI$62,2,FALSE) -> 237156 | M43: =('Migration 2010'!I49) -> 235580 | N43: =('Migration 2011'!I49) -> 234291 | O43: =('Migration 2012'!I49) -> 215500 | P43: =OFFSET('Migration 2010'!$J$11,(ROW(A39)-1),selState-2) -> 235580 | Q43: =OFFSET('Migration 2011'!$J$11,(ROW(A39)-1),selState-2) -> 234291 | R43: =OFFSET('Migration 2012'!$J$11,(ROW(A39)-1),selState-2) -> 215500 | S43: =OFFSET('Migration 2010'!$J$11,selState-2,ROW(A39)-1) -> 209810 | T43: =OFFSET('Migration 2011'!$J$11,selState-2,ROW(A39)-1) -> 215127 | U43: =OFFSET('Migration 2012'!$J$11,selState-2,ROW(A39)-1) -> 237156 | V43: 215500 | W43: 237156 | X43: 1252378 | Y43: 237156 | Z43: 215500 | AA43: 237156 | AB43: 237156
A44: 40 | B44: Rhode Island | C44: 30498 | D44: ='Migration 2010'!C50 -> 1042240 | E44: ='Migration 2011'!C50 -> 1040022 | F44: ='Migration 2012'!C50 -> 1040527 | G44: ='Migration 2010'!G50 -> 99603 | H44: ='Migration 2011'!G50 -> 101689 | I44: ='Migration 2012'!G50 -> 101165 | J44: =HLOOKUP($B44,'Migration 2010'!$I$9:$BI$62,2,FALSE) -> 24948 | K44: =HLOOKUP($B44,'Migration 2011'!$I$9:$BI$62,2,FALSE) -> 31065 | L44: =HLOOKUP($B44,'Migration 2012'!$I$9:$BI$62,2,FALSE) -> 30498 | M44: =('Migration 2010'!I50) -> 32059 | N44: =('Migration 2011'!I50) -> 26769 | O44: =('Migration 2012'!I50) -> 33446 | P44: =OFFSET('Migration 2010'!$J$11,(ROW(A40)-1),selState-2) -> 32059 | Q44: =OFFSET('Migration 2011'!$J$11,(ROW(A40)-1),selState-2) -> 26769 | R44: =OFFSET('Migration 2012'!$J$11,(ROW(A40)-1),selState-2) -> 33446 | S44: =OFFSET('Migration 2010'!$J$11,selState-2,ROW(A40)-1) -> 24948 | T44: =OFFSET('Migration 2011'!$J$11,selState-2,ROW(A40)-1) -> 31065 | U44: =OFFSET('Migration 2012'!$J$11,selState-2,ROW(A40)-1) -> 30498 | V44: 33446 | W44: 30498 | X44: 101165 | Y44: 30498 | Z44: 33446 | AA44: 30498 | AB44: 30498
A45: 41 | B45: South Carolina | C45: 127418 | D45: ='Migration 2010'!C51 -> 4577399 | E45: ='Migration 2011'!C51 -> 4624180 | F45: ='Migration 2012'!C51 -> 4668886 | G45: ='Migration 2010'!G51 -> 537961 | H45: ='Migration 2011'!G51 -> 546666 | I45: ='Migration 2012'!G51 -> 564350 | J45: =HLOOKUP($B45,'Migration 2010'!$I$9:$BI$62,2,FALSE) -> 117569 | K45: =HLOOKUP($B45,'Migration 2011'!$I$9:$BI$62,2,FALSE) -> 121426 | L45: =HLOOKUP($B45,'Migration 2012'!$I$9:$BI$62,2,FALSE) -> 127418 | M45: =('Migration 2010'!I51) -> 152441 | N45: =('Migration 2011'!I51) -> 157644 | O45: =('Migration 2012'!I51) -> 156705 | P45: =OFFSET('Migration 2010'!$J$11,(ROW(A41)-1),selState-2) -> 152441 | Q45: =OFFSET('Migration 2011'!$J$11,(ROW(A41)-1),selState-2) -> 157644 | R45: =OFFSET('Migration 2012'!$J$11,(ROW(A41)-1),selState-2) -> 156705 | S45: =OFFSET('Migration 2010'!$J$11,selState-2,ROW(A41)-1) -> 117569 | T45: =OFFSET('Migration 2011'!$J$11,selState-2,ROW(A41)-1) -> 121426 | U45: =OFFSET('Migration 2012'!$J$11,selState-2,ROW(A41)-1) -> 127418 | V45: 156705 | W45: 127418 | X45: 564350 | Y45: 127418 | Z45: 156705 | AA45: 127418 | AB45: 127418
A46: 42 | B46: South Dakota | C46: 22534 | D46: ='Migration 2010'!C52 -> 805616 | E46: ='Migration 2011'!C52 -> 814175 | F46: ='Migration 2012'!C52 -> 821669 | G46: ='Migration 2010'!G52 -> 96805 | H46: ='Migration 2011'!G52 -> 94655 | I46: ='Migration 2012'!G52 -> 115606 | J46: =HLOOKUP($B46,'Migration 2010'!$I$9:$BI$62,2,FALSE) -> 27915 | K46: =HLOOKUP($B46,'Migration 2011'!$I$9:$BI$62,2,FALSE) -> 29383 | L46: =HLOOKUP($B46,'Migration 2012'!$I$9:$BI$62,2,FALSE) -> 22534 | M46: =('Migration 2010'!I52) -> 25777 | N46: =('Migration 2011'!I52) -> 27506 | O46: =('Migration 2012'!I52) -> 26051 | P46: =OFFSET('Migration 2010'!$J$11,(ROW(A42)-1),selState-2) -> 25777 | Q46: =OFFSET('Migration 2011'!$J$11,(ROW(A42)-1),selState-2) -> 27506 | R46: =OFFSET('Migration 2012'!$J$11,(ROW(A42)-1),selState-2) -> 26051 | S46: =OFFSET('Migration 2010'!$J$11,selState-2,ROW(A42)-1) -> 27915 | T46: =OFFSET('Migration 2011'!$J$11,selState-2,ROW(A42)-1) -> 29383 | U46: =OFFSET('Migration 2012'!$J$11,selState-2,ROW(A42)-1) -> 22534 | V46: 26051 | W46: 22534 | X46: 115606 | Y46: 22534 | Z46: 26051 | AA46: 22534 | AB46: 22534
A47: 43 | B47: Tennessee | C47: 163843 | D47: ='Migration 2010'!C53 -> 6282706 | E47: ='Migration 2011'!C53 -> 6333466 | F47: ='Migration 2012'!C53 -> 6378278 | G47: ='Migration 2010'!G53 -> 801355 | H47: ='Migration 2011'!G53 -> 794556 | I47: ='Migration 2012'!G53 -> 783077 | J47: =HLOOKUP($B47,'Migration 2010'!$I$9:$BI$62,2,FALSE) -> 143135 | K47: =HLOOKUP($B47,'Migration 2011'!$I$9:$BI$62,2,FALSE) -> 154243 | L47: =HLOOKUP($B47,'Migration 2012'!$I$9:$BI$62,2,FALSE) -> 163843 | M47: =('Migration 2010'!I53) -> 159778 | N47: =('Migration 2011'!I53) -> 170969 | O47: =('Migration 2012'!I53) -> 177098 | P47: =OFFSET('Migration 2010'!$J$11,(ROW(A43)-1),selState-2) -> 159778 | Q47: =OFFSET('Migration 2011'!$J$11,(ROW(A43)-1),selState-2) -> 170969 | R47: =OFFSET('Migration 2012'!$J$11,(ROW(A43)-1),selState-2) -> 177098 | S47: =OFFSET('Migration 2010'!$J$11,selState-2,ROW(A43)-1) -> 143135 | T47: =OFFSET('Migration 2011'!$J$11,selState-2,ROW(A43)-1) -> 154243 | U47: =OFFSET('Migration 2012'!$J$11,selState-2,ROW(A43)-1) -> 163843 | V47: 177098 | W47: 163843 | X47: 783077 | Y47: 163843 | Z47: 177098 | AA47: 163843 | AB47: 163843
A48: 44 | B48: Texas | C48: 402187 | D48: ='Migration 2010'!C54 -> 24899075 | E48: ='Migration 2011'!C54 -> 25327104 | F48: ='Migration 2012'!C54 -> 25711791 | G48: ='Migration 2010'!G54 -> 3740344 | H48: ='Migration 2011'!G54 -> 3648260 | I48: ='Migration 2012'!G54 -> 3656070 | J48: =HLOOKUP($B48,'Migration 2010'!$I$9:$BI$62,2,FALSE) -> 411641 | K48: =HLOOKUP($B48,'Migration 2011'!$I$9:$BI$62,2,FALSE) -> 404839 | L48: =HLOOKUP($B48,'Migration 2012'!$I$9:$BI$62,2,FALSE) -> 402187 | M48: =('Migration 2010'!I54) -> 486558 | N48: =('Migration 2011'!I54) -> 514726 | O48: =('Migration 2012'!I54) -> 507752 | P48: =OFFSET('Migration 2010'!$J$11,(ROW(A44)-1),selState-2) -> 486558 | Q48: =OFFSET('Migration 2011'!$J$11,(ROW(A44)-1),selState-2) -> 514726 | R48: =OFFSET('Migration 2012'!$J$11,(ROW(A44)-1),selState-2) -> 507752 | S48: =OFFSET('Migration 2010'!$J$11,selState-2,ROW(A44)-1) -> 411641 | T48: =OFFSET('Migration 2011'!$J$11,selState-2,ROW(A44)-1) -> 404839 | U48: =OFFSET('Migration 2012'!$J$11,selState-2,ROW(A44)-1) -> 402187 | V48: 507752 | W48: 402187 | X48: 3656070 | Y48: 402187 | Z48: 507752 | AA48: 402187 | AB48: 402187
A49: 45 | B49: Utah | C49: 82165 | D49: ='Migration 2010'!C55 -> 2724064 | E49: ='Migration 2011'!C55 -> 2769627 | F49: ='Migration 2012'!C55 -> 2805440 | G49: ='Migration 2010'!G55 -> 388410 | H49: ='Migration 2011'!G55 -> 373984 | I49: ='Migration 2012'!G55 -> 373980 | J49: =HLOOKUP($B49,'Migration 2010'!$I$9:$BI$62,2,FALSE) -> 75541 | K49: =HLOOKUP($B49,'Migration 2011'!$I$9:$BI$62,2,FALSE) -> 73211 | L49: =HLOOKUP($B49,'Migration 2012'!$I$9:$BI$62,2,FALSE) -> 82165 | M49: =('Migration 2010'!I55) -> 77780 | N49: =('Migration 2011'!I55) -> 85217 | O49: =('Migration 2012'!I55) -> 87870 | P49: =OFFSET('Migration 2010'!$J$11,(ROW(A45)-1),selState-2) -> 77780 | Q49: =OFFSET('Migration 2011'!$J$11,(ROW(A45)-1),selState-2) -> 85217 | R49: =OFFSET('Migration 2012'!$J$11,(ROW(A45)-1),selState-2) -> 87870 | S49: =OFFSET('Migration 2010'!$J$11,selState-2,ROW(A45)-1) -> 75541 | T49: =OFFSET('Migration 2011'!$J$11,selState-2,ROW(A45)-1) -> 73211 | U49: =OFFSET('Migration 2012'!$J$11,selState-2,ROW(A45)-1) -> 82165 | V49: 87870 | W49: 82165 | X49: 373980 | Y49: 82165 | Z49: 87870 | AA49: 82165 | AB49: 82165
A50: 46 | B50: Vermont | C50: 20056 | D50: ='Migration 2010'!C56 -> 619363 | E50: ='Migration 2011'!C56 -> 621354 | F50: ='Migration 2012'!C56 -> 620224 | G50: ='Migration 2010'!G56 -> 59032 | H50: ='Migration 2011'!G56 -> 60719 | I50: ='Migration 2012'!G56 -> 61242 | J50: =HLOOKUP($B50,'Migration 2010'!$I$9:$BI$62,2,FALSE) -> 18380 | K50: =HLOOKUP($B50,'Migration 2011'!$I$9:$BI$62,2,FALSE) -> 18172 | L50: =HLOOKUP($B50,'Migration 2012'!$I$9:$BI$62,2,FALSE) -> 20056 | M50: =('Migration 2010'!I56) -> 22529 | N50: =('Migration 2011'!I56) -> 20463 | O50: =('Migration 2012'!I56) -> 24431 | P50: =OFFSET('Migration 2010'!$J$11,(ROW(A46)-1),selState-2) -> 22529 | Q50: =OFFSET('Migration 2011'!$J$11,(ROW(A46)-1),selState-2) -> 20463 | R50: =OFFSET('Migration 2012'!$J$11,(ROW(A46)-1),selState-2) -> 24431 | S50: =OFFSET('Migration 2010'!$J$11,selState-2,ROW(A46)-1) -> 18380 | T50: =OFFSET('Migration 2011'!$J$11,selState-2,ROW(A46)-1) -> 18172 | U50: =OFFSET('Migration 2012'!$J$11,selState-2,ROW(A46)-1) -> 20056 | V50: 24431 | W50: 20056 | X50: 61242 | Y50: 20056 | Z50: 24431 | AA50: 20056 | AB50: 20056
A51: 47 | B51: Virginia | C51: 238540 | D51: ='Migration 2010'!C57 -> 7930773 | E51: ='Migration 2011'!C57 -> 7996552 | F51: ='Migration 2012'!C57 -> 8085389 | G51: ='Migration 2010'!G57 -> 870491 | H51: ='Migration 2011'!G57 -> 889751 | I51: ='Migration 2012'!G57 -> 915242 | J51: =HLOOKUP($B51,'Migration 2010'!$I$9:$BI$62,2,FALSE) -> 232002 | K51: =HLOOKUP($B51,'Migration 2011'!$I$9:$BI$62,2,FALSE) -> 229227 | L51: =HLOOKUP($B51,'Migration 2012'!$I$9:$BI$62,2,FALSE) -> 238540 | M51: =('Migration 2010'!I57) -> 259507 | N51: =('Migration 2011'!I57) -> 257130 | O51: =('Migration 2012'!I57) -> 250653 | P51: =OFFSET('Migration 2010'!$J$11,(ROW(A47)-1),selState-2) -> 259507 | Q51: =OFFSET('Migration 2011'!$J$11,(ROW(A47)-1),selState-2) -> 257130 | R51: =OFFSET('Migration 2012'!$J$11,(ROW(A47)-1),selState-2) -> 250653 | S51: =OFFSET('Migration 2010'!$J$11,selState-2,ROW(A47)-1) -> 232002 | T51: =OFFSET('Migration 2011'!$J$11,selState-2,ROW(A47)-1) -> 229227 | U51: =OFFSET('Migration 2012'!$J$11,selState-2,ROW(A47)-1) -> 238540 | V51: 250653 | W51: 238540 | X51: 915242 | Y51: 238540 | Z51: 250653 | AA51: 238540 | AB51: 238540
A52: 48 | B52: Washington | C52: 180462 | D52: ='Migration 2010'!C58 -> 6661321 | E52: ='Migration 2011'!C58 -> 6748474 | F52: ='Migration 2012'!C58 -> 6815763 | G52: ='Migration 2010'!G58 -> 946923 | H52: ='Migration 2011'!G58 -> 919925 | I52: ='Migration 2012'!G58 -> 904695 | J52: =HLOOKUP($B52,'Migration 2010'!$I$9:$BI$62,2,FALSE) -> 166162 | K52: =HLOOKUP($B52,'Migration 2011'!$I$9:$BI$62,2,FALSE) -> 190644 | L52: =HLOOKUP($B52,'Migration 2012'!$I$9:$BI$62,2,FALSE) -> 180462 | M52: =('Migration 2010'!I58) -> 191784 | N52: =('Migration 2011'!I58) -> 208507 | O52: =('Migration 2012'!I58) -> 215494 | P52: =OFFSET('Migration 2010'!$J$11,(ROW(A48)-1),selState-2) -> 191784 | Q52: =OFFSET('Migration 2011'!$J$11,(ROW(A48)-1),selState-2) -> 208507 | R52: =OFFSET('Migration 2012'!$J$11,(ROW(A48)-1),selState-2) -> 215494 | S52: =OFFSET('Migration 2010'!$J$11,selState-2,ROW(A48)-1) -> 166162 | T52: =OFFSET('Migration 2011'!$J$11,selState-2,ROW(A48)-1) -> 190644 | U52: =OFFSET('Migration 2012'!$J$11,selState-2,ROW(A48)-1) -> 180462 | V52: 215494 | W52: 180462 | X52: 904695 | Y52: 180462 | Z52: 215494 | AA52: 180462 | AB52: 180462
A53: 49 | B53: West Virginia | C53: 47425 | D53: ='Migration 2010'!C59 -> 1833535 | E53: ='Migration 2011'!C59 -> 1836614 | F53: ='Migration 2012'!C59 -> 1837518 | G53: ='Migration 2010'!G59 -> 166168 | H53: ='Migration 2011'!G59 -> 172262 | I53: ='Migration 2012'!G59 -> 174112 | J53: =HLOOKUP($B53,'Migration 2010'!$I$9:$BI$62,2,FALSE) -> 49349 | K53: =HLOOKUP($B53,'Migration 2011'!$I$9:$BI$62,2,FALSE) -> 45956 | L53: =HLOOKUP($B53,'Migration 2012'!$I$9:$BI$62,2,FALSE) -> 47425 | M53: =('Migration 2010'!I59) -> 39609 | N53: =('Migration 2011'!I59) -> 50068 | O53: =('Migration 2012'!I59) -> 47125 | P53: =OFFSET('Migration 2010'!$J$11,(ROW(A49)-1),selState-2) -> 39609 | Q53: =OFFSET('Migration 2011'!$J$11,(ROW(A49)-1),selState-2) -> 50068 | R53: =OFFSET('Migration 2012'!$J$11,(ROW(A49)-1),selState-2) -> 47125 | S53: =OFFSET('Migration 2010'!$J$11,selState-2,ROW(A49)-1) -> 49349 | T53: =OFFSET('Migration 2011'!$J$11,selState-2,ROW(A49)-1) -> 45956 | U53: =OFFSET('Migration 2012'!$J$11,selState-2,ROW(A49)-1) -> 47425 | V53: 47125 | W53: 47425 | X53: 174112 | Y53: 47425 | Z53: 47125 | AA53: =HLOOKUP(selYear,$S$2:$U$56,ROW(B52),FALSE) -> 47425 | AB53: =HLOOKUP(selDest,$Z$2:$AA$56,ROW(A52),FALSE) -> 47425
A54: 50 | B54: Wisconsin | C54: 97724 | D54: ='Migration 2010'!C60 -> 5623196 | E54: ='Migration 2011'!C60 -> 5647213 | F54: ='Migration 2012'!C60 -> 5660677 | G54: ='Migration 2010'!G60 -> 691592 | H54: ='Migration 2011'!G60 -> 675623 | I54: ='Migration 2012'!G60 -> 693737 | J54: =HLOOKUP($B54,'Migration 2010'!$I$9:$BI$62,2,FALSE) -> 111240 | K54: =HLOOKUP($B54,'Migration 2011'!$I$9:$BI$62,2,FALSE) -> 105370 | L54: =HLOOKUP($B54,'Migration 2012'!$I$9:$BI$62,2,FALSE) -> 97724 | M54: =('Migration 2010'!I60) -> 93065 | N54: =('Migration 2011'!I60) -> 109439 | O54: =('Migration 2012'!I60) -> 99192 | P54: =OFFSET('Migration 2010'!$J$11,(ROW(A50)-1),selState-2) -> 93065 | Q54: =OFFSET('Migration 2011'!$J$11,(ROW(A50)-1),selState-2) -> 109439 | R54: =OFFSET('Migration 2012'!$J$11,(ROW(A50)-1),selState-2) -> 99192 | S54: =OFFSET('Migration 2010'!$J$11,selState-2,ROW(A50)-1) -> 111240 | T54: =OFFSET('Migration 2011'!$J$11,selState-2,ROW(A50)-1) -> 105370 | U54: =OFFSET('Migration 2012'!$J$11,selState-2,ROW(A50)-1) -> 97724 | V54: 99192 | W54: 97724 | X54: 693737 | Y54: 97724 | Z54: 99192 | AA54: 97724 | AB54: =HLOOKUP(selDest,$Z$2:$AA$56,ROW(A53),FALSE) -> 97724
A55: 51 | B55: Wyoming | C55: 32228 | D55: ='Migration 2010'!C61 -> 556954 | E55: ='Migration 2011'!C61 -> 561389 | F55: ='Migration 2012'!C61 -> 569734 | G55: ='Migration 2010'!G61 -> 82255 | H55: ='Migration 2011'!G61 -> 66648 | I55: ='Migration 2012'!G61 -> 77324 | J55: =HLOOKUP($B55,'Migration 2010'!$I$9:$BI$62,2,FALSE) -> 28186 | K55: =HLOOKUP($B55,'Migration 2011'!$I$9:$BI$62,2,FALSE) -> 31991 | L55: =HLOOKUP($B55,'Migration 2012'!$I$9:$BI$62,2,FALSE) -> 32228 | M55: =('Migration 2010'!I61) -> 28046 | N55: =('Migration 2011'!I61) -> 30651 | O55: =('Migration 2012'!I61) -> 31149 | P55: =OFFSET('Migration 2010'!$J$11,(ROW(A51)-1),selState-2) -> 28046 | Q55: =OFFSET('Migration 2011'!$J$11,(ROW(A51)-1),selState-2) -> 30651 | R55: =OFFSET('Migration 2012'!$J$11,(ROW(A51)-1),selState-2) -> 31149 | S55: =OFFSET('Migration 2010'!$J$11,selState-2,ROW(A51)-1) -> 28186 | T55: =OFFSET('Migration 2011'!$J$11,selState-2,ROW(A51)-1) -> 31991 | U55: =OFFSET('Migration 2012'!$J$11,selState-2,ROW(A51)-1) -> 32228 | V55: 31149 | W55: 32228 | X55: 77324 | Y55: 32228 | Z55: 31149 | AA55: 32228 | AB55: =HLOOKUP(selDest,$Z$2:$AA$56,ROW(A54),FALSE) -> 32228
A56: 52 | B56: Puerto Rico | C56: 74500 | D56: ='Migration 2010'!C62 -> 3676493 | E56: ='Migration 2011'!C62 -> 3669195 | F56: ='Migration 2012'!C62 -> 3628402 | G56: ='Migration 2010'!G62 -> 247593 | H56: ='Migration 2011'!G62 -> 238263 | I56: ='Migration 2012'!G62 -> 238042 | J56: =HLOOKUP($B56,'Migration 2010'!$I$9:$BI$62,2,FALSE) -> 59885 | K56: =HLOOKUP($B56,'Migration 2011'!$I$9:$BI$62,2,FALSE) -> 76218 | L56: =HLOOKUP($B56,'Migration 2012'!$I$9:$BI$62,2,FALSE) -> 74500 | M56: =('Migration 2010'!I62) -> 31732 | N56: =('Migration 2011'!I62) -> 22649 | O56: =('Migration 2012'!I62) -> 20044 | P56: =OFFSET('Migration 2010'!$J$11,(ROW(A52)-1),selState-2) -> 31732 | Q56: =OFFSET('Migration 2011'!$J$11,(ROW(A52)-1),selState-2) -> 22649 | R56: =OFFSET('Migration 2012'!$J$11,(ROW(A52)-1),selState-2) -> 20044 | S56: =OFFSET('Migration 2010'!$J$11,selState-2,ROW(A52)-1) -> 59885 | T56: =OFFSET('Migration 2011'!$J$11,selState-2,ROW(A52)-1) -> 76218 | U56: =OFFSET('Migration 2012'!$J$11,selState-2,ROW(A52)-1) -> 74500 | V56: 20044 | W56: 74500 | X56: 238042 | Y56: 74500 | Z56: 20044 | AA56: 74500 | AB56: =HLOOKUP(selDest,$Z$2:$AA$56,ROW(A55),FALSE) -> 74500

Sheet Distances (hidden)
B2: =IF(selMiles=1,3959,IF(selMiles=2,6371,"")) -> 6371 | C2: Alabama | D2: Alaska | E2: Arizona | F2: Arkansas | G2: California | H2: Colorado | I2: Connecticut | J2: Delaware | K2: District of Columbia | L2: Florida | M2: Georgia | N2: Hawaii | O2: Idaho | P2: Illinois | Q2: Indiana | R2: Iowa | S2: Kansas | T2: Kentucky | U2: Louisiana | V2: Maine | W2: Maryland | X2: Massachusetts | Y2: Michigan | Z2: Minnesota | AA2: Mississippi | AB2: Missouri | AC2: Montana | AD2: Nebraska | AE2: Nevada | AF2: New Hampshire | AG2: New Jersey | AH2: New Mexico | AI2: New York | AJ2: North Carolina | AK2: North Dakota | AL2: Ohio | AM2: Oklahoma | AN2: Oregon | AO2: Pennsylvania | AP2: Rhode Island | AQ2: South Carolina | AR2: South Dakota | AS2: Tennessee | AT2: Texas | AU2: Utah | AV2: Vermont | AW2: Virginia | AX2: Washington | AY2: West Virginia | AZ2: Wisconsin | BA2: Wyoming | BB2: Puerto Rico | BE2: Latitude | BF2: Longitude | BH2: Full Coordinates | BI2: Full Name | BK2: State | BL2: Abbreviation | BM2: Capital | BO2: Latitude | BP2: Longitude
B3: Alabama | C3: =ACOS(COS(RADIANS(90-VLOOKUP($B3,$BD$3:$BF$54,2,FALSE)))*COS(RADIANS(90-VLOOKUP(C$2,$BD$3:$BF$54,2,FALSE)))+SIN(RADIANS(90-VLOOKUP($B3,$BD$3:$BF$54,2,FALSE)))*SIN(RADIANS(90-VLOOKUP(C$2,$BD$3:$BF$54,2,FALSE)))*COS(RADIANS(VLOOKUP($B3,$BD$3:$BF$54,3,FALSE)-VLOOKUP(C$2,$BD$3:$BF$54,3,FALSE))))*$B$2 -> 0 | D3: 4591.145524 | E3: 2405.880303 | F3: 618.122297 | G3: 3226.236411 | H3: 1867.529291 | I3: 1593.429426 | J3: 1229.327521 | K3: 1110.147937 | L3: 283.9995916 | M3: =ACOS(COS(RADIANS(90-VLOOKUP($B3,$BD$3:$BF$54,2,FALSE)))*COS(RADIANS(90-VLOOKUP(M$2,$BD$3:$BF$54,2,FALSE)))+SIN(RADIANS(90-VLOOKUP($B3,$BD$3:$BF$54,2,FALSE)))*SIN(RADIANS(90-VLOOKUP(M$2,$BD$3:$BF$54,2,FALSE)))*COS(RADIANS(VLOOKUP($B3,$BD$3:$BF$54,3,FALSE)-VLOOKUP(M$2,$BD$3:$BF$54,3,FALSE))))*$B$2 -> 234.9811008 | N3: 7083.201083 | O3: 2886.157935 | P3: 882.4196222 | Q3: 825.6403084 | R3: 1216.034427 | S3: 1128.925293 | T3: 663.5367429 | U3: 508.809655 | V3: 1952.800521 | W3: =ACOS(COS(RADIANS(90-VLOOKUP($B3,$BD$3:$BF$54,2,FALSE)))*COS(RADIANS(90-VLOOKUP(W$2,$BD$3:$BF$54,2,FALSE)))+SIN(RADIANS(90-VLOOKUP($B3,$BD$3:$BF$54,2,FALSE)))*SIN(RADIANS(90-VLOOKUP(W$2,$BD$3:$BF$54,2,FALSE)))*COS(RADIANS(VLOOKUP($B3,$BD$3:$BF$54,3,FALSE)-VLOOKUP(W$2,$BD$3:$BF$54,3,FALSE))))*$B$2 -> 1149.852353 | X3: 1741.350586 | Y3: 1165.122689 | Z3: 1520.6417 | AA3: 365.2594078 | AB3: 874.7148165 | AC3: 2700.115142 | AD3: 1319.376729 | AE3: 3097.140146 | AF3: 1766.065841 | AG3: =ACOS(COS(RADIANS(90-VLOOKUP($B3,$BD$3:$BF$54,2,FALSE)))*COS(RADIANS(90-VLOOKUP(AG$2,$BD$3:$BF$54,2,FALSE)))+SIN(RADIANS(90-VLOOKUP($B3,$BD$3:$BF$54,2,FALSE)))*SIN(RADIANS(90-VLOOKUP(AG$2,$BD$3:$BF$54,2,FALSE)))*COS(RADIANS(VLOOKUP($B3,$BD$3:$BF$54,3,FALSE)-VLOOKUP(AG$2,$BD$3:$BF$54,3,FALSE))))*$B$2 -> 1352.397865 | AH3: 1846.836402 | AI3: 1588.169875 | AJ3: 799.9868216 | AK3: 2026.09233 | AL3: 896.4504356 | AM3: 1093.817079 | AN3: 3448.926241 | AO3: 1216.598168 | AP3: 1683.613112 | AQ3: =ACOS(COS(RADIANS(90-VLOOKUP($B3,$BD$3:$BF$54,2,FALSE)))*COS(RADIANS(90-VLOOKUP(AQ$2,$BD$3:$BF$54,2,FALSE)))+SIN(RADIANS(90-VLOOKUP($B3,$BD$3:$BF$54,2,FALSE)))*SIN(RADIANS(90-VLOOKUP(AQ$2,$BD$3:$BF$54,2,FALSE)))*COS(RADIANS(VLOOKUP($B3,$BD$3:$BF$54,3,FALSE)-VLOOKUP(AQ$2,$BD$3:$BF$54,3,FALSE))))*$B$2 -> 521.1173517 | AR3: 1809.879043 | AS3: 427.0787814 | AT3: 1113.245742 | AU3: 2460.893977 | AV3: 1779.588173 | AW3: 990.5762033 | AX3: 3490.391828 | AY3: 789.0864553 | AZ3: 1223.949127 | BA3: 1914.396448 | BB3: 2542.121042 | BD3: Alabama | BE3: 32.343799 | BF3: -86.27316602 | BH3: 32.343799, -86.2731660232944 | BI3: =CONCATENATE(BM3,", ",BL3) -> Montgomery, AL | BK3: Alabama | BL3: AL | BM3: Montgomery | BO3: =LEFT(BH3,FIND(",",BH3)-1) -> 32.343799 | BP3: =RIGHT(BH3,LEN(BH3)-FIND(",",BH3)-1) -> -86.2731660232944
B4: Alaska | C4: 4591.145524 | D4: 0 | E4: 3226.718219 | F4: 4045.06396 | G4: 2398.457658 | H4: 2934.016972 | I4: 4581.849224 | J4: 4626.19564 | K4: 4562.390083 | L4: 4873.717421 | M4: 4572.259739 | N4: 4524.222548 | O4: 2058.331828 | P4: 3756.095546 | Q4: 3958.17321 | R4: 3384.271181 | S4: 3482.51946 | T4: 4162.154223 | U4: 4497.142691 | V4: 4552.489076 | W4: 4584.328935 | X4: 4629.806694 | Y4: 3813.440472 | Z4: 3147.894733 | AA4: 4371.029144 | AB4: 3716.458969 | AC4: 1982.277325 | AD4: 3279.128857 | AE4: 2372.125474 | AF4: 4535.925578 | AG4: 4585.827007 | AH4: 3265.97946 | AI4: 4450.236438 | AJ4: 4726.677024 | AK4: 2570.015214 | AL4: 4124.883043 | AM4: 3701.341037 | AN4: 1675.792661 | AO4: 4456.64156 | AP4: 4651.613617 | AQ4: 4741.59301 | AR4: 2782.906638 | AS4: 4227.037475 | AT4: 4175.028316 | AU4: 2514.362848 | AV4: 4394.686131 | AW4: 4648.519889 | AX4: 1469.254685 | AY4: 4336.79763 | AZ4: 3506.733904 | BA4: 2816.940705 | BB4: 7011.228967 | BD4: Alaska | BE4: 58.3019496 | BF4: -134.419734 | BH4: 58.3019496, -134.419734 | BI4: Juneau, AK | BK4: Alaska | BL4: AK | BM4: Juneau | BO4: =LEFT(BH4,FIND(",",BH4)-1) -> 58.3019496 | BP4: =RIGHT(BH4,LEN(BH4)-FIND(",",BH4)-1) -> -134.419734
B5: Arizona | C5: 2405.880303 | D5: 3226.718219 | E5: 0 | F5: 1824.489306 | G5: 999.8772487 | H5: 942.6710863 | I5: 3556.915638 | J5: 3313.126584 | K5: 3186.842456 | L5: 2635.841233 | M5: 2556.478183 | N5: 4677.383611 | O5: 1185.775554 | P5: 2115.664583 | Q5: 2407.850959 | R5: 1858.052745 | S5: 1593.751836 | T5: 2499.071024 | U5: 1998.173097 | V5: 3807.562177 | W5: 3229.639648 | X5: 3693.66356 | Y5: 2605.1228 | Z5: 2066.834831 | AA5: 2044.530021 | AB5: 1874.116054 | AC5: 1461.586886 | AD5: 1588.381712 | AE5: 936.9448049 | AF5: 3658.997012 | AG5: 3380.385795 | AH5: 614.373258 | AI5: 3474.705147 | AJ5: 3055.910708 | AK5: 1764.634192 | AL5: 2677.787328 | AM5: 1351.883763 | AN5: 1585.697844 | AO5: 3198.710815 | AP5: 3662.979729 | AQ5: 2860.191701 | AR5: 1578.815967 | AS5: 2322.869566 | AT5: 1397.428923 | AU5: 813.2485235 | AV5: 3585.317216 | AW5: 3150.864431 | AX5: 1764.642131 | AY5: 2782.317903 | AZ5: 2241.444818 | BA5: 1068.325627 | BB5: 4847.377187 | BD5: Arizona | BE5: 33.4483772 | BF5: -112.0740374 | BH5: 33.4483772, -112.0740374 | BI5: Phoenix, AZ | BK5: Arizona | BL5: AZ | BM5: Phoenix | BO5: 33.4483772 | BP5: -112.0740374
B6: Arkansas | C6: 618.122297 | D6: 4045.06396 | E6: 1824.489306 | F6: 0 | G6: 2611.118272 | H6: 1251.788869 | I6: 1875.15787 | J6: 1565.665999 | K6: 1435.880075 | L6: 889.7101361 | M6: 734.2934693 | N6: 6495.679858 | O6: 2274.023776 | P6: 608.5365756 | Q6: 778.2547637 | R6: 769.6751957 | S6: 565.2646485 | T6: 765.9747824 | U6: 489.3430815 | V6: 2193.68767 | W6: 1479.711797 | X6: 2023.627535 | Y6: 1111.920257 | Z6: 1136.722225 | AA6: 326.0463132 | AB6: 426.0269332 | AC6: 2113.084672 | AD6: 775.0748531 | AE6: 2480.488063 | AF6: 2017.876736 | AG6: 1659.88428 | AH6: 1243.245941 | AI6: 1827.245901 | AJ6: 1243.651483 | AK6: 1517.857468 | AL6: 1004.307018 | AM6: 482.4765205 | AN6: 2837.059526 | AO6: 1488.213315 | AP6: 1978.186378 | AQ6: 1035.711131 | AR6: 1272.225472 | AS6: 523.679472 | AT6: 713.3450753 | AU6: 1843.473942 | AV6: 1987.071469 | AW6: 1367.989795 | AX6: 2886.939429 | AY6: 1031.941231 | AZ6: 959.4117641 | BA6: 1306.696066 | BB6: 3158.091516 | BD6: Arkansas | BE6: 34.7464809 | BF6: -92.2895948 | BH6: 34.7464809, -92.2895948 | BI6: Little Rock, AR | BK6: Arkansas | BL6: AR | BM6: Little Rock | BO6: 34.7464809 | BP6: -92.2895948
B7: California | C7: 3226.236411 | D7: 2398.457658 | E7: 999.8772487 | F7: 2611.118272 | G7: 0 | H7: 1412.641591 | I7: 4094.254919 | J7: 3923.52248 | K7: 3807.662504 | L7: 3484.303654 | M7: 3334.246973 | N7: 3971.257886 | O7: 713.3813757 | P7: 2719.823797 | Q7: 3015.357116 | R7: 2372.837418 | S7: 2215.006176 | T7: 3155.990217 | U7: 2888.866403 | V7: 4274.959668 | W7: 3847.042684 | X7: 4213.042585 | Y7: 3112.865319 | Z7: 2434.659091 | AA7: 2885.274314 | AB7: 2522.887345 | AC7: 1177.751239 | AD7: 2117.911662 | AE7: 153.2351029 | AF7: 4157.079741 | AG7: 3961.718838 | AH7: 1395.586756 | AI7: 3989.930093 | AJ7: 3760.063318 | AK7: 1908.719372 | AL7: 3277.983068 | AM7: 2132.483117 | AN7: 733.2127493 | AO7: 3782.741662 | AP7: 4196.644517 | AQ7: 3616.288165 | AR7: 1859.137694 | AS7: 3045.939771 | AT7: 2337.677269 | AU7: 844.4499754 | AV7: 4055.998174 | AW7: 3807.649097 | AX7: 961.526526 | AY7: 3428.549578 | AZ7: 2718.58472 | BA7: 1436.11054 | BB7: 5743.145218 | BD7: California | BE7: 38.4732259 | BF7: -121.2980707 | BH7: 38.4732259, -121.2980707 | BI7: Sacramento, CA | BK7: California | BL7: CA | BM7: Sacramento | BO7: 38.4732259 | BP7: -121.2980707
B8: Colorado | C8: 1867.529291 | D8: 2934.016972 | E8: 942.6710863 | F8: 1251.788869 | G8: 1412.641591 | H8: 0 | I8: 2713.585212 | J8: 2518.966391 | K8: 2400.5144 | L8: 2141.491584 | M8: 1946.703544 | N8: 5375.176375 | O8: 1025.517715 | P8: 1309.510314 | Q8: 1606.452706 | R8: 980.9784109 | S8: 803.0813455 | T8: 1743.359338 | U8: 1624.432683 | V8: 2928.90962 | W8: 2440.704424 | X8: 2840.766063 | Y8: 1735.895897 | Z8: 1133.891598 | AA8: 1558.526888 | AB8: 1111.166445 | AC8: 951.9510732 | AD8: 715.1702681 | AE8: 1269.421996 | AF8: 2794.32728 | AG8: 2564.819957 | AH8: 458.303478 | AI8: 2617.942613 | AJ8: 2348.59846 | AK8: 856.1519602 | AL8: 1872.08651 | AM8: 810.5052303 | AN8: 1587.877515 | AO8: 2384.004441 | AP8: 2818.144016 | AQ8: 2216.278379 | AR8: 641.1040671 | AS8: 1642.313869 | AT8: 1241.24606 | AU8: 596.8638789 | AV8: 2706.581295 | AW8: 2395.858773 | AX8: 1653.60856 | AY8: 2016.778163 | AZ8: 1350.658817 | BA8: 156.3854071 | BB8: 4409.420603 | BD8: Colorado | BE8: 39.7391536 | BF8: -104.9847034 | BH8: 39.7391536, -104.9847034 | BI8: Denver, CO | BK8: Colorado | BL8: CO | BM8: Denver | BO8: 39.7391536 | BP8: -104.9847034
B9: Connecticut | C9: 1593.429426 | D9: 4581.849224 | E9: 3556.915638 | F9: 1875.15787 | G9: 4094.254919 | H9: 2713.585212 | I9: 0 | J9: 376.1659333 | K9: 484.3049768 | L9: 1631.052525 | M9: 1358.766948 | N9: 8062.503451 | O9: 3521.504821 | P9: 1441.671338 | Q9: 1154.433908 | R9: 1732.657423 | S9: 1963.568891 | T9: 1109.844811 | U9: 2074.288328 | V9: 368.8125299 | W9: 446.8818019 | X9: 150.0113059 | Y9: 981.6684666 | Z9: 1682.93114 | AA9: 1860.783962 | AB9: 1689.022733 | AC9: 3149.512561 | AD9: 1999.857248 | AE9: 3943.220489 | AF9: 186.1130879 | AG9: 243.5455644 | AH9: 2942.672607 | AI9: 131.8373959 | AJ9: 841.4545547 | AK9: 2292.002009 | AL9: 889.2923776 | AM9: 2258.525397 | AN9: 4020.039822 | AO9: 389.4256911 | AP9: 106.1231929 | AQ9: 1130.969031 | AR9: 2254.629039 | AS9: 1365.449985 | AT9: 2576.457734 | AU9: 3249.844616 | AV9: 277.5244862 | AW9: 620.9635453 | AX9: 3961.509124 | AY9: 850.0303684 | AZ9: 1375.681963 | BA9: 2662.951061 | BB9: 2667.770946 | BD9: Connecticut | BE9: 41.765599 | BF9: -72.69058501 | BH9: 41.765599, -72.6905850074112 | BI9: Hartford, CT | BK9: Connecticut | BL9: CT | BM9: Hartford | BO9: 41.765599 | BP9: -72.6905850074112
B10: Delaware | C10: 1229.327521 | D10: 4626.19564 | E10: 3313.126584 | F10: 1565.665999 | G10: 3923.52248 | H10: 2518.966391 | I10: 376.1659333 | J10: 0 | K10: 129.7893993 | L10: 1255.405677 | M10: 994.4038915 | N10: 7893.081215 | O10: 3395.283331 | P10: 1212.712079 | Q10: 914.8356124 | R10: 1552.231643 | S10: 1735.42982 | T10: 818.1044282 | U10: 1720.537502 | V10: 744.905675 | W10: 85.9543128 | X10: 517.7433966 | Y10: 855.73486 | Z10: 1583.436416 | AA10: 1515.904467 | AB10: 1440.84942 | AC10: 3057.805395 | AD10: 1806.327032 | AE10: 3775.469418 | AF10: 560.2456243 | AG10: 135.4030619 | AH10: 2700.504709 | AI10: 415.8688478 | AJ10: 465.3616718 | AK10: 2211.530415 | AL10: 646.9271067 | AM10: 1982.694823 | AN10: 3917.966505 | AO10: 169.5565103 | AP10: 456.7987968 | AQ10: 755.3081673 | AR10: 2129.813354 | AS10: 1043.972841 | AT10: 2250.312862 | AU10: 3082.474458 | AV10: 617.7502991 | AW10: 245.2939487 | AX10: 3882.058077 | AY10: 537.2300643 | AZ10: 1238.168116 | BA10: 2487.926738 | BB10: 2476.588675 | BD10: Delaware | BE10: 39.158168 | BF10: -75.5243682 | BH10: 39.158168, -75.5243682 | BI10: Dover, DE | BK10: Delaware | BL10: DE | BM10: Dover | BO10: 39.158168 | BP10: -75.5243682
B11: District of Columbia | C11: 1110.147937 | D11: 4562.390083 | E11: 3186.842456 | F11: 1435.880075 | G11: 3807.662504 | H11: 2400.5144 | I11: 484.3049768 | J11: 129.7893993 | K11: 0.000134258785 | L11: 1151.845851 | M11: 875.2548647 | N11: 7775.578552 | O11: 3288.894236 | P11: 1092.061408 | Q11: 794.3364079 | R11: 1439.421742 | S11: 1612.962294 | T11: 689.8516129 | U11: 1596.745579 | V11: 849.0761428 | W11: 43.84445021 | X11: 631.3162185 | Y11: 766.2703436 | Z11: 1489.963041 | AA11: 1389.483432 | AB11: 1316.116659 | AC11: 2959.949278 | AD11: 1689.761257 | AE11: 3660.284317 | AF11: 662.2464671 | AG11: 242.2500008 | AH11: 2574.767428 | AI11: 498.5781756 | AJ11: 375.689606 | AK11: 2119.163283 | AL11: 529.8207032 | AM11: 1854.121135 | AN11: 3816.202199 | AO11: 152.8719253 | AP11: 573.6488263 | AQ11: 653.3207337 | AR11: 2026.833869 | AS11: 914.3196423 | AT11: 2121.43612 | AU11: 2968.151251 | AV11: 700.2906388 | AW11: 155.6599502 | AX11: 3785.654133 | AY11: 408.0723142 | AZ11: 1138.166444 | BA11: 2373.136204 | BB11: 2505.812109 | BD11: District of Columbia | BE11: 38.8937364 | BF11: -76.9878114 | BH11: 38.8937364, -76.9878113963744 | BI11: District of Columbia, USA | BO11: 38.8937364 | BP11: -76.9878113963744
B12: Florida | C12: 283.9995916 | D12: 4873.717421 | E12: 2635.841233 | F12: 889.7101361 | G12: 3484.303654 | H12: 2141.491584 | I12: 1631.052525 | J12: 1255.405677 | K12: 1151.845851 | L12: 0 | M12: 368.311858 | N12: 7307.73368 | O12: 3163.108488 | P12: 1148.92809 | Q12: 1051.364171 | R12: 1494.921862 | S12: 1412.430324 | T12: 864.8926429 | U12: 658.8289864 | V12: 1999.034248 | W12: 1185.804505 | X12: 1772.636551 | Y12: 1367.435456 | Z12: 1787.979046 | AA12: 599.4719785 | AB12: 1157.411806 | AC12: 2983.383838 | AD12: 1603.361496 | AE12: 3358.314442 | AF12: 1812.865726 | AG12: 1387.784204 | AH12: 2095.884144 | AI12: 1648.841637 | AJ12: 792.7756192 | AK12: 2307.003507 | AL12: 1065.372881 | AM12: 1354.53316 | AN12: 3726.110282 | AO12: 1281.057218 | AP12: 1710.279664 | AQ12: 500.1095427 | AR12: 2093.300824 | AS12: 677.2892667 | AT12: 1291.145881 | AU12: 2732.179869 | AV12: 1848.537328 | AW12: 1010.185073 | AX12: 3771.108337 | AY12: 912.5555133 | AZ12: 1476.065388 | BA12: 2193.173413 | BB12: 2269.20121 | BD12: Florida | BE12: 30.4380832 | BF12: -84.2809332 | BH12: 30.4380832, -84.2809332 | BI12: =CONCATENATE(BM12,", ",BL12) -> Tallahassee, FL | BK12: Florida | BL12: FL | BM12: Tallahassee | BO12: 30.4380832 | BP12: -84.2809332
B13: Georgia | C13: =ACOS(COS(RADIANS(90-VLOOKUP($B13,$BD$3:$BF$54,2,FALSE)))*COS(RADIANS(90-VLOOKUP(C$2,$BD$3:$BF$54,2,FALSE)))+SIN(RADIANS(90-VLOOKUP($B13,$BD$3:$BF$54,2,FALSE)))*SIN(RADIANS(90-VLOOKUP(C$2,$BD$3:$BF$54,2,FALSE)))*COS(RADIANS(VLOOKUP($B13,$BD$3:$BF$54,3,FALSE)-VLOOKUP(C$2,$BD$3:$BF$54,3,FALSE))))*$B$2 -> 234.9811008 | D13: 4572.259739 | E13: 2556.478183 | F13: 734.2934693 | G13: 3334.246973 | H13: 1946.703544 | I13: 1358.766948 | J13: 994.4038915 | K13: 875.2548647 | L13: 368.311858 | M13: =ACOS(COS(RADIANS(90-VLOOKUP($B13,$BD$3:$BF$54,2,FALSE)))*COS(RADIANS(90-VLOOKUP(M$2,$BD$3:$BF$54,2,FALSE)))+SIN(RADIANS(90-VLOOKUP($B13,$BD$3:$BF$54,2,FALSE)))*SIN(RADIANS(90-VLOOKUP(M$2,$BD$3:$BF$54,2,FALSE)))*COS(RADIANS(VLOOKUP($B13,$BD$3:$BF$54,3,FALSE)-VLOOKUP(M$2,$BD$3:$BF$54,3,FALSE))))*$B$2 -> 0 | N13: 7229.839017 | O13: 2949.005969 | P13: 819.1146006 | Q13: 687.5477819 | R13: 1189.36062 | S13: 1168.243392 | T13: 496.9210805 | U13: 734.9329224 | V13: 1719.038705 | W13: =ACOS(COS(RADIANS(90-VLOOKUP($B13,$BD$3:$BF$54,2,FALSE)))*COS(RADIANS(90-VLOOKUP(W$2,$BD$3:$BF$54,2,FALSE)))+SIN(RADIANS(90-VLOOKUP($B13,$BD$3:$BF$54,2,FALSE)))*SIN(RADIANS(90-VLOOKUP(W$2,$BD$3:$BF$54,2,FALSE)))*COS(RADIANS(VLOOKUP($B13,$BD$3:$BF$54,3,FALSE)-VLOOKUP(W$2,$BD$3:$BF$54,3,FALSE))))*$B$2 -> 914.8801764 | X13: 1506.516976 | Y13: 999.1535519 | Z13: 1451.405614 | AA13: 557.9067481 | AB13: 880.5493256 | AC13: 2727.555992 | AD13: 1337.553789 | AE13: 3199.822642 | AF13: 1532.18002 | AG13: =ACOS(COS(RADIANS(90-VLOOKUP($B13,$BD$3:$BF$54,2,FALSE)))*COS(RADIANS(90-VLOOKUP(AG$2,$BD$3:$BF$54,2,FALSE)))+SIN(RADIANS(90-VLOOKUP($B13,$BD$3:$BF$54,2,FALSE)))*SIN(RADIANS(90-VLOOKUP(AG$2,$BD$3:$BF$54,2,FALSE)))*COS(RADIANS(VLOOKUP($B13,$BD$3:$BF$54,3,FALSE)-VLOOKUP(AG$2,$BD$3:$BF$54,3,FALSE))))*$B$2 -> 1117.499652 | AH13: 1977.164341 | AI13: 1355.573558 | AJ13: 571.7150775 | AK13: 2002.658227 | AL13: 701.8168316 | AM13: 1215.80429 | AN13: 3508.9351 | AO13: 983.6800808 | AP13: 1448.657302 | AQ13: =ACOS(COS(RADIANS(90-VLOOKUP($B13,$BD$3:$BF$54,2,FALSE)))*COS(RADIANS(90-VLOOKUP(AQ$2,$BD$3:$BF$54,2,FALSE)))+SIN(RADIANS(90-VLOOKUP($B13,$BD$3:$BF$54,2,FALSE)))*SIN(RADIANS(90-VLOOKUP(AQ$2,$BD$3:$BF$54,2,FALSE)))*COS(RADIANS(VLOOKUP($B13,$BD$3:$BF$54,3,FALSE)-VLOOKUP(AQ$2,$BD$3:$BF$54,3,FALSE))))*$B$2 -> 311.0154638 | AR13: 1808.963563 | AS13: 345.2400985 | AT13: 1315.964135 | AU13: 2543.5591 | AV13: 1548.578581 | AW13: 756.373138 | AX13: 3534.430042 | AY13: 568.3772843 | AZ13: 1123.984522 | BA13: 1975.634822 | BB13: 2490.021222 | BD13: Georgia | BE13: 33.7490987 | BF13: -84.3901849 | BH13: 33.7490987, -84.3901849 | BI13: Atlanta, GA | BK13: Georgia | BL13: GA | BM13: Atlanta | BO13: 33.7490987 | BP13: -84.3901849
B14: Hawaii | C14: 7083.201083 | D14: 4524.222548 | E14: 4677.383611 | F14: 6495.679858 | G14: 3971.257886 | H14: 5375.176375 | I14: 8062.503451 | J14: 7893.081215 | K14: 7775.578552 | L14: 7307.73368 | M14: 7229.839017 | N14: 0 | O14: 4559.807797 | P14: 6684.534534 | Q14: 6981.629063 | R14: 6343.91204 | S14: 6169.965565 | T14: 7112.291774 | U14: 6658.433849 | V14: 8224.840468 | W14: 7815.561276 | X14: 8177.702822 | Y14: 7082.251744 | Z14: 6389.142294 | AA14: 6721.071802 | AB14: 6475.045988 | AC14: 4976.445443 | AD14: 6086.76099 | AE14: 4120.991708 | AF14: 8117.390345 | AG14: 7932.962523 | AH14: 5255.005304 | AI14: 7955.217872 | AJ14: 7703.312773 | AK14: 5815.583589 | AL14: 7246.605527 | AM14: 6015.791343 | AN14: 4120.689095 | AO14: 7753.823923 | AP14: 8163.910615 | AQ14: 7529.16692 | AR14: 5812.803441 | AS14: 6974.688221 | AT14: 6033.485273 | AU14: 4815.076092 | AV14: 8009.690214 | AW14: 7768.171123 | AX14: 4244.072274 | AY14: 7389.650909 | AZ14: 6687.393519 | BA14: 5407.211223 | BB14: 9449.318384 | BD14: Hawaii | BE14: 21.304547 | BF14: -157.8556764 | BH14: 21.304547, -157.8556764 | BI14: Honolulu, HI | BK14: Hawaii | BL14: HI | BM14: Honolulu | BO14: 21.304547 | BP14: -157.8556764
B15: Idaho | C15: 2886.157935 | D15: 2058.331828 | E15: 1185.775554 | F15: 2274.023776 | G15: 713.3813757 | H15: 1025.517715 | I15: 3521.504821 | J15: 3395.283331 | K15: 3288.894236 | L15: 3163.108488 | M15: 2949.005969 | N15: 4559.807797 | O15: 0 | P15: 2235.267513 | Q15: 2517.039166 | R15: 1857.590731 | S15: 1782.22235 | T15: 2683.872668 | U15: 2645.561737 | V15: 3665.98055 | W15: 3325.084492 | X15: 3628.965137 | Y15: 2552.764362 | Z15: 1838.831016 | AA15: 2583.806383 | AB15: 2081.956507 | AC15: 465.3311143 | AD15: 1635.281918 | AE15: 577.2058766 | AF15: 3563.944628 | AG15: 3415.582182 | AH15: 1243.024795 | AI15: 3408.361816 | AJ15: 3299.241468 | AK15: 1256.720716 | AL15: 2763.867924 | AM15: 1834.281972 | AN15: 563.0359535 | AO15: 3242.727214 | AP15: 3619.942424 | AQ15: 3201.36401 | AR15: 1269.02279 | AS15: 2627.998113 | AT15: 2202.686464 | AU15: 476.3544345 | AV15: 3452.373086 | AW15: 3312.010895 | AX15: 646.4818493 | AY15: 2938.199802 | AZ15: 2160.23028 | BA15: 973.8620373 | BB15: 5427.540983 | BD15: Idaho | BE15: 43.615046 | BF15: -116.2044429 | BH15: 43.615046, -116.2044429 | BI15: Boise, ID | BK15: Idaho | BL15: ID | BM15: Boise | BO15: 43.615046 | BP15: -116.2044429
B16: Illinois | C16: 882.4196222 | D16: 3756.095546 | E16: 2115.664583 | F16: 608.5365756 | G16: 2719.823797 | H16: 1309.510314 | I16: 1441.671338 | J16: 1212.712079 | K16: 1092.061408 | L16: 1148.92809 | M16: 819.1146006 | N16: 6684.534534 | O16: 2235.267513 | P16: 0 | Q16: 297.9052575 | R16: 388.6948462 | S16: 524.7779841 | T16: 448.8759117 | U16: 1048.460379 | V16: 1710.176377 | W16: 1132.865669 | X16: 1580.235931 | Y16: 535.9316154 | Z16: 639.1888925 | AA16: 822.8823945 | AB16: 256.8578196 | AC16: 1957.444954 | AD16: 605.7274338 | AE16: 2573.978925 | AF16: 1551.392804 | AG16: 1268.517529 | AH16: 1501.305772 | AI16: 1363.946782 | AJ16: 1064.304625 | AK16: 1189.563914 | AL16: 567.0565205 | AM16: 843.5909894 | AN16: 2781.190534 | AO16: 1086.534872 | AP16: 1547.783701 | AQ16: 1000.02004 | AR16: 1018.032607 | AS16: 476.1724996 | AT16: 1289.498959 | AU16: 1885.1637 | AV16: 1491.175153 | AW16: 1088.485754 | AX16: 2779.671374 | AY16: 709.7532557 | AZ16: 364.8973213 | BA16: 1290.716082 | BB16: 3277.611421 | BD16: Illinois | BE16: 39.7989763 | BF16: -89.6443688 | BH16: 39.7989763, -89.6443688 | BI16: Springfield, IL | BK16: Illinois | BL16: IL | BM16: Springfield | BO16: 39.7989763 | BP16: -89.6443688
B17: Indiana | C17: 825.6403084 | D17: 3958.17321 | E17: 2407.850959 | F17: 778.2547637 | G17: 3015.357116 | H17: 1606.452706 | I17: 1154.433908 | J17: 914.8356124 | K17: 794.3364079 | L17: 1051.364171 | M17: 687.5477819 | N17: 6981.629063 | O17: 2517.039166 | P17: 297.9052575 | Q17: 0 | R17: 659.5070783 | S17: 821.3613186 | T17: 206.6581779 | U17: 1130.859233 | V17: 1440.732785 | W17: 835.0070436 | X17: 1296.331215 | Y17: 355.898181 | Z17: 810.2792591 | AA17: 893.5153204 | AB17: 535.0983975 | AC17: 2219.086485 | AD17: 898.2466087 | AE17: 2868.831618 | AF17: 1274.512616 | AG17: 973.0510717 | AH17: 1793.648519 | AI17: 1084.746435 | AJ17: 795.3872782 | AK17: 1415.67476 | AL17: 270.3192268 | AM17: 1107.804377 | AN17: 3056.851143 | AO17: 791.1602051 | AP17: 1260.450217 | AQ17: 786.3908219 | AR17: 1276.114376 | AS17: 404.6059615 | AT17: 1490.220343 | AU17: 2178.394207 | AV17: 1226.288226 | AW17: 796.6817112 | AX17: 3044.990948 | AY17: 421.2070806 | AZ17: 455.449648 | BA17: 1583.31523 | BB17: 3054.984294 | BD17: Indiana | BE17: 39.7683795 | BF17: -86.1580447 | BH17: 39.7683795, -86.1580447 | BI17: Indianapolis, IN | BK17: Indiana | BL17: IN | BM17: Indianapolis | BO17: 39.7683795 | BP17: -86.1580447
B18: Iowa | C18: 1216.034427 | D18: 3384.271181 | E18: 1858.052745 | F18: 769.6751957 | G18: 2372.837418 | H18: 980.9784109 | I18: 1732.657423 | J18: 1552.231643 | K18: 1439.421742 | L18: 1494.921862 | M18: 1189.36062 | N18: 6343.91204 | O18: 1857.590731 | P18: 388.6948462 | Q18: 659.5070783 | R18: 0 | S18: 332.8568457 | T18: 834.1924068 | U18: 1258.018937 | V18: 1955.344368 | W18: 1477.587767 | X18: 1860.122042 | Y18: 756.1479627 | Z18: 375.74571 | AA18: 1065.352804 | AB18: 356.5677496 | AC18: 1569.062431 | AD18: 270.9910281 | AE18: 2224.002468 | AF18: 1815.55255 | AG18: 1589.246437 | AH18: 1254.552429 | AI18: 1637.517777 | AJ18: 1447.95982 | AK18: 814.3011508 | AL18: 910.3678223 | AM18: 760.8210661 | AN18: 2398.297672 | AO18: 1409.922586 | AP18: 1837.167113 | AQ18: 1387.500141 | AR18: 629.4995768 | AS18: 844.3755598 | AT18: 1312.299975 | AU18: 1530.48543 | AV18: 1732.716748 | AW18: 1454.846012 | AX18: 2392.21252 | AY18: 1080.711621 | AZ18: 384.0529099 | BA18: 936.7324315 | BB18: 3663.337678 | BD18: Iowa | BE18: 41.5910641 | BF18: -93.6037149 | BH18: 41.5910641, -93.6037149 | BI18: Des Moines, IA | BK18: Iowa | BL18: IA | BM18: Des Moines | BO18: 41.5910641 | BP18: -93.6037149
B19: Kansas | C19: 1128.925293 | D19: 3482.51946 | E19: 1593.751836 | F19: 565.2646485 | G19: 2215.006176 | H19: 803.0813455 | I19: 1963.568891 | J19: 1735.42982 | K19: 1612.962294 | L19: 1412.430324 | M19: 1168.243392 | N19: 6169.965565 | O19: 1782.22235 | P19: 524.7779841 | Q19: 821.3613186 | R19: 332.8568457 | S19: 0 | T19: 942.7374175 | U19: 1041.175444 | V19: 2218.594761 | W19: 1654.452498 | X19: 2099.912617 | Y19: 1019.691804 | Z19: 689.7664027 | AA19: 889.942552 | AB19: 308.087892 | AC19: 1571.270842 | AD19: 212.2118905 | AE19: 2072.469547 | AF19: 2066.328435 | AG19: 1793.289519 | AH19: 980.0227209 | AI19: 1881.217556 | AJ19: 1545.518903 | AK19: 957.2074761 | AL19: 1091.394213 | AM19: 429.9675311 | AN19: 2341.038669 | AO19: 1611.305211 | AP19: 2069.576825 | AQ19: 1421.556176 | AR19: 707.0693052 | AS19: 846.9614121 | AT19: 994.0951273 | AU19: 1393.983193 | AV19: 1997.224926 | AW19: 1598.222507 | AX19: 2368.234975 | AY19: 1219.985593 | AZ19: 691.6156198 | BA19: 811.2520625 | BB19: 3655.180583 | BD19: Kansas | BE19: 39.0490111 | BF19: -95.6775557 | BH19: 39.0490111, -95.6775557 | BI19: Topeka, KS | BK19: Kansas | BL19: KS | BM19: Topeka | BO19: 39.0490111 | BP19: -95.6775557
B20: Kentucky | C20: 663.5367429 | D20: 4162.154223 | E20: 2499.071024 | F20: 765.9747824 | G20: 3155.990217 | H20: 1743.359338 | I20: 1109.844811 | J20: 818.1044282 | K20: 689.8516129 | L20: 864.8926429 | M20: 496.9210805 | N20: 7112.291774 | O20: 2683.872668 | P20: 448.8759117 | Q20: 206.6581779 | R20: 834.1924068 | S20: 942.7374175 | T20: 0 | U20: 1036.360857 | V20: 1429.876831 | W20: 733.2269179 | X20: 1257.9205 | Y20: 504.747408 | Z20: 1014.669351 | AA20: 802.7196121 | AB20: 637.4624452 | AC20: 2402.509645 | AD20: 1051.448954 | AE20: 3011.983527 | AF20: 1252.458366 | AG20: 900.5784743 | AH20: 1888.55255 | AI20: 1062.07579 | AJ20: 615.4529437 | AK20: 1612.723025 | AL20: 253.9219025 | AM20: 1164.643947 | AN20: 3229.997503 | AO20: 724.9304643 | AP20: 1213.492905 | AQ20: 580.4328832 | AR20: 1460.489136 | AS20: 282.3902583 | AT20: 1473.129969 | AU20: 2326.883413 | AV20: 1227.418796 | AW20: 656.9415725 | AX20: 3226.36667 | AY20: 283.2562486 | AZ20: 662.0007148 | BA20: 1734.219745 | BB20: 2853.145177 | BD20: Kentucky | BE20: 38.2009055 | BF20: -84.8732836 | BH20: 38.2009055, -84.8732836 | BI20: Frankfort, KY | BK20: Kentucky | BL20: KY | BM20: Frankfort | BO20: 38.2009055 | BP20: -84.8732836
B21: Louisiana | C21: 508.809655 | D21: 4497.142691 | E21: 1998.173097 | F21: 489.3430815 | G21: 2888.866403 | H21: 1624.432683 | I21: 2074.288328 | J21: 1720.537502 | K21: 1596.745579 | L21: 658.8289864 | M21: 734.9329224 | N21: 6658.433849 | O21: 2645.561737 | P21: 1048.460379 | Q21: 1130.859233 | R21: 1258.018937 | S21: 1041.175444 | T21: 1036.360857 | U21: 0 | V21: 2424.612249 | W21: 1638.232723 | X21: 2223.830095 | Y21: 1486.228392 | Z21: 1621.226257 | AA21: 237.3756185 | AB21: 908.3561035 | AC21: 2538.468785 | AD21: 1253.320415 | AE21: 2771.962589 | AF21: 2239.627267 | AG21: 1837.680091 | AH21: 1493.484646 | AI21: 2055.529426 | AJ21: 1306.142981 | AK21: 1998.347169 | AL21: 1289.938291 | AM21: 814.6453416 | AN21: 3204.373202 | AO21: 1688.87072 | AP21: 2168.983342 | AQ21: 1029.885589 | AR21: 1745.05763 | AS21: 754.1160329 | AT21: 632.4248845 | AU21: 2188.962767 | AV21: 2238.251725 | AW21: 1487.894654 | AX21: 3278.040745 | AY21: 1237.362259 | AZ21: 1412.465909 | BA21: 1708.242133 | BB21: 2858.319404 | BD21: Louisiana | BE21: 30.4507462 | BF21: -91.154551 | BH21: 30.4507462, -91.154551 | BI21: Baton Rouge, LA | BK21: Louisiana | BL21: LA | BM21: Baton Rouge | BO21: 30.4507462 | BP21: -91.154551
B22: Maine | C22: 1952.800521 | D22: 4552.489076 | E22: 3807.562177 | F22: 2193.68767 | G22: 4274.959668 | H22: 2928.90962 | I22: 368.8125299 | J22: 744.905675 | K22: 849.0761428 | L22: 1999.034248 | M22: 1719.038705 | N22: 8224.840468 | O22: 3665.98055 | P22: 1710.176377 | Q22: 1440.732785 | R22: 1955.344368 | S22: 2218.594761 | T22: 1429.876831 | U22: 2424.612249 | V22: 0 | W22: 813.5012802 | X22: 240.2804609 | Y22: 1202.508894 | Z22: 1840.537025 | AA22: 2205.360856 | AB22: 1965.062852 | AC22: 3266.357953 | AD22: 2226.298549 | AE22: 4122.285168 | AF22: 187.0240618 | AG22: 611.3323851 | AH22: 3196.542342 | AI22: 369.988294 | AJ22: 1210.244454 | AK22: 2413.895851 | AL22: 1190.773052 | AM22: 2547.081611 | AN22: 4137.215707 | AO22: 737.0771155 | AP22: 306.6673223 | AQ22: 1499.090864 | AR22: 2417.037485 | AS22: 1698.416726 | AT22: 2903.000812 | AU22: 3434.772333 | AV22: 222.6279012 | AW22: 989.3554038 | AX22: 4057.792615 | AY22: 1189.352836 | AZ22: 1578.388365 | BA22: 2861.916562 | BB22: 2896.595422 | BD22: Maine | BE22: 44.3105322 | BF22: -69.7793295 | BH22: 44.3105322, -69.7793295 | BI22: Augusta, ME | BK22: Maine | BL22: ME | BM22: Augusta | BO22: 44.3105322 | BP22: -69.7793295
B23: Maryland | C23: =ACOS(COS(RADIANS(90-VLOOKUP($B23,$BD$3:$BF$54,2,FALSE)))*COS(RADIANS(90-VLOOKUP(C$2,$BD$3:$BF$54,2,FALSE)))+SIN(RADIANS(90-VLOOKUP($B23,$BD$3:$BF$54,2,FALSE)))*SIN(RADIANS(90-VLOOKUP(C$2,$BD$3:$BF$54,2,FALSE)))*COS(RADIANS(VLOOKUP($B23,$BD$3:$BF$54,3,FALSE)-VLOOKUP(C$2,$BD$3:$BF$54,3,FALSE))))*$B$2 -> 1149.852353 | D23: 4584.328935 | E23: 3229.639648 | F23: 1479.711797 | G23: 3847.042684 | H23: 2440.704424 | I23: 446.8818019 | J23: 85.9543128 | K23: 43.84445021 | L23: 1185.804505 | M23: =ACOS(COS(RADIANS(90-VLOOKUP($B23,$BD$3:$BF$54,2,FALSE)))*COS(RADIANS(90-VLOOKUP(M$2,$BD$3:$BF$54,2,FALSE)))+SIN(RADIANS(90-VLOOKUP($B23,$BD$3:$BF$54,2,FALSE)))*SIN(RADIANS(90-VLOOKUP(M$2,$BD$3:$BF$54,2,FALSE)))*COS(RADIANS(VLOOKUP($B23,$BD$3:$BF$54,3,FALSE)-VLOOKUP(M$2,$BD$3:$BF$54,3,FALSE))))*$B$2 -> 914.8801764 | N23: 7815.561276 | O23: 3325.084492 | P23: 1132.865669 | Q23: 835.0070436 | R23: 1477.587767 | S23: 1654.452498 | T23: 733.2269179 | U23: 1638.232723 | V23: 813.5012802 | W23: =ACOS(COS(RADIANS(90-VLOOKUP($B23,$BD$3:$BF$54,2,FALSE)))*COS(RADIANS(90-VLOOKUP(W$2,$BD$3:$BF$54,2,FALSE)))+SIN(RADIANS(90-VLOOKUP($B23,$BD$3:$BF$54,2,FALSE)))*SIN(RADIANS(90-VLOOKUP(W$2,$BD$3:$BF$54,2,FALSE)))*COS(RADIANS(VLOOKUP($B23,$BD$3:$BF$54,3,FALSE)-VLOOKUP(W$2,$BD$3:$BF$54,3,FALSE))))*$B$2 -> 0 | X23: 592.5569451 | Y23: 795.7956727 | Z23: 1521.466929 | AA23: 1431.948828 | AB23: 1358.349411 | AC23: 2993.237194 | AD23: 1729.255291 | AE23: 3699.435497 | AF23: 627.091743 | AG23: =ACOS(COS(RADIANS(90-VLOOKUP($B23,$BD$3:$BF$54,2,FALSE)))*COS(RADIANS(90-VLOOKUP(AG$2,$BD$3:$BF$54,2,FALSE)))+SIN(RADIANS(90-VLOOKUP($B23,$BD$3:$BF$54,2,FALSE)))*SIN(RADIANS(90-VLOOKUP(AG$2,$BD$3:$BF$54,2,FALSE)))*COS(RADIANS(VLOOKUP($B23,$BD$3:$BF$54,3,FALSE)-VLOOKUP(AG$2,$BD$3:$BF$54,3,FALSE))))*$B$2 -> 203.56149 | AH23: 2617.379524 | AI23: 468.8120479 | AJ23: 402.9998696 | AK23: 2150.467378 | AL23: 569.0886378 | AM23: 1897.632653 | AN23: 3850.869187 | AO23: 147.0916488 | AP23: 533.8218194 | AQ23: =ACOS(COS(RADIANS(90-VLOOKUP($B23,$BD$3:$BF$54,2,FALSE)))*COS(RADIANS(90-VLOOKUP(AQ$2,$BD$3:$BF$54,2,FALSE)))+SIN(RADIANS(90-VLOOKUP($B23,$BD$3:$BF$54,2,FALSE)))*SIN(RADIANS(90-VLOOKUP(AQ$2,$BD$3:$BF$54,2,FALSE)))*COS(RADIANS(VLOOKUP($B23,$BD$3:$BF$54,3,FALSE)-VLOOKUP(AQ$2,$BD$3:$BF$54,3,FALSE))))*$B$2 -> 686.2585764 | AR23: 2061.742452 | AS23: 958.0736436 | AT23: 2164.866446 | AU23: 3006.986928 | AV23: 671.3032434 | AW23: 179.999551 | AX23: 3818.517589 | AY23: 451.7326947 | AZ23: 1171.773792 | BA23: 2412.093206 | BB23: 2494.544598 | BD23: Maryland | BE23: 38.9786401 | BF23: -76.492786 | BH23: 38.9786401, -76.492786 | BI23: Annapolis, MD | BK23: Maryland | BL23: MD | BM23: Annapolis | BO23: 38.9786401 | BP23: -76.492786
B24: Massachusetts | C24: 1741.350586 | D24: 4629.806694 | E24: 3693.66356 | F24: 2023.627535 | G24: 4213.042585 | H24: 2840.766063 | I24: 150.0113059 | J24: 517.7433966 | K24: 631.3162185 | L24: 1772.636551 | M24: 1506.516976 | N24: 8177.702822 | O24: 3628.965137 | P24: 1580.235931 | Q24: 1296.331215 | R24: 1860.122042 | S24: 2099.912617 | T24: 1257.9205 | U24: 2223.830095 | V24: 240.2804609 | W24: 592.5569451 | X24: 0 | Y24: 1105.173755 | Z24: 1790.770261 | AA24: 2010.74 | AB24: 1829.793527 | AC24: 3247.727458 | AD24: 2128.949625 | AE24: 4061.426656 | AF24: 101.8847297 | AG24: 389.184451 | AH24: 3079.781643 | AI24: 223.2940329 | AJ24: 980.7336989 | AK24: 2390.243273 | AL24: 1033.608129 | AM24: 2402.481109 | AN24: 4119.356591 | AO24: 539.3118797 | AP24: 66.39597321 | AQ24: 1272.679137 | AR24: 2365.687653 | AS24: 1515.10045 | AT24: 2725.9145 | AU24: 3369.132689 | AV24: 244.2321849 | AW24: 762.9584378 | AX24: 4053.927958 | AY24: 999.8521252 | AZ24: 1496.130085 | BA24: 2785.547713 | BB24: 2700.475251 | BD24: Massachusetts | BE24: 42.3604823 | BF24: -71.0595678 | BH24: 42.3604823, -71.0595678 | BI24: Boston, MA | BK24: Massachusetts | BL24: MA | BM24: Boston | BO24: 42.3604823 | BP24: -71.0595678
B25: Michigan | C25: 1165.122689 | D25: 3813.440472 | E25: 2605.1228 | F25: 1111.920257 | G25: 3112.865319 | H25: 1735.895897 | I25: 981.6684666 | J25: 855.73486 | K25: 766.2703436 | L25: 1367.435456 | M25: 999.1535519 | N25: 7082.251744 | O25: 2552.764362 | P25: 535.9316154 | Q25: 355.898181 | R25: 756.1479627 | S25: 1019.691804 | T25: 504.747408 | U25: 1486.228392 | V25: 1202.508894 | W25: 795.7956727 | X25: 1105.173755 | Y25: 0 | Z25: 727.9277281 | AA25: 1248.976246 | AB25: 791.0897289 | AC25: 2203.543703 | AD25: 1026.304979 | AE25: 2962.048858 | AF25: 1059.435041 | AG25: 863.4393764 | AH25: 1994.785866 | AI25: 882.1491601 | AJ25: 925.331009 | AK25: 1355.811482 | AL25: 334.37151 | AM25: 1377.171106 | AN25: 3066.881553 | AO25: 694.7901266 | AP25: 1084.859735 | AQ25: 1018.160081 | AR25: 1283.811904 | AS25: 755.0727565 | AT25: 1814.732946 | AU25: 2268.417287 | AV25: 980.1956982 | AW25: 836.1859799 | AX25: 3026.815061 | AY25: 546.3107914 | AZ25: 395.0366202 | BA25: 1681.479027 | BB25: 3212.209808 | BD25: Michigan | BE25: 42.7337712 | BF25: -84.5553805 | BH25: 42.7337712, -84.5553805 | BI25: Lansing, MI | BK25: Michigan | BL25: MI | BM25: Lansing | BO25: 42.7337712 | BP25: -84.5553805
B26: Minnesota | C26: 1520.6417 | D26: 3147.894733 | E26: 2066.834831 | F26: 1136.722225 | G26: 2434.659091 | H26: 1133.891598 | I26: 1682.93114 | J26: 1583.436416 | K26: 1489.963041 | L26: 1787.979046 | M26: 1451.405614 | N26: 6389.142294 | O26: 1838.831016 | P26: 639.1888925 | Q26: 810.2792591 | R26: 375.74571 | S26: 689.7664027 | T26: 1014.669351 | U26: 1621.226257 | V26: 1840.537025 | W26: 1521.466929 | X26: 1790.770261 | Y26: 727.9277281 | Z26: 0 | AA26: 1417.265734 | AB26: 712.8757253 | AC26: 1476.264513 | AD26: 545.2247937 | AE26: 2281.878604 | AF26: 1728.285043 | AG26: 1588.311953 | AH26: 1495.023315 | AI26: 1569.672654 | AJ26: 1589.820699 | AK26: 629.2299356 | AL26: 995.9820822 | AM26: 1118.408471 | AN26: 2342.162833 | AO26: 1422.492336 | AP26: 1781.11146 | AQ26: 1594.852616 | AR26: 576.8241738 | AS26: 1112.982672 | AT26: 1681.932596 | AU26: 1596.672799 | AV26: 1622.453658 | AW26: 1543.539155 | AX26: 2298.895474 | AY26: 1200.740195 | AZ26: 363.1046178 | BA26: 1041.015058 | BB26: 3864.642707 | BD26: Minnesota | BE26: 44.9504037 | BF26: -93.1015026 | BH26: 44.9504037, -93.1015026 | BI26: Saint Paul, MN | BK26: Minnesota | BL26: MN | BM26: Saint Paul | BO26: 44.9504037 | BP26: -93.1015026
B27: Mississippi | C27: 365.2594078 | D27: 4371.029144 | E27: 2044.530021 | F27: 326.0463132 | G27: 2885.274314 | H27: 1558.526888 | I27: 1860.783962 | J27: 1515.904467 | K27: 1389.483432 | L27: 599.4719785 | M27: 557.9067481 | N27: 6721.071802 | O27: 2583.806383 | P27: 822.8823945 | Q27: 893.5153204 | R27: 1065.352804 | S27: 889.942552 | T27: 802.7196121 | U27: 237.3756185 | V27: 2205.360856 | W27: 1431.948828 | X27: 2010.74 | Y27: 1248.976246 | Z27: 1417.265734 | AA27: 0 | AB27: 709.3724031 | AC27: 2436.570405 | AD27: 1098.062276 | AE27: 2760.222798 | AF27: 2021.716065 | AG27: 1628.002095 | AH27: 1496.556015 | AI27: 1835.504424 | AJ27: 1124.40423 | AK27: 1837.588748 | AL27: 1056.627792 | AM27: 758.9766622 | AN27: 3146.390859 | AO27: 1472.77993 | AP27: 1957.912334 | AQ27: 867.0755815 | AR27: 1596.085432 | AS27: 520.4056528 | AT27: 758.0852667 | AU27: 2142.947611 | AV27: 2014.378005 | AW27: 1290.725117 | AX27: 3203.399504 | AY27: 1016.017593 | AZ27: 1187.779537 | BA27: 1623.111872 | BB27: 2862.993776 | BD27: Mississippi | BE27: 32.4104055 | BF27: -90.16209361 | BH27: 32.4104055, -90.1620936054217 | BI27: Jackson, MS | BK27: Mississippi | BL27: MS | BM27: Jackson | BO27: 32.4104055 | BP27: -90.1620936054217
B28: Missouri | C28: 874.7148165 | D28: 3716.458969 | E28: 1874.116054 | F28: 426.0269332 | G28: 2522.887345 | H28: 1111.166445 | I28: 1689.022733 | J28: 1440.84942 | K28: 1316.116659 | L28: 1157.411806 | M28: 880.5493256 | N28: 6475.045988 | O28: 2081.956507 | P28: 256.8578196 | Q28: 535.0983975 | R28: 356.5677496 | S28: 308.087892 | T28: 637.4624452 | U28: 908.3561035 | V28: 1965.062852 | W28: 1358.349411 | X28: 1829.793527 | Y28: 791.0897289 | Z28: 712.8757253 | AA28: 709.3724031 | AB28: 9.493529797e-05 | AC28: 1847.006966 | AD28: 457.0526205 | AE28: 2380.537267 | AF28: 1804.09662 | AG28: 1506.362531 | AH28: 1260.423521 | AI28: 1615.620826 | AJ28: 1237.442055 | AK28: 1153.056014 | AL28: 804.1385745 | AM28: 586.8090383 | AN28: 2637.954053 | AO28: 1324.818762 | AP28: 1795.100857 | AQ28: 1119.41948 | AR28: 936.6137369 | AS28: 547.3373804 | AT28: 1054.884861 | AU28: 1701.360635 | AV28: 1746.766711 | AW28: 1294.229309 | AX28: 2655.928463 | AY28: 917.499197 | AZ28: 552.4173341 | BA28: 1115.335836 | BB28: 3370.407649 | BD28: Missouri | BE28: 38.5767026 | BF28: -92.1735165 | BH28: 38.5767026, -92.1735165 | BI28: Jefferson City, MO | BK28: Missouri | BL28: MO | BM28: Jefferson City | BO28: 38.5767026 | BP28: -92.1735165
B29: Montana | C29: 2700.115142 | D29: 1982.277325 | E29: 1461.586886 | F29: 2113.084672 | G29: 1177.751239 | H29: 951.9510732 | I29: 3149.512561 | J29: 3057.805395 | K29: 2959.949278 | L29: 2983.383838 | M29: 2727.555992 | N29: 4976.445443 | O29: 465.3311143 | P29: 1957.444954 | Q29: 2219.086485 | R29: 1569.062431 | S29: 1571.270842 | T29: 2402.509645 | U29: 2538.468785 | V29: 3266.357953 | W29: 2993.237194 | X29: 3247.727458 | Y29: 2203.543703 | Z29: 1476.264513 | AA29: 2436.570405 | AB29: 1847.006966 | AD29: 1390.061581 | AE29: 1037.768965 | AF29: 3176.574013 | AG29: 3064.470609 | AH29: 1314.776609 | AI29: 3030.85099 | AJ29: 3013.657308 | AK29: 857.6934742 | AL29: 2447.446881 | AM29: 1730.124422 | AN29: 871.835273 | AO29: 2898.333672 | AP29: 3244.180848 | AQ29: 2951.8673 | AR29: 943.0033256 | AS29: 2390.667472 | AT29: 2193.189432 | AU29: 648.60062 | AV29: 3058.120463 | AW29: 3000.138226 | AX29: 826.8571614 | AY29: 2636.854188 | AZ29: 1821.794326 | BA29: 837.3081536 | BB29: 5217.216727 | BD29: Montana | BE29: 46.5927122 | BF29: -112.036109 | BH29: 46.5927122, -112.036109 | BI29: Helena, MT | BK29: Montana | BL29: MT | BM29: Helena | BO29: 46.5927122 | BP29: -112.036109
B30: Nebraska | C30: 1319.376729 | D30: 3279.128857 | E30: 1588.381712 | F30: 775.0748531 | G30: 2117.911662 | H30: 715.1702681 | I30: 1999.857248 | J30: 1806.327032 | K30: 1689.761257 | L30: 1603.361496 | M30: 1337.553789 | N30: 6086.76099 | O30: 1635.281918 | P30: 605.7274338 | Q30: 898.2466087 | R30: 270.9910281 | S30: 212.2118905 | T30: 1051.448954 | U30: 1253.320415 | V30: 2226.298549 | W30: 1729.255291 | X30: 2128.949625 | Y30: 1026.304979 | Z30: 545.2247937 | AA30: 1098.062276 | AB30: 457.0526205 | AC30: 1390.061581 | AD30: 0 | AE30: 1970.84077 | AF30: 2085.699035 | AG30: 1849.850555 | AH30: 988.3780562 | AI30: 1906.69111 | AJ30: 1665.762392 | AK30: 745.0287271 | AL30: 1160.166683 | AM30: 597.2549993 | AN30: 2187.10823 | AO30: 1669.252636 | AP30: 2104.768408 | AQ30: 1570.966935 | AR30: 498.2559683 | AS30: 1002.807949 | AT30: 1174.77806 | AU30: 1280.21113 | AV30: 2003.672316 | AW30: 1693.532162 | AX30: 2199.861626 | AY30: 1315.22127 | AZ30: 653.11705 | BA30: 685.2883378 | BB30: 3827.460012 | BD30: Nebraska | BE30: 40.8000554 | BF30: -96.6674005 | BH30: 40.8000554, -96.6674005 | BI30: Lincoln, NE | BK30: Nebraska | BL30: NE | BM30: Lincoln | BO30: 40.8000554 | BP30: -96.6674005
B31: Nevada | C31: 3097.140146 | D31: 2372.125474 | E31: 936.9448049 | F31: 2480.488063 | G31: 153.2351029 | H31: 1269.421996 | I31: 3943.220489 | J31: 3775.469418 | K31: 3660.284317 | L31: 3358.314442 | M31: 3199.822642 | N31: 4120.991708 | O31: 577.2058766 | P31: 2573.978925 | Q31: 2868.831618 | R31: 2224.002468 | S31: 2072.469547 | T31: 3011.983527 | U31: 2771.962589 | V31: 4122.285168 | W31: 3699.435497 | X31: 4061.426656 | Y31: 2962.048858 | Z31: 2281.878604 | AA31: 2760.222798 | AB31: 2380.537267 | AC31: 1037.768965 | AD31: 1970.84077 | AE31: 0 | AF31: 4005.008109 | AG31: 3812.346443 | AH31: 1279.414086 | AI31: 3838.371768 | AJ31: 3617.978658 | AK31: 1756.138987 | AL31: 3130.49228 | AM31: 2004.395798 | AN31: 696.3432791 | AO31: 3633.699426 | AP31: 4045.421833 | AQ31: 3478.937548 | AR31: 1706.16512 | AS31: 2907.1959 | AT31: 2234.609513 | AU31: 694.0877722 | AV31: 3903.471934 | AW31: 3662.26779 | AX31: 911.7299638 | AY31: 3283.242214 | AZ31: 2567.550457 | BA31: 1287.554824 | BB31: 5621.406547 | BD31: Nevada | BE31: 39.1637984 | BF31: -119.7674034 | BH31: 39.1637984, -119.7674034 | BI31: Carson City, NV | BK31: Nevada | BL31: NV | BM31: Carson City | BO31: 39.1637984 | BP31: -119.7674034
B32: New Hampshire | C32: 1766.065841 | D32: 4535.925578 | E32: 3658.997012 | F32: 2017.876736 | G32: 4157.079741 | H32: 2794.32728 | I32: 186.1130879 | J32: 560.2456243 | K32: 662.2464671 | L32: 1812.865726 | M32: 1532.18002 | N32: 8117.390345 | O32: 3563.944628 | P32: 1551.392804 | Q32: 1274.512616 | R32: 1815.55255 | S32: 2066.328435 | T32: 1252.458366 | U32: 2239.627267 | V32: 187.0240618 | W32: 627.091743 | X32: 101.8847297 | Y32: 1059.435041 | Z32: 1728.285043 | AA32: 2021.716065 | AB32: 1804.09662 | AC32: 3176.574013 | AD32: 2085.699035 | AE32: 4005.008109 | AF32: 0 | AG32: 425.7881922 | AH32: 3046.127047 | AI32: 190.8581964 | AJ32: 1025.465692 | AK32: 2319.935528 | AL32: 1018.376333 | AM32: 2382.312241 | AN32: 4048.409196 | AO32: 551.1030186 | AP32: 154.1319754 | AQ32: 1313.105815 | AR32: 2304.632212 | AS32: 1517.599988 | AT32: 2725.024181 | AU32: 3314.148733 | AV32: 143.7577519 | AW32: 803.8291599 | AX32: 3978.77555 | AY32: 1006.111727 | AZ32: 1445.337854 | BA32: 2734.295802 | BB32: 2800.628217 | BD32: New Hampshire | BE32: 43.207106 | BF32: -71.5370216 | BH32: 43.207106, -71.5370216 | BI32: Concord, NH | BK32: New Hampshire | BL32: NH | BM32: Concord | BO32: 43.207106 | BP32: -71.5370216
B33: New Jersey | C33: =ACOS(COS(RADIANS(90-VLOOKUP($B33,$BD$3:$BF$54,2,FALSE)))*COS(RADIANS(90-VLOOKUP(C$2,$BD$3:$BF$54,2,FALSE)))+SIN(RADIANS(90-VLOOKUP($B33,$BD$3:$BF$54,2,FALSE)))*SIN(RADIANS(90-VLOOKUP(C$2,$BD$3:$BF$54,2,FALSE)))*COS(RADIANS(VLOOKUP($B33,$BD$3:$BF$54,3,FALSE)-VLOOKUP(C$2,$BD$3:$BF$54,3,FALSE))))*$B$2 -> 1352.397865 | D33: 4585.827007 | E33: 3380.385795 | F33: 1659.88428 | G33: 3961.718838 | H33: 2564.819957 | I33: 243.5455644 | J33: 135.4030619 | K33: 242.2500008 | L33: 1387.784204 | M33: =ACOS(COS(RADIANS(90-VLOOKUP($B33,$BD$3:$BF$54,2,FALSE)))*COS(RADIANS(90-VLOOKUP(M$2,$BD$3:$BF$54,2,FALSE)))+SIN(RADIANS(90-VLOOKUP($B33,$BD$3:$BF$54,2,FALSE)))*SIN(RADIANS(90-VLOOKUP(M$2,$BD$3:$BF$54,2,FALSE)))*COS(RADIANS(VLOOKUP($B33,$BD$3:$BF$54,3,FALSE)-VLOOKUP(M$2,$BD$3:$BF$54,3,FALSE))))*$B$2 -> 1117.499652 | N33: 7932.962523 | O33: 3415.582182 | P33: 1268.517529 | Q33: 973.0510717 | R33: 1589.246437 | S33: 1793.289519 | T33: 900.5784743 | U33: 1837.680091 | V33: 611.3323851 | W33: =ACOS(COS(RADIANS(90-VLOOKUP($B33,$BD$3:$BF$54,2,FALSE)))*COS(RADIANS(90-VLOOKUP(W$2,$BD$3:$BF$54,2,FALSE)))+SIN(RADIANS(90-VLOOKUP($B33,$BD$3:$BF$54,2,FALSE)))*SIN(RADIANS(90-VLOOKUP(W$2,$BD$3:$BF$54,2,FALSE)))*COS(RADIANS(VLOOKUP($B33,$BD$3:$BF$54,3,FALSE)-VLOOKUP(W$2,$BD$3:$BF$54,3,FALSE))))*$B$2 -> 203.56149 | X33: 389.184451 | Y33: 863.4393764 | Z33: 1588.311953 | AA33: 1628.002095 | AB33: 1506.362531 | AC33: 3064.470609 | AD33: 1849.850555 | AE33: 3812.346443 | AF33: 425.7881922 | AG33: =ACOS(COS(RADIANS(90-VLOOKUP($B33,$BD$3:$BF$54,2,FALSE)))*COS(RADIANS(90-VLOOKUP(AG$2,$BD$3:$BF$54,2,FALSE)))+SIN(RADIANS(90-VLOOKUP($B33,$BD$3:$BF$54,2,FALSE)))*SIN(RADIANS(90-VLOOKUP(AG$2,$BD$3:$BF$54,2,FALSE)))*COS(RADIANS(VLOOKUP($B33,$BD$3:$BF$54,3,FALSE)-VLOOKUP(AG$2,$BD$3:$BF$54,3,FALSE))))*$B$2 -> 9.493529797e-05 | AH33: 2766.389521 | AI33: 282.9086641 | AJ33: 599.7893412 | AK33: 2211.94727 | AL33: 702.7907486 | AM33: 2062.084516 | AN33: 3929.734395 | AO33: 181.9856299 | AP33: 331.5900883 | AQ33: =ACOS(COS(RADIANS(90-VLOOKUP($B33,$BD$3:$BF$54,2,FALSE)))*COS(RADIANS(90-VLOOKUP(AQ$2,$BD$3:$BF$54,2,FALSE)))+SIN(RADIANS(90-VLOOKUP($B33,$BD$3:$BF$54,2,FALSE)))*SIN(RADIANS(90-VLOOKUP(AQ$2,$BD$3:$BF$54,2,FALSE)))*COS(RADIANS(VLOOKUP($B33,$BD$3:$BF$54,3,FALSE)-VLOOKUP(AQ$2,$BD$3:$BF$54,3,FALSE))))*$B$2 -> 887.7782044 | AR33: 2146.913453 | AS33: 1142.826047 | AT33: 2353.487938 | AU33: 3118.349627 | AV33: 483.6272137 | AW33: 378.0900949 | AX33: 3885.319703 | AY33: 628.1515351 | AZ33: 1255.521787 | BA33: 2525.798969 | BB33: 2559.135715 | BD33: New Jersey | BE33: 40.2170575 | BF33: -74.7429463 | BH33: 40.2170575, -74.7429463 | BI33: Trenton, NJ | BK33: New Jersey | BL33: NJ | BM33: Trenton | BO33: 40.2170575 | BP33: -74.7429463
B34: New Mexico | C34: 1846.836402 | D34: 3265.97946 | E34: 614.373258 | F34: 1243.245941 | G34: 1395.586756 | H34: 458.303478 | I34: 2942.672607 | J34: 2700.504709 | K34: 2574.767428 | L34: 2095.884144 | M34: 1977.164341 | N34: 5255.005304 | O34: 1243.024795 | P34: 1501.305772 | Q34: 1793.648519 | R34: 1254.552429 | S34: 980.0227209 | T34: 1888.55255 | U34: 1493.484646 | V34: 3196.542342 | W34: 2617.379524 | X34: 3079.781643 | Y34: 1994.785866 | Z34: 1495.023315 | AA34: 1496.556015 | AB34: 1260.423521 | AC34: 1314.776609 | AD34: 988.3780562 | AE34: 1279.414086 | AF34: 3046.127047 | AG34: 2766.389521 | AH34: 0 | AI34: 2861.239228 | AJ34: 2455.980089 | AK34: 1308.798507 | AL34: 2063.685923 | AM34: 761.4340727 | AN34: 1771.559574 | AO34: 2584.643177 | AP34: 3048.750407 | AQ34: 2274.253062 | AR34: 1075.499852 | AS34: 1723.573683 | AT34: 972.4118903 | AU34: 766.8973575 | AV34: 2974.609204 | AW34: 2542.648007 | AX34: 1888.811742 | AY34: 2171.602799 | AZ34: 1638.584589 | BA34: 614.0950897 | BB34: 4348.208284 | BD34: New Mexico | BE34: 35.6869996 | BF34: -105.9377997 | BH34: 35.6869996, -105.9377997 | BI34: Santa Fe, NM | BK34: New Mexico | BL34: NM | BM34: Santa Fe | BO34: 35.6869996 | BP34: -105.9377997
B35: New York | C35: 1588.169875 | D35: 4450.236438 | E35: 3474.705147 | F35: 1827.245901 | G35: 3989.930093 | H35: 2617.942613 | I35: 131.8373959 | J35: 415.8688478 | K35: 498.5781756 | L35: 1648.841637 | M35: 1355.573558 | N35: 7955.217872 | O35: 3408.361816 | P35: 1363.946782 | Q35: 1084.746435 | R35: 1637.517777 | S35: 1881.217556 | T35: 1062.07579 | U35: 2055.529426 | V35: 369.988294 | W35: 468.8120479 | X35: 223.2940329 | Y35: 882.1491601 | Z35: 1569.672654 | AA35: 1835.504424 | AB35: 1615.620826 | AC35: 3030.85099 | AD35: 1906.69111 | AE35: 3838.371768 | AF35: 190.8581964 | AG35: 282.9086641 | AH35: 2861.239228 | AI35: 0 | AJ35: 871.8108251 | AK35: 2173.158881 | AL35: 827.5776579 | AM35: 2192.500689 | AN35: 3902.080176 | AO35: 371.9753746 | AP35: 213.6192451 | AQ35: 1151.556364 | AR35: 2143.834373 | AS35: 1328.755344 | AT35: 2534.946909 | AU35: 3145.952079 | AV35: 202.6503399 | AW35: 648.7885092 | AX35: 3840.160896 | AY35: 819.4903592 | AZ35: 1272.836075 | BA35: 2562.262922 | BB35: 2787.088814 | BD35: New York | BE35: 42.6511674 | BF35: -73.754968 | BH35: 42.6511674, -73.754968 | BI35: Albany, NY | BK35: New York | BL35: NY | BM35: Albany | BO35: 42.6511674 | BP35: -73.754968
B36: North Carolina | C36: 799.9868216 | D36: 4726.677024 | E36: 3055.910708 | F36: 1243.651483 | G36: 3760.063318 | H36: 2348.59846 | I36: 841.4545547 | J36: 465.3616718 | K36: 375.689606 | L36: 792.7756192 | M36: 571.7150775 | N36: 7703.312773 | O36: 3299.241468 | P36: 1064.304625 | Q36: 795.3872782 | R36: 1447.95982 | S36: 1545.518903 | T36: 615.4529437 | U36: 1306.142981 | V36: 1210.244454 | W36: 402.9998696 | X36: 980.7336989 | Y36: 925.331009 | Z36: 1589.820699 | AA36: 1124.40423 | AB36: 1237.442055 | AC36: 3013.657308 | AD36: 1665.762392 | AE36: 3617.978658 | AF36: 1025.465692 | AG36: 599.7893412 | AH36: 2455.980089 | AI36: 871.8108251 | AJ36: 0 | AK36: 2207.399744 | AL36: 602.1534992 | AM36: 1704.223459 | AN36: 3845.213748 | AO36: 521.8762006 | AP36: 917.8524 | AQ36: 294.7807919 | AR36: 2070.697947 | AS36: 733.1174589 | AT36: 1879.694483 | AU36: 2936.96256 | AV36: 1074.264446 | AW36: 223.0790405 | AX36: 3838.885112 | AY36: 390.136967 | AZ36: 1226.806558 | BA36: 2346.363174 | BB36: 2288.852964 | BD36: North Carolina | BE36: 35.7804015 | BF36: -78.6390779 | BH36: 35.7804015, -78.6390779 | BI36: Raleigh, NC | BK36: North Carolina | BL36: NC | BM36: Raleigh | BO36: 35.7804015 | BP36: -78.6390779
B37: North Dakota | C37: 2026.09233 | D37: 2570.015214 | E37: 1764.634192 | F37: 1517.857468 | G37: 1908.719372 | H37: 856.1519602 | I37: 2292.002009 | J37: 2211.530415 | K37: 2119.163283 | L37: 2307.003507 | M37: 2002.658227 | N37: 5815.583589 | O37: 1256.720716 | P37: 1189.563914 | Q37: 1415.67476 | R37: 814.3011508 | S37: 957.2074761 | T37: 1612.723025 | U37: 1998.347169 | V37: 2413.895851 | W37: 2150.467378 | X37: 2390.243273 | Y37: 1355.811482 | Z37: 629.2299356 | AA37: 1837.588748 | AB37: 1153.056014 | AC37: 857.6934742 | AD37: 745.0287271 | AE37: 1756.138987 | AF37: 2319.935528 | AG37: 2211.94727 | AH37: 1308.798507 | AI37: 2173.158881 | AJ37: 2207.399744 | AK37: 0 | AL37: 1621.036261 | AM37: 1289.655473 | AN37: 1729.119561 | AO37: 2049.224849 | AP37: 2386.490044 | AQ37: 2185.338888 | AR37: 273.3975584 | AS37: 1657.425582 | AT37: 1857.381414 | AU37: 1115.04009 | AV37: 2203.287709 | AW37: 2171.111542 | AX37: 1673.484564 | AY37: 1821.19266 | AZ37: 987.40001 | BA37: 707.9955997 | BB37: 4463.734018 | BD37: North Dakota | BE37: 46.8083268 | BF37: -100.7837392 | BH37: 46.8083268, -100.7837392 | BI37: Bismarck, ND | BK37: North Dakota | BL37: ND | BM37: Bismarck | BO37: 46.8083268 | BP37: -100.7837392
B38: Ohio | C38: 896.4504356 | D38: 4124.883043 | E38: 2677.787328 | F38: 1004.307018 | G38: 3277.983068 | H38: 1872.08651 | I38: 889.2923776 | J38: 646.9271067 | K38: 529.8207032 | L38: 1065.372881 | M38: 701.8168316 | N38: 7246.605527 | O38: 2763.867924 | P38: 567.0565205 | Q38: 270.3192268 | R38: 910.3678223 | S38: 1091.394213 | T38: 253.9219025 | U38: 1289.938291 | V38: 1190.773052 | W38: 569.0886378 | X38: 1033.608129 | Y38: 334.37151 | Z38: 995.9820822 | AA38: 1056.627792 | AB38: 804.1385745 | AC38: 2447.446881 | AD38: 1160.166683 | AE38: 3130.49228 | AF38: 1018.376333 | AG38: 702.7907486 | AH38: 2063.685923 | AI38: 827.5776579 | AJ38: 602.1534992 | AK38: 1621.036261 | AL38: 0 | AM38: 1369.247918 | AN38: 3296.461766 | AO38: 520.9637216 | AP38: 994.9502037 | AQ38: 685.4531118 | AR38: 1508.094683 | AS38: 536.2493161 | AT38: 1716.224695 | AU38: 2438.345362 | AV38: 982.7661101 | AW38: 552.6966095 | AX38: 3274.285558 | AY38: 214.5390118 | AZ38: 633.906299 | BA38: 1843.316457 | BB38: 2890.648598 | BD38: Ohio | BE38: 39.9622601 | BF38: -83.0007065 | BH38: 39.9622601, -83.0007065 | BI38: Columbus, OH | BK38: Ohio | BL38: OH | BM38: Columbus | BO38: 39.9622601 | BP38: -83.0007065
B39: Oklahoma | C39: 1093.817079 | D39: 3701.341037 | E39: 1351.883763 | F39: 482.4765205 | G39: 2132.483117 | H39: 810.5052303 | I39: 2258.525397 | J39: 1982.694823 | K39: 1854.121135 | L39: 1354.53316 | M39: 1215.80429 | N39: 6015.791343 | O39: 1834.281972 | P39: 843.5909894 | Q39: 1107.804377 | R39: 760.8210661 | S39: 429.9675311 | T39: 1164.643947 | U39: 814.6453416 | V39: 2547.081611 | W39: 1897.632653 | X39: 2402.481109 | Y39: 1377.171106 | Z39: 1118.408471 | AA39: 758.9766622 | AB39: 586.8090383 | AC39: 1730.124422 | AD39: 597.2549993 | AE39: 2004.395798 | AF39: 2382.312241 | AG39: 2062.084516 | AH39: 761.4340727 | AI39: 2192.500689 | AJ39: 1704.223459 | AK39: 1289.655473 | AL39: 1369.247918 | AM39: 0 | AN39: 2395.151949 | AO39: 1883.093902 | AP39: 2364.103824 | AQ39: 1513.44113 | AR39: 1018.217182 | AS39: 971.4432602 | AT39: 578.5477691 | AU39: 1385.755863 | AV39: 2330.331865 | AW39: 1806.39724 | AX39: 2463.84864 | AY39: 1446.256539 | AZ39: 1096.780692 | BA39: 895.5480594 | BB39: 3621.709271 | BD39: Oklahoma | BE39: 35.4707419 | BF39: -97.5198806 | BH39: 35.4707419, -97.5198806 | BI39: Oklahoma City, OK | BK39: Oklahoma | BL39: OK | BM39: Oklahoma City | BO39: 35.4707419 | BP39: -97.5198806
B40: Oregon | C40: 3448.926241 | D40: 1675.792661 | E40: 1585.697844 | F40: 2837.059526 | G40: 733.2127493 | H40: 1587.877515 | I40: 4020.039822 | J40: 3917.966505 | K40: 3816.202199 | L40: 3726.110282 | M40: 3508.9351 | N40: 4120.689095 | O40: 563.0359535 | P40: 2781.190534 | Q40: 3056.851143 | R40: 2398.297672 | S40: 2341.038669 | T40: 3229.997503 | U40: 3204.373202 | V40: 4137.215707 | W40: 3850.869187 | X40: 4119.356591 | Y40: 3066.881553 | Z40: 2342.162833 | AA40: 3146.390859 | AB40: 2637.954053 | AC40: 871.835273 | AD40: 2187.10823 | AE40: 696.3432791 | AF40: 4048.409196 | AG40: 3929.734395 | AH40: 1771.559574 | AI40: 3902.080176 | AJ40: 3845.213748 | AK40: 1729.119561 | AL40: 3296.461766 | AM40: 2395.151949 | AN40: 0 | AO40: 3761.0275 | AP40: 4115.286491 | AQ40: 3756.93332 | AR40: 1789.43739 | AS40: 3184.956138 | AT40: 2741.769009 | AU40: 1019.017366 | AV40: 3929.708417 | AW40: 3847.73567 | AX40: 234.0241325 | AY40: 3477.702688 | AZ40: 2679.806699 | BA40: 1535.523508 | BB40: 5989.921927 | BD40: Oregon | BE40: 44.9391565 | BF40: -123.033121 | BH40: 44.9391565, -123.033121 | BI40: Salem, OR | BK40: Oregon | BL40: OR | BM40: Salem | BO40: 44.9391565 | BP40: -123.033121
B41: Pennsylvania | C41: 1216.598168 | D41: 4456.64156 | E41: 3198.710815 | F41: 1488.213315 | G41: 3782.741662 | H41: 2384.004441 | I41: 389.4256911 | J41: 169.5565103 | K41: 152.8719253 | L41: 1281.057218 | M41: 983.6800808 | N41: 7753.823923 | O41: 3242.727214 | P41: 1086.534872 | Q41: 791.1602051 | R41: 1409.922586 | S41: 1611.305211 | T41: 724.9304643 | U41: 1688.87072 | V41: 737.0771155 | W41: 147.0916488 | X41: 539.3118797 | Y41: 694.7901266 | Z41: 1422.492336 | AA41: 1472.77993 | AB41: 1324.818762 | AC41: 2898.333672 | AD41: 1669.252636 | AE41: 3633.699426 | AF41: 551.1030186 | AG41: 181.9856299 | AH41: 2584.643177 | AI41: 371.9753746 | AJ41: 521.8762006 | AK41: 2049.224849 | AL41: 520.9637216 | AM41: 1883.093902 | AN41: 3761.0275 | AO41: 0 | AP41: 490.4809437 | AQ41: 787.5687375 | AR41: 1975.081179 | AS41: 976.1932574 | AT41: 2187.400959 | AU41: 2939.867474 | AV41: 568.191302 | AW41: 307.0023974 | AX41: 3721.321907 | AY41: 460.6195489 | AZ41: 1082.806356 | BA41: 2346.651233 | BB41: 2637.729924 | BD41: Pennsylvania | BE41: 40.2663107 | BF41: -76.8861122 | BH41: 40.2663107, -76.8861122 | BI41: Harrisburg, PA | BK41: Pennsylvania | BL41: PA | BM41: Harrisburg | BO41: 40.2663107 | BP41: -76.8861122
B42: Rhode Island | C42: 1683.613112 | D42: 4651.613617 | E42: 3662.979729 | F42: 1978.186378 | G42: 4196.644517 | H42: 2818.144016 | I42: 106.1231929 | J42: 456.7987968 | K42: 573.6488263 | L42: 1710.279664 | M42: 1448.657302 | N42: 8163.910615 | O42: 3619.942424 | P42: 1547.783701 | Q42: 1260.450217 | R42: 1837.167113 | S42: 2069.576825 | T42: 1213.492905 | U42: 2168.983342 | V42: 306.6673223 | W42: 533.8218194 | X42: 66.39597321 | Y42: 1084.859735 | Z42: 1781.11146 | AA42: 1957.912334 | AB42: 1795.100857 | AC42: 3244.180848 | AD42: 2104.768408 | AE42: 4045.421833 | AF42: 154.1319754 | AG42: 331.5900883 | AH42: 3048.750407 | AI42: 213.6192451 | AJ42: 917.8524 | AK42: 2386.490044 | AL42: 994.9502037 | AM42: 2364.103824 | AN42: 4115.286491 | AO42: 490.4809437 | AP42: 0 | AQ42: 1210.581351 | AR42: 2354.203158 | AS42: 1466.419441 | AT42: 2677.733063 | AU42: 3352.32577 | AV42: 286.8677957 | AW42: 701.5156092 | AX42: 4053.779885 | AY42: 950.6378944 | AZ42: 1478.16384 | BA42: 2766.338494 | BB42: 2648.247598 | BD42: Rhode Island | BE42: 41.8239891 | BF42: -71.4128343 | BH42: 41.8239891, -71.4128343 | BI42: Providence, RI | BK42: Rhode Island | BL42: RI | BM42: Providence | BO42: 41.8239891 | BP42: -71.4128343
B43: South Carolina | C43: =ACOS(COS(RADIANS(90-VLOOKUP($B43,$BD$3:$BF$54,2,FALSE)))*COS(RADIANS(90-VLOOKUP(C$2,$BD$3:$BF$54,2,FALSE)))+SIN(RADIANS(90-VLOOKUP($B43,$BD$3:$BF$54,2,FALSE)))*SIN(RADIANS(90-VLOOKUP(C$2,$BD$3:$BF$54,2,FALSE)))*COS(RADIANS(VLOOKUP($B43,$BD$3:$BF$54,3,FALSE)-VLOOKUP(C$2,$BD$3:$BF$54,3,FALSE))))*$B$2 -> 521.1173517 | D43: 4741.59301 | E43: 2860.191701 | F43: 1035.711131 | G43: 3616.288165 | H43: 2216.278379 | I43: 1130.969031 | J43: 755.3081673 | K43: 653.3207337 | L43: 500.1095427 | M43: =ACOS(COS(RADIANS(90-VLOOKUP($B43,$BD$3:$BF$54,2,FALSE)))*COS(RADIANS(90-VLOOKUP(M$2,$BD$3:$BF$54,2,FALSE)))+SIN(RADIANS(90-VLOOKUP($B43,$BD$3:$BF$54,2,FALSE)))*SIN(RADIANS(90-VLOOKUP(M$2,$BD$3:$BF$54,2,FALSE)))*COS(RADIANS(VLOOKUP($B43,$BD$3:$BF$54,3,FALSE)-VLOOKUP(M$2,$BD$3:$BF$54,3,FALSE))))*$B$2 -> 311.0154638 | N43: 7529.16692 | O43: 3201.36401 | P43: 1000.02004 | Q43: 786.3908219 | R43: 1387.500141 | S43: 1421.556176 | T43: 580.4328832 | U43: 1029.885589 | V43: 1499.090864 | W43: =ACOS(COS(RADIANS(90-VLOOKUP($B43,$BD$3:$BF$54,2,FALSE)))*COS(RADIANS(90-VLOOKUP(W$2,$BD$3:$BF$54,2,FALSE)))+SIN(RADIANS(90-VLOOKUP($B43,$BD$3:$BF$54,2,FALSE)))*SIN(RADIANS(90-VLOOKUP(W$2,$BD$3:$BF$54,2,FALSE)))*COS(RADIANS(VLOOKUP($B43,$BD$3:$BF$54,3,FALSE)-VLOOKUP(W$2,$BD$3:$BF$54,3,FALSE))))*$B$2 -> 686.2585764 | X43: 1272.679137 | Y43: 1018.160081 | Z43: 1594.852616 | AA43: 867.0755815 | AB43: 1119.41948 | AC43: 2951.8673 | AD43: 1570.966935 | AE43: 3478.937548 | AF43: 1313.105815 | AG43: =ACOS(COS(RADIANS(90-VLOOKUP($B43,$BD$3:$BF$54,2,FALSE)))*COS(RADIANS(90-VLOOKUP(AG$2,$BD$3:$BF$54,2,FALSE)))+SIN(RADIANS(90-VLOOKUP($B43,$BD$3:$BF$54,2,FALSE)))*SIN(RADIANS(90-VLOOKUP(AG$2,$BD$3:$BF$54,2,FALSE)))*COS(RADIANS(VLOOKUP($B43,$BD$3:$BF$54,3,FALSE)-VLOOKUP(AG$2,$BD$3:$BF$54,3,FALSE))))*$B$2 -> 887.7782044 | AH43: 2274.253062 | AI43: 1151.556364 | AJ43: 294.7807919 | AK43: 2185.338888 | AL43: 685.4531118 | AM43: 1513.44113 | AN43: 3756.93332 | AO43: 787.5687375 | AP43: 1210.581351 | AQ43: =ACOS(COS(RADIANS(90-VLOOKUP($B43,$BD$3:$BF$54,2,FALSE)))*COS(RADIANS(90-VLOOKUP(AQ$2,$BD$3:$BF$54,2,FALSE)))+SIN(RADIANS(90-VLOOKUP($B43,$BD$3:$BF$54,2,FALSE)))*SIN(RADIANS(90-VLOOKUP(AQ$2,$BD$3:$BF$54,2,FALSE)))*COS(RADIANS(VLOOKUP($B43,$BD$3:$BF$54,3,FALSE)-VLOOKUP(AQ$2,$BD$3:$BF$54,3,FALSE))))*$B$2 -> 9.493529797e-05 | AR43: 2016.795544 | AS43: 574.7826532 | AT43: 1624.903029 | AU43: 2811.976869 | AV43: 1352.466379 | AW43: 510.0755314 | AX43: 3769.161621 | AY43: 486.596965 | AZ43: 1241.692745 | BA43: 2232.752821 | BB43: 2278.552554 | BD43: South Carolina | BE43: 34.0007104 | BF43: -81.0348144 | BH43: 34.0007104, -81.0348144 | BI43: Columbia, SC | BK43: South Carolina | BL43: SC | BM43: Columbia | BO43: 34.0007104 | BP43: -81.0348144
B44: South Dakota | C44: 1809.879043 | D44: 2782.906638 | E44: 1578.815967 | F44: 1272.225472 | G44: 1859.137694 | H44: 641.1040671 | I44: 2254.629039 | J44: 2129.813354 | K44: 2026.833869 | L44: 2093.300824 | M44: 1808.963563 | N44: 5812.803441 | O44: 1269.02279 | P44: 1018.032607 | Q44: 1276.114376 | R44: 629.4995768 | S44: 707.0693052 | T44: 1460.489136 | U44: 1745.05763 | V44: 2417.037485 | W44: 2061.742452 | X44: 2365.687653 | Y44: 1283.811904 | Z44: 576.8241738 | AA44: 1596.085432 | AB44: 936.6137369 | AC44: 943.0033256 | AD44: 498.2559683 | AE44: 1706.16512 | AF44: 2304.632212 | AG44: 2146.913453 | AH44: 1075.499852 | AI44: 2143.834373 | AJ44: 2070.697947 | AK44: 273.3975584 | AL44: 1508.094683 | AM44: 1018.217182 | AN44: 1789.43739 | AO44: 1975.081179 | AP44: 2354.203158 | AQ44: 2016.795544 | AR44: 9.493529797e-05 | AS44: 1466.237358 | AT44: 1584.166612 | AU44: 1025.531032 | AV44: 2199.246911 | AW44: 2060.309931 | AX44: 1769.007246 | AY44: 1694.454353 | AZ44: 892.2954042 | BA44: 511.7243849 | BB44: 4291.041893 | BD44: South Dakota | BE44: 44.3683156 | BF44: -100.3509665 | BH44: 44.3683156, -100.3509665 | BI44: Pierre, SD | BK44: South Dakota | BL44: SD | BM44: Pierre | BO44: 44.3683156 | BP44: -100.3509665
B45: Tennessee | C45: 427.0787814 | D45: 4227.037475 | E45: 2322.869566 | F45: 523.679472 | G45: 3045.939771 | H45: 1642.313869 | I45: 1365.449985 | J45: 1043.972841 | K45: 914.3196423 | L45: 677.2892667 | M45: 345.2400985 | N45: 6974.688221 | O45: 2627.998113 | P45: 476.1724996 | Q45: 404.6059615 | R45: 844.3755598 | S45: 846.9614121 | T45: 282.3902583 | U45: 754.1160329 | V45: 1698.416726 | W45: 958.0736436 | X45: 1515.10045 | Y45: 755.0727565 | Z45: 1112.982672 | AA45: 520.4056528 | AB45: 547.3373804 | AC45: 2390.667472 | AD45: 1002.807949 | AE45: 2907.1959 | AF45: 1517.599988 | AG45: 1142.826047 | AH45: 1723.573683 | AI45: 1328.755344 | AJ45: 733.1174589 | AK45: 1657.425582 | AL45: 536.2493161 | AM45: 971.4432602 | AN45: 3184.956138 | AO45: 976.1932574 | AP45: 1466.419441 | AQ45: 574.7826532 | AR45: 1466.237358 | AS45: 0 | AT45: 1211.338559 | AU45: 2237.533317 | AV45: 1501.274402 | AW45: 844.6603761 | AX45: 3202.632088 | AY45: 515.8019658 | AZ45: 800.3578236 | BA45: 1658.213213 | BB45: 2827.224805 | BD45: Tennessee | BE45: 36.1622257 | BF45: -86.7743419 | BH45: 36.1622257, -86.7743419 | BI45: Nashville, TN | BK45: Tennessee | BL45: TN | BM45: Nashville | BO45: 36.1622257 | BP45: -86.7743419
B46: Texas | C46: 1113.245742 | D46: 4175.028316 | E46: 1397.428923 | F46: 713.3450753 | G46: 2337.677269 | H46: 1241.24606 | I46: 2576.457734 | J46: 2250.312862 | K46: 2121.43612 | L46: 1291.145881 | M46: 1315.964135 | N46: 6033.485273 | O46: 2202.686464 | P46: 1289.498959 | Q46: 1490.220343 | R46: 1312.299975 | S46: 994.0951273 | T46: 1473.129969 | U46: 632.4248845 | V46: 2903.000812 | W46: 2164.866446 | X46: 2725.9145 | Y46: 1814.732946 | Z46: 1681.932596 | AA46: 758.0852667 | AB46: 1054.884861 | AC46: 2193.189432 | AD46: 1174.77806 | AE46: 2234.609513 | AF46: 2725.024181 | AG46: 2353.487938 | AH46: 972.4118903 | AI46: 2534.946909 | AJ46: 1879.694483 | AK46: 1857.381414 | AL46: 1716.224695 | AM46: 578.5477691 | AN46: 2741.769009 | AO46: 2187.400959 | AP46: 2677.733063 | AQ46: 1624.903029 | AR46: 1584.166612 | AS46: 1211.338559 | AT46: 0 | AU46: 1727.877707 | AV46: 2698.66578 | AW46: 2035.540402 | AX46: 2848.783995 | AY46: 1727.140158 | AZ46: 1605.077658 | BA46: 1365.866288 | BB46: 3451.692103 | BD46: Texas | BE46: 30.2711286 | BF46: -97.7436995 | BH46: 30.2711286, -97.7436995 | BI46: Austin, TX | BK46: Texas | BL46: TX | BM46: Austin | BO46: 30.2711286 | BP46: -97.7436995
B47: Utah | C47: 2460.893977 | D47: 2514.362848 | E47: 813.2485235 | F47: 1843.473942 | G47: 844.4499754 | H47: 596.8638789 | I47: 3249.844616 | J47: 3082.474458 | K47: 2968.151251 | L47: 2732.179869 | M47: 2543.5591 | N47: 4815.076092 | O47: 476.3544345 | P47: 1885.1637 | Q47: 2178.394207 | R47: 1530.48543 | S47: 1393.983193 | T47: 2326.883413 | U47: 2188.962767 | V47: 3434.772333 | W47: 3006.986928 | X47: 3369.132689 | Y47: 2268.417287 | Z47: 1596.672799 | AA47: 2142.947611 | AB47: 1701.360635 | AC47: 648.60062 | AD47: 1280.21113 | AE47: 694.0877722 | AF47: 3314.148733 | AG47: 3118.349627 | AH47: 766.8973575 | AI47: 3145.952079 | AJ47: 2936.96256 | AK47: 1115.04009 | AL47: 2438.345362 | AM47: 1385.755863 | AN47: 1019.017366 | AO47: 2939.867474 | AP47: 3352.32577 | AQ47: 2811.976869 | AR47: 1025.531032 | AS47: 2237.533317 | AT47: 1727.877707 | AU47: 9.493529797e-05 | AV47: 3214.94884 | AW47: 2973.546509 | AX47: 1122.689532 | AY47: 2594.915805 | AZ47: 1874.201606 | BA47: 595.1624588 | BB47: 5001.304722 | BD47: Utah | BE47: 40.7606467 | BF47: -111.89109 | BH47: 40.7606467, -111.89109 | BI47: Salt Lake City, UT | BK47: Utah | BL47: UT | BM47: Salt Lake City | BO47: 40.7606467 | BP47: -111.89109
B48: Vermont | C48: 1779.588173 | D48: 4394.686131 | E48: 3585.317216 | F48: 1987.071469 | G48: 4055.998174 | H48: 2706.581295 | I48: 277.5244862 | J48: 617.7502991 | K48: 700.2906388 | L48: 1848.537328 | M48: 1548.578581 | N48: 8009.690214 | O48: 3452.373086 | P48: 1491.175153 | Q48: 1226.288226 | R48: 1732.716748 | S48: 1997.224926 | T48: 1227.418796 | U48: 2238.251725 | V48: 222.6279012 | W48: 671.3032434 | X48: 244.2321849 | Y48: 980.1956982 | Z48: 1622.453658 | AA48: 2014.378005 | AB48: 1746.766711 | AC48: 3058.120463 | AD48: 2003.672316 | AE48: 3903.471934 | AF48: 143.7577519 | AG48: 483.6272137 | AH48: 2974.609204 | AI48: 202.6503399 | AJ48: 1074.264446 | AK48: 2203.287709 | AL48: 982.7661101 | AM48: 2330.331865 | AN48: 3929.708417 | AO48: 568.191302 | AP48: 286.8677957 | AQ48: 1352.466379 | AR48: 2199.246911 | AS48: 1501.274402 | AT48: 2698.66578 | AU48: 3214.94884 | AV48: 0 | AW48: 851.301353 | AX48: 3855.416015 | AY48: 1001.088875 | AZ48: 1355.976261 | BA48: 2640.501091 | BB48: 2933.586272 | BD48: Vermont | BE48: 44.260015 | BF48: -72.5753599 | BH48: 44.260015, -72.5753599 | BI48: Montpelier, VT | BK48: Vermont | BL48: VT | BM48: Montpelier | BO48: 44.260015 | BP48: -72.5753599
B49: Virginia | C49: 990.5762033 | D49: 4648.519889 | E49: 3150.864431 | F49: 1367.989795 | G49: 3807.649097 | H49: 2395.858773 | I49: 620.9635453 | J49: 245.2939487 | K49: 155.6599502 | L49: 1010.185073 | M49: 756.373138 | N49: 7768.171123 | O49: 3312.010895 | P49: 1088.485754 | Q49: 796.6817112 | R49: 1454.846012 | S49: 1598.222507 | T49: 656.9415725 | U49: 1487.894654 | V49: 989.3554038 | W49: 179.999551 | X49: 762.9584378 | Y49: 836.1859799 | Z49: 1543.539155 | AA49: 1290.725117 | AB49: 1294.229309 | AC49: 3000.138226 | AD49: 1693.532162 | AE49: 3662.26779 | AF49: 803.8291599 | AG49: 378.0900949 | AH49: 2542.648007 | AI49: 648.7885092 | AJ49: 223.0790405 | AK49: 2171.111542 | AL49: 552.6966095 | AM49: 1806.39724 | AN49: 3847.73567 | AO49: 307.0023974 | AP49: 701.5156092 | AQ49: 510.0755314 | AR49: 2060.309931 | AS49: 844.6603761 | AT49: 2035.540402 | AU49: 2973.546509 | AV49: 851.301353 | AW49: 0 | AX49: 3826.980303 | AY49: 379.1069955 | AZ49: 1183.894929 | BA49: 2378.814515 | BB49: 2393.414687 | BD49: Virginia | BE49: 37.5385087 | BF49: -77.43428 | BH49: 37.5385087, -77.43428 | BI49: Richmond, VA | BK49: Virginia | BL49: VA | BM49: Richmond | BO49: 37.5385087 | BP49: -77.43428
B50: Washington | C50: 3490.391828 | D50: 1469.254685 | E50: 1764.642131 | F50: 2886.939429 | G50: 961.526526 | H50: 1653.60856 | I50: 3961.509124 | J50: 3882.058077 | K50: 3785.654133 | L50: 3771.108337 | M50: 3534.430042 | N50: 4244.072274 | O50: 646.4818493 | P50: 2779.671374 | Q50: 3044.990948 | R50: 2392.21252 | S50: 2368.234975 | T50: 3226.36667 | U50: 3278.040745 | V50: 4057.792615 | W50: 3818.517589 | X50: 4053.927958 | Y50: 3026.815061 | Z50: 2298.895474 | AA50: 3203.399504 | AB50: 2655.928463 | AC50: 826.8571614 | AD50: 2199.861626 | AE50: 911.7299638 | AF50: 3978.77555 | AG50: 3885.319703 | AH50: 1888.811742 | AI50: 3840.160896 | AJ50: 3838.885112 | AK50: 1673.484564 | AL50: 3274.285558 | AM50: 2463.84864 | AN50: 234.0241325 | AO50: 3721.321907 | AP50: 4053.779885 | AQ50: 3769.161621 | AR50: 1769.007246 | AS50: 3202.632088 | AT50: 2848.783995 | AU50: 1122.689532 | AV50: 3855.416015 | AW50: 3826.980303 | AX50: 0 | AY50: 3463.360915 | AZ50: 2647.72077 | BA50: 1580.551406 | BB50: 6023.33018 | BD50: Washington | BE50: 47.0414804 | BF50: -122.891333 | BH50: 47.0414804, -122.891333 | BI50: Olympia, WA | BK50: Washington | BL50: WA | BM50: Olympia | BO50: 47.0414804 | BP50: -122.891333
B51: West Virginia | C51: 789.0864553 | D51: 4336.79763 | E51: 2782.317903 | F51: 1031.941231 | G51: 3428.549578 | H51: 2016.778163 | I51: 850.0303684 | J51: 537.2300643 | K51: 408.0723142 | L51: 912.5555133 | M51: 568.3772843 | N51: 7389.650909 | O51: 2938.199802 | P51: 709.7532557 | Q51: 421.2070806 | R51: 1080.711621 | S51: 1219.985593 | T51: 283.2562486 | U51: 1237.362259 | V51: 1189.352836 | W51: 451.7326947 | X51: 999.8521252 | Y51: 546.3107914 | Z51: 1200.740195 | AA51: 1016.017593 | AB51: 917.499197 | AC51: 2636.854188 | AD51: 1315.22127 | AE51: 3283.242214 | AF51: 1006.111727 | AG51: 628.1515351 | AH51: 2171.602799 | AI51: 819.4903592 | AJ51: 390.136967 | AK51: 1821.19266 | AL51: 214.5390118 | AM51: 1446.256539 | AN51: 3477.702688 | AO51: 460.6195489 | AP51: 950.6378944 | AQ51: 486.596965 | AR51: 1694.454353 | AS51: 515.8019658 | AT51: 1727.140158 | AU51: 2594.915805 | AV51: 1001.088875 | AW51: 379.1069955 | AX51: 3463.360915 | AY51: 9.493529797e-05 | AZ51: 837.6359982 | BA51: 2000.404364 | BB51: 2677.094504 | BD51: West Virginia | BE51: 38.3500245 | BF51: -81.6337762 | BH51: 38.3500245, -81.6337762 | BI51: Charleston, WV | BK51: West Virginia | BL51: WV | BM51: Charleston | BO51: 38.3500245 | BP51: -81.6337762
B52: Wisconsin | C52: 1223.949127 | D52: 3506.733904 | E52: 2241.444818 | F52: 959.4117641 | G52: 2718.58472 | H52: 1350.658817 | I52: 1375.681963 | J52: 1238.168116 | K52: 1138.166444 | L52: 1476.065388 | M52: 1123.984522 | N52: 6687.393519 | O52: 2160.23028 | P52: 364.8973213 | Q52: 455.449648 | R52: 384.0529099 | S52: 691.6156198 | T52: 662.0007148 | U52: 1412.465909 | V52: 1578.388365 | W52: 1171.773792 | X52: 1496.130085 | Y52: 395.0366202 | Z52: 363.1046178 | AA52: 1187.779537 | AB52: 552.4173341 | AC52: 1821.794326 | AD52: 653.11705 | AE52: 2567.550457 | AF52: 1445.337854 | AG52: 1255.521787 | AH52: 1638.584589 | AI52: 1272.836075 | AJ52: 1226.806558 | AK52: 987.40001 | AL52: 633.906299 | AM52: 1096.780692 | AN52: 2679.806699 | AO52: 1082.806356 | AP52: 1478.16384 | AQ52: 1241.692745 | AR52: 892.2954042 | AS52: 800.3578236 | AT52: 1605.077658 | AU52: 1874.201606 | AV52: 1355.976261 | AW52: 1183.894929 | AX52: 2647.72077 | AY52: 837.6359982 | AZ52: 0 | BA52: 1289.548604 | BB52: 3504.599051 | BD52: Wisconsin | BE52: 43.074761 | BF52: -89.3837613 | BH52: 43.074761, -89.3837613 | BI52: Madison, WI | BK52: Wisconsin | BL52: WI | BM52: Madison | BO52: 43.074761 | BP52: -89.3837613
B53: Wyoming | C53: 1914.396448 | D53: 2816.940705 | E53: 1068.325627 | F53: 1306.696066 | G53: 1436.11054 | H53: 156.3854071 | I53: 2662.951061 | J53: 2487.926738 | K53: 2373.136204 | L53: 2193.173413 | M53: 1975.634822 | N53: 5407.211223 | O53: 973.8620373 | P53: 1290.716082 | Q53: 1583.31523 | R53: 936.7324315 | S53: 811.2520625 | T53: 1734.219745 | U53: 1708.242133 | V53: 2861.916562 | W53: 2412.093206 | X53: 2785.547713 | Y53: 1681.479027 | Z53: 1041.015058 | AA53: 1623.111872 | AB53: 1115.335836 | AC53: 837.3081536 | AD53: 685.2883378 | AE53: 1287.554824 | AF53: 2734.295802 | AG53: 2525.798969 | AH53: 614.0950897 | AI53: 2562.262922 | AJ53: 2346.363174 | AK53: 707.9955997 | AL53: 1843.316457 | AM53: 895.5480594 | AN53: 1535.523508 | AO53: 2346.651233 | AP53: 2766.338494 | AQ53: 2232.752821 | AR53: 511.7243849 | AS53: 1658.213213 | AT53: 1365.866288 | AU53: 595.1624588 | AV53: 2640.501091 | AW53: 2378.814515 | AX53: 1580.551406 | AY53: 2000.404364 | AZ53: 1289.548604 | BA53: 0 | BB53: 4454.479849 | BD53: Wyoming | BE53: 41.1399814 | BF53: -104.8202462 | BH53: 41.1399814, -104.8202462 | BI53: Cheyenne, WY | BK53: Wyoming | BL53: WY | BM53: Cheyenne | BO53: 41.1399814 | BP53: -104.8202462
B54: Puerto Rico | C54: 2542.121042 | D54: 7011.228967 | E54: 4847.377187 | F54: 3158.091516 | G54: 5743.145218 | H54: 4409.420603 | I54: 2667.770946 | J54: 2476.588675 | K54: 2505.812109 | L54: 2269.20121 | M54: 2490.021222 | N54: 9449.318384 | O54: 5427.540983 | P54: 3277.611421 | Q54: 3054.984294 | R54: 3663.337678 | S54: 3655.180583 | T54: 2853.145177 | U54: 2858.319404 | V54: 2896.595422 | W54: 2494.544598 | X54: 2700.475251 | Y54: 3212.209808 | Z54: 3864.642707 | AA54: 2862.993776 | AB54: 3370.407649 | AC54: 5217.216727 | AD54: 3827.460012 | AE54: 5621.406547 | AF54: 2800.628217 | AG54: 2559.135715 | AH54: 4348.208284 | AI54: 2787.088814 | AJ54: 2288.852964 | AK54: 4463.734018 | AL54: 2890.648598 | AM54: 3621.709271 | AN54: 5989.921927 | AO54: 2637.729924 | AP54: 2648.247598 | AQ54: 2278.552554 | AR54: 4291.041893 | AS54: 2827.224805 | AT54: 3451.692103 | AU54: 5001.304722 | AV54: 2933.586272 | AW54: 2393.414687 | AX54: 6023.33018 | AY54: 2677.094504 | AZ54: 3504.599051 | BA54: 4454.479849 | BB54: 0 | BD54: Puerto Rico | BE54: 18.4464186 | BF54: -66.0755069 | BH54: 18.4464186, -66.0755069 | BI54: San Juan, PR | BK54: Puerto Rico | BL54: PR | BM54: San Juan | BO54: 18.4464186 | BP54: -66.0755069

Sheet Distances Chart Data (hidden)
E1: 10 | F1: 11 | G1: 12 | H1: 13 | I1: 14 | J1: 15 | K1: 20 | L1: 21 | M1: 22 | N1: 23 | O1: 24 | P1: 25 | Q1: 30 | R1: 31 | S1: 32 | T1: 33 | U1: 34 | V1: 35 | AB1: Selected Year | AS1: Selected Year | BG1: Selected Year
E3: From State | F3: From State | G3: From State | H3: To State | I3: To State | J3: To State | K3: From State | L3: From State | M3: From State | N3: To State | O3: To State | P3: To State | Q3: From State | R3: From State | S3: From State | T3: To State | U3: To State | V3: To State | AB3: From State | AC3: From State | AD3: From State | AE3: To State | AF3: To State | AG3: To State | AS3: From State | AT3: From State | AU3: From State | AV3: To State | AW3: To State | AX3: To State | BG3: From State | BH3: From State | BI3: From State | BJ3: To State | BK3: To State | BL3: To State
D4: Miles | E4: 500 | G4: 2000 | H4: 500 | J4: 2000
D5: KM | E5: =1.6*$E$4 -> 800 | G5: =1.6*$G$4 -> 3200 | H5: =1.6*$H$4 -> 800 | J5: =1.6*$J$4 -> 3200
B7: State | C7: Number Migrated From State | D7: Number Migrated To State | E7: =IF(selMiles=1,CONCATENATE("Travelled <",$E$4,$D$4," ",$E$3),CONCATENATE("Travelled <",$E$5,$D$5," ",$E$3)) -> Travelled <800KM From State | F7: =IF(selMiles=1,CONCATENATE("Travelled ",$E$4,"-",$G$4,$D$4," ",$E$3),CONCATENATE("Travelled ",$E$5,"-",$G$5,$D$5," ",$E$3)) -> Travelled 800-3200KM From State | G7: =IF(selMiles=1,CONCATENATE("Travelled >",$G$4,$D$4," ",$G$3),CONCATENATE("Travelled >",$G$5,$D$5," ",$G$3)) -> Travelled >3200KM From State | H7: =IF(selMiles=1,CONCATENATE("Travelled <",$E$4,$D$4," ",$H$3),CONCATENATE("Travelled <",$E$5,$D$5," ",$H$3)) -> Travelled <800KM To State | I7: =IF(selMiles=1,CONCATENATE("Travelled ",$E$4,"-",$G$4,$D$4," ",$H$3),CONCATENATE("Travelled ",$E$5,"-",$G$5,$D$5," ",$H$3)) -> Travelled 800-3200KM To State | J7: =IF(selMiles=1,CONCATENATE("Travelled >",$G$4,$D$4," ",$J$3),CONCATENATE("Travelled >",$G$5,$D$5," ",$J$3)) -> Travelled >3200KM To State | K7: =IF(selMiles=1,CONCATENATE("Travelled <",$E$4,$D$4," ",$E$3),CONCATENATE("Travelled <",$E$5,$D$5," ",$E$3)) -> Travelled <800KM From State | L7: =IF(selMiles=1,CONCATENATE("Travelled ",$E$4,"-",$G$4,$D$4," ",$E$3),CONCATENATE("Travelled ",$E$5,"-",$G$5,$D$5," ",$E$3)) -> Travelled 800-3200KM From State | M7: =IF(selMiles=1,CONCATENATE("Travelled >",$G$4,$D$4," ",$G$3),CONCATENATE("Travelled >",$G$5,$D$5," ",$G$3)) -> Travelled >3200KM From State | N7: =IF(selMiles=1,CONCATENATE("Travelled <",$E$4,$D$4," ",$H$3),CONCATENATE("Travelled <",$E$5,$D$5," ",$H$3)) -> Travelled <800KM To State | O7: =IF(selMiles=1,CONCATENATE("Travelled ",$E$4,"-",$G$4,$D$4," ",$H$3),CONCATENATE("Travelled ",$E$5,"-",$G$5,$D$5," ",$H$3)) -> Travelled 800-3200KM To State | P7: =IF(selMiles=1,CONCATENATE("Travelled >",$G$4,$D$4," ",$J$3),CONCATENATE("Travelled >",$G$5,$D$5," ",$J$3)) -> Travelled >3200KM To State | Q7: =IF(selMiles=1,CONCATENATE("Travelled <",$E$4,$D$4," ",$E$3),CONCATENATE("Travelled <",$E$5,$D$5," ",$E$3)) -> Travelled <800KM From State | R7: =IF(selMiles=1,CONCATENATE("Travelled ",$E$4,"-",$G$4,$D$4," ",$E$3),CONCATENATE("Travelled ",$E$5,"-",$G$5,$D$5," ",$E$3)) -> Travelled 800-3200KM From State | S7: =IF(selMiles=1,CONCATENATE("Travelled >",$G$4,$D$4," ",$G$3),CONCATENATE("Travelled >",$G$5,$D$5," ",$G$3)) -> Travelled >3200KM From State | T7: =IF(selMiles=1,CONCATENATE("Travelled <",$E$4,$D$4," ",$H$3),CONCATENATE("Travelled <",$E$5,$D$5," ",$H$3)) -> Travelled <800KM To State | U7: =IF(selMiles=1,CONCATENATE("Travelled ",$E$4,"-",$G$4,$D$4," ",$H$3),CONCATENATE("Travelled ",$E$5,"-",$G$5,$D$5," ",$H$3)) -> Travelled 800-3200KM To State | V7: =IF(selMiles=1,CONCATENATE("Travelled >",$G$4,$D$4," ",$J$3),CONCATENATE("Travelled >",$G$5,$D$5," ",$J$3)) -> Travelled >3200KM To State | Y7: =BD7 -> State | Z7: Number Migrated From State | AA7: Number Migrated To State | AB7: Travelled <800KM From State | AC7: Travelled 800-3200KM From State | AD7: Travelled >3200KM From State | AE7: Travelled <800KM To State | AF7: Travelled 800-3200KM To State | AG7: Travelled >3200KM To State | AH7: Gap Left | AI7: Gap Right | AJ7: Gap Middle | AL7: Y-axis | AM7: X-axis | AP7: State | AQ7: Number Migrated From State | AR7: Number Migrated To State | AS7: =HLOOKUP(selYear*10,$E$1:$V$59,ROW($A$7),FALSE) -> Travelled <800KM From State | AT7: =HLOOKUP((selYear*10)+1,$E$1:$V$59,ROW($A$7),FALSE) -> Travelled 800-3200KM From State | AU7: =HLOOKUP((selYear*10)+2,$E$1:$V$59,ROW($A$7),FALSE) -> Travelled >3200KM From State | AV7: =HLOOKUP((selYear*10)+3,$E$1:$V$59,ROW($A$7),FALSE) -> Travelled <800KM To State | AW7: =HLOOKUP((selYear*10)+4,$E$1:$V$59,ROW($A$7),FALSE) -> Travelled 800-3200KM To State | AX7: =HLOOKUP((selYear*10)+5,$E$1:$V$59,ROW($A$7),FALSE) -> Travelled >3200KM To State | AY7: Gap Left | AZ7: Gap Right | BA7: Gap Middle | BD7: State | BE7: Number Migrated From State | BF7: Number Migrated To State | BG7: Travelled <800KM From State | BH7: Travelled 800-3200KM From State | BI7: Travelled >3200KM From State | BJ7: Travelled <800KM To State | BK7: Travelled 800-3200KM To State | BL7: Travelled >3200KM To State | BM7: Gap Left | BN7: Gap Right | BO7: Gap Middle
A8: 1 | B8: =Distances!$B$3 -> Alabama | C8: =Migration!$W$5 -> 109210 | D8: =Migration!$V$5 -> 104600 | E8: =SUMIFS(INDIRECT("'Migration 2010'!"&ADDRESS(11,ROW(A10))&":"&ADDRESS(62,ROW(A10))),INDIRECT("Distances!"&ADDRESS(3,ROW(A3))&":"&ADDRESS(54,ROW(A3))),"<"&IF(selMiles=1,$E$4,$E$5)) -> 61005 | F8: =SUMIFS(INDIRECT("'Migration 2010'!"&ADDRESS(11,ROW(A10))&":"&ADDRESS(62,ROW(A10))),INDIRECT("Distances!"&ADDRESS(3,ROW(A3))&":"&ADDRESS(54,ROW(A3))),">="&IF(selMiles=1,$E$4,$E$5),INDIRECT("Distances!"&ADDRESS(3,ROW(A3))&":"&ADDRESS(54,ROW(A3))),"<"&IF(selMiles=1,$G$4,$G$5)) -> 32533 | G8: =SUMIFS(INDIRECT("'Migration 2010'!"&ADDRESS(11,ROW(A10))&":"&ADDRESS(62,ROW(A10))),INDIRECT("Distances!"&ADDRESS(3,ROW(A3))&":"&ADDRESS(54,ROW(A3))),">"&IF(selMiles=1,$G$4,$G$5)) -> 6312 | H8: =SUMIFS(INDIRECT("'Migration 2010'!"&ADDRESS(ROW(A11),10)&":"&ADDRESS(ROW(A11),61)),INDIRECT("Distances!"&ADDRESS(ROW(A3),3)&":"&ADDRESS(ROW(A3),54)),"<"&IF(selMiles=1,$E$4,$E$5)) -> 61477 | I8: =SUMIFS(INDIRECT("'Migration 2010'!"&ADDRESS(ROW(A11),10)&":"&ADDRESS(ROW(A11),61)),INDIRECT("Distances!"&ADDRESS(ROW(A3),3)&":"&ADDRESS(ROW(A3),54)),">="&IF(selMiles=1,E$4,$E$5),INDIRECT("Distances!"&ADDRESS(ROW(A3),3)&":"&ADDRESS(ROW(A3),54)),"<"&IF(selMiles=1,$G$4,$G$5)) -> 38711 | J8: =SUMIFS(INDIRECT("'Migration 2010'!"&ADDRESS(ROW(A11),10)&":"&ADDRESS(ROW(A11),61)),INDIRECT("Distances!"&ADDRESS(ROW(A3),3)&":"&ADDRESS(ROW(A3),54)),">"&IF(selMiles=1,$G$4,$G$5)) -> 8763 | K8: =SUMIFS(INDIRECT("'Migration 2011'!"&ADDRESS(11,ROW(F10))&":"&ADDRESS(62,ROW(F10))),INDIRECT("Distances!"&ADDRESS(3,ROW(F3))&":"&ADDRESS(54,ROW(F3))),"<"&IF(selMiles=1,$E$4,$E$5)) -> 63003 | L8: =SUMIFS(INDIRECT("'Migration 2011'!"&ADDRESS(11,ROW(F10))&":"&ADDRESS(62,ROW(F10))),INDIRECT("Distances!"&ADDRESS(3,ROW(F3))&":"&ADDRESS(54,ROW(F3))),">="&IF(selMiles=1,$E$4,$E$5),INDIRECT("Distances!"&ADDRESS(3,ROW(F3))&":"&ADDRESS(54,ROW(F3))),"<"&IF(selMiles=1,$G$4,$G$5)) -> 37811 | M8: =SUMIFS(INDIRECT("'Migration 2011'!"&ADDRESS(11,ROW(F10))&":"&ADDRESS(62,ROW(F10))),INDIRECT("Distances!"&ADDRESS(3,ROW(F3))&":"&ADDRESS(54,ROW(F3))),">"&IF(selMiles=1,$G$4,$G$5)) -> 6027 | N8: =SUMIFS(INDIRECT("'Migration 2011'!"&ADDRESS(ROW(F11),10)&":"&ADDRESS(ROW(F11),61)),INDIRECT("Distances!"&ADDRESS(ROW(F3),3)&":"&ADDRESS(ROW(F3),54)),"<"&IF(selMiles=1,$E$4,$E$5)) -> 63603 | O8: =SUMIFS(INDIRECT("'Migration 2011'!"&ADDRESS(ROW(F11),10)&":"&ADDRESS(ROW(F11),61)),INDIRECT("Distances!"&ADDRESS(ROW(F3),3)&":"&ADDRESS(ROW(F3),54)),">="&IF(selMiles=1,E$4,$E$5),INDIRECT("Distances!"&ADDRESS(ROW(F3),3)&":"&ADDRESS(ROW(F3),54)),"<"&IF(selMiles=1,$G$4,$G$5)) -> 45483 | P8: =SUMIFS(INDIRECT("'Migration 2011'!"&ADDRESS(ROW(F11),10)&":"&ADDRESS(ROW(F11),61)),INDIRECT("Distances!"&ADDRESS(ROW(F3),3)&":"&ADDRESS(ROW(F3),54)),">"&IF(selMiles=1,$G$4,$G$5)) -> 9209 | Q8: =SUMIFS(INDIRECT("'Migration 2012'!"&ADDRESS(11,ROW(L10))&":"&ADDRESS(62,ROW(L10))),INDIRECT("Distances!"&ADDRESS(3,ROW(L3))&":"&ADDRESS(54,ROW(L3))),"<"&IF(selMiles=1,$E$4,$E$5)) -> 63031 | R8: =SUMIFS(INDIRECT("'Migration 2012'!"&ADDRESS(11,ROW(L10))&":"&ADDRESS(62,ROW(L10))),INDIRECT("Distances!"&ADDRESS(3,ROW(L3))&":"&ADDRESS(54,ROW(L3))),">="&IF(selMiles=1,$E$4,$E$5),INDIRECT("Distances!"&ADDRESS(3,ROW(L3))&":"&ADDRESS(54,ROW(L3))),"<"&IF(selMiles=1,$G$4,$G$5)) -> 40093 | S8: =SUMIFS(INDIRECT("'Migration 2012'!"&ADDRESS(11,ROW(L10))&":"&ADDRESS(62,ROW(L10))),INDIRECT("Distances!"&ADDRESS(3,ROW(L3))&":"&ADDRESS(54,ROW(L3))),">"&IF(selMiles=1,$G$4,$G$5)) -> 6094 | T8: =SUMIFS(INDIRECT("'Migration 2012'!"&ADDRESS(ROW(L11),10)&":"&ADDRESS(ROW(L11),61)),INDIRECT("Distances!"&ADDRESS(ROW(L3),3)&":"&ADDRESS(ROW(L3),54)),"<"&IF(selMiles=1,$E$4,$E$5)) -> 60986 | U8: =SUMIFS(INDIRECT("'Migration 2012'!"&ADDRESS(ROW(L11),10)&":"&ADDRESS(ROW(L11),61)),INDIRECT("Distances!"&ADDRESS(ROW(L3),3)&":"&ADDRESS(ROW(L3),54)),">="&IF(selMiles=1,E$4,$E$5),INDIRECT("Distances!"&ADDRESS(ROW(L3),3)&":"&ADDRESS(ROW(L3),54)),"<"&IF(selMiles=1,$G$4,$G$5)) -> 38291 | V8: =SUMIFS(INDIRECT("'Migration 2012'!"&ADDRESS(ROW(L11),10)&":"&ADDRESS(ROW(L11),61)),INDIRECT("Distances!"&ADDRESS(ROW(L3),3)&":"&ADDRESS(ROW(L3),54)),">"&IF(selMiles=1,$G$4,$G$5)) -> 5942 | X8: =INDEX($BC$8:$BO$59,ROW(A1)+selScroll,1) -> 44 | Y8: =INDEX($BC$8:$BO$59,ROW(B1)+selScroll,2) -> Texas | Z8: =INDEX($BC$8:$BO$59,ROW(B1)+selScroll,3) -> 411641 | AA8: =INDEX($BC$8:$BO$59,ROW(B1)+selScroll,4) -> 486558 | AB8: =INDEX($BC$8:$BO$59,ROW(B1)+selScroll,5) -> 68993 | AC8: =INDEX($BC$8:$BO$59,ROW(B1)+selScroll,6) -> 328406 | AD8: =INDEX($BC$8:$BO$59,ROW(B1)+selScroll,7) -> 5148 | AE8: =INDEX($BC$8:$BO$59,ROW(B1)+selScroll,8) -> 75815 | AF8: =INDEX($BC$8:$BO$59,ROW(B1)+selScroll,9) -> 420138 | AG8: =INDEX($BC$8:$BO$59,ROW(B1)+selScroll,10) -> 16234 | AH8: =INDEX($BC$8:$BO$59,ROW(B1)+selScroll,11) -> 197453 | AI8: =INDEX($BC$8:$BO$59,ROW(B1)+selScroll,12) -> 87813 | AJ8: =BO8 -> 100000 | AL8: =-50000 -> -50000 | AM8: 100000 | AO8: 1 | AP8: =INDEX($B$8:$B$59,ROW(A1)) -> Alabama | AQ8: 99221 | AR8: 108723 | AS8: =HLOOKUP(selYear*10,$E$1:$V$59,ROW(A8),FALSE) -> 63031 | AT8: =HLOOKUP((selYear*10)+1,$E$1:$V$59,ROW(A8),FALSE) -> 40093 | AU8: =HLOOKUP((selYear*10)+2,$E$1:$V$59,ROW(A8),FALSE) -> 6094 | AV8: =HLOOKUP((selYear*10)+3,$E$1:$V$59,ROW(A8),FALSE) -> 60986 | AW8: =HLOOKUP((selYear*10)+4,$E$1:$V$59,ROW(A8),FALSE) -> 38291 | AX8: =HLOOKUP((selYear*10)+5,$E$1:$V$59,ROW(A8),FALSE) -> 5942 | AY8: =600000-AS8-AT8-AU8 -> 490782 | AZ8: =600000-AV8-AW8-AX8 -> 494781 | BA8: 100000 | BC8: 44 | BD8: Texas | BE8: 411641 | BF8: 486558 | BG8: 68993 | BH8: 328406 | BI8: 5148 | BJ8: 75815 | BK8: 420138 | BL8: 16234 | BM8: 197453 | BN8: 87813 | BO8: 100000
A9: 2 | B9: =Distances!$B$4 -> Alaska | C9: =Migration!$W$6 -> 84068 | D9: =Migration!$V$6 -> 33415 | E9: 0 | F9: 27958 | G9: 66890 | H9: 0 | I9: 14286 | J9: 22059 | K9: 0 | L9: 28727 | M9: 60501 | N9: =SUMIFS(INDIRECT("'Migration 2011'!"&ADDRESS(ROW(F12),10)&":"&ADDRESS(ROW(F12),61)),INDIRECT("Distances!"&ADDRESS(ROW(F4),3)&":"&ADDRESS(ROW(F4),54)),"<"&IF(selMiles=1,$E$4,$E$5)) -> 0 | O9: =SUMIFS(INDIRECT("'Migration 2011'!"&ADDRESS(ROW(F12),10)&":"&ADDRESS(ROW(F12),61)),INDIRECT("Distances!"&ADDRESS(ROW(F4),3)&":"&ADDRESS(ROW(F4),54)),">="&IF(selMiles=1,E$4,$E$5),INDIRECT("Distances!"&ADDRESS(ROW(F4),3)&":"&ADDRESS(ROW(F4),54)),"<"&IF(selMiles=1,$G$4,$G$5)) -> 14447 | P9: =SUMIFS(INDIRECT("'Migration 2011'!"&ADDRESS(ROW(F12),10)&":"&ADDRESS(ROW(F12),61)),INDIRECT("Distances!"&ADDRESS(ROW(F4),3)&":"&ADDRESS(ROW(F4),54)),">"&IF(selMiles=1,$G$4,$G$5)) -> 21681 | Q9: 0 | R9: 26235 | S9: 57890 | T9: 0 | U9: =SUMIFS(INDIRECT("'Migration 2012'!"&ADDRESS(ROW(L12),10)&":"&ADDRESS(ROW(L12),61)),INDIRECT("Distances!"&ADDRESS(ROW(L4),3)&":"&ADDRESS(ROW(L4),54)),">="&IF(selMiles=1,E$4,$E$5),INDIRECT("Distances!"&ADDRESS(ROW(L4),3)&":"&ADDRESS(ROW(L4),54)),"<"&IF(selMiles=1,$G$4,$G$5)) -> 13682 | V9: 19758 | X9: 10 | Y9: Florida | Z9: 427853 | AA9: 482889 | AB9: 118882 | AC9: 273449 | AD9: 40186 | AE9: 123167 | AF9: 392249 | AG9: 43370 | AH9: 167483 | AI9: 41214 | AJ9: 100000 | AL9: =$AL$8+10000 -> -40000 | AM9: =$AM$8+100000 -> 200000 | AO9: 2 | AP9: =INDEX($B$8:$B$59,ROW(A2)) -> Alaska | AQ9: 94692 | AR9: 36326 | AS9: 0 | AT9: 26235 | AU9: 57890 | AV9: 0 | AW9: 13682 | AX9: 19758 | AY9: 515875 | AZ9: 566560 | BA9: 100000 | BC9: 10 | BD9: Florida | BE9: 427853 | BF9: 482889 | BG9: 118882 | BH9: 273449 | BI9: 40186 | BJ9: 123167 | BK9: 392249 | BL9: 43370 | BM9: 167483 | BN9: 41214 | BO9: 100000
A10: 3 | B10: =Distances!$B$5 -> Arizona | C10: =Migration!$W$7 -> 206842 | D10: =Migration!$V$7 -> 232457 | E10: 6117 | F10: 159018 | G10: 11921 | H10: 4419 | I10: 199509 | J10: 19396 | K10: 7444 | L10: 187415 | M10: 17186 | N10: 4610 | O10: =SUMIFS(INDIRECT("'Migration 2011'!"&ADDRESS(ROW(F13),10)&":"&ADDRESS(ROW(F13),61)),INDIRECT("Distances!"&ADDRESS(ROW(F5),3)&":"&ADDRESS(ROW(F5),54)),">="&IF(selMiles=1,E$4,$E$5),INDIRECT("Distances!"&ADDRESS(ROW(F5),3)&":"&ADDRESS(ROW(F5),54)),"<"&IF(selMiles=1,$G$4,$G$5)) -> 198972 | P10: 20166 | Q10: 6391 | R10: 184615 | S10: 15890 | T10: 6946 | U10: =SUMIFS(INDIRECT("'Migration 2012'!"&ADDRESS(ROW(L13),10)&":"&ADDRESS(ROW(L13),61)),INDIRECT("Distances!"&ADDRESS(ROW(L5),3)&":"&ADDRESS(ROW(L5),54)),">="&IF(selMiles=1,E$4,$E$5),INDIRECT("Distances!"&ADDRESS(ROW(L5),3)&":"&ADDRESS(ROW(L5),54)),"<"&IF(selMiles=1,$G$4,$G$5)) -> 201759 | V10: 25543 | X10: 5 | Y10: California | Z10: 573988 | AA10: 444749 | AB10: 92120 | AC10: 307733 | AD10: 167652 | AE10: 56023 | AF10: 257159 | AG10: 182782 | AH10: 32495 | AI10: 104036 | AJ10: 100000 | AL10: =$AL$9+10000 -> -30000 | AM10: =$AM$9+100000 -> 300000 | AO10: 3 | AP10: Arizona | AQ10: 176768 | AR10: 222725 | AS10: 6391 | AT10: 184615 | AU10: 15890 | AV10: 6946 | AW10: 201759 | AX10: 25543 | AY10: 393104 | AZ10: 365752 | BA10: 100000 | BC10: 5 | BD10: California | BE10: 573988 | BF10: 444749 | BG10: 92120 | BH10: 307733 | BI10: 167652 | BJ10: 56023 | BK10: 257159 | BL10: 182782 | BM10: 32495 | BN10: 104036 | BO10: 100000
A11: 4 | B11: =Distances!$B$6 -> Arkansas | C11: =Migration!$W$8 -> 64967 | D11: =Migration!$V$8 -> 76948 | E11: 45461 | F11: 18756 | G11: 47 | H11: 54962 | I11: 23189 | J11: 1063 | K11: 53610 | L11: 23184 | M11: 432 | N11: 46742 | O11: =SUMIFS(INDIRECT("'Migration 2011'!"&ADDRESS(ROW(F14),10)&":"&ADDRESS(ROW(F14),61)),INDIRECT("Distances!"&ADDRESS(ROW(F6),3)&":"&ADDRESS(ROW(F6),54)),">="&IF(selMiles=1,E$4,$E$5),INDIRECT("Distances!"&ADDRESS(ROW(F6),3)&":"&ADDRESS(ROW(F6),54)),"<"&IF(selMiles=1,$G$4,$G$5)) -> 23059 | P11: 573 | Q11: 45965 | R11: 18875 | S11: 220 | T11: 52212 | U11: =SUMIFS(INDIRECT("'Migration 2012'!"&ADDRESS(ROW(L14),10)&":"&ADDRESS(ROW(L14),61)),INDIRECT("Distances!"&ADDRESS(ROW(L6),3)&":"&ADDRESS(ROW(L6),54)),">="&IF(selMiles=1,E$4,$E$5),INDIRECT("Distances!"&ADDRESS(ROW(L6),3)&":"&ADDRESS(ROW(L6),54)),"<"&IF(selMiles=1,$G$4,$G$5)) -> 23881 | V11: 855 | X11: 33 | Y11: New York | Z11: 363139 | AA11: 269427 | AB11: 164257 | AC11: 189740 | AD11: 54181 | AE11: 124901 | AF11: 113228 | AG11: 39245 | AH11: 191822 | AI11: 322626 | AJ11: 100000 | AL11: =$AL$10+10000 -> -20000 | AM11: =$AM$10+100000 -> 400000 | AO11: 4 | AP11: Arkansas | AQ11: 64264 | AR11: 79127 | AS11: 45965 | AT11: 18875 | AU11: 220 | AV11: 52212 | AW11: 23881 | AX11: 855 | AY11: 534940 | AZ11: 523052 | BA11: 100000 | BC11: 33 | BD11: New York | BE11: 363139 | BF11: 269427 | BG11: 164257 | BH11: 189740 | BI11: 54181 | BJ11: 124901 | BK11: 113228 | BL11: 39245 | BM11: 191822 | BN11: 322626 | BO11: 100000
A12: 5 | B12: =Distances!$B$7 -> California | C12: =Migration!$W$9 -> 566986 | D12: =Migration!$V$9 -> 493641 | E12: 78594 | F12: 315915 | G12: 180656 | H12: 54356 | I12: 232812 | J12: 158804 | K12: 83349 | L12: 301344 | M12: 177857 | N12: 59120 | O12: =SUMIFS(INDIRECT("'Migration 2011'!"&ADDRESS(ROW(F15),10)&":"&ADDRESS(ROW(F15),61)),INDIRECT("Distances!"&ADDRESS(ROW(F7),3)&":"&ADDRESS(ROW(F7),54)),">="&IF(selMiles=1,E$4,$E$5),INDIRECT("Distances!"&ADDRESS(ROW(F7),3)&":"&ADDRESS(ROW(F7),54)),"<"&IF(selMiles=1,$G$4,$G$5)) -> 247823 | P12: 162829 | Q12: 92120 | R12: 307733 | S12: 167652 | T12: 56023 | U12: =SUMIFS(INDIRECT("'Migration 2012'!"&ADDRESS(ROW(L15),10)&":"&ADDRESS(ROW(L15),61)),INDIRECT("Distances!"&ADDRESS(ROW(L7),3)&":"&ADDRESS(ROW(L7),54)),">="&IF(selMiles=1,E$4,$E$5),INDIRECT("Distances!"&ADDRESS(ROW(L7),3)&":"&ADDRESS(ROW(L7),54)),"<"&IF(selMiles=1,$G$4,$G$5)) -> 257159 | V12: 182782 | X12: 34 | Y12: North Carolina | Z12: 207025 | AA12: 263256 | AB12: 136464 | AC12: 81327 | AD12: 21510 | AE12: 163748 | AF12: 85310 | AG12: 26116 | AH12: 360699 | AI12: 324826 | AJ12: 100000 | AL12: =$AL$11+10000 -> -10000 | AM12: =$AM$11+100000 -> 500000 | AO12: 5 | AP12: California | AQ12: 573988 | AR12: 444749 | AS12: 92120 | AT12: 307733 | AU12: 167652 | AV12: 56023 | AW12: 257159 | AX12: 182782 | AY12: 32495 | AZ12: 104036 | BA12: 100000 | BC12: 34 | BD12: North Carolina | BE12: 207025 | BF12: 263256 | BG12: 136464 | BH12: 81327 | BI12: 21510 | BJ12: 163748 | BK12: 85310 | BL12: 26116 | BM12: 360699 | BN12: 324826 | BO12: 100000
A13: 6 | B13: =Distances!$B$8 -> Colorado | C13: =Migration!$W$10 -> 161530 | D13: =Migration!$V$10 -> 205060 | E13: 16218 | F13: 123329 | G13: 1461 | H13: 18999 | I13: 165012 | J13: 3229 | K13: 20682 | L13: 138991 | M13: 950 | N13: 21517 | O13: =SUMIFS(INDIRECT("'Migration 2011'!"&ADDRESS(ROW(F16),10)&":"&ADDRESS(ROW(F16),61)),INDIRECT("Distances!"&ADDRESS(ROW(F8),3)&":"&ADDRESS(ROW(F8),54)),">="&IF(selMiles=1,E$4,$E$5),INDIRECT("Distances!"&ADDRESS(ROW(F8),3)&":"&ADDRESS(ROW(F8),54)),"<"&IF(selMiles=1,$G$4,$G$5)) -> 178755 | P13: 2328 | Q13: 19496 | R13: 140818 | S13: 1216 | T13: 23748 | U13: =SUMIFS(INDIRECT("'Migration 2012'!"&ADDRESS(ROW(L16),10)&":"&ADDRESS(ROW(L16),61)),INDIRECT("Distances!"&ADDRESS(ROW(L8),3)&":"&ADDRESS(ROW(L8),54)),">="&IF(selMiles=1,E$4,$E$5),INDIRECT("Distances!"&ADDRESS(ROW(L8),3)&":"&ADDRESS(ROW(L8),54)),"<"&IF(selMiles=1,$G$4,$G$5)) -> 178776 | V13: 3680 | X13: 47 | Y13: Virginia | Z13: 232002 | AA13: 259507 | AB13: 125219 | AC13: 89803 | AD13: 24202 | AE13: 143499 | AF13: 79835 | AG13: 27835 | AH13: 360776 | AI13: 348831 | AJ13: 100000 | AL13: =$AL$12+10000 -> 0 | AM13: =$AM$12+100000 -> 600000 | AO13: 6 | AP13: Colorado | AQ13: 140620 | AR13: 186366 | AS13: 19496 | AT13: 140818 | AU13: 1216 | AV13: 23748 | AW13: 178776 | AX13: 3680 | AY13: 438470 | AZ13: 393796 | BA13: 100000 | BC13: 47 | BD13: Virginia | BE13: 232002 | BF13: 259507 | BG13: 125219 | BH13: 89803 | BI13: 24202 | BJ13: 143499 | BK13: 79835 | BL13: 27835 | BM13: 360776 | BN13: 348831 | BO13: 100000
A14: 7 | B14: =Distances!$B$9 -> Connecticut | C14: =Migration!$W$11 -> 87023 | D14: =Migration!$V$11 -> 80311 | E14: 50701 | F14: 32462 | G14: 7096 | H14: 42176 | I14: 28481 | J14: 8703 | K14: 47489 | L14: 37112 | M14: 8543 | N14: 44250 | O14: =SUMIFS(INDIRECT("'Migration 2011'!"&ADDRESS(ROW(F17),10)&":"&ADDRESS(ROW(F17),61)),INDIRECT("Distances!"&ADDRESS(ROW(F9),3)&":"&ADDRESS(ROW(F9),54)),">="&IF(selMiles=1,E$4,$E$5),INDIRECT("Distances!"&ADDRESS(ROW(F9),3)&":"&ADDRESS(ROW(F9),54)),"<"&IF(selMiles=1,$G$4,$G$5)) -> 20441 | P14: 8916 | Q14: 46219 | R14: 30191 | S14: 10983 | T14: 48223 | U14: =SUMIFS(INDIRECT("'Migration 2012'!"&ADDRESS(ROW(L17),10)&":"&ADDRESS(ROW(L17),61)),INDIRECT("Distances!"&ADDRESS(ROW(L9),3)&":"&ADDRESS(ROW(L9),54)),">="&IF(selMiles=1,E$4,$E$5),INDIRECT("Distances!"&ADDRESS(ROW(L9),3)&":"&ADDRESS(ROW(L9),54)),"<"&IF(selMiles=1,$G$4,$G$5)) -> 26199 | V14: 9117 | X14: 11 | Y14: Georgia | Z14: 244992 | AA14: 249459 | AB14: 147877 | AC14: 84056 | AD14: 20561 | AE14: 148965 | AF14: 109576 | AG14: 20655 | AH14: 347506 | AI14: 320804 | AJ14: 100000 | AL14: 0 | AM14: =$AM$13+100000 -> 700000 | AO14: 7 | AP14: Connecticut | AQ14: 89360 | AR14: 77333 | AS14: 46219 | AT14: 30191 | AU14: 10983 | AV14: 48223 | AW14: 26199 | AX14: 9117 | AY14: 512607 | AZ14: 516461 | BA14: 100000 | BC14: 11 | BD14: Georgia | BE14: 244992 | BF14: 249459 | BG14: 147877 | BH14: 84056 | BI14: 20561 | BJ14: 148965 | BK14: 109576 | BL14: 20655 | BM14: 347506 | BN14: 320804 | BO14: 100000
A15: 8 | B15: =Distances!$B$10 -> Delaware | C15: =Migration!$W$12 -> 25149 | D15: =Migration!$V$12 -> 34757 | E15: 20199 | F15: 8273 | G15: 1583 | H15: 24628 | I15: 6121 | J15: 964 | K15: 19115 | L15: 4997 | M15: 2532 | N15: 25871 | O15: =SUMIFS(INDIRECT("'Migration 2011'!"&ADDRESS(ROW(F18),10)&":"&ADDRESS(ROW(F18),61)),INDIRECT("Distances!"&ADDRESS(ROW(F10),3)&":"&ADDRESS(ROW(F10),54)),">="&IF(selMiles=1,E$4,$E$5),INDIRECT("Distances!"&ADDRESS(ROW(F10),3)&":"&ADDRESS(ROW(F10),54)),"<"&IF(selMiles=1,$G$4,$G$5)) -> 6356 | P15: 2693 | Q15: 19061 | R15: 4497 | S15: 1591 | T15: 27525 | U15: =SUMIFS(INDIRECT("'Migration 2012'!"&ADDRESS(ROW(L18),10)&":"&ADDRESS(ROW(L18),61)),INDIRECT("Distances!"&ADDRESS(ROW(L10),3)&":"&ADDRESS(ROW(L10),54)),">="&IF(selMiles=1,E$4,$E$5),INDIRECT("Distances!"&ADDRESS(ROW(L10),3)&":"&ADDRESS(ROW(L10),54)),"<"&IF(selMiles=1,$G$4,$G$5)) -> 3554 | V15: 3734 | X15: 39 | Y15: Pennsylvania | Z15: 209810 | AA15: 235580 | AB15: 143890 | AC15: 77700 | AD15: 17879 | AE15: 152991 | AF15: 56701 | AG15: 13655 | AH15: 360531 | AI15: 376653 | AJ15: 100000 | AL15: =$AL$14+10000 -> 10000 | AM15: =$AM$14+100000 -> 800000 | AO15: 8 | AP15: Delaware | AQ15: 30055 | AR15: 30759 | AS15: 19061 | AT15: 4497 | AU15: 1591 | AV15: 27525 | AW15: 3554 | AX15: 3734 | AY15: 574851 | AZ15: 565187 | BA15: 100000 | BC15: 39 | BD15: Pennsylvania | BE15: 209810 | BF15: 235580 | BG15: 143890 | BH15: 77700 | BI15: 17879 | BJ15: 152991 | BK15: 56701 | BL15: 13655 | BM15: 360531 | BN15: 376653 | BO15: 100000
A16: 9 | B16: =Distances!$B$11 -> District of Columbia | C16: =Migration!$W$13 -> 59513 | D16: =Migration!$V$13 -> 53830 | E16: 44565 | F16: 7186 | G16: 4301 | H16: 37125 | I16: 8438 | J16: 5681 | K16: 35830 | L16: 8822 | M16: 5292 | N16: 34870 | O16: =SUMIFS(INDIRECT("'Migration 2011'!"&ADDRESS(ROW(F19),10)&":"&ADDRESS(ROW(F19),61)),INDIRECT("Distances!"&ADDRESS(ROW(F11),3)&":"&ADDRESS(ROW(F11),54)),">="&IF(selMiles=1,E$4,$E$5),INDIRECT("Distances!"&ADDRESS(ROW(F11),3)&":"&ADDRESS(ROW(F11),54)),"<"&IF(selMiles=1,$G$4,$G$5)) -> 8059 | P16: 5137 | Q16: 46170 | R16: 7505 | S16: 5838 | T16: 36610 | U16: =SUMIFS(INDIRECT("'Migration 2012'!"&ADDRESS(ROW(L19),10)&":"&ADDRESS(ROW(L19),61)),INDIRECT("Distances!"&ADDRESS(ROW(L11),3)&":"&ADDRESS(ROW(L11),54)),">="&IF(selMiles=1,E$4,$E$5),INDIRECT("Distances!"&ADDRESS(ROW(L11),3)&":"&ADDRESS(ROW(L11),54)),"<"&IF(selMiles=1,$G$4,$G$5)) -> 10210 | V16: 7010 | X16: 3 | Y16: Arizona | Z16: 176768 | AA16: 222725 | AB16: 6391 | AC16: 184615 | AD16: 15890 | AE16: 6946 | AF16: 201759 | AG16: 25543 | AH16: 393104 | AI16: 365752 | AJ16: 100000 | AL16: =$AL$15+10000 -> 20000 | AM16: =$AM$15+100000 -> 900000 | AO16: 9 | AP16: District of Columbia | AQ16: 56052 | AR16: 51244 | AS16: 46170 | AT16: 7505 | AU16: 5838 | AV16: 36610 | AW16: 10210 | AX16: 7010 | AY16: 540487 | AZ16: 546170 | BA16: 100000 | BC16: 3 | BD16: Arizona | BE16: 176768 | BF16: 222725 | BG16: 6391 | BH16: 184615 | BI16: 15890 | BJ16: 6946 | BK16: 201759 | BL16: 25543 | BM16: 393104 | BN16: 365752 | BO16: 100000
A17: 10 | B17: =Distances!$B$12 -> Florida | C17: =Migration!$W$14 -> 428325 | D17: =Migration!$V$14 -> 537148 | E17: 138382 | F17: 262227 | G17: 38506 | H17: 109355 | I17: 344186 | J17: 42316 | K17: 133085 | L17: 271888 | M17: 38843 | N17: 108949 | O17: =SUMIFS(INDIRECT("'Migration 2011'!"&ADDRESS(ROW(F20),10)&":"&ADDRESS(ROW(F20),61)),INDIRECT("Distances!"&ADDRESS(ROW(F12),3)&":"&ADDRESS(ROW(F12),54)),">="&IF(selMiles=1,E$4,$E$5),INDIRECT("Distances!"&ADDRESS(ROW(F12),3)&":"&ADDRESS(ROW(F12),54)),"<"&IF(selMiles=1,$G$4,$G$5)) -> 364614 | P17: 46645 | Q17: 118882 | R17: 273449 | S17: 40186 | T17: 123167 | U17: =SUMIFS(INDIRECT("'Migration 2012'!"&ADDRESS(ROW(L20),10)&":"&ADDRESS(ROW(L20),61)),INDIRECT("Distances!"&ADDRESS(ROW(L12),3)&":"&ADDRESS(ROW(L12),54)),">="&IF(selMiles=1,E$4,$E$5),INDIRECT("Distances!"&ADDRESS(ROW(L12),3)&":"&ADDRESS(ROW(L12),54)),"<"&IF(selMiles=1,$G$4,$G$5)) -> 392249 | V17: 43370 | X17: 14 | Y17: Illinois | Z17: 277579 | AA17: 203959 | AB17: 128374 | AC17: 149203 | AD17: 1397 | AE17: 92796 | AF17: 112840 | AG17: 5168 | AH17: 321026 | AI17: 389196 | AJ17: 100000 | AL17: =$AL$16+10000 -> 30000 | AM17: =$AM$16+100000 -> 1000000 | AO17: 10 | AP17: Florida | AQ17: 427853 | AR17: 482889 | AS17: 118882 | AT17: 273449 | AU17: 40186 | AV17: 123167 | AW17: 392249 | AX17: 43370 | AY17: 167483 | AZ17: 41214 | BA17: 100000 | BC17: 14 | BD17: Illinois | BE17: 277579 | BF17: 203959 | BG17: 128374 | BH17: 149203 | BI17: 1397 | BJ17: 92796 | BK17: 112840 | BL17: 5168 | BM17: 321026 | BN17: 389196 | BO17: 100000
A18: 11 | B18: =Distances!$B$13 -> Georgia | C18: =Migration!$W$15 -> 252262 | D18: =Migration!$V$15 -> 277466 | E18: 145388 | F18: 83932 | G18: 15879 | H18: 142981 | I18: 88556 | J18: 18932 | K18: 136634 | L18: 85476 | M18: 27029 | N18: 152217 | O18: =SUMIFS(INDIRECT("'Migration 2011'!"&ADDRESS(ROW(F21),10)&":"&ADDRESS(ROW(F21),61)),INDIRECT("Distances!"&ADDRESS(ROW(F13),3)&":"&ADDRESS(ROW(F13),54)),">="&IF(selMiles=1,E$4,$E$5),INDIRECT("Distances!"&ADDRESS(ROW(F13),3)&":"&ADDRESS(ROW(F13),54)),"<"&IF(selMiles=1,$G$4,$G$5)) -> 99033 | P18: 21462 | Q18: 147877 | R18: 84056 | S18: 20561 | T18: 148965 | U18: =SUMIFS(INDIRECT("'Migration 2012'!"&ADDRESS(ROW(L21),10)&":"&ADDRESS(ROW(L21),61)),INDIRECT("Distances!"&ADDRESS(ROW(L13),3)&":"&ADDRESS(ROW(L13),54)),">="&IF(selMiles=1,E$4,$E$5),INDIRECT("Distances!"&ADDRESS(ROW(L13),3)&":"&ADDRESS(ROW(L13),54)),"<"&IF(selMiles=1,$G$4,$G$5)) -> 109576 | V18: 20655 | X18: 48 | Y18: Washington | Z18: 166162 | AA18: 191784 | AB18: 31622 | AC18: 102186 | AD18: 46654 | AE18: 36129 | AF18: 115694 | AG18: 64696 | AH18: 419538 | AI18: 383481 | AJ18: 100000 | AL18: =$AL$17+10000 -> 40000 | AM18: =$AM$17+100000 -> 1100000 | AO18: 11 | AP18: Georgia | AQ18: 244992 | AR18: 249459 | AS18: 147877 | AT18: 84056 | AU18: 20561 | AV18: 148965 | AW18: 109576 | AX18: 20655 | AY18: 347506 | AZ18: 320804 | BA18: 100000 | BC18: 48 | BD18: Washington | BE18: 166162 | BF18: 191784 | BG18: 31622 | BH18: 102186 | BI18: 46654 | BJ18: 36129 | BK18: 115694 | BL18: 64696 | BM18: 419538 | BN18: 383481 | BO18: 100000
A19: 12 | B19: =Distances!$B$14 -> Hawaii | C19: =Migration!$W$16 -> 61509 | D19: =Migration!$V$16 -> 55145 | E19: 0 | F19: 0 | G19: 49218 | H19: 0 | I19: 0 | J19: 53581 | K19: 0 | L19: 0 | M19: 61940 | N19: 0 | O19: =SUMIFS(INDIRECT("'Migration 2011'!"&ADDRESS(ROW(F22),10)&":"&ADDRESS(ROW(F22),61)),INDIRECT("Distances!"&ADDRESS(ROW(F14),3)&":"&ADDRESS(ROW(F14),54)),">="&IF(selMiles=1,E$4,$E$5),INDIRECT("Distances!"&ADDRESS(ROW(F14),3)&":"&ADDRESS(ROW(F14),54)),"<"&IF(selMiles=1,$G$4,$G$5)) -> 0 | P19: 57780 | Q19: 0 | R19: 0 | S19: 61619 | T19: 0 | U19: =SUMIFS(INDIRECT("'Migration 2012'!"&ADDRESS(ROW(L22),10)&":"&ADDRESS(ROW(L22),61)),INDIRECT("Distances!"&ADDRESS(ROW(L14),3)&":"&ADDRESS(ROW(L14),54)),">="&IF(selMiles=1,E$4,$E$5),INDIRECT("Distances!"&ADDRESS(ROW(L14),3)&":"&ADDRESS(ROW(L14),54)),"<"&IF(selMiles=1,$G$4,$G$5)) -> 0 | V19: 55481 | X19: 6 | Y19: Colorado | Z19: 140620 | AA19: 186366 | AB19: 19496 | AC19: 140818 | AD19: 1216 | AE19: 23748 | AF19: 178776 | AG19: 3680 | AH19: 438470 | AI19: 393796 | AJ19: 100000 | AL19: =$AL$18+10000 -> 50000 | AM19: =$AM$18+100000 -> 1200000 | AO19: 12 | AP19: Hawaii | AQ19: 49218 | AR19: 53581 | AS19: 0 | AT19: 0 | AU19: 61619 | AV19: 0 | AW19: 0 | AX19: 55481 | AY19: 538381 | AZ19: 544519 | BA19: 100000 | BC19: 6 | BD19: Colorado | BE19: 140620 | BF19: 186366 | BG19: 19496 | BH19: 140818 | BI19: 1216 | BJ19: 23748 | BK19: 178776 | BL19: 3680 | BM19: 438470 | BN19: 393796 | BO19: 100000
A20: 13 | B20: =Distances!$B$15 -> Idaho | C20: =Migration!$W$17 -> 55191 | D20: =Migration!$V$17 -> 59283 | E20: 33345 | F20: 16301 | G20: 3476 | H20: 34643 | I20: 19089 | J20: 2139 | K20: 34937 | L20: 19142 | M20: 3765 | N20: 36424 | O20: =SUMIFS(INDIRECT("'Migration 2011'!"&ADDRESS(ROW(F23),10)&":"&ADDRESS(ROW(F23),61)),INDIRECT("Distances!"&ADDRESS(ROW(F15),3)&":"&ADDRESS(ROW(F15),54)),">="&IF(selMiles=1,E$4,$E$5),INDIRECT("Distances!"&ADDRESS(ROW(F15),3)&":"&ADDRESS(ROW(F15),54)),"<"&IF(selMiles=1,$G$4,$G$5)) -> 21064 | P20: 3097 | Q20: 31045 | R20: 20524 | S20: 3622 | T20: 38593 | U20: =SUMIFS(INDIRECT("'Migration 2012'!"&ADDRESS(ROW(L23),10)&":"&ADDRESS(ROW(L23),61)),INDIRECT("Distances!"&ADDRESS(ROW(L15),3)&":"&ADDRESS(ROW(L15),54)),">="&IF(selMiles=1,E$4,$E$5),INDIRECT("Distances!"&ADDRESS(ROW(L15),3)&":"&ADDRESS(ROW(L15),54)),"<"&IF(selMiles=1,$G$4,$G$5)) -> 17147 | V20: 3679 | AM20: =$AM$19+100000 -> 1300000 | AO20: 13 | AP20: Idaho | AQ20: 53122 | AR20: 55638 | AS20: 31045 | AT20: 20524 | AU20: 3622 | AV20: 38593 | AW20: 17147 | AX20: 3679 | AY20: 544809 | AZ20: 540581 | BA20: 100000 | BC20: 36 | BD20: Ohio | BE20: 188013 | BF20: 172633 | BG20: 108016 | BH20: 74058 | BI20: 17456 | BJ20: 110071 | BK20: 72029 | BL20: 15694 | BM20: 400470 | BN20: 402206 | BO20: 100000
A21: 14 | B21: =Distances!$B$16 -> Illinois | C21: =Migration!$W$18 -> 277953 | D21: =Migration!$V$18 -> 208755 | E21: 127087 | F21: 149389 | G21: 2745 | H21: 95836 | I21: 105135 | J21: 5043 | K21: 129667 | L21: 136472 | M21: 3493 | N21: 99150 | O21: =SUMIFS(INDIRECT("'Migration 2011'!"&ADDRESS(ROW(F24),10)&":"&ADDRESS(ROW(F24),61)),INDIRECT("Distances!"&ADDRESS(ROW(F16),3)&":"&ADDRESS(ROW(F16),54)),">="&IF(selMiles=1,E$4,$E$5),INDIRECT("Distances!"&ADDRESS(ROW(F16),3)&":"&ADDRESS(ROW(F16),54)),"<"&IF(selMiles=1,$G$4,$G$5)) -> 111666 | P21: 7775 | Q21: 128374 | R21: 149203 | S21: 1397 | T21: 92796 | U21: =SUMIFS(INDIRECT("'Migration 2012'!"&ADDRESS(ROW(L24),10)&":"&ADDRESS(ROW(L24),61)),INDIRECT("Distances!"&ADDRESS(ROW(L16),3)&":"&ADDRESS(ROW(L16),54)),">="&IF(selMiles=1,E$4,$E$5),INDIRECT("Distances!"&ADDRESS(ROW(L16),3)&":"&ADDRESS(ROW(L16),54)),"<"&IF(selMiles=1,$G$4,$G$5)) -> 112840 | V21: 5168 | AM21: =$AM$20+100000 -> 1400000 | AO21: 14 | AP21: Illinois | AQ21: 277579 | AR21: 203959 | AS21: 128374 | AT21: 149203 | AU21: 1397 | AV21: 92796 | AW21: 112840 | AX21: 5168 | AY21: 321026 | AZ21: 389196 | BA21: 100000 | BC21: 21 | BD21: Maryland | BE21: 159866 | BF21: 164484 | BG21: 103797 | BH21: 37378 | BI21: 16597 | BJ21: 103191 | BK21: 37587 | BL21: 14499 | BM21: 442228 | BN21: 444723 | BO21: 100000
A22: 15 | B22: =Distances!$B$17 -> Indiana | C22: =Migration!$W$19 -> 144597 | D22: =Migration!$V$19 -> 134137 | E22: 79130 | F22: 50948 | G22: 201 | H22: 85633 | I22: 41848 | J22: 444 | K22: 85641 | L22: 57788 | M22: 583 | N22: 78398 | O22: =SUMIFS(INDIRECT("'Migration 2011'!"&ADDRESS(ROW(F25),10)&":"&ADDRESS(ROW(F25),61)),INDIRECT("Distances!"&ADDRESS(ROW(F17),3)&":"&ADDRESS(ROW(F17),54)),">="&IF(selMiles=1,E$4,$E$5),INDIRECT("Distances!"&ADDRESS(ROW(F17),3)&":"&ADDRESS(ROW(F17),54)),"<"&IF(selMiles=1,$G$4,$G$5)) -> 48180 | P22: 1428 | Q22: 88128 | R22: 56038 | S22: 552 | T22: 86147 | U22: =SUMIFS(INDIRECT("'Migration 2012'!"&ADDRESS(ROW(L25),10)&":"&ADDRESS(ROW(L25),61)),INDIRECT("Distances!"&ADDRESS(ROW(L17),3)&":"&ADDRESS(ROW(L17),54)),">="&IF(selMiles=1,E$4,$E$5),INDIRECT("Distances!"&ADDRESS(ROW(L17),3)&":"&ADDRESS(ROW(L17),54)),"<"&IF(selMiles=1,$G$4,$G$5)) -> 46791 | V22: 1335 | AO22: 15 | AP22: Indiana | AQ22: 130170 | AR22: 127353 | AS22: 88128 | AT22: 56038 | AU22: 552 | AV22: 86147 | AW22: 46791 | AX22: 1335 | AY22: 455282 | AZ22: 465727 | BA22: 100000 | BC22: 43 | BD22: Tennessee | BE22: 143135 | BF22: 159778 | BG22: 104629 | BH22: 54258 | BI22: 4971 | BJ22: 112835 | BK22: 60765 | BL22: 4215 | BM22: 436142 | BN22: 422185 | BO22: 100000
A23: 16 | B23: =Distances!$B$18 -> Iowa | C23: =Migration!$W$20 -> 73325 | D23: =Migration!$V$20 -> 75760 | E23: 35864 | F23: 30728 | G23: 330 | H23: 45686 | I23: 25486 | J23: 1534 | K23: 42830 | L23: 30889 | M23: 797 | N23: 39654 | O23: =SUMIFS(INDIRECT("'Migration 2011'!"&ADDRESS(ROW(F26),10)&":"&ADDRESS(ROW(F26),61)),INDIRECT("Distances!"&ADDRESS(ROW(F18),3)&":"&ADDRESS(ROW(F18),54)),">="&IF(selMiles=1,E$4,$E$5),INDIRECT("Distances!"&ADDRESS(ROW(F18),3)&":"&ADDRESS(ROW(F18),54)),"<"&IF(selMiles=1,$G$4,$G$5)) -> 29485 | P23: 1323 | Q23: 40817 | R23: 32411 | S23: 97 | T23: 41601 | U23: =SUMIFS(INDIRECT("'Migration 2012'!"&ADDRESS(ROW(L26),10)&":"&ADDRESS(ROW(L26),61)),INDIRECT("Distances!"&ADDRESS(ROW(L18),3)&":"&ADDRESS(ROW(L18),54)),">="&IF(selMiles=1,E$4,$E$5),INDIRECT("Distances!"&ADDRESS(ROW(L18),3)&":"&ADDRESS(ROW(L18),54)),"<"&IF(selMiles=1,$G$4,$G$5)) -> 32687 | V23: 2258 | AO23: 16 | AP23: Iowa | AQ23: 66922 | AR23: 72557 | AS23: 40817 | AT23: 32411 | AU23: 97 | AV23: 41601 | AW23: 32687 | AX23: 2258 | AY23: 526675 | AZ23: 523454 | BA23: 100000 | BC23: 41 | BD23: South Carolina | BE23: 117569 | BF23: 152441 | BG23: 82628 | BH23: 35783 | BI23: 9011 | BJ23: 92131 | BK23: 54676 | BL23: 10968 | BM23: 472578 | BN23: 442225 | BO23: 100000
A24: 17 | B24: =Distances!$B$19 -> Kansas | C24: =Migration!$W$21 -> 93134 | D24: =Migration!$V$21 -> 88284 | E24: 40426 | F24: 49762 | G24: 605 | H24: 43191 | I24: 50690 | J24: 1246 | K24: 36035 | L24: 57270 | M24: 913 | N24: 35852 | O24: =SUMIFS(INDIRECT("'Migration 2011'!"&ADDRESS(ROW(F27),10)&":"&ADDRESS(ROW(F27),61)),INDIRECT("Distances!"&ADDRESS(ROW(F19),3)&":"&ADDRESS(ROW(F19),54)),">="&IF(selMiles=1,E$4,$E$5),INDIRECT("Distances!"&ADDRESS(ROW(F19),3)&":"&ADDRESS(ROW(F19),54)),"<"&IF(selMiles=1,$G$4,$G$5)) -> 47393 | P24: 1170 | Q24: 36833 | R24: 54945 | S24: 1499 | T24: 40265 | U24: =SUMIFS(INDIRECT("'Migration 2012'!"&ADDRESS(ROW(L27),10)&":"&ADDRESS(ROW(L27),61)),INDIRECT("Distances!"&ADDRESS(ROW(L19),3)&":"&ADDRESS(ROW(L19),54)),">="&IF(selMiles=1,E$4,$E$5),INDIRECT("Distances!"&ADDRESS(ROW(L19),3)&":"&ADDRESS(ROW(L19),54)),"<"&IF(selMiles=1,$G$4,$G$5)) -> 47537 | V24: 564 | AO24: 17 | AP24: Kansas | AQ24: 90681 | AR24: 95059 | AS24: 36833 | AT24: 54945 | AU24: 1499 | AV24: 40265 | AW24: 47537 | AX24: 564 | AY24: 506723 | AZ24: 511634 | BA24: 100000 | BC24: 26 | BD24: Missouri | BE24: 148055 | BF24: 145226 | BG24: 72405 | BH24: 68586 | BI24: 1763 | BJ24: 84011 | BK24: 74619 | BL24: 5126 | BM24: 457246 | BN24: 436244 | BO24: 100000
A25: 18 | B25: =Distances!$B$20 -> Kentucky | C25: =Migration!$W$22 -> 103004 | D25: =Migration!$V$22 -> 112787 | E25: 61832 | F25: 29000 | G25: 2421 | H25: 77422 | I25: 36766 | J25: 4434 | K25: 67964 | L25: 29695 | M25: 1597 | N25: 78471 | O25: =SUMIFS(INDIRECT("'Migration 2011'!"&ADDRESS(ROW(F28),10)&":"&ADDRESS(ROW(F28),61)),INDIRECT("Distances!"&ADDRESS(ROW(F20),3)&":"&ADDRESS(ROW(F20),54)),">="&IF(selMiles=1,E$4,$E$5),INDIRECT("Distances!"&ADDRESS(ROW(F20),3)&":"&ADDRESS(ROW(F20),54)),"<"&IF(selMiles=1,$G$4,$G$5)) -> 30109 | P25: 1643 | Q25: 68513 | R25: 32312 | S25: 2216 | T25: 78914 | U25: =SUMIFS(INDIRECT("'Migration 2012'!"&ADDRESS(ROW(L28),10)&":"&ADDRESS(ROW(L28),61)),INDIRECT("Distances!"&ADDRESS(ROW(L20),3)&":"&ADDRESS(ROW(L20),54)),">="&IF(selMiles=1,E$4,$E$5),INDIRECT("Distances!"&ADDRESS(ROW(L20),3)&":"&ADDRESS(ROW(L20),54)),"<"&IF(selMiles=1,$G$4,$G$5)) -> 30806 | V25: 3237 | AO25: 18 | AP25: Kentucky | AQ25: 92999 | AR25: 118443 | AS25: 68513 | AT25: 32312 | AU25: 2216 | AV25: 78914 | AW25: 30806 | AX25: 3237 | AY25: 496959 | AZ25: 487043 | BA25: 100000 | BC25: 22 | BD25: Massachusetts | BE25: 144152 | BF25: 140162 | BG25: 81496 | BH25: 55111 | BI25: 23807 | BJ25: 80273 | BK25: 44388 | BL25: 21972 | BM25: 439586 | BN25: 453367 | BO25: 100000
A26: 19 | B26: =Distances!$B$21 -> Louisiana | C26: =Migration!$W$23 -> 95956 | D26: =Migration!$V$23 -> 91215 | E26: 57931 | F26: 29110 | G26: 1199 | H26: 58301 | I26: 36354 | J26: 3636 | K26: 51721 | L26: 32600 | M26: 2272 | N26: 58499 | O26: =SUMIFS(INDIRECT("'Migration 2011'!"&ADDRESS(ROW(F29),10)&":"&ADDRESS(ROW(F29),61)),INDIRECT("Distances!"&ADDRESS(ROW(F21),3)&":"&ADDRESS(ROW(F21),54)),">="&IF(selMiles=1,E$4,$E$5),INDIRECT("Distances!"&ADDRESS(ROW(F21),3)&":"&ADDRESS(ROW(F21),54)),"<"&IF(selMiles=1,$G$4,$G$5)) -> 37450 | P26: 3582 | Q26: 57095 | R26: 36720 | S26: 2200 | T26: 50613 | U26: =SUMIFS(INDIRECT("'Migration 2012'!"&ADDRESS(ROW(L29),10)&":"&ADDRESS(ROW(L29),61)),INDIRECT("Distances!"&ADDRESS(ROW(L21),3)&":"&ADDRESS(ROW(L21),54)),">="&IF(selMiles=1,E$4,$E$5),INDIRECT("Distances!"&ADDRESS(ROW(L21),3)&":"&ADDRESS(ROW(L21),54)),"<"&IF(selMiles=1,$G$4,$G$5)) -> 38700 | V26: 2557 | AO26: 19 | AP26: Louisiana | AQ26: 88131 | AR26: 97889 | AS26: 57095 | AT26: 36720 | AU26: 2200 | AV26: 50613 | AW26: 38700 | AX26: 2557 | AY26: 503985 | AZ26: 508130 | BA26: 100000 | BC26: 31 | BD26: New Jersey | BE26: 193972 | BF26: 127369 | BG26: 133138 | BH26: 69028 | BI26: 18958 | BJ26: 89729 | BK26: 33401 | BL26: 9667 | BM26: 378876 | BN26: 467203 | BO26: 100000
A27: 20 | B27: =Distances!$B$22 -> Maine | C27: =Migration!$W$24 -> 38574 | D27: =Migration!$V$24 -> 27523 | E27: 13987 | F27: 14379 | G27: 3843 | H27: 13529 | I27: 11236 | J27: 3197 | K27: 12042 | L27: 18221 | M27: 3466 | N27: 16504 | O27: =SUMIFS(INDIRECT("'Migration 2011'!"&ADDRESS(ROW(F30),10)&":"&ADDRESS(ROW(F30),61)),INDIRECT("Distances!"&ADDRESS(ROW(F22),3)&":"&ADDRESS(ROW(F22),54)),">="&IF(selMiles=1,E$4,$E$5),INDIRECT("Distances!"&ADDRESS(ROW(F22),3)&":"&ADDRESS(ROW(F22),54)),"<"&IF(selMiles=1,$G$4,$G$5)) -> 15110 | P27: 2269 | Q27: 15174 | R27: 19579 | S27: 3821 | T27: 14517 | U27: =SUMIFS(INDIRECT("'Migration 2012'!"&ADDRESS(ROW(L30),10)&":"&ADDRESS(ROW(L30),61)),INDIRECT("Distances!"&ADDRESS(ROW(L22),3)&":"&ADDRESS(ROW(L22),54)),">="&IF(selMiles=1,E$4,$E$5),INDIRECT("Distances!"&ADDRESS(ROW(L22),3)&":"&ADDRESS(ROW(L22),54)),"<"&IF(selMiles=1,$G$4,$G$5)) -> 10455 | V27: 2589 | AO27: 20 | AP27: Maine | AQ27: 32209 | AR27: 27758 | AS27: 15174 | AT27: 19579 | AU27: 3821 | AV27: 14517 | AW27: 10455 | AX27: 2589 | AY27: 561426 | AZ27: 572439 | BA27: 100000 | BC27: 15 | BD27: Indiana | BE27: 130170 | BF27: 127353 | BG27: 88128 | BH27: 56038 | BI27: 552 | BJ27: 86147 | BK27: 46791 | BL27: 1335 | BM27: 455282 | BN27: 465727 | BO27: 100000
A28: 21 | B28: =Distances!$B$23 -> Maryland | C28: =Migration!$W$25 -> 157664 | D28: =Migration!$V$25 -> 154983 | E28: 103392 | F28: 41176 | G28: 15357 | H28: 114760 | I28: 34311 | J28: 16025 | K28: 103525 | L28: 48035 | M28: 13551 | N28: 103703 | O28: =SUMIFS(INDIRECT("'Migration 2011'!"&ADDRESS(ROW(F31),10)&":"&ADDRESS(ROW(F31),61)),INDIRECT("Distances!"&ADDRESS(ROW(F23),3)&":"&ADDRESS(ROW(F23),54)),">="&IF(selMiles=1,E$4,$E$5),INDIRECT("Distances!"&ADDRESS(ROW(F23),3)&":"&ADDRESS(ROW(F23),54)),"<"&IF(selMiles=1,$G$4,$G$5)) -> 36379 | P28: 14676 | Q28: 103797 | R28: 37378 | S28: 16597 | T28: 103191 | U28: =SUMIFS(INDIRECT("'Migration 2012'!"&ADDRESS(ROW(L31),10)&":"&ADDRESS(ROW(L31),61)),INDIRECT("Distances!"&ADDRESS(ROW(L23),3)&":"&ADDRESS(ROW(L23),54)),">="&IF(selMiles=1,E$4,$E$5),INDIRECT("Distances!"&ADDRESS(ROW(L23),3)&":"&ADDRESS(ROW(L23),54)),"<"&IF(selMiles=1,$G$4,$G$5)) -> 37587 | V28: 14499 | AO28: 21 | AP28: Maryland | AQ28: 159866 | AR28: 164484 | AS28: 103797 | AT28: 37378 | AU28: 16597 | AV28: 103191 | AW28: 37587 | AX28: 14499 | AY28: 442228 | AZ28: 444723 | BA28: 100000 | BC28: 18 | BD28: Kentucky | BE28: 92999 | BF28: 118443 | BG28: 68513 | BH28: 32312 | BI28: 2216 | BJ28: 78914 | BK28: 30806 | BL28: 3237 | BM28: 496959 | BN28: 487043 | BO28: 100000
A29: 22 | B29: =Distances!$B$24 -> Massachusetts | C29: =Migration!$W$26 -> 158156 | D29: =Migration!$V$26 -> 142577 | E29: 70109 | F29: 56625 | G29: 19422 | H29: 76237 | I29: 44573 | J29: 22437 | K29: 76064 | L29: 55373 | M29: 15844 | N29: 79011 | O29: =SUMIFS(INDIRECT("'Migration 2011'!"&ADDRESS(ROW(F32),10)&":"&ADDRESS(ROW(F32),61)),INDIRECT("Distances!"&ADDRESS(ROW(F24),3)&":"&ADDRESS(ROW(F24),54)),">="&IF(selMiles=1,E$4,$E$5),INDIRECT("Distances!"&ADDRESS(ROW(F24),3)&":"&ADDRESS(ROW(F24),54)),"<"&IF(selMiles=1,$G$4,$G$5)) -> 48131 | P29: 17101 | Q29: 81496 | R29: 55111 | S29: 23807 | T29: 80273 | U29: =SUMIFS(INDIRECT("'Migration 2012'!"&ADDRESS(ROW(L32),10)&":"&ADDRESS(ROW(L32),61)),INDIRECT("Distances!"&ADDRESS(ROW(L24),3)&":"&ADDRESS(ROW(L24),54)),">="&IF(selMiles=1,E$4,$E$5),INDIRECT("Distances!"&ADDRESS(ROW(L24),3)&":"&ADDRESS(ROW(L24),54)),"<"&IF(selMiles=1,$G$4,$G$5)) -> 44388 | V29: 21972 | AO29: 22 | AP29: Massachusetts | AQ29: 144152 | AR29: 140162 | AS29: 81496 | AT29: 55111 | AU29: 23807 | AV29: 80273 | AW29: 44388 | AX29: 21972 | AY29: 439586 | AZ29: 453367 | BA29: 100000 | BC29: 38 | BD29: Oregon | BE29: 100185 | BF29: 116700 | BG29: 56313 | BH29: 37627 | BI29: 14242 | BJ29: 64114 | BK29: 37202 | BL29: 17761 | BM29: 491818 | BN29: 480923 | BO29: 100000
A30: 23 | B30: =Distances!$B$25 -> Michigan | C30: =Migration!$W$27 -> 175733 | D30: =Migration!$V$27 -> 133981 | E30: 68870 | F30: 107787 | G30: 1639 | H30: 50972 | I30: 63824 | J30: 2785 | K30: 65015 | L30: 119416 | M30: 2162 | N30: 49952 | O30: =SUMIFS(INDIRECT("'Migration 2011'!"&ADDRESS(ROW(F33),10)&":"&ADDRESS(ROW(F33),61)),INDIRECT("Distances!"&ADDRESS(ROW(F25),3)&":"&ADDRESS(ROW(F25),54)),">="&IF(selMiles=1,E$4,$E$5),INDIRECT("Distances!"&ADDRESS(ROW(F25),3)&":"&ADDRESS(ROW(F25),54)),"<"&IF(selMiles=1,$G$4,$G$5)) -> 85120 | P30: 4994 | Q30: 68315 | R30: 106534 | S30: 1319 | T30: 53670 | U30: =SUMIFS(INDIRECT("'Migration 2012'!"&ADDRESS(ROW(L33),10)&":"&ADDRESS(ROW(L33),61)),INDIRECT("Distances!"&ADDRESS(ROW(L25),3)&":"&ADDRESS(ROW(L25),54)),">="&IF(selMiles=1,E$4,$E$5),INDIRECT("Distances!"&ADDRESS(ROW(L25),3)&":"&ADDRESS(ROW(L25),54)),"<"&IF(selMiles=1,$G$4,$G$5)) -> 78868 | V30: 2225 | AO30: 23 | AP30: Michigan | AQ30: 178207 | AR30: 116149 | AS30: 68315 | AT30: 106534 | AU30: 1319 | AV30: 53670 | AW30: 78868 | AX30: 2225 | AY30: 423832 | AZ30: 465237 | BA30: 100000 | BC30: 23 | BD30: Michigan | BE30: 178207 | BF30: 116149 | BG30: 68315 | BH30: 106534 | BI30: 1319 | BJ30: 53670 | BK30: 78868 | BL30: 2225 | BM30: 423832 | BN30: 465237 | BO30: 100000
A31: 24 | B31: =Distances!$B$26 -> Minnesota | C31: =Migration!$W$28 -> 115946 | D31: =Migration!$V$28 -> 101042 | E31: 52362 | F31: 51927 | G31: 526 | H31: 46052 | I31: 43593 | J31: 266 | K31: 52474 | L31: 49846 | M31: 933 | N31: 55569 | O31: =SUMIFS(INDIRECT("'Migration 2011'!"&ADDRESS(ROW(F34),10)&":"&ADDRESS(ROW(F34),61)),INDIRECT("Distances!"&ADDRESS(ROW(F26),3)&":"&ADDRESS(ROW(F26),54)),">="&IF(selMiles=1,E$4,$E$5),INDIRECT("Distances!"&ADDRESS(ROW(F26),3)&":"&ADDRESS(ROW(F26),54)),"<"&IF(selMiles=1,$G$4,$G$5)) -> 44559 | P31: 955 | Q31: 57928 | R31: 57826 | S31: 192 | T31: 46685 | U31: =SUMIFS(INDIRECT("'Migration 2012'!"&ADDRESS(ROW(L34),10)&":"&ADDRESS(ROW(L34),61)),INDIRECT("Distances!"&ADDRESS(ROW(L26),3)&":"&ADDRESS(ROW(L26),54)),">="&IF(selMiles=1,E$4,$E$5),INDIRECT("Distances!"&ADDRESS(ROW(L26),3)&":"&ADDRESS(ROW(L26),54)),"<"&IF(selMiles=1,$G$4,$G$5)) -> 53080 | V31: 1411 | AO31: 24 | AP31: Minnesota | AQ31: 104765 | AR31: 89872 | AS31: 57928 | AT31: 57826 | AU31: 192 | AV31: 46685 | AW31: 53080 | AX31: 1411 | AY31: 484054 | AZ31: 498824 | BA31: 100000 | BC31: 1 | BD31: Alabama | BE31: 99221 | BF31: 108723 | BG31: 63031 | BH31: 40093 | BI31: 6094 | BJ31: 60986 | BK31: 38291 | BL31: 5942 | BM31: 490782 | BN31: 494781 | BO31: 100000
A32: 25 | B32: =Distances!$B$27 -> Mississippi | C32: =Migration!$W$29 -> 66947 | D32: =Migration!$V$29 -> 73500 | E32: 47056 | F32: 20243 | G32: 1234 | H32: 45000 | I32: 26159 | J32: 1976 | K32: 43546 | L32: 23043 | M32: 2035 | N32: 42737 | O32: =SUMIFS(INDIRECT("'Migration 2011'!"&ADDRESS(ROW(F35),10)&":"&ADDRESS(ROW(F35),61)),INDIRECT("Distances!"&ADDRESS(ROW(F27),3)&":"&ADDRESS(ROW(F27),54)),">="&IF(selMiles=1,E$4,$E$5),INDIRECT("Distances!"&ADDRESS(ROW(F27),3)&":"&ADDRESS(ROW(F27),54)),"<"&IF(selMiles=1,$G$4,$G$5)) -> 25320 | P32: 772 | Q32: 44132 | R32: 22100 | S32: 715 | T32: 45823 | U32: =SUMIFS(INDIRECT("'Migration 2012'!"&ADDRESS(ROW(L35),10)&":"&ADDRESS(ROW(L35),61)),INDIRECT("Distances!"&ADDRESS(ROW(L27),3)&":"&ADDRESS(ROW(L27),54)),">="&IF(selMiles=1,E$4,$E$5),INDIRECT("Distances!"&ADDRESS(ROW(L27),3)&":"&ADDRESS(ROW(L27),54)),"<"&IF(selMiles=1,$G$4,$G$5)) -> 27141 | V32: 617 | AO32: 25 | AP32: Mississippi | AQ32: 68363 | AR32: 72321 | AS32: 44132 | AT32: 22100 | AU32: 715 | AV32: 45823 | AW32: 27141 | AX32: 617 | AY32: 533053 | AZ32: 526419 | BA32: 100000 | BC32: 37 | BD32: Oklahoma | BE32: 90616 | BF32: 106511 | BG32: 53618 | BH32: 47524 | BI32: 1430 | BJ32: 48042 | BK32: 59462 | BL32: 1468 | BM32: 497428 | BN32: 491028 | BO32: 100000
A33: 26 | B33: =Distances!$B$28 -> Missouri | C33: =Migration!$W$30 -> 142754 | D33: =Migration!$V$30 -> 162930 | E33: 78796 | F33: 69089 | G33: 391 | H33: 77115 | I33: 66680 | J33: 2298 | K33: 70451 | L33: 66724 | M33: 1330 | N33: 80030 | O33: =SUMIFS(INDIRECT("'Migration 2011'!"&ADDRESS(ROW(F36),10)&":"&ADDRESS(ROW(F36),61)),INDIRECT("Distances!"&ADDRESS(ROW(F28),3)&":"&ADDRESS(ROW(F28),54)),">="&IF(selMiles=1,E$4,$E$5),INDIRECT("Distances!"&ADDRESS(ROW(F28),3)&":"&ADDRESS(ROW(F28),54)),"<"&IF(selMiles=1,$G$4,$G$5)) -> 66495 | P33: 3623 | Q33: 72405 | R33: 68586 | S33: 1763 | T33: 84011 | U33: =SUMIFS(INDIRECT("'Migration 2012'!"&ADDRESS(ROW(L36),10)&":"&ADDRESS(ROW(L36),61)),INDIRECT("Distances!"&ADDRESS(ROW(L28),3)&":"&ADDRESS(ROW(L28),54)),">="&IF(selMiles=1,E$4,$E$5),INDIRECT("Distances!"&ADDRESS(ROW(L28),3)&":"&ADDRESS(ROW(L28),54)),"<"&IF(selMiles=1,$G$4,$G$5)) -> 74619 | V33: 5126 | AO33: 26 | AP33: Missouri | AQ33: 148055 | AR33: 145226 | AS33: 72405 | AT33: 68586 | AU33: 1763 | AV33: 84011 | AW33: 74619 | AX33: 5126 | AY33: 457246 | AZ33: 436244 | BA33: 100000 | BC33: 29 | BD33: Nevada | BE33: 109409 | BF33: 102677 | BG33: 41829 | BH33: 46110 | BI33: 10943 | BJ33: 59187 | BK33: 48071 | BL33: 17264 | BM33: 501118 | BN33: 475478 | BO33: 100000
A34: 27 | B34: =Distances!$B$29 -> Montana | C34: =Migration!$W$31 -> 33832 | D34: =Migration!$V$31 -> 37690 | E34: 3438 | F34: 31619 | G34: 813 | H34: 2422 | I34: 33073 | J34: 146 | K34: 2843 | L34: 27670 | M34: 691 | N34: 2775 | O34: =SUMIFS(INDIRECT("'Migration 2011'!"&ADDRESS(ROW(F37),10)&":"&ADDRESS(ROW(F37),61)),INDIRECT("Distances!"&ADDRESS(ROW(F29),3)&":"&ADDRESS(ROW(F29),54)),">="&IF(selMiles=1,E$4,$E$5),INDIRECT("Distances!"&ADDRESS(ROW(F29),3)&":"&ADDRESS(ROW(F29),54)),"<"&IF(selMiles=1,$G$4,$G$5)) -> 30665 | P34: 466 | Q34: 4857 | R34: 28795 | S34: 180 | T34: 3645 | U34: =SUMIFS(INDIRECT("'Migration 2012'!"&ADDRESS(ROW(L37),10)&":"&ADDRESS(ROW(L37),61)),INDIRECT("Distances!"&ADDRESS(ROW(L29),3)&":"&ADDRESS(ROW(L29),54)),">="&IF(selMiles=1,E$4,$E$5),INDIRECT("Distances!"&ADDRESS(ROW(L29),3)&":"&ADDRESS(ROW(L29),54)),"<"&IF(selMiles=1,$G$4,$G$5)) -> 33167 | V34: 878 | AO34: 27 | AP34: Montana | AQ34: 35870 | AR34: 35630 | AS34: 4857 | AT34: 28795 | AU34: 180 | AV34: 3645 | AW34: 33167 | AX34: 878 | AY34: 566168 | AZ34: 562310 | BA34: 100000 | BC34: 19 | BD34: Louisiana | BE34: 88131 | BF34: 97889 | BG34: 57095 | BH34: 36720 | BI34: 2200 | BJ34: 50613 | BK34: 38700 | BL34: 2557 | BM34: 503985 | BN34: 508130 | BO34: 100000
A35: 28 | B35: =Distances!$B$30 -> Nebraska | C35: =Migration!$W$32 -> 48816 | D35: =Migration!$V$32 -> 43266 | E35: 21817 | F35: 21499 | G35: 215 | H35: 26612 | I35: 24386 | J35: 292 | K35: 26834 | L35: 25879 | M35: 96 | N35: 26810 | O35: =SUMIFS(INDIRECT("'Migration 2011'!"&ADDRESS(ROW(F38),10)&":"&ADDRESS(ROW(F38),61)),INDIRECT("Distances!"&ADDRESS(ROW(F30),3)&":"&ADDRESS(ROW(F30),54)),">="&IF(selMiles=1,E$4,$E$5),INDIRECT("Distances!"&ADDRESS(ROW(F30),3)&":"&ADDRESS(ROW(F30),54)),"<"&IF(selMiles=1,$G$4,$G$5)) -> 24264 | P35: 996 | Q35: 25720 | R35: 21826 | S35: 1270 | T35: 22033 | U35: =SUMIFS(INDIRECT("'Migration 2012'!"&ADDRESS(ROW(L38),10)&":"&ADDRESS(ROW(L38),61)),INDIRECT("Distances!"&ADDRESS(ROW(L30),3)&":"&ADDRESS(ROW(L30),54)),">="&IF(selMiles=1,E$4,$E$5),INDIRECT("Distances!"&ADDRESS(ROW(L30),3)&":"&ADDRESS(ROW(L30),54)),"<"&IF(selMiles=1,$G$4,$G$5)) -> 20442 | V35: 791 | AO35: 28 | AP35: Nebraska | AQ35: 43531 | AR35: 51290 | AS35: 25720 | AT35: 21826 | AU35: 1270 | AV35: 22033 | AW35: 20442 | AX35: 791 | AY35: 551184 | AZ35: 556734 | BA35: 100000 | BC35: 17 | BD35: Kansas | BE35: 90681 | BF35: 95059 | BG35: 36833 | BH35: 54945 | BI35: 1499 | BJ35: 40265 | BK35: 47537 | BL35: 564 | BM35: 506723 | BN35: 511634 | BO35: 100000
A36: 29 | B36: =Distances!$B$31 -> Nevada | C36: =Migration!$W$33 -> 98882 | D36: =Migration!$V$33 -> 124285 | E36: 37188 | F36: 52662 | G36: 19559 | H36: 44287 | I36: 40161 | J36: 18731 | K36: 51277 | L36: 49758 | M36: 14908 | N36: 49099 | O36: =SUMIFS(INDIRECT("'Migration 2011'!"&ADDRESS(ROW(F39),10)&":"&ADDRESS(ROW(F39),61)),INDIRECT("Distances!"&ADDRESS(ROW(F31),3)&":"&ADDRESS(ROW(F31),54)),">="&IF(selMiles=1,E$4,$E$5),INDIRECT("Distances!"&ADDRESS(ROW(F31),3)&":"&ADDRESS(ROW(F31),54)),"<"&IF(selMiles=1,$G$4,$G$5)) -> 44110 | P36: 17289 | Q36: 41829 | R36: 46110 | S36: 10943 | T36: 59187 | U36: =SUMIFS(INDIRECT("'Migration 2012'!"&ADDRESS(ROW(L39),10)&":"&ADDRESS(ROW(L39),61)),INDIRECT("Distances!"&ADDRESS(ROW(L31),3)&":"&ADDRESS(ROW(L31),54)),">="&IF(selMiles=1,E$4,$E$5),INDIRECT("Distances!"&ADDRESS(ROW(L31),3)&":"&ADDRESS(ROW(L31),54)),"<"&IF(selMiles=1,$G$4,$G$5)) -> 48071 | V36: 17264 | AO36: 29 | AP36: Nevada | AQ36: 109409 | AR36: 102677 | AS36: 41829 | AT36: 46110 | AU36: 10943 | AV36: 59187 | AW36: 48071 | AX36: 17264 | AY36: 501118 | AZ36: 475478 | BA36: 100000 | BC36: 50 | BD36: Wisconsin | BE36: 111240 | BF36: 93065 | BG36: 47941 | BH36: 49282 | BI36: 1490 | BJ36: 57800 | BK36: 40823 | BL36: 1544 | BM36: 501287 | BN36: 499833 | BO36: 100000
A37: 30 | B37: =Distances!$B$32 -> New Hampshire | C37: =Migration!$W$34 -> 38696 | D37: =Migration!$V$34 -> 50484 | E37: 23826 | F37: 11316 | G37: 3257 | H37: 27705 | I37: 8222 | J37: 3496 | K37: 25892 | L37: 13894 | M37: 3491 | N37: 26059 | O37: =SUMIFS(INDIRECT("'Migration 2011'!"&ADDRESS(ROW(F40),10)&":"&ADDRESS(ROW(F40),61)),INDIRECT("Distances!"&ADDRESS(ROW(F32),3)&":"&ADDRESS(ROW(F32),54)),">="&IF(selMiles=1,E$4,$E$5),INDIRECT("Distances!"&ADDRESS(ROW(F32),3)&":"&ADDRESS(ROW(F32),54)),"<"&IF(selMiles=1,$G$4,$G$5)) -> 9178 | P37: 1763 | Q37: 26943 | R37: 8683 | S37: 3070 | T37: 35181 | U37: =SUMIFS(INDIRECT("'Migration 2012'!"&ADDRESS(ROW(L40),10)&":"&ADDRESS(ROW(L40),61)),INDIRECT("Distances!"&ADDRESS(ROW(L32),3)&":"&ADDRESS(ROW(L32),54)),">="&IF(selMiles=1,E$4,$E$5),INDIRECT("Distances!"&ADDRESS(ROW(L32),3)&":"&ADDRESS(ROW(L32),54)),"<"&IF(selMiles=1,$G$4,$G$5)) -> 12046 | V37: 3332 | AO37: 30 | AP37: New Hampshire | AQ37: 38399 | AR37: 39367 | AS37: 26943 | AT37: 8683 | AU37: 3070 | AV37: 35181 | AW37: 12046 | AX37: 3332 | AY37: 561304 | AZ37: 549441 | BA37: 100000 | BC37: 24 | BD37: Minnesota | BE37: 104765 | BF37: 89872 | BG37: 57928 | BH37: 57826 | BI37: 192 | BJ37: 46685 | BK37: 53080 | BL37: 1411 | BM37: 484054 | BN37: 498824 | BO37: 100000
A38: 31 | B38: =Distances!$B$33 -> New Jersey | C38: =Migration!$W$35 -> 219202 | D38: =Migration!$V$35 -> 130223 | E38: 122085 | F38: 57495 | G38: 15636 | H38: 83786 | I38: 32603 | J38: 13712 | K38: 132925 | L38: 67940 | M38: 17654 | N38: 86262 | O38: =SUMIFS(INDIRECT("'Migration 2011'!"&ADDRESS(ROW(F41),10)&":"&ADDRESS(ROW(F41),61)),INDIRECT("Distances!"&ADDRESS(ROW(F33),3)&":"&ADDRESS(ROW(F33),54)),">="&IF(selMiles=1,E$4,$E$5),INDIRECT("Distances!"&ADDRESS(ROW(F33),3)&":"&ADDRESS(ROW(F33),54)),"<"&IF(selMiles=1,$G$4,$G$5)) -> 43043 | P38: 15201 | Q38: 133138 | R38: 69028 | S38: 18958 | T38: 89729 | U38: =SUMIFS(INDIRECT("'Migration 2012'!"&ADDRESS(ROW(L41),10)&":"&ADDRESS(ROW(L41),61)),INDIRECT("Distances!"&ADDRESS(ROW(L33),3)&":"&ADDRESS(ROW(L33),54)),">="&IF(selMiles=1,E$4,$E$5),INDIRECT("Distances!"&ADDRESS(ROW(L33),3)&":"&ADDRESS(ROW(L33),54)),"<"&IF(selMiles=1,$G$4,$G$5)) -> 33401 | V38: 9667 | AO38: 31 | AP38: New Jersey | AQ38: 193972 | AR38: 127369 | AS38: 133138 | AT38: 69028 | AU38: 18958 | AV38: 89729 | AW38: 33401 | AX38: 9667 | AY38: 378876 | AZ38: 467203 | BA38: 100000 | BC38: 4 | BD38: Arkansas | BE38: 64264 | BF38: 79127 | BG38: 45965 | BH38: 18875 | BI38: 220 | BJ38: 52212 | BK38: 23881 | BL38: 855 | BM38: 534940 | BN38: 523052 | BO38: 100000
A39: 32 | B39: =Distances!$B$34 -> New Mexico | C39: =Migration!$W$36 -> 63921 | D39: =Migration!$V$36 -> 54693 | E39: 12288 | F39: 37718 | G39: 796 | H39: 12504 | I39: 60010 | J39: 1723 | K39: 15593 | L39: 45258 | M39: 631 | N39: 13789 | O39: =SUMIFS(INDIRECT("'Migration 2011'!"&ADDRESS(ROW(F42),10)&":"&ADDRESS(ROW(F42),61)),INDIRECT("Distances!"&ADDRESS(ROW(F34),3)&":"&ADDRESS(ROW(F34),54)),">="&IF(selMiles=1,E$4,$E$5),INDIRECT("Distances!"&ADDRESS(ROW(F34),3)&":"&ADDRESS(ROW(F34),54)),"<"&IF(selMiles=1,$G$4,$G$5)) -> 47844 | P39: 596 | Q39: 16000 | R39: 47374 | S39: 575 | T39: 13724 | U39: =SUMIFS(INDIRECT("'Migration 2012'!"&ADDRESS(ROW(L42),10)&":"&ADDRESS(ROW(L42),61)),INDIRECT("Distances!"&ADDRESS(ROW(L34),3)&":"&ADDRESS(ROW(L34),54)),">="&IF(selMiles=1,E$4,$E$5),INDIRECT("Distances!"&ADDRESS(ROW(L34),3)&":"&ADDRESS(ROW(L34),54)),"<"&IF(selMiles=1,$G$4,$G$5)) -> 40481 | V39: 917 | AO39: 32 | AP39: New Mexico | AQ39: 50438 | AR39: 73605 | AS39: 16000 | AT39: 47374 | AU39: 575 | AV39: 13724 | AW39: 40481 | AX39: 917 | AY39: 536051 | AZ39: 544878 | BA39: 100000 | BC39: 45 | BD39: Utah | BE39: 75541 | BF39: 77780 | BG39: 20972 | BH39: 57100 | BI39: 4093 | BJ39: 19829 | BK39: 63683 | BL39: 4597 | BM39: 517835 | BN39: 511891 | BO39: 100000
A40: 33 | B40: =Distances!$B$35 -> New York | C40: =Migration!$W$37 -> 405864 | D40: =Migration!$V$37 -> 270053 | E40: =SUMIFS(INDIRECT("'Migration 2010'!"&ADDRESS(11,ROW(A42))&":"&ADDRESS(62,ROW(A42))),INDIRECT("Distances!"&ADDRESS(3,ROW(A35))&":"&ADDRESS(54,ROW(A35))),"<"&IF(selMiles=1,$E$4,$E$5)) -> 162388 | F40: =SUMIFS(INDIRECT("'Migration 2010'!"&ADDRESS(11,ROW(A42))&":"&ADDRESS(62,ROW(A42))),INDIRECT("Distances!"&ADDRESS(3,ROW(A35))&":"&ADDRESS(54,ROW(A35))),">="&IF(selMiles=1,$E$4,$E$5),INDIRECT("Distances!"&ADDRESS(3,ROW(A35))&":"&ADDRESS(54,ROW(A35))),"<"&IF(selMiles=1,$G$4,$G$5)) -> 168289 | G40: =SUMIFS(INDIRECT("'Migration 2010'!"&ADDRESS(11,ROW(A42))&":"&ADDRESS(62,ROW(A42))),INDIRECT("Distances!"&ADDRESS(3,ROW(A35))&":"&ADDRESS(54,ROW(A35))),">"&IF(selMiles=1,$G$4,$G$5)) -> 37230 | H40: =SUMIFS(INDIRECT("'Migration 2010'!"&ADDRESS(ROW(A43),10)&":"&ADDRESS(ROW(A43),61)),INDIRECT("Distances!"&ADDRESS(ROW(A35),3)&":"&ADDRESS(ROW(A35),54)),"<"&IF(selMiles=1,$E$4,$E$5)) -> 117138 | I40: =SUMIFS(INDIRECT("'Migration 2010'!"&ADDRESS(ROW(A43),10)&":"&ADDRESS(ROW(A43),61)),INDIRECT("Distances!"&ADDRESS(ROW(A35),3)&":"&ADDRESS(ROW(A35),54)),">="&IF(selMiles=1,E$4,$E$5),INDIRECT("Distances!"&ADDRESS(ROW(A35),3)&":"&ADDRESS(ROW(A35),54)),"<"&IF(selMiles=1,$G$4,$G$5)) -> 118812 | J40: =SUMIFS(INDIRECT("'Migration 2010'!"&ADDRESS(ROW(A43),10)&":"&ADDRESS(ROW(A43),61)),INDIRECT("Distances!"&ADDRESS(ROW(A35),3)&":"&ADDRESS(ROW(A35),54)),">"&IF(selMiles=1,$G$4,$G$5)) -> 40217 | K40: =SUMIFS(INDIRECT("'Migration 2011'!"&ADDRESS(11,ROW(F42))&":"&ADDRESS(62,ROW(F42))),INDIRECT("Distances!"&ADDRESS(3,ROW(F35))&":"&ADDRESS(54,ROW(F35))),"<"&IF(selMiles=1,$E$4,$E$5)) -> 147387 | L40: =SUMIFS(INDIRECT("'Migration 2011'!"&ADDRESS(11,ROW(F42))&":"&ADDRESS(62,ROW(F42))),INDIRECT("Distances!"&ADDRESS(3,ROW(F35))&":"&ADDRESS(54,ROW(F35))),">="&IF(selMiles=1,$E$4,$E$5),INDIRECT("Distances!"&ADDRESS(3,ROW(F35))&":"&ADDRESS(54,ROW(F35))),"<"&IF(selMiles=1,$G$4,$G$5)) -> 189830 | M40: =SUMIFS(INDIRECT("'Migration 2011'!"&ADDRESS(11,ROW(F42))&":"&ADDRESS(62,ROW(F42))),INDIRECT("Distances!"&ADDRESS(3,ROW(F35))&":"&ADDRESS(54,ROW(F35))),">"&IF(selMiles=1,$G$4,$G$5)) -> 43198 | N40: =SUMIFS(INDIRECT("'Migration 2011'!"&ADDRESS(ROW(F43),10)&":"&ADDRESS(ROW(F43),61)),INDIRECT("Distances!"&ADDRESS(ROW(F35),3)&":"&ADDRESS(ROW(F35),54)),"<"&IF(selMiles=1,$E$4,$E$5)) -> 129640 | O40: =SUMIFS(INDIRECT("'Migration 2011'!"&ADDRESS(ROW(F43),10)&":"&ADDRESS(ROW(F43),61)),INDIRECT("Distances!"&ADDRESS(ROW(F35),3)&":"&ADDRESS(ROW(F35),54)),">="&IF(selMiles=1,E$4,$E$5),INDIRECT("Distances!"&ADDRESS(ROW(F35),3)&":"&ADDRESS(ROW(F35),54)),"<"&IF(selMiles=1,$G$4,$G$5)) -> 120049 | P40: =SUMIFS(INDIRECT("'Migration 2011'!"&ADDRESS(ROW(F43),10)&":"&ADDRESS(ROW(F43),61)),INDIRECT("Distances!"&ADDRESS(ROW(F35),3)&":"&ADDRESS(ROW(F35),54)),">"&IF(selMiles=1,$G$4,$G$5)) -> 43102 | Q40: =SUMIFS(INDIRECT("'Migration 2012'!"&ADDRESS(11,ROW(L42))&":"&ADDRESS(62,ROW(L42))),INDIRECT("Distances!"&ADDRESS(3,ROW(L35))&":"&ADDRESS(54,ROW(L35))),"<"&IF(selMiles=1,$E$4,$E$5)) -> 164257 | R40: =SUMIFS(INDIRECT("'Migration 2012'!"&ADDRESS(11,ROW(L42))&":"&ADDRESS(62,ROW(L42))),INDIRECT("Distances!"&ADDRESS(3,ROW(L35))&":"&ADDRESS(54,ROW(L35))),">="&IF(selMiles=1,$E$4,$E$5),INDIRECT("Distances!"&ADDRESS(3,ROW(L35))&":"&ADDRESS(54,ROW(L35))),"<"&IF(selMiles=1,$G$4,$G$5)) -> 189740 | S40: =SUMIFS(INDIRECT("'Migration 2012'!"&ADDRESS(11,ROW(L42))&":"&ADDRESS(62,ROW(L42))),INDIRECT("Distances!"&ADDRESS(3,ROW(L35))&":"&ADDRESS(54,ROW(L35))),">"&IF(selMiles=1,$G$4,$G$5)) -> 54181 | T40: =SUMIFS(INDIRECT("'Migration 2012'!"&ADDRESS(ROW(L43),10)&":"&ADDRESS(ROW(L43),61)),INDIRECT("Distances!"&ADDRESS(ROW(L35),3)&":"&ADDRESS(ROW(L35),54)),"<"&IF(selMiles=1,$E$4,$E$5)) -> 124901 | U40: =SUMIFS(INDIRECT("'Migration 2012'!"&ADDRESS(ROW(L43),10)&":"&ADDRESS(ROW(L43),61)),INDIRECT("Distances!"&ADDRESS(ROW(L35),3)&":"&ADDRESS(ROW(L35),54)),">="&IF(selMiles=1,E$4,$E$5),INDIRECT("Distances!"&ADDRESS(ROW(L35),3)&":"&ADDRESS(ROW(L35),54)),"<"&IF(selMiles=1,$G$4,$G$5)) -> 113228 | V40: =SUMIFS(INDIRECT("'Migration 2012'!"&ADDRESS(ROW(L43),10)&":"&ADDRESS(ROW(L43),61)),INDIRECT("Distances!"&ADDRESS(ROW(L35),3)&":"&ADDRESS(ROW(L35),54)),">"&IF(selMiles=1,$G$4,$G$5)) -> 39245 | AO40: 33 | AP40: New York | AQ40: 363139 | AR40: 269427 | AS40: =HLOOKUP(selYear*10,$E$1:$V$59,ROW(A40),FALSE) -> 164257 | AT40: =HLOOKUP((selYear*10)+1,$E$1:$V$59,ROW(A40),FALSE) -> 189740 | AU40: =HLOOKUP((selYear*10)+2,$E$1:$V$59,ROW(A40),FALSE) -> 54181 | AV40: =HLOOKUP((selYear*10)+3,$E$1:$V$59,ROW(A40),FALSE) -> 124901 | AW40: =HLOOKUP((selYear*10)+4,$E$1:$V$59,ROW(A40),FALSE) -> 113228 | AX40: =HLOOKUP((selYear*10)+5,$E$1:$V$59,ROW(A40),FALSE) -> 39245 | AY40: =600000-AS40-AT40-AU40 -> 191822 | AZ40: =600000-AV40-AW40-AX40 -> 322626 | BA40: 100000 | BC40: 7 | BD40: Connecticut | BE40: 89360 | BF40: 77333 | BG40: 46219 | BH40: 30191 | BI40: 10983 | BJ40: 48223 | BK40: 26199 | BL40: 9117 | BM40: 512607 | BN40: 516461 | BO40: 100000
A41: 34 | B41: =Distances!$B$36 -> North Carolina | C41: =Migration!$W$38 -> 238663 | D41: =Migration!$V$38 -> 273149 | E41: 122414 | F41: 68682 | G41: 16075 | H41: 156151 | I41: 83079 | J41: 25976 | K41: 138943 | L41: 68354 | M41: 18050 | N41: 153672 | O41: =SUMIFS(INDIRECT("'Migration 2011'!"&ADDRESS(ROW(F44),10)&":"&ADDRESS(ROW(F44),61)),INDIRECT("Distances!"&ADDRESS(ROW(F36),3)&":"&ADDRESS(ROW(F36),54)),">="&IF(selMiles=1,E$4,$E$5),INDIRECT("Distances!"&ADDRESS(ROW(F36),3)&":"&ADDRESS(ROW(F36),54)),"<"&IF(selMiles=1,$G$4,$G$5)) -> 85100 | P41: 27363 | Q41: 136464 | R41: 81327 | S41: 21510 | T41: 163748 | U41: =SUMIFS(INDIRECT("'Migration 2012'!"&ADDRESS(ROW(L44),10)&":"&ADDRESS(ROW(L44),61)),INDIRECT("Distances!"&ADDRESS(ROW(L36),3)&":"&ADDRESS(ROW(L36),54)),">="&IF(selMiles=1,E$4,$E$5),INDIRECT("Distances!"&ADDRESS(ROW(L36),3)&":"&ADDRESS(ROW(L36),54)),"<"&IF(selMiles=1,$G$4,$G$5)) -> 85310 | V41: 26116 | AO41: 34 | AP41: North Carolina | AQ41: 207025 | AR41: 263256 | AS41: 136464 | AT41: 81327 | AU41: 21510 | AV41: 163748 | AW41: 85310 | AX41: 26116 | AY41: 360699 | AZ41: 324826 | BA41: 100000 | BC41: 32 | BD41: New Mexico | BE41: 50438 | BF41: 73605 | BG41: 16000 | BH41: 47374 | BI41: 575 | BJ41: 13724 | BK41: 40481 | BL41: 917 | BM41: 536051 | BN41: 544878 | BO41: 100000
A42: 35 | B42: =Distances!$B$37 -> North Dakota | C42: =Migration!$W$39 -> 23959 | D42: =Migration!$V$39 -> 38213 | E42: 10346 | F42: 14035 | G42: 69 | H42: 13935 | I42: 16112 | J42: 53 | K42: 10163 | L42: 16368 | M42: 32 | N42: 13894 | O42: =SUMIFS(INDIRECT("'Migration 2011'!"&ADDRESS(ROW(F45),10)&":"&ADDRESS(ROW(F45),61)),INDIRECT("Distances!"&ADDRESS(ROW(F37),3)&":"&ADDRESS(ROW(F37),54)),">="&IF(selMiles=1,E$4,$E$5),INDIRECT("Distances!"&ADDRESS(ROW(F37),3)&":"&ADDRESS(ROW(F37),54)),"<"&IF(selMiles=1,$G$4,$G$5)) -> 18478 | P42: 214 | Q42: 9232 | R42: 14727 | S42: 0 | T42: 18326 | U42: =SUMIFS(INDIRECT("'Migration 2012'!"&ADDRESS(ROW(L45),10)&":"&ADDRESS(ROW(L45),61)),INDIRECT("Distances!"&ADDRESS(ROW(L37),3)&":"&ADDRESS(ROW(L37),54)),">="&IF(selMiles=1,E$4,$E$5),INDIRECT("Distances!"&ADDRESS(ROW(L37),3)&":"&ADDRESS(ROW(L37),54)),"<"&IF(selMiles=1,$G$4,$G$5)) -> 19727 | V42: 160 | AO42: 35 | AP42: North Dakota | AQ42: 24450 | AR42: 30100 | AS42: 9232 | AT42: 14727 | AU42: 0 | AV42: 18326 | AW42: 19727 | AX42: 160 | AY42: 576041 | AZ42: 561787 | BA42: 100000 | BC42: 16 | BD42: Iowa | BE42: 66922 | BF42: 72557 | BG42: 40817 | BH42: 32411 | BI42: 97 | BJ42: 41601 | BK42: 32687 | BL42: 2258 | BM42: 526675 | BN42: 523454 | BO42: 100000
A43: 36 | B43: =Distances!$B$38 -> Ohio | C43: =Migration!$W$40 -> 199202 | D43: =Migration!$V$40 -> 196391 | E43: 107721 | F43: 67142 | G43: 13219 | H43: 99418 | I43: 61457 | J43: 13898 | K43: 117690 | L43: 72961 | M43: 15398 | N43: 104412 | O43: =SUMIFS(INDIRECT("'Migration 2011'!"&ADDRESS(ROW(F46),10)&":"&ADDRESS(ROW(F46),61)),INDIRECT("Distances!"&ADDRESS(ROW(F38),3)&":"&ADDRESS(ROW(F38),54)),">="&IF(selMiles=1,E$4,$E$5),INDIRECT("Distances!"&ADDRESS(ROW(F38),3)&":"&ADDRESS(ROW(F38),54)),"<"&IF(selMiles=1,$G$4,$G$5)) -> 73955 | P43: 15018 | Q43: 108016 | R43: 74058 | S43: 17456 | T43: 110071 | U43: =SUMIFS(INDIRECT("'Migration 2012'!"&ADDRESS(ROW(L46),10)&":"&ADDRESS(ROW(L46),61)),INDIRECT("Distances!"&ADDRESS(ROW(L38),3)&":"&ADDRESS(ROW(L38),54)),">="&IF(selMiles=1,E$4,$E$5),INDIRECT("Distances!"&ADDRESS(ROW(L38),3)&":"&ADDRESS(ROW(L38),54)),"<"&IF(selMiles=1,$G$4,$G$5)) -> 72029 | V43: 15694 | AO43: 36 | AP43: Ohio | AQ43: 188013 | AR43: 172633 | AS43: 108016 | AT43: 74058 | AU43: 17456 | AV43: 110071 | AW43: 72029 | AX43: 15694 | AY43: 400470 | AZ43: 402206 | BA43: 100000 | BC43: 25 | BD43: Mississippi | BE43: 68363 | BF43: 72321 | BG43: 44132 | BH43: 22100 | BI43: 715 | BJ43: 45823 | BK43: 27141 | BL43: 617 | BM43: 533053 | BN43: 526419 | BO43: 100000
A44: 37 | B44: =Distances!$B$39 -> Oklahoma | C44: =Migration!$W$41 -> 102572 | D44: =Migration!$V$41 -> 108972 | E44: 47017 | F44: 42087 | G44: 1512 | H44: 49630 | I44: 54711 | J44: 2379 | K44: 36745 | L44: 42963 | M44: 1380 | N44: 52057 | O44: =SUMIFS(INDIRECT("'Migration 2011'!"&ADDRESS(ROW(F47),10)&":"&ADDRESS(ROW(F47),61)),INDIRECT("Distances!"&ADDRESS(ROW(F39),3)&":"&ADDRESS(ROW(F39),54)),">="&IF(selMiles=1,E$4,$E$5),INDIRECT("Distances!"&ADDRESS(ROW(F39),3)&":"&ADDRESS(ROW(F39),54)),"<"&IF(selMiles=1,$G$4,$G$5)) -> 55544 | P44: 1382 | Q44: 53618 | R44: 47524 | S44: 1430 | T44: 48042 | U44: =SUMIFS(INDIRECT("'Migration 2012'!"&ADDRESS(ROW(L47),10)&":"&ADDRESS(ROW(L47),61)),INDIRECT("Distances!"&ADDRESS(ROW(L39),3)&":"&ADDRESS(ROW(L39),54)),">="&IF(selMiles=1,E$4,$E$5),INDIRECT("Distances!"&ADDRESS(ROW(L39),3)&":"&ADDRESS(ROW(L39),54)),"<"&IF(selMiles=1,$G$4,$G$5)) -> 59462 | V44: 1468 | AO44: 37 | AP44: Oklahoma | AQ44: 90616 | AR44: 106511 | AS44: 53618 | AT44: 47524 | AU44: 1430 | AV44: 48042 | AW44: 59462 | AX44: 1468 | AY44: 497428 | AZ44: 491028 | BA44: 100000 | BC44: 13 | BD44: Idaho | BE44: 53122 | BF44: 55638 | BG44: 31045 | BH44: 20524 | BI44: 3622 | BJ44: 38593 | BK44: 17147 | BL44: 3679 | BM44: 544809 | BN44: 540581 | BO44: 100000
A45: 38 | B45: =Distances!$B$40 -> Oregon | C45: =Migration!$W$42 -> 108182 | D45: =Migration!$V$42 -> 118925 | E45: 52979 | F45: 30017 | G45: 17189 | H45: 63917 | I45: 33950 | J45: 19654 | K45: 56194 | L45: 32790 | M45: 20811 | N45: 69534 | O45: =SUMIFS(INDIRECT("'Migration 2011'!"&ADDRESS(ROW(F48),10)&":"&ADDRESS(ROW(F48),61)),INDIRECT("Distances!"&ADDRESS(ROW(F40),3)&":"&ADDRESS(ROW(F40),54)),">="&IF(selMiles=1,E$4,$E$5),INDIRECT("Distances!"&ADDRESS(ROW(F40),3)&":"&ADDRESS(ROW(F40),54)),"<"&IF(selMiles=1,$G$4,$G$5)) -> 36977 | P45: 21399 | Q45: 56313 | R45: 37627 | S45: 14242 | T45: 64114 | U45: =SUMIFS(INDIRECT("'Migration 2012'!"&ADDRESS(ROW(L48),10)&":"&ADDRESS(ROW(L48),61)),INDIRECT("Distances!"&ADDRESS(ROW(L40),3)&":"&ADDRESS(ROW(L40),54)),">="&IF(selMiles=1,E$4,$E$5),INDIRECT("Distances!"&ADDRESS(ROW(L40),3)&":"&ADDRESS(ROW(L40),54)),"<"&IF(selMiles=1,$G$4,$G$5)) -> 37202 | V45: 17761 | AO45: 38 | AP45: Oregon | AQ45: 100185 | AR45: 116700 | AS45: 56313 | AT45: 37627 | AU45: 14242 | AV45: 64114 | AW45: 37202 | AX45: 17761 | AY45: 491818 | AZ45: 480923 | BA45: 100000 | BC45: 12 | BD45: Hawaii | BE45: 49218 | BF45: 53581 | BG45: 0 | BH45: 0 | BI45: 61619 | BJ45: 0 | BK45: 0 | BL45: 55481 | BM45: 538381 | BN45: 544519 | BO45: 100000
A46: 39 | B46: =Distances!$B$41 -> Pennsylvania | C46: =Migration!$W$43 -> 237156 | D46: =Migration!$V$43 -> 215500 | E46: 128286 | F46: 66092 | G46: 16948 | H46: 155792 | I46: 65866 | J46: 20197 | K46: 136128 | L46: 66563 | M46: 14414 | N46: 156833 | O46: =SUMIFS(INDIRECT("'Migration 2011'!"&ADDRESS(ROW(F49),10)&":"&ADDRESS(ROW(F49),61)),INDIRECT("Distances!"&ADDRESS(ROW(F41),3)&":"&ADDRESS(ROW(F41),54)),">="&IF(selMiles=1,E$4,$E$5),INDIRECT("Distances!"&ADDRESS(ROW(F41),3)&":"&ADDRESS(ROW(F41),54)),"<"&IF(selMiles=1,$G$4,$G$5)) -> 61680 | P46: 18501 | Q46: 143890 | R46: 77700 | S46: 17879 | T46: 152991 | U46: =SUMIFS(INDIRECT("'Migration 2012'!"&ADDRESS(ROW(L49),10)&":"&ADDRESS(ROW(L49),61)),INDIRECT("Distances!"&ADDRESS(ROW(L41),3)&":"&ADDRESS(ROW(L41),54)),">="&IF(selMiles=1,E$4,$E$5),INDIRECT("Distances!"&ADDRESS(ROW(L41),3)&":"&ADDRESS(ROW(L41),54)),"<"&IF(selMiles=1,$G$4,$G$5)) -> 56701 | V46: 13655 | AO46: 39 | AP46: Pennsylvania | AQ46: 209810 | AR46: 235580 | AS46: 143890 | AT46: 77700 | AU46: 17879 | AV46: 152991 | AW46: 56701 | AX46: 13655 | AY46: 360531 | AZ46: 376653 | BA46: 100000 | BC46: 28 | BD46: Nebraska | BE46: 43531 | BF46: 51290 | BG46: 25720 | BH46: 21826 | BI46: 1270 | BJ46: 22033 | BK46: 20442 | BL46: 791 | BM46: 551184 | BN46: 556734 | BO46: 100000
A47: 40 | B47: =Distances!$B$42 -> Rhode Island | C47: =Migration!$W$44 -> 30498 | D47: =Migration!$V$44 -> 33446 | E47: 15632 | F47: 8040 | G47: 1960 | H47: 23114 | I47: 6469 | J47: 2752 | K47: 17843 | L47: 11930 | M47: 1782 | N47: 18200 | O47: =SUMIFS(INDIRECT("'Migration 2011'!"&ADDRESS(ROW(F50),10)&":"&ADDRESS(ROW(F50),61)),INDIRECT("Distances!"&ADDRESS(ROW(F42),3)&":"&ADDRESS(ROW(F42),54)),">="&IF(selMiles=1,E$4,$E$5),INDIRECT("Distances!"&ADDRESS(ROW(F42),3)&":"&ADDRESS(ROW(F42),54)),"<"&IF(selMiles=1,$G$4,$G$5)) -> 6092 | P47: 2770 | Q47: 17913 | R47: 9880 | S47: 3329 | T47: 23726 | U47: =SUMIFS(INDIRECT("'Migration 2012'!"&ADDRESS(ROW(L50),10)&":"&ADDRESS(ROW(L50),61)),INDIRECT("Distances!"&ADDRESS(ROW(L42),3)&":"&ADDRESS(ROW(L42),54)),">="&IF(selMiles=1,E$4,$E$5),INDIRECT("Distances!"&ADDRESS(ROW(L42),3)&":"&ADDRESS(ROW(L42),54)),"<"&IF(selMiles=1,$G$4,$G$5)) -> 7026 | V47: 2810 | AO47: 40 | AP47: Rhode Island | AQ47: 24948 | AR47: 32059 | AS47: 17913 | AT47: 9880 | AU47: 3329 | AV47: 23726 | AW47: 7026 | AX47: 2810 | AY47: 568878 | AZ47: 566438 | BA47: 100000 | BC47: 9 | BD47: District of Columbia | BE47: 56052 | BF47: 51244 | BG47: 46170 | BH47: 7505 | BI47: 5838 | BJ47: 36610 | BK47: 10210 | BL47: 7010 | BM47: 540487 | BN47: 546170 | BO47: 100000
A48: 41 | B48: =Distances!$B$43 -> South Carolina | C48: =Migration!$W$45 -> 127418 | D48: =Migration!$V$45 -> 156705 | E48: 73585 | F48: 34286 | G48: 9807 | H48: 89256 | I48: 50784 | J48: 12670 | K48: 80679 | L48: 31016 | M48: 9734 | N48: 91605 | O48: =SUMIFS(INDIRECT("'Migration 2011'!"&ADDRESS(ROW(F51),10)&":"&ADDRESS(ROW(F51),61)),INDIRECT("Distances!"&ADDRESS(ROW(F43),3)&":"&ADDRESS(ROW(F43),54)),">="&IF(selMiles=1,E$4,$E$5),INDIRECT("Distances!"&ADDRESS(ROW(F43),3)&":"&ADDRESS(ROW(F43),54)),"<"&IF(selMiles=1,$G$4,$G$5)) -> 54065 | P48: 14140 | Q48: 82628 | R48: 35783 | S48: 9011 | T48: 92131 | U48: =SUMIFS(INDIRECT("'Migration 2012'!"&ADDRESS(ROW(L51),10)&":"&ADDRESS(ROW(L51),61)),INDIRECT("Distances!"&ADDRESS(ROW(L43),3)&":"&ADDRESS(ROW(L43),54)),">="&IF(selMiles=1,E$4,$E$5),INDIRECT("Distances!"&ADDRESS(ROW(L43),3)&":"&ADDRESS(ROW(L43),54)),"<"&IF(selMiles=1,$G$4,$G$5)) -> 54676 | V48: 10968 | AO48: 41 | AP48: South Carolina | AQ48: 117569 | AR48: 152441 | AS48: 82628 | AT48: 35783 | AU48: 9011 | AV48: 92131 | AW48: 54676 | AX48: 10968 | AY48: 472578 | AZ48: 442225 | BA48: 100000 | BC48: 49 | BD48: West Virginia | BE48: 49349 | BF48: 39609 | BG48: 35191 | BH48: 9724 | BI48: 2518 | BJ48: 37817 | BK48: 7040 | BL48: 2347 | BM48: 552567 | BN48: 552796 | BO48: 100000
A49: 42 | B49: =Distances!$B$44 -> South Dakota | C49: =Migration!$W$46 -> 22534 | D49: =Migration!$V$46 -> 26051 | E49: 11660 | F49: 15988 | G49: 267 | H49: 14441 | I49: 11261 | J49: 75 | K49: 14926 | L49: 14457 | M49: 113 | N49: 16344 | O49: =SUMIFS(INDIRECT("'Migration 2011'!"&ADDRESS(ROW(F52),10)&":"&ADDRESS(ROW(F52),61)),INDIRECT("Distances!"&ADDRESS(ROW(F44),3)&":"&ADDRESS(ROW(F44),54)),">="&IF(selMiles=1,E$4,$E$5),INDIRECT("Distances!"&ADDRESS(ROW(F44),3)&":"&ADDRESS(ROW(F44),54)),"<"&IF(selMiles=1,$G$4,$G$5)) -> 11162 | P49: 0 | Q49: 10946 | R49: 11129 | S49: 459 | T49: 13035 | U49: =SUMIFS(INDIRECT("'Migration 2012'!"&ADDRESS(ROW(L52),10)&":"&ADDRESS(ROW(L52),61)),INDIRECT("Distances!"&ADDRESS(ROW(L44),3)&":"&ADDRESS(ROW(L44),54)),">="&IF(selMiles=1,E$4,$E$5),INDIRECT("Distances!"&ADDRESS(ROW(L44),3)&":"&ADDRESS(ROW(L44),54)),"<"&IF(selMiles=1,$G$4,$G$5)) -> 13008 | V49: 142 | AO49: 42 | AP49: South Dakota | AQ49: 27915 | AR49: 25777 | AS49: 10946 | AT49: 11129 | AU49: 459 | AV49: 13035 | AW49: 13008 | AX49: 142 | AY49: 577466 | AZ49: 573815 | BA49: 100000 | BC49: 30 | BD49: New Hampshire | BE49: 38399 | BF49: 39367 | BG49: 26943 | BH49: 8683 | BI49: 3070 | BJ49: 35181 | BK49: 12046 | BL49: 3332 | BM49: 561304 | BN49: 549441 | BO49: 100000
A50: 43 | B50: =Distances!$B$45 -> Tennessee | C50: =Migration!$W$47 -> 163843 | D50: =Migration!$V$47 -> 177098 | E50: 92057 | F50: 49700 | G50: 1408 | H50: 98012 | I50: 59768 | J50: 1998 | K50: 98830 | L50: 52271 | M50: 3366 | N50: 120903 | O50: =SUMIFS(INDIRECT("'Migration 2011'!"&ADDRESS(ROW(F53),10)&":"&ADDRESS(ROW(F53),61)),INDIRECT("Distances!"&ADDRESS(ROW(F45),3)&":"&ADDRESS(ROW(F45),54)),">="&IF(selMiles=1,E$4,$E$5),INDIRECT("Distances!"&ADDRESS(ROW(F45),3)&":"&ADDRESS(ROW(F45),54)),"<"&IF(selMiles=1,$G$4,$G$5)) -> 47587 | P50: 3562 | Q50: 104629 | R50: 54258 | S50: 4971 | T50: 112835 | U50: =SUMIFS(INDIRECT("'Migration 2012'!"&ADDRESS(ROW(L53),10)&":"&ADDRESS(ROW(L53),61)),INDIRECT("Distances!"&ADDRESS(ROW(L45),3)&":"&ADDRESS(ROW(L45),54)),">="&IF(selMiles=1,E$4,$E$5),INDIRECT("Distances!"&ADDRESS(ROW(L45),3)&":"&ADDRESS(ROW(L45),54)),"<"&IF(selMiles=1,$G$4,$G$5)) -> 60765 | V50: 4215 | AO50: 43 | AP50: Tennessee | AQ50: 143135 | AR50: 159778 | AS50: 104629 | AT50: 54258 | AU50: 4971 | AV50: 112835 | AW50: 60765 | AX50: 4215 | AY50: 436142 | AZ50: 422185 | BA50: 100000 | BC50: 2 | BD50: Alaska | BE50: 94692 | BF50: 36326 | BG50: 0 | BH50: 26235 | BI50: 57890 | BJ50: 0 | BK50: 13682 | BL50: 19758 | BM50: 515875 | BN50: 566560 | BO50: 100000
A51: 44 | B51: =Distances!$B$46 -> Texas | C51: =Migration!$W$48 -> 402187 | D51: =Migration!$V$48 -> 507752 | E51: 73834 | F51: 326990 | G51: 11794 | H51: 77142 | I51: 394085 | J51: 19511 | K51: 81897 | L51: 317443 | M51: 5943 | N51: 67324 | O51: =SUMIFS(INDIRECT("'Migration 2011'!"&ADDRESS(ROW(F54),10)&":"&ADDRESS(ROW(F54),61)),INDIRECT("Distances!"&ADDRESS(ROW(F46),3)&":"&ADDRESS(ROW(F46),54)),">="&IF(selMiles=1,E$4,$E$5),INDIRECT("Distances!"&ADDRESS(ROW(F46),3)&":"&ADDRESS(ROW(F46),54)),"<"&IF(selMiles=1,$G$4,$G$5)) -> 434626 | P51: 18001 | Q51: 68993 | R51: 328406 | S51: 5148 | T51: 75815 | U51: =SUMIFS(INDIRECT("'Migration 2012'!"&ADDRESS(ROW(L54),10)&":"&ADDRESS(ROW(L54),61)),INDIRECT("Distances!"&ADDRESS(ROW(L46),3)&":"&ADDRESS(ROW(L46),54)),">="&IF(selMiles=1,E$4,$E$5),INDIRECT("Distances!"&ADDRESS(ROW(L46),3)&":"&ADDRESS(ROW(L46),54)),"<"&IF(selMiles=1,$G$4,$G$5)) -> 420138 | V51: 16234 | AO51: 44 | AP51: Texas | AQ51: 411641 | AR51: 486558 | AS51: 68993 | AT51: 328406 | AU51: 5148 | AV51: 75815 | AW51: 420138 | AX51: 16234 | AY51: 197453 | AZ51: 87813 | BA51: 100000 | BC51: 27 | BD51: Montana | BE51: 35870 | BF51: 35630 | BG51: 4857 | BH51: 28795 | BI51: 180 | BJ51: 3645 | BK51: 33167 | BL51: 878 | BM51: 566168 | BN51: 562310 | BO51: 100000
A52: 45 | B52: =Distances!$B$47 -> Utah | C52: =Migration!$W$49 -> 82165 | D52: =Migration!$V$49 -> 87870 | E52: 23053 | F52: 51145 | G52: 2225 | H52: 20801 | I52: 55237 | J52: 2125 | K52: 16955 | L52: 53567 | M52: 2689 | N52: 19845 | O52: =SUMIFS(INDIRECT("'Migration 2011'!"&ADDRESS(ROW(F55),10)&":"&ADDRESS(ROW(F55),61)),INDIRECT("Distances!"&ADDRESS(ROW(F47),3)&":"&ADDRESS(ROW(F47),54)),">="&IF(selMiles=1,E$4,$E$5),INDIRECT("Distances!"&ADDRESS(ROW(F47),3)&":"&ADDRESS(ROW(F47),54)),"<"&IF(selMiles=1,$G$4,$G$5)) -> 61994 | P52: 3378 | Q52: 20972 | R52: 57100 | S52: 4093 | T52: 19829 | U52: =SUMIFS(INDIRECT("'Migration 2012'!"&ADDRESS(ROW(L55),10)&":"&ADDRESS(ROW(L55),61)),INDIRECT("Distances!"&ADDRESS(ROW(L47),3)&":"&ADDRESS(ROW(L47),54)),">="&IF(selMiles=1,E$4,$E$5),INDIRECT("Distances!"&ADDRESS(ROW(L47),3)&":"&ADDRESS(ROW(L47),54)),"<"&IF(selMiles=1,$G$4,$G$5)) -> 63683 | V52: 4597 | AO52: 45 | AP52: Utah | AQ52: 75541 | AR52: 77780 | AS52: 20972 | AT52: 57100 | AU52: 4093 | AV52: 19829 | AW52: 63683 | AX52: 4597 | AY52: 517835 | AZ52: 511891 | BA52: 100000 | BC52: 40 | BD52: Rhode Island | BE52: 24948 | BF52: 32059 | BG52: 17913 | BH52: 9880 | BI52: 3329 | BJ52: 23726 | BK52: 7026 | BL52: 2810 | BM52: 568878 | BN52: 566438 | BO52: 100000
A53: 46 | B53: =Distances!$B$48 -> Vermont | C53: =Migration!$W$50 -> 20056 | D53: =Migration!$V$50 -> 24431 | E53: 8763 | F53: 6144 | G53: 3473 | H53: 14424 | I53: 6520 | J53: 1585 | K53: 11038 | L53: 5904 | M53: 1230 | N53: 13019 | O53: =SUMIFS(INDIRECT("'Migration 2011'!"&ADDRESS(ROW(F56),10)&":"&ADDRESS(ROW(F56),61)),INDIRECT("Distances!"&ADDRESS(ROW(F48),3)&":"&ADDRESS(ROW(F48),54)),">="&IF(selMiles=1,E$4,$E$5),INDIRECT("Distances!"&ADDRESS(ROW(F48),3)&":"&ADDRESS(ROW(F48),54)),"<"&IF(selMiles=1,$G$4,$G$5)) -> 5134 | P53: 2329 | Q53: 11272 | R53: 7204 | S53: 1580 | T53: 16587 | U53: =SUMIFS(INDIRECT("'Migration 2012'!"&ADDRESS(ROW(L56),10)&":"&ADDRESS(ROW(L56),61)),INDIRECT("Distances!"&ADDRESS(ROW(L48),3)&":"&ADDRESS(ROW(L48),54)),">="&IF(selMiles=1,E$4,$E$5),INDIRECT("Distances!"&ADDRESS(ROW(L48),3)&":"&ADDRESS(ROW(L48),54)),"<"&IF(selMiles=1,$G$4,$G$5)) -> 6284 | V53: 1560 | AO53: 46 | AP53: Vermont | AQ53: 18380 | AR53: 22529 | AS53: 11272 | AT53: 7204 | AU53: 1580 | AV53: 16587 | AW53: 6284 | AX53: 1560 | AY53: 579944 | AZ53: 575569 | BA53: 100000 | BC53: 52 | BD53: Puerto Rico | BE53: 59885 | BF53: 31732 | BG53: 0 | BH53: 56444 | BI53: 18056 | BJ53: 0 | BK53: 16328 | BL53: 3716 | BM53: 525500 | BN53: 579956 | BO53: 100000
A54: 47 | B54: =Distances!$B$49 -> Virginia | C54: =Migration!$W$51 -> 238540 | D54: =Migration!$V$51 -> 250653 | E54: 126469 | F54: 77502 | G54: 28423 | H54: 144466 | I54: 85199 | J54: 31148 | K54: 123074 | L54: 79409 | M54: 27821 | N54: 137340 | O54: =SUMIFS(INDIRECT("'Migration 2011'!"&ADDRESS(ROW(F57),10)&":"&ADDRESS(ROW(F57),61)),INDIRECT("Distances!"&ADDRESS(ROW(F49),3)&":"&ADDRESS(ROW(F49),54)),">="&IF(selMiles=1,E$4,$E$5),INDIRECT("Distances!"&ADDRESS(ROW(F49),3)&":"&ADDRESS(ROW(F49),54)),"<"&IF(selMiles=1,$G$4,$G$5)) -> 85257 | P54: 35755 | Q54: 125219 | R54: 89803 | S54: 24202 | T54: 143499 | U54: =SUMIFS(INDIRECT("'Migration 2012'!"&ADDRESS(ROW(L57),10)&":"&ADDRESS(ROW(L57),61)),INDIRECT("Distances!"&ADDRESS(ROW(L49),3)&":"&ADDRESS(ROW(L49),54)),">="&IF(selMiles=1,E$4,$E$5),INDIRECT("Distances!"&ADDRESS(ROW(L49),3)&":"&ADDRESS(ROW(L49),54)),"<"&IF(selMiles=1,$G$4,$G$5)) -> 79835 | V54: 27835 | AO54: 47 | AP54: Virginia | AQ54: 232002 | AR54: 259507 | AS54: 125219 | AT54: 89803 | AU54: 24202 | AV54: 143499 | AW54: 79835 | AX54: 27835 | AY54: 360776 | AZ54: 348831 | BA54: 100000 | BC54: 8 | BD54: Delaware | BE54: 30055 | BF54: 30759 | BG54: 19061 | BH54: 4497 | BI54: 1591 | BJ54: 27525 | BK54: 3554 | BL54: 3734 | BM54: 574851 | BN54: 565187 | BO54: 100000
A55: 48 | B55: =Distances!$B$50 -> Washington | C55: =Migration!$W$52 -> 180462 | D55: =Migration!$V$52 -> 215494 | E55: 33669 | F55: 90522 | G55: 41971 | H55: 38896 | I55: 107049 | J55: 45839 | K55: 30853 | L55: 109051 | M55: 50781 | N55: 40063 | O55: =SUMIFS(INDIRECT("'Migration 2011'!"&ADDRESS(ROW(F58),10)&":"&ADDRESS(ROW(F58),61)),INDIRECT("Distances!"&ADDRESS(ROW(F50),3)&":"&ADDRESS(ROW(F50),54)),">="&IF(selMiles=1,E$4,$E$5),INDIRECT("Distances!"&ADDRESS(ROW(F50),3)&":"&ADDRESS(ROW(F50),54)),"<"&IF(selMiles=1,$G$4,$G$5)) -> 111284 | P55: 58243 | Q55: 31622 | R55: 102186 | S55: 46654 | T55: 36129 | U55: =SUMIFS(INDIRECT("'Migration 2012'!"&ADDRESS(ROW(L58),10)&":"&ADDRESS(ROW(L58),61)),INDIRECT("Distances!"&ADDRESS(ROW(L50),3)&":"&ADDRESS(ROW(L50),54)),">="&IF(selMiles=1,E$4,$E$5),INDIRECT("Distances!"&ADDRESS(ROW(L50),3)&":"&ADDRESS(ROW(L50),54)),"<"&IF(selMiles=1,$G$4,$G$5)) -> 115694 | V55: 64696 | AO55: 48 | AP55: Washington | AQ55: 166162 | AR55: 191784 | AS55: 31622 | AT55: 102186 | AU55: 46654 | AV55: 36129 | AW55: 115694 | AX55: 64696 | AY55: 419538 | AZ55: 383481 | BA55: 100000 | BC55: 35 | BD55: North Dakota | BE55: 24450 | BF55: 30100 | BG55: 9232 | BH55: 14727 | BI55: 0 | BJ55: 18326 | BK55: 19727 | BL55: 160 | BM55: 576041 | BN55: 561787 | BO55: 100000
A56: 49 | B56: =Distances!$B$51 -> West Virginia | C56: =Migration!$W$53 -> 47425 | D56: =Migration!$V$53 -> 47125 | E56: 35471 | F56: 11614 | G56: 2405 | H56: 31138 | I56: 6350 | J56: 2303 | K56: 34226 | L56: 10288 | M56: 1456 | N56: 37946 | O56: =SUMIFS(INDIRECT("'Migration 2011'!"&ADDRESS(ROW(F59),10)&":"&ADDRESS(ROW(F59),61)),INDIRECT("Distances!"&ADDRESS(ROW(F51),3)&":"&ADDRESS(ROW(F51),54)),">="&IF(selMiles=1,E$4,$E$5),INDIRECT("Distances!"&ADDRESS(ROW(F51),3)&":"&ADDRESS(ROW(F51),54)),"<"&IF(selMiles=1,$G$4,$G$5)) -> 10107 | P56: 2695 | Q56: 35191 | R56: 9724 | S56: 2518 | T56: 37817 | U56: =SUMIFS(INDIRECT("'Migration 2012'!"&ADDRESS(ROW(L59),10)&":"&ADDRESS(ROW(L59),61)),INDIRECT("Distances!"&ADDRESS(ROW(L51),3)&":"&ADDRESS(ROW(L51),54)),">="&IF(selMiles=1,E$4,$E$5),INDIRECT("Distances!"&ADDRESS(ROW(L51),3)&":"&ADDRESS(ROW(L51),54)),"<"&IF(selMiles=1,$G$4,$G$5)) -> 7040 | V56: 2347 | AO56: 49 | AP56: West Virginia | AQ56: 49349 | AR56: 39609 | AS56: 35191 | AT56: 9724 | AU56: 2518 | AV56: 37817 | AW56: 7040 | AX56: 2347 | AY56: 552567 | AZ56: 552796 | BA56: 100000 | BC56: 51 | BD56: Wyoming | BE56: 28186 | BF56: 28046 | BG56: 10174 | BH56: 22004 | BI56: 50 | BJ56: 10642 | BK56: 20507 | BL56: 16 | BM56: 567772 | BN56: 568835 | BO56: 100000
A57: 50 | B57: =Distances!$B$52 -> Wisconsin | C57: =Migration!$W$54 -> 97724 | D57: =Migration!$V$54 -> 99192 | E57: 51425 | F57: 58489 | G57: 1911 | H57: 53502 | I57: 38215 | J57: 1869 | K57: 49311 | L57: 55889 | M57: 399 | N57: 61783 | O57: =SUMIFS(INDIRECT("'Migration 2011'!"&ADDRESS(ROW(F60),10)&":"&ADDRESS(ROW(F60),61)),INDIRECT("Distances!"&ADDRESS(ROW(F52),3)&":"&ADDRESS(ROW(F52),54)),">="&IF(selMiles=1,E$4,$E$5),INDIRECT("Distances!"&ADDRESS(ROW(F52),3)&":"&ADDRESS(ROW(F52),54)),"<"&IF(selMiles=1,$G$4,$G$5)) -> 46116 | P57: 2268 | Q57: 47941 | R57: 49282 | S57: 1490 | T57: 57800 | U57: =SUMIFS(INDIRECT("'Migration 2012'!"&ADDRESS(ROW(L60),10)&":"&ADDRESS(ROW(L60),61)),INDIRECT("Distances!"&ADDRESS(ROW(L52),3)&":"&ADDRESS(ROW(L52),54)),">="&IF(selMiles=1,E$4,$E$5),INDIRECT("Distances!"&ADDRESS(ROW(L52),3)&":"&ADDRESS(ROW(L52),54)),"<"&IF(selMiles=1,$G$4,$G$5)) -> 40823 | V57: 1544 | AO57: 50 | AP57: Wisconsin | AQ57: 111240 | AR57: 93065 | AS57: 47941 | AT57: 49282 | AU57: 1490 | AV57: 57800 | AW57: 40823 | AX57: 1544 | AY57: 501287 | AZ57: 499833 | BA57: 100000 | BC57: 20 | BD57: Maine | BE57: 32209 | BF57: 27758 | BG57: 15174 | BH57: 19579 | BI57: 3821 | BJ57: 14517 | BK57: 10455 | BL57: 2589 | BM57: 561426 | BN57: 572439 | BO57: 100000
A58: 51 | B58: =Distances!$B$53 -> Wyoming | C58: =Migration!$W$55 -> 32228 | D58: =Migration!$V$55 -> 31149 | E58: 9641 | F58: 18527 | G58: 18 | H58: 10525 | I58: 17496 | J58: 25 | K58: 6697 | L58: 25280 | M58: 14 | N58: 12185 | O58: =SUMIFS(INDIRECT("'Migration 2011'!"&ADDRESS(ROW(F61),10)&":"&ADDRESS(ROW(F61),61)),INDIRECT("Distances!"&ADDRESS(ROW(F53),3)&":"&ADDRESS(ROW(F53),54)),">="&IF(selMiles=1,E$4,$E$5),INDIRECT("Distances!"&ADDRESS(ROW(F53),3)&":"&ADDRESS(ROW(F53),54)),"<"&IF(selMiles=1,$G$4,$G$5)) -> 18466 | P58: 0 | Q58: 10174 | R58: 22004 | S58: 50 | T58: 10642 | U58: =SUMIFS(INDIRECT("'Migration 2012'!"&ADDRESS(ROW(L61),10)&":"&ADDRESS(ROW(L61),61)),INDIRECT("Distances!"&ADDRESS(ROW(L53),3)&":"&ADDRESS(ROW(L53),54)),">="&IF(selMiles=1,E$4,$E$5),INDIRECT("Distances!"&ADDRESS(ROW(L53),3)&":"&ADDRESS(ROW(L53),54)),"<"&IF(selMiles=1,$G$4,$G$5)) -> 20507 | V58: 16 | AO58: 51 | AP58: Wyoming | AQ58: 28186 | AR58: 28046 | AS58: 10174 | AT58: 22004 | AU58: 50 | AV58: 10642 | AW58: 20507 | AX58: 16 | AY58: 567772 | AZ58: 568835 | BA58: 100000 | BC58: 42 | BD58: South Dakota | BE58: 27915 | BF58: 25777 | BG58: 10946 | BH58: 11129 | BI58: 459 | BJ58: 13035 | BK58: 13008 | BL58: 142 | BM58: 577466 | BN58: 573815 | BO58: 100000
A59: 52 | B59: =Distances!$B$54 -> Puerto Rico | C59: =Migration!$W$56 -> 74500 | D59: =Migration!$V$56 -> 20044 | E59: 0 | F59: 45068 | G59: 14817 | H59: 0 | I59: 24801 | J59: 6931 | K59: 0 | L59: 59280 | M59: 16938 | N59: 0 | O59: =SUMIFS(INDIRECT("'Migration 2011'!"&ADDRESS(ROW(F62),10)&":"&ADDRESS(ROW(F62),61)),INDIRECT("Distances!"&ADDRESS(ROW(F54),3)&":"&ADDRESS(ROW(F54),54)),">="&IF(selMiles=1,E$4,$E$5),INDIRECT("Distances!"&ADDRESS(ROW(F54),3)&":"&ADDRESS(ROW(F54),54)),"<"&IF(selMiles=1,$G$4,$G$5)) -> 20014 | P59: 2635 | Q59: 0 | R59: 56444 | S59: 18056 | T59: 0 | U59: =SUMIFS(INDIRECT("'Migration 2012'!"&ADDRESS(ROW(L62),10)&":"&ADDRESS(ROW(L62),61)),INDIRECT("Distances!"&ADDRESS(ROW(L54),3)&":"&ADDRESS(ROW(L54),54)),">="&IF(selMiles=1,E$4,$E$5),INDIRECT("Distances!"&ADDRESS(ROW(L54),3)&":"&ADDRESS(ROW(L54),54)),"<"&IF(selMiles=1,$G$4,$G$5)) -> 16328 | V59: 3716 | AO59: 52 | AP59: Puerto Rico | AQ59: 59885 | AR59: 31732 | AS59: 0 | AT59: 56444 | AU59: 18056 | AV59: 0 | AW59: 16328 | AX59: 3716 | AY59: 525500 | AZ59: 579956 | BA59: 100000 | BC59: 46 | BD59: Vermont | BE59: 18380 | BF59: 22529 | BG59: 11272 | BH59: 7204 | BI59: 1580 | BJ59: 16587 | BK59: 6284 | BL59: 1560 | BM59: 579944 | BN59: 575569 | BO59: 100000

Sheet Distances Chart Data Backup (hidden)
E1: 10 | F1: 11 | G1: 12 | H1: 13 | I1: 14 | J1: 15 | K1: 20 | L1: 21 | M1: 22 | N1: 23 | O1: 24 | P1: 25 | Q1: 30 | R1: 31 | S1: 32 | T1: 33 | U1: 34 | V1: 35 | W1: Selected Year
E3: From State | F3: From State | G3: From State | H3: To State | I3: To State | J3: To State | K3: From State | L3: From State | M3: From State | N3: To State | O3: To State | P3: To State | Q3: From State | R3: From State | S3: From State | T3: To State | U3: To State | V3: To State | W3: From State | X3: From State | Y3: From State | Z3: To State | AA3: To State | AB3: To State
D4: Miles | E4: 500 | G4: 2000 | H4: 500 | J4: 2000
D5: KM | E5: =1.6*E4 -> 800 | G5: =1.6*G4 -> 3200 | H5: 800 | J5: 3200
B7: State | C7: Number Migrated From State | D7: Number Migrated To State | E7: =IF(selMiles=1,CONCATENATE("Travelled <",$E$4,$D$4," ",$E$3),CONCATENATE("Travelled <",$E$5,$D$5," ",$E$3)) -> Travelled <800KM From State | F7: =IF(selMiles=1,CONCATENATE("Travelled ",$E$4,"-",$G$4,$D$4," ",$E$3),CONCATENATE("Travelled ",$E$5,"-",$G$5,$D$5," ",$E$3)) -> Travelled 800-3200KM From State | G7: =IF(selMiles=1,CONCATENATE("Travelled >",$G$4,$D$4," ",$G$3),CONCATENATE("Travelled >",$G$5,$D$5," ",$G$3)) -> Travelled >3200KM From State | H7: =IF(selMiles=1,CONCATENATE("Travelled <",$E$4,$D$4," ",$H$3),CONCATENATE("Travelled <",$E$5,$D$5," ",$H$3)) -> Travelled <800KM To State | I7: =IF(selMiles=1,CONCATENATE("Travelled ",$E$4,"-",$G$4,$D$4," ",$H$3),CONCATENATE("Travelled ",$E$5,"-",$G$5,$D$5," ",$H$3)) -> Travelled 800-3200KM To State | J7: =IF(selMiles=1,CONCATENATE("Travelled >",$G$4,$D$4," ",$J$3),CONCATENATE("Travelled >",$G$5,$D$5," ",$J$3)) -> Travelled >3200KM To State | K7: =IF(selMiles=1,CONCATENATE("Travelled <",$E$4,$D$4," ",$E$3),CONCATENATE("Travelled <",$E$5,$D$5," ",$E$3)) -> Travelled <800KM From State | L7: =IF(selMiles=1,CONCATENATE("Travelled ",$E$4,"-",$G$4,$D$4," ",$E$3),CONCATENATE("Travelled ",$E$5,"-",$G$5,$D$5," ",$E$3)) -> Travelled 800-3200KM From State | M7: =IF(selMiles=1,CONCATENATE("Travelled >",$G$4,$D$4," ",$G$3),CONCATENATE("Travelled >",$G$5,$D$5," ",$G$3)) -> Travelled >3200KM From State | N7: =IF(selMiles=1,CONCATENATE("Travelled <",$E$4,$D$4," ",$H$3),CONCATENATE("Travelled <",$E$5,$D$5," ",$H$3)) -> Travelled <800KM To State | O7: =IF(selMiles=1,CONCATENATE("Travelled ",$E$4,"-",$G$4,$D$4," ",$H$3),CONCATENATE("Travelled ",$E$5,"-",$G$5,$D$5," ",$H$3)) -> Travelled 800-3200KM To State | P7: =IF(selMiles=1,CONCATENATE("Travelled >",$G$4,$D$4," ",$J$3),CONCATENATE("Travelled >",$G$5,$D$5," ",$J$3)) -> Travelled >3200KM To State | Q7: =IF(selMiles=1,CONCATENATE("Travelled <",$E$4,$D$4," ",$E$3),CONCATENATE("Travelled <",$E$5,$D$5," ",$E$3)) -> Travelled <800KM From State | R7: =IF(selMiles=1,CONCATENATE("Travelled ",$E$4,"-",$G$4,$D$4," ",$E$3),CONCATENATE("Travelled ",$E$5,"-",$G$5,$D$5," ",$E$3)) -> Travelled 800-3200KM From State | S7: =IF(selMiles=1,CONCATENATE("Travelled >",$G$4,$D$4," ",$G$3),CONCATENATE("Travelled >",$G$5,$D$5," ",$G$3)) -> Travelled >3200KM From State | T7: =IF(selMiles=1,CONCATENATE("Travelled <",$E$4,$D$4," ",$H$3),CONCATENATE("Travelled <",$E$5,$D$5," ",$H$3)) -> Travelled <800KM To State | U7: =IF(selMiles=1,CONCATENATE("Travelled ",$E$4,"-",$G$4,$D$4," ",$H$3),CONCATENATE("Travelled ",$E$5,"-",$G$5,$D$5," ",$H$3)) -> Travelled 800-3200KM To State | V7: =IF(selMiles=1,CONCATENATE("Travelled >",$G$4,$D$4," ",$J$3),CONCATENATE("Travelled >",$G$5,$D$5," ",$J$3)) -> Travelled >3200KM To State | W7: =HLOOKUP(selYear*10,$E$1:$V$59,ROW($A7),FALSE) -> Travelled <800KM From State | X7: =HLOOKUP((selYear*10)+1,$E$1:$V$59,ROW($A7),FALSE) -> Travelled 800-3200KM From State | Y7: =HLOOKUP((selYear*10)+2,$E$1:$V$59,ROW($A7),FALSE) -> Travelled >3200KM From State | Z7: =HLOOKUP((selYear*10)+3,$E$1:$V$59,ROW($A7),FALSE) -> Travelled <800KM To State | AA7: =HLOOKUP((selYear*10)+4,$E$1:$V$59,ROW($A7),FALSE) -> Travelled 800-3200KM To State | AB7: =HLOOKUP((selYear*10)+5,$E$1:$V$59,ROW($A7),FALSE) -> Travelled >3200KM To State | AC7: Gap Left | AD7: Gap Right | AE7: Gap Middle | AG7: State | AH7: Y-axis | AI7: X-axis
B8: =Distances!B3 -> Alabama | C8: =Migration!W5 -> 109210 | D8: =Migration!V5 -> 104600 | E8: =SUMIFS(INDIRECT("'Migration 2010'!"&ADDRESS(11,ROW(A10))&":"&ADDRESS(62,ROW(A10))),INDIRECT("Distances!"&ADDRESS(3,ROW(A3))&":"&ADDRESS(54,ROW(A3))),"<"&IF(selMiles=1,$E$4,$E$5)) -> 61005 | F8: =SUMIFS(INDIRECT("'Migration 2010'!"&ADDRESS(11,ROW(A10))&":"&ADDRESS(62,ROW(A10))),INDIRECT("Distances!"&ADDRESS(3,ROW(A3))&":"&ADDRESS(54,ROW(A3))),">="&IF(selMiles=1,$E$4,$E$5),INDIRECT("Distances!"&ADDRESS(3,ROW(A3))&":"&ADDRESS(54,ROW(A3))),"<"&IF(selMiles=1,$G$4,$G$5)) -> 32533 | G8: =SUMIFS(INDIRECT("'Migration 2010'!"&ADDRESS(11,ROW(A10))&":"&ADDRESS(62,ROW(A10))),INDIRECT("Distances!"&ADDRESS(3,ROW(A3))&":"&ADDRESS(54,ROW(A3))),">"&IF(selMiles=1,$G$4,$G$5)) -> 6312 | H8: =SUMIFS(INDIRECT("'Migration 2010'!"&ADDRESS(ROW(A11),10)&":"&ADDRESS(ROW(A11),61)),INDIRECT("Distances!"&ADDRESS(ROW(A3),3)&":"&ADDRESS(ROW(A3),54)),"<"&IF(selMiles=1,$E$4,$E$5)) -> 61477 | I8: =SUMIFS(INDIRECT("'Migration 2010'!"&ADDRESS(ROW(A11),10)&":"&ADDRESS(ROW(A11),61)),INDIRECT("Distances!"&ADDRESS(ROW(A3),3)&":"&ADDRESS(ROW(A3),54)),">="&IF(selMiles=1,E$4,$E$5),INDIRECT("Distances!"&ADDRESS(ROW(A3),3)&":"&ADDRESS(ROW(A3),54)),"<"&IF(selMiles=1,$G$4,$G$5)) -> 38711 | J8: =SUMIFS(INDIRECT("'Migration 2010'!"&ADDRESS(ROW(A11),10)&":"&ADDRESS(ROW(A11),61)),INDIRECT("Distances!"&ADDRESS(ROW(A3),3)&":"&ADDRESS(ROW(A3),54)),">"&IF(selMiles=1,$G$4,$G$5)) -> 8763 | K8: =SUMIFS(INDIRECT("'Migration 2011'!"&ADDRESS(11,ROW(F10))&":"&ADDRESS(62,ROW(F10))),INDIRECT("Distances!"&ADDRESS(3,ROW(F3))&":"&ADDRESS(54,ROW(F3))),"<"&IF(selMiles=1,$E$4,$E$5)) -> 63003 | L8: =SUMIFS(INDIRECT("'Migration 2011'!"&ADDRESS(11,ROW(F10))&":"&ADDRESS(62,ROW(F10))),INDIRECT("Distances!"&ADDRESS(3,ROW(F3))&":"&ADDRESS(54,ROW(F3))),">="&IF(selMiles=1,$E$4,$E$5),INDIRECT("Distances!"&ADDRESS(3,ROW(F3))&":"&ADDRESS(54,ROW(F3))),"<"&IF(selMiles=1,$G$4,$G$5)) -> 37811 | M8: =SUMIFS(INDIRECT("'Migration 2011'!"&ADDRESS(11,ROW(F10))&":"&ADDRESS(62,ROW(F10))),INDIRECT("Distances!"&ADDRESS(3,ROW(F3))&":"&ADDRESS(54,ROW(F3))),">"&IF(selMiles=1,$G$4,$G$5)) -> 6027 | N8: =SUMIFS(INDIRECT("'Migration 2011'!"&ADDRESS(ROW(F11),10)&":"&ADDRESS(ROW(F11),61)),INDIRECT("Distances!"&ADDRESS(ROW(F3),3)&":"&ADDRESS(ROW(F3),54)),"<"&IF(selMiles=1,$E$4,$E$5)) -> 63603 | O8: =SUMIFS(INDIRECT("'Migration 2011'!"&ADDRESS(ROW(F11),10)&":"&ADDRESS(ROW(F11),61)),INDIRECT("Distances!"&ADDRESS(ROW(F3),3)&":"&ADDRESS(ROW(F3),54)),">="&IF(selMiles=1,K$4,$E$5),INDIRECT("Distances!"&ADDRESS(ROW(F3),3)&":"&ADDRESS(ROW(F3),54)),"<"&IF(selMiles=1,$G$4,$G$5)) -> 45483 | P8: =SUMIFS(INDIRECT("'Migration 2011'!"&ADDRESS(ROW(F11),10)&":"&ADDRESS(ROW(F11),61)),INDIRECT("Distances!"&ADDRESS(ROW(F3),3)&":"&ADDRESS(ROW(F3),54)),">"&IF(selMiles=1,$G$4,$G$5)) -> 9209 | Q8: =SUMIFS(INDIRECT("'Migration 2012'!"&ADDRESS(11,ROW(L10))&":"&ADDRESS(62,ROW(L10))),INDIRECT("Distances!"&ADDRESS(3,ROW(L3))&":"&ADDRESS(54,ROW(L3))),"<"&IF(selMiles=1,$E$4,$E$5)) -> 63031 | R8: =SUMIFS(INDIRECT("'Migration 2012'!"&ADDRESS(11,ROW(L10))&":"&ADDRESS(62,ROW(L10))),INDIRECT("Distances!"&ADDRESS(3,ROW(L3))&":"&ADDRESS(54,ROW(L3))),">="&IF(selMiles=1,$E$4,$E$5),INDIRECT("Distances!"&ADDRESS(3,ROW(L3))&":"&ADDRESS(54,ROW(L3))),"<"&IF(selMiles=1,$G$4,$G$5)) -> 40093 | S8: =SUMIFS(INDIRECT("'Migration 2012'!"&ADDRESS(11,ROW(L10))&":"&ADDRESS(62,ROW(L10))),INDIRECT("Distances!"&ADDRESS(3,ROW(L3))&":"&ADDRESS(54,ROW(L3))),">"&IF(selMiles=1,$G$4,$G$5)) -> 6094 | T8: =SUMIFS(INDIRECT("'Migration 2012'!"&ADDRESS(ROW(L11),10)&":"&ADDRESS(ROW(L11),61)),INDIRECT("Distances!"&ADDRESS(ROW(L3),3)&":"&ADDRESS(ROW(L3),54)),"<"&IF(selMiles=1,$E$4,$E$5)) -> 60986 | U8: =SUMIFS(INDIRECT("'Migration 2012'!"&ADDRESS(ROW(L11),10)&":"&ADDRESS(ROW(L11),61)),INDIRECT("Distances!"&ADDRESS(ROW(L3),3)&":"&ADDRESS(ROW(L3),54)),">="&IF(selMiles=1,Q$4,$E$5),INDIRECT("Distances!"&ADDRESS(ROW(L3),3)&":"&ADDRESS(ROW(L3),54)),"<"&IF(selMiles=1,$G$4,$G$5)) -> 38291 | V8: =SUMIFS(INDIRECT("'Migration 2012'!"&ADDRESS(ROW(L11),10)&":"&ADDRESS(ROW(L11),61)),INDIRECT("Distances!"&ADDRESS(ROW(L3),3)&":"&ADDRESS(ROW(L3),54)),">"&IF(selMiles=1,$G$4,$G$5)) -> 5942 | W8: =HLOOKUP(selYear*10,$E$1:$V$59,ROW($A8)+selScroll,FALSE) -> 63031 | X8: =HLOOKUP((selYear*10)+1,$E$1:$V$59,ROW($A8)+selScroll,FALSE) -> 40093 | Y8: =HLOOKUP((selYear*10)+2,$E$1:$V$59,ROW($A8)+selScroll,FALSE) -> 6094 | Z8: =HLOOKUP((selYear*10)+3,$E$1:$V$59,ROW($A8)+selScroll,FALSE) -> 60986 | AA8: =HLOOKUP((selYear*10)+4,$E$1:$V$59,ROW($A8)+selScroll,FALSE) -> 38291 | AB8: =HLOOKUP((selYear*10)+5,$E$1:$V$59,ROW($A8)+selScroll,FALSE) -> 5942 | AC8: =600000-W8-X8-Y8 -> 490782 | AD8: =600000-Z8-AA8-AB8 -> 494781 | AE8: 100000 | AG8: =INDEX($B$8:$B$59,ROW(A1)+selScroll) -> Alabama | AH8: =-50000 -> -50000 | AI8: 100000
B9: =Distances!B4 -> Alaska | C9: =Migration!W6 -> 84068 | D9: =Migration!V6 -> 33415 | E9: 0 | F9: 27958 | G9: 66890 | H9: 0 | I9: 14286 | J9: 22059 | K9: 0 | L9: 28727 | M9: 60501 | N9: 0 | O9: 14447 | P9: 21681 | Q9: 0 | R9: 26235 | S9: 57890 | T9: 0 | U9: 13682 | V9: 19758 | W9: 0 | X9: 26235 | Y9: 57890 | Z9: 0 | AA9: 13682 | AB9: 19758 | AC9: =600000-W9-X9-Y9 -> 515875 | AD9: =600000-Z9-AA9-AB9 -> 566560 | AE9: 100000 | AG9: Alaska | AH9: =AH8+10000 -> -40000 | AI9: =AI8+100000 -> 200000
B10: =Distances!B5 -> Arizona | C10: =Migration!W7 -> 206842 | D10: =Migration!V7 -> 232457 | E10: 6117 | F10: 159018 | G10: 11921 | H10: 4419 | I10: 199509 | J10: 19396 | K10: 7444 | L10: 187415 | M10: 17186 | N10: 4610 | O10: 198972 | P10: 20166 | Q10: 6391 | R10: 184615 | S10: 15890 | T10: 6946 | U10: 201759 | V10: 25543 | W10: 6391 | X10: 184615 | Y10: 15890 | Z10: 6946 | AA10: 201759 | AB10: 25543 | AC10: 393104 | AD10: 365752 | AE10: 100000 | AG10: Arizona | AH10: -30000 | AI10: =AI9+100000 -> 300000
B11: =Distances!B6 -> Arkansas | C11: =Migration!W8 -> 64967 | D11: =Migration!V8 -> 76948 | E11: 45461 | F11: 18756 | G11: 47 | H11: 54962 | I11: 23189 | J11: 1063 | K11: 53610 | L11: 23184 | M11: 432 | N11: 46742 | O11: 23059 | P11: 573 | Q11: 45965 | R11: 18875 | S11: 220 | T11: 52212 | U11: 23881 | V11: 855 | W11: 45965 | X11: 18875 | Y11: 220 | Z11: 52212 | AA11: 23881 | AB11: 855 | AC11: 534940 | AD11: 523052 | AE11: 100000 | AG11: Arkansas | AH11: -20000 | AI11: 400000
B12: =Distances!B7 -> California | C12: =Migration!W9 -> 566986 | D12: =Migration!V9 -> 493641 | E12: 78594 | F12: 315915 | G12: 180656 | H12: 54356 | I12: 232812 | J12: 158804 | K12: 83349 | L12: 301344 | M12: 177857 | N12: 59120 | O12: 247823 | P12: 162829 | Q12: 92120 | R12: 307733 | S12: 167652 | T12: 56023 | U12: 257159 | V12: 182782 | W12: 92120 | X12: 307733 | Y12: 167652 | Z12: 56023 | AA12: 257159 | AB12: 182782 | AC12: 32495 | AD12: 104036 | AE12: 100000 | AG12: California | AH12: -10000 | AI12: 500000
B13: =Distances!B8 -> Colorado | C13: =Migration!W10 -> 161530 | D13: =Migration!V10 -> 205060 | E13: 16218 | F13: 123329 | G13: 1461 | H13: 18999 | I13: 165012 | J13: 3229 | K13: 20682 | L13: 138991 | M13: 950 | N13: 21517 | O13: 178755 | P13: 2328 | Q13: 19496 | R13: 140818 | S13: 1216 | T13: 23748 | U13: 178776 | V13: 3680 | W13: 19496 | X13: 140818 | Y13: 1216 | Z13: 23748 | AA13: 178776 | AB13: 3680 | AC13: 438470 | AD13: 393796 | AE13: 100000 | AG13: Colorado | AH13: 0 | AI13: 600000
B14: =Distances!B9 -> Connecticut | C14: =Migration!W11 -> 87023 | D14: =Migration!V11 -> 80311 | E14: 50701 | F14: 32462 | G14: 7096 | H14: 42176 | I14: 28481 | J14: 8703 | K14: 47489 | L14: 37112 | M14: 8543 | N14: 44250 | O14: 20441 | P14: 8916 | Q14: 46219 | R14: 30191 | S14: 10983 | T14: 48223 | U14: 26199 | V14: 9117 | W14: 46219 | X14: 30191 | Y14: 10983 | Z14: 48223 | AA14: 26199 | AB14: 9117 | AC14: 512607 | AD14: 516461 | AE14: 100000 | AG14: Connecticut | AH14: 0 | AI14: 700000
B15: =Distances!B10 -> Delaware | C15: =Migration!W12 -> 25149 | D15: =Migration!V12 -> 34757 | E15: 20199 | F15: 8273 | G15: 1583 | H15: 24628 | I15: 6121 | J15: 964 | K15: 19115 | L15: 4997 | M15: 2532 | N15: 25871 | O15: 6356 | P15: 2693 | Q15: 19061 | R15: 4497 | S15: 1591 | T15: 27525 | U15: 3554 | V15: 3734 | W15: 19061 | X15: 4497 | Y15: 1591 | Z15: 27525 | AA15: 3554 | AB15: 3734 | AC15: 574851 | AD15: 565187 | AE15: 100000 | AG15: Delaware | AH15: 10000 | AI15: 800000
B16: =Distances!B11 -> District of Columbia | C16: =Migration!W13 -> 59513 | D16: =Migration!V13 -> 53830 | E16: 44565 | F16: 7186 | G16: 4301 | H16: 37125 | I16: 8438 | J16: 5681 | K16: 35830 | L16: 8822 | M16: 5292 | N16: 34870 | O16: 8059 | P16: 5137 | Q16: 46170 | R16: 7505 | S16: 5838 | T16: 36610 | U16: 10210 | V16: 7010 | W16: 46170 | X16: 7505 | Y16: 5838 | Z16: 36610 | AA16: 10210 | AB16: 7010 | AC16: 540487 | AD16: 546170 | AE16: 100000 | AG16: District of Columbia | AH16: 20000 | AI16: 900000
B17: =Distances!B12 -> Florida | C17: =Migration!W14 -> 428325 | D17: =Migration!V14 -> 537148 | E17: 138382 | F17: 262227 | G17: 38506 | H17: 109355 | I17: 344186 | J17: 42316 | K17: 133085 | L17: 271888 | M17: 38843 | N17: 108949 | O17: 364614 | P17: 46645 | Q17: 118882 | R17: 273449 | S17: 40186 | T17: 123167 | U17: 392249 | V17: 43370 | W17: 118882 | X17: 273449 | Y17: 40186 | Z17: 123167 | AA17: 392249 | AB17: 43370 | AC17: 167483 | AD17: 41214 | AE17: 100000 | AG17: Florida | AH17: 30000 | AI17: 1000000
B18: =Distances!B13 -> Georgia | C18: =Migration!W15 -> 252262 | D18: =Migration!V15 -> 277466 | E18: 145388 | F18: 83932 | G18: 15879 | H18: 142981 | I18: 88556 | J18: 18932 | K18: 136634 | L18: 85476 | M18: 27029 | N18: 152217 | O18: 99033 | P18: 21462 | Q18: 147877 | R18: 84056 | S18: 20561 | T18: 148965 | U18: 109576 | V18: 20655 | W18: 147877 | X18: 84056 | Y18: 20561 | Z18: 148965 | AA18: 109576 | AB18: 20655 | AC18: 347506 | AD18: 320804 | AE18: 100000 | AG18: Georgia | AH18: 40000 | AI18: 1100000
B19: =Distances!B14 -> Hawaii | C19: =Migration!W16 -> 61509 | D19: =Migration!V16 -> 55145 | E19: 0 | F19: 0 | G19: 49218 | H19: 0 | I19: 0 | J19: 53581 | K19: 0 | L19: 0 | M19: 61940 | N19: 0 | O19: 0 | P19: 57780 | Q19: 0 | R19: 0 | S19: 61619 | T19: 0 | U19: 0 | V19: 55481 | W19: 0 | X19: 0 | Y19: 61619 | Z19: 0 | AA19: 0 | AB19: 55481 | AC19: 538381 | AD19: 544519 | AE19: 100000 | AG19: Hawaii | AH19: 50000 | AI19: 1200000
B20: =Distances!B15 -> Idaho | C20: =Migration!W17 -> 55191 | D20: =Migration!V17 -> 59283 | E20: 33345 | F20: 16301 | G20: 3476 | H20: 34643 | I20: 19089 | J20: 2139 | K20: 34937 | L20: 19142 | M20: 3765 | N20: 36424 | O20: 21064 | P20: 3097 | Q20: 31045 | R20: 20524 | S20: 3622 | T20: 38593 | U20: 17147 | V20: 3679 | AI20: 1300000
B21: =Distances!B16 -> Illinois | C21: =Migration!W18 -> 277953 | D21: =Migration!V18 -> 208755 | E21: 127087 | F21: 149389 | G21: 2745 | H21: 95836 | I21: 105135 | J21: 5043 | K21: 129667 | L21: 136472 | M21: 3493 | N21: 99150 | O21: 111666 | P21: 7775 | Q21: 128374 | R21: 149203 | S21: 1397 | T21: 92796 | U21: 112840 | V21: 5168 | AI21: =AI20+100000 -> 1400000
B22: =Distances!B17 -> Indiana | C22: =Migration!W19 -> 144597 | D22: =Migration!V19 -> 134137 | E22: 79130 | F22: 50948 | G22: 201 | H22: 85633 | I22: 41848 | J22: 444 | K22: 85641 | L22: 57788 | M22: 583 | N22: 78398 | O22: 48180 | P22: 1428 | Q22: 88128 | R22: 56038 | S22: 552 | T22: 86147 | U22: 46791 | V22: 1335
B23: =Distances!B18 -> Iowa | C23: =Migration!W20 -> 73325 | D23: =Migration!V20 -> 75760 | E23: 35864 | F23: 30728 | G23: 330 | H23: 45686 | I23: 25486 | J23: 1534 | K23: 42830 | L23: 30889 | M23: 797 | N23: 39654 | O23: 29485 | P23: 1323 | Q23: 40817 | R23: 32411 | S23: 97 | T23: 41601 | U23: 32687 | V23: 2258
